Workbook

Sheet Pengaturan Macro
A1: ...PERINGATAN !!…
A2: Untuk menjalankan Excel Macro ini anda harus setting Macro di Office Excel anda
A3: itu artinya Macro Security dalam keadaan DISABLE
A4: Lakukan Pengaturan Macro menjadi ENABLE
A5: Tutup dokumen ini dan buka kembali untuk melihat perubahannya
A8: Ihsan Amrullah,SE
A9: Copyright © 2013
A12: PRINT CARA MENGAKTIVEKAN MACRO PADA EXCEL ANDA :
A13: Jika anda Belum Melakukan Setting Pada Microsoft Excel anda, akan tampil pesan Security Warning,
A15: pesan ini tampil karena file “file anda.xlsm” yang berarti menggandung MACRO. Macro pada file berfungsi untuk beberapa proses otomatis, sehingga macro tersebut harus dalam keadaan aktif. Untuk Melakukan Setting Macro Ikuti Langkah Berikut :
A16: 1. Click Logo Microsoft Excel di Sudut kiri atas :
A18: 2. Lalu click Excel Options yang berada di bawah Sub Menu
A19: 3. Tampil jendela Option pilih Popular lalu pilih bullet ke 3 show Developer ribbon
A21: Lalu clik OK
A22: 4. Sekarang Menu Developer telah tampil pada Toolbar teratas Excel anda
A23: 5. Pilih Trust Center pada excel option
A26: Lalu pilih Trust center setting
A28: 6. Pada Jendela Trust center pilih Macro Setting
A30: Centang Bullet ke 4 ( Enable All Macros [Not recommended…….]) Lalu click OK
A31: 7. Sekarang buka file excel macro anda, pada Microsoft Excel anda tampil ribbon baru “Developer.
A33: 8. Sekarang buka file excel macro anda, pada Microsoft Excel anda tampil “Security Warning”.
A35: 9. Click “Option” sehingga tampil jendela peringatan
A36: 10. Pilih Enable , akan tampil warning lagi lalu pilih “Continue”
A38: 11. Sekarang lanjutkan pekerjaan anda, setting ini hanya sekali dilakukan dalam computer anda, selanjutnya anda tidak perlu setting kembali untuk membuka file macro anda.

Sheet MENU
C3: PROGRAM DATABASE SISWA BASIS MACRO EXCEL 2007 | G3: PEMERINTAH
G4: KOTA CILEGON
C5: SEMESTER | D5: annisa | E5: SELAMAT DATANG DI APLIKASI DATABASE SMA DENGAN PROGRAM MACRO SEBELUM MELANJUTKAN PEKERJAAN PASTIKAN SETTING MACRO EXCEL ANDA AKTIF UNTUK MENGAKTIFKANNNYA BACA PETUNJUK SETTING MACRO CLIK PENGATURAN MACRO
C6: TAHUN KEGIATAN | D6: 2013
C7: TAHUN AJARAN | D7: 2013-2014
C8: NAMA SEKOLAH | D8: SMA NEGERI 5 CILEGON
C9: KEPALA SEKOLAH | D9: Asep Mansur, M.Pd
D10: NIP. 19620101 198512 1 004
C11: WAKA KURIKULUM | D11: Nur Badriyah,S.Pd
D12: NIP: 19740217 200604 2 002 | E12: PENGATURAN MACRO
C13: Kota / Kabupaten | D13: Cilegon
C14: Alamat | D14: Jl.Sunan Bonang Kel. Banjarnegara Ciwandan Cilegon 42444
C15: PILIH SEMESTER YANG AKAN DI INPUT
E16: Alamat Website Sekolah | G16: www.sma5.yolasite.com
E17: Alamat e-mail Sekolah | G17: tusman5clg@gmail.com & sman5_clg@yahoo.co.id
C18: ISI SEMUA KOLOM PUTIH/LETTER BIRU JIKA SUDAH SELESAI CLICK TOMBOL KEMBALI KE MENU | G18: Diskusi IT Kunjungi ?
G19: www.ichanov.wordpress.com

Sheet INPUT
B2: INPUT DATA KELAS DAN WALI KELAS | G2: INPUT DATA KELAS DAN WALI KELAS | L2: INPUT DATA KELAS DAN WALI KELAS
B4: NAMA KELAS | D4: NAMA WALI KELAS | E4: JABATAN | G4: NAMA KELAS | I4: NAMA WALI KELAS | J4: JABATAN | L4: NAMA KELAS | N4: NAMA WALI KELAS | O4: JABATAN
B6: X | C6: X-1 | D6: Annisa Diyah Waryuni,M.Pd | E6: Guru Madya Tk I | G6: XI | H6: XI IPA-1 | I6: Nismawati,S.Si | J6: Penata Muda | L6: XII | M6: XII IPA-1 | N6: Dian Misdiyana,S.Pd | O6: Guru Madya
C7: X-2 | D7: Tina Martiana,S.Pd | E7: Penata Muda | H7: XI IPA-2 | I7: Sati fatchani,S.Pd | J7: Penata Muda | M7: XII IPA-2 | N7: Ria Setiya Wardani,S.Pd | O7: Guru Madya Tk I
C8: X-3 | D8: Apriyani Dewi Mayasari,M.Pd | E8: Penata Muda | H8: XI IPA-3 | I8: Ragil Widyaningsih,S.Pd | J8: Penata Muda | M8: XII IPA-3 | N8: Farida Kustyarini,S.Si | O8: Guru Madya Tk I
C9: X-4 | D9: Rochma,S.Pd | E9: Guru Madya Tk I | H9: XI IPS-1 | I9: Dian Lestari,S.PD | J9: Penata Muda | M9: XII IPS-1 | N9: Nanik Tri Handayani,S.Pd | O9: Guru Madya
C10: X-5 | D10: Rukyati,S.Pd | E10: Guru Madya Tk I | H10: XI IPS-2 | I10: Arie Septiningrum,S.Pd | J10: Penata Muda | M10: XII IPS-2 | N10: Nurulhijjah,S.PD | O10: Guru Pembina
C11: X-6 | D11: Tati Susilawati,SE | E11: Penata Muda | H11: XI IPS-3 | I11: Toyyibah,M.Pd | J11: Guru Madya | M11: XII IPS-3 | N11: Erning Pangesti,S.Sos | O11: Guru Madya Tk I
D14: DATA SEKOLAH PENDAFTAR | N14: DATA PEKERJAAN ORANG TUA
D16: SMPN 1 CILEGON | N16: BURUH HARIAN
D17: SMPN 2 CILEGON | N17: PEG / KARY. SWASTA
D18: SMPN 3 CILEGON | N18: PNS
D19: SMPN 4 CILEGON | N19: WIRASWASTA
D20: SMPN 5 CILEGON | N20: KARY/ PEGAWAI .BUMN
D21: SMPN 6 CILEGON | N21: KEPOLISIAN
D22: SMPN 7 CILEGON | N22: PENSIUNAN
D23: SMPN 8 CILEGON | N23: HONORER
D24: SMPN 9 CILEGON | N24: GURU
D25: SMPN 10 CILEGON | N25: PETANI
D26: SMPN 11 CILEGON | N26: NELAYAN
D27: SMP MADINATUL HADIED | N27: PEDAGANG
D28: SMP MUHAMMADIYAH CILEGON
D29: SMP PGRI 2 CILEGON
D30: SMP AL-ISHLAH
D31: SMP YP FATAHILAH
D32: SMP YP 17 CILEGON | N32: LAINNYA
D33: SMP MAFLAHUL UMMAH
D34: SMP TUNAS BANGSA CILEGON
D35: SMPIT R-JANNAH
D36: SMP YPWKS
D37: MTSN CILEGON
D38: MTSN CIWANDAN
D39: MTS ALKH-KRACAK
D40: MTS AL-ITMAM
D41: MTS AL-INAYAH
D42: MTS AL-KHAIRIYAH DELINSENG
D43: MTS AL-KHAIRIYAH PEKALONGAN
D44: MTS AL-KHAIRIYAH KUBANGSARI
D45: MTS AL-KHAIRIYAH PENAUHAN
D46: MTS AL-BUSTANIYAH
D47: MTS AL-IANAH JANGKAR
D48: MTS AL-KH-KARANG JETAK
D49: MTS YP HIKMATUL ULUM
D50: MTS AL-KHAIRIYAH CITANGKIL
D51: MTS AL-MUMTAZ MERAK
D52: MTS BANINAWAWY
D53: MTS AL-HIDAYAH
D54: MTS AL-KH TGL BUNTU
D55: MTS ARDANIAH SERANG
D56: SMPN 1 MANCAK
D57: SMPN 2 MANCAK
D58: SMPN 1 KRAMATWATU
D59: SMPN 1 ANYAR
D60: SMPN 3 MANCAK
D61: SMPN 3 KRAMATWATU
D62: SMPIT DARUSSALAM PIPITAN
D63: SMPN 1 ATAP 2 TUNGKAL ULU
D64: SMPN 3 TANGERANG
D65: MTsN ANYAR
D66: MTS DAAR EL QOLAM
D67: SMPN METRO
D68: SMP 15 B.LAMPUNG
D69: MTSN CILEGON
D70: MTSN CIWANDAN
D71: LAINNYA

Sheet DataBase-X
A1: NO | B1: KELAS | C1: NAMA | D1: NIS | E1: NISN | F1: L/P | G1: TMPT LHR | H1: TGL LAHIR | I1: Val | K1: Usia | L1: NAMA ORANG TUA | M1: PENDAPATAN ORANG TUA | N1: PEKERJAAN ORANG TUA ( AYAH ) | O1: ALAMAT | P1: NO STTB | Q1: NO SKHU | R1: NO PESERTA UJIAN SMP | S1: ASAL SEKOLAH | T1: THN LULUS | U1: SMP/ MTs | V1: NO TELP/HP | X1: NAMA IBU | Y1: WALI KELAS | Z1: JABATAN | AA1: NEM UN | AE1: TOTAL NILAI | AF1: DATA SISWA MUTASI
A2: 1 | B2: 2 | C2: 3 | D2: 4 | E2: 5 | F2: 6 | G2: 7 | H2: 8 | I2: 9 | J2: 10 | K2: 11 | L2: 12 | M2: 13 | N2: 14 | O2: 15 | P2: 16 | Q2: 17 | R2: 18 | S2: 19 | T2: 20 | U2: 21 | V2: 22 | W2: 23 | X2: 24 | Y2: 25 | Z2: 26 | AA2: B.Ind | AB2: B.Ing | AC2: Mate | AD2: IPA | AF2: Tanggal Bulan dan Tahun | AG2: Kelas dan Semester yang ditinggalkan | AH2: Alasan Keluar dan atas permintaan (Tertulis) | AI2: 33
A3: Contoh>> | B3: X-1 | C3: AAM TAMIMI | D3: 12130001 | E3: 9970454991 | F3: L | G3: CILEGON | H3: 1997-05-04 | I3: 1997 | J3: =+MENU!$D$6 -> 2013 | K3: =+J3-I3 -> 16 | L3: AHYADI | M3: Rp 500 - 700 Ribu | N3: BURUH HARIAN | O3: Jl.Sunan Drajat Link.Cirahap RT 17/02 Ciwandan Cilegon 42444 | P3: DN-30 DI 0028823 | Q3: DN-30 DI 2803800 | R3: 2-12-30-03-005-139-6 | S3: SMPN 4 CILEGON | T3: 2012 | U3: SMP | V3: 087773100391 | W3: Islam | AF3: 31/01/2012 | AG3: X-1 Semester 1 | AH3: Permintaan Orang Tua
A4: No Urut | B4: PILIH Kls | AF4: 2013-01-23 | AG4: XI-IPA 1 Semester 1 | AH4: Permintaan Orang Tua
A5: 1 | B5: =+INPUT!$C$6 -> X-1 | C5: ALVIRA | D5: 13140016 | E5: 9970456061 | F5: P | G5: CILEGON | H5: 1998-10-04 | I5: =TODAY() -> 2013-07-24 | J5: =+$J$3 -> 2013 | K5: =IF(H5="","",DATEDIF(H5,I5,"y")) -> 14 | AE5: =AVERAGE(AA5:AD5) ->  | AI5: =+B5 -> X-1
A6: 2 | B6: =IF(A6=0," ",+B5) -> X-1 | I6: =TODAY() -> 2013-07-24 | J6: 2013 | K6: =IF(H6="","",DATEDIF(H6,I6,"y")) -> 
A7: 3 | B7: =IF(A7=0," ",+B6) -> X-1 | I7: 2013-07-24 | J7: 2013
A8: 4 | B8: X-1 | I8: 2013-07-24 | J8: 2013
A9: 5 | B9: X-1 | I9: 2013-07-24 | J9: 2013
A10: 6 | B10: X-1 | I10: 2013-07-24 | J10: 2013
A11: 7 | B11: X-1 | I11: 2013-07-24 | J11: 2013
A12: 8 | B12: X-1 | I12: 2013-07-24 | J12: 2013
A13: 9 | B13: X-1 | I13: 2013-07-24 | J13: 2013
A14: 10 | B14: X-1 | I14: 2013-07-24 | J14: 2013
A15: 11 | B15: X-1 | I15: 2013-07-24 | J15: 2013
A16: 12 | B16: X-1 | I16: 2013-07-24 | J16: 2013
A17: 13 | B17: X-1 | I17: 2013-07-24 | J17: 2013
A18: 14 | B18: X-1 | I18: 2013-07-24 | J18: 2013
A19: 15 | B19: X-1 | I19: 2013-07-24 | J19: 2013
A20: 16 | B20: X-1 | I20: 2013-07-24 | J20: 2013
A21: 17 | B21: X-1 | I21: 2013-07-24 | J21: 2013
A22: 18 | B22: X-1 | I22: 2013-07-24 | J22: 2013
A23: 19 | B23: X-1 | I23: 2013-07-24 | J23: 2013
A24: 20 | B24: X-1 | I24: 2013-07-24 | J24: 2013
A25: 21 | B25: X-1 | I25: 2013-07-24 | J25: 2013
A26: 22 | B26: X-1 | I26: 2013-07-24 | J26: 2013
A27: 23 | B27: X-1 | I27: 2013-07-24 | J27: 2013
A28: 24 | B28: X-1 | I28: 2013-07-24 | J28: 2013
A29: 25 | B29: X-1 | I29: 2013-07-24 | J29: 2013
A30: 26 | B30: X-1 | I30: 2013-07-24 | J30: 2013
A31: 27 | B31: X-1 | I31: 2013-07-24 | J31: 2013
A32: 28 | B32: X-1 | I32: 2013-07-24 | J32: 2013
A33: 29 | B33: X-1 | I33: 2013-07-24 | J33: 2013
A34: 30 | B34: X-1 | I34: 2013-07-24 | J34: 2013
A35: 31 | B35: X-1 | I35: 2013-07-24 | J35: 2013
A36: 32 | B36: X-1 | I36: 2013-07-24 | J36: 2013
A37: 33 | B37: X-1 | I37: 2013-07-24 | J37: 2013
A38: 34 | B38: X-1 | I38: 2013-07-24 | J38: 2013
A39: 35 | B39: X-1 | I39: 2013-07-24 | J39: 2013
A40: 36 | B40: X-1 | I40: 2013-07-24 | J40: 2013
A41: 37 | B41: X-1 | I41: 2013-07-24 | J41: 2013
A42: 38 | B42: X-1 | I42: =TODAY() -> 2013-07-24 | J42: 2013
A43: 39 | B43: X-1 | I43: 2013-07-24 | J43: 2013
A44: 40 | B44: X-1 | I44: 2013-07-24 | J44: 2013
A45: 41 | B45: X-1 | I45: 2013-07-24 | J45: 2013
A46: 42 | B46: X-1 | I46: 2013-07-24 | J46: 2013 | Y46: =+INPUT!$D$6 -> Annisa Diyah Waryuni,M.Pd | Z46: =+INPUT!$E$6 -> Guru Madya Tk I
A47: 43 | B47: X-1 | I47: 2013-07-24 | J47: 2013 | Y47: =+INPUT!$D$6 -> Annisa Diyah Waryuni,M.Pd | Z47: =+INPUT!$E$6 -> Guru Madya Tk I
A48: 44 | B48: X-1 | I48: 2013-07-24 | J48: 2013 | Y48: =+INPUT!$D$6 -> Annisa Diyah Waryuni,M.Pd | Z48: =+INPUT!$E$6 -> Guru Madya Tk I
A49: 45 | B49: X-1 | I49: 2013-07-24 | J49: 2013 | Y49: =+INPUT!$D$6 -> Annisa Diyah Waryuni,M.Pd | Z49: =+INPUT!$E$6 -> Guru Madya Tk I
F50: =COUNTIF(F5:F49,"L") -> 0 | G50: Laki-laki | H50: 14 | I50: 14 Th | J50: =+K50/$F$52*100% -> 1 | K50: =COUNTIF(K5:K49,"14") -> 1 | M50: BURUH HARIAN | N50: 0 | T50: SMP | U50: =COUNTIF(U5:U49,"SMP") -> 0 | V50: Islam | W50: =COUNTIF(W5:W49,"Islam") -> 0
F51: =COUNTIF(F5:F49,"P") -> 1 | G51: Perempuan | H51: 15 | I51: 15 Th | J51: 0 | K51: =COUNTIF(K5:K49,"15") -> 0 | M51: PEG / KARY. SWASTA | N51: 0 | T51: MTs | U51: =COUNTIF(U5:U49,"MTs") -> 0 | V51: Katolik | W51: =COUNTIF(W5:W49,"Katolik") -> 0
F52: =+F50+F51 -> 1 | G52: Total Siswa | H52: 16 | I52: 16 Th | J52: 0 | K52: =COUNTIF(K5:K49,"16") -> 0 | M52: PNS | N52: 0 | T52: Lainnya | U52: =+U50+U51 -> 0 | V52: Protestan | W52: =COUNTIF(W5:W49,"Protestan") -> 0
H53: 17 | I53: 17 Th | J53: 0 | K53: =COUNTIF(K5:K49,"17") -> 0 | M53: WIRASWASTA | N53: 0 | V53: Hindu | W53: =COUNTIF(W5:W49,"Hindu") -> 0
H54: 18 | I54: 18 Th | J54: 0 | K54: =COUNTIF(K5:K49,"18") -> 0 | M54: KARY/ PEGAWAI .BUMN | N54: 0 | V54: Budha | W54: =COUNTIF(W5:W49,"Budha") -> 0
H55: 13 | I55: 19 Th | J55: 0 | K55: =COUNTIF(K5:K49,"13") -> 0 | M55: KEPOLISIAN | N55: 0 | W55: =SUM(W50:W54) -> 0
I56: 20 Th | J56: 0 | M56: PENSIUNAN | N56: 0
I57: TOTAL | J57: =+K57/$F$52*100% -> 1 | K57: =SUM(K50:K56) -> 1 | M57: HONORER | N57: 0
M58: GURU | N58: 0
M59: TAK ADA DATA | N59: 0
M60: TOTAL DATA | N60: 0
B61: =MAX(A5:A49) -> 45
A62: =+$B$61+1 -> 46 | B62: =+INPUT!$C$7 -> X-2 | C62: ADITYA YUDISTIRA | D62: 13140071 | E62: 9980450357 | F62: L | G62: SERANG | H62: 1998-03-25 | I62: =TODAY() -> 2013-07-24 | J62: =+$J$3 -> 2013 | K62: =IF(H62="","",DATEDIF(H62,I62,"y")) -> 15 | AE62: =AVERAGE(AA62:AD62) ->  | AI62: =+B62 -> X-2
A63: =+A62+1 -> 47 | B63: =IF(A63=0," ",+B62) -> X-2 | I63: =TODAY() -> 2013-07-24 | J63: 2013 | K63: =IF(H63="","",DATEDIF(H63,I63,"y")) -> 
A64: =+A63+1 -> 48 | B64: =IF(A64=0," ",+B63) -> X-2 | I64: 2013-07-24 | J64: 2013
A65: 49 | B65: =IF(A65=0," ",+B64) -> X-2 | I65: 2013-07-24 | J65: 2013
A66: 50 | B66: X-2 | I66: 2013-07-24 | J66: 2013
A67: 51 | B67: X-2 | I67: 2013-07-24 | J67: 2013
A68: 52 | B68: X-2 | I68: 2013-07-24 | J68: 2013
A69: 53 | B69: X-2 | I69: 2013-07-24 | J69: 2013
A70: 54 | B70: X-2 | I70: 2013-07-24 | J70: 2013
A71: 55 | B71: X-2 | I71: 2013-07-24 | J71: 2013
A72: 56 | B72: X-2 | I72: 2013-07-24 | J72: 2013
A73: 57 | B73: X-2 | I73: 2013-07-24 | J73: 2013
A74: 58 | B74: X-2 | I74: 2013-07-24 | J74: 2013
A75: 59 | B75: X-2 | I75: 2013-07-24 | J75: 2013
A76: 60 | B76: X-2 | I76: 2013-07-24 | J76: 2013
A77: 61 | B77: X-2 | I77: 2013-07-24 | J77: 2013
A78: 62 | B78: X-2 | I78: 2013-07-24 | J78: 2013
A79: 63 | B79: X-2 | I79: 2013-07-24 | J79: 2013
A80: 64 | B80: X-2 | I80: 2013-07-24 | J80: 2013
A81: 65 | B81: X-2 | I81: 2013-07-24 | J81: 2013
A82: 66 | B82: X-2 | I82: 2013-07-24 | J82: 2013
A83: 67 | B83: X-2 | I83: 2013-07-24 | J83: 2013
A84: 68 | B84: X-2 | I84: 2013-07-24 | J84: 2013
A85: 69 | B85: X-2 | I85: 2013-07-24 | J85: 2013
A86: 70 | B86: X-2 | I86: 2013-07-24 | J86: 2013
A87: 71 | B87: X-2 | I87: 2013-07-24 | J87: 2013
A88: 72 | B88: X-2 | I88: 2013-07-24 | J88: 2013
A89: 73 | B89: X-2 | I89: 2013-07-24 | J89: 2013
A90: 74 | B90: X-2 | I90: 2013-07-24 | J90: 2013
A91: 75 | B91: X-2 | I91: 2013-07-24 | J91: 2013
A92: 76 | B92: X-2 | I92: 2013-07-24 | J92: 2013
A93: 77 | B93: X-2 | I93: 2013-07-24 | J93: 2013
A94: 78 | B94: X-2 | I94: 2013-07-24 | J94: 2013
A95: 79 | B95: X-2 | I95: 2013-07-24 | J95: 2013
A96: 80 | B96: X-2 | I96: 2013-07-24 | J96: 2013
A97: 81 | B97: X-2 | I97: 2013-07-24 | J97: 2013
A98: 82 | B98: X-2 | I98: 2013-07-24 | J98: 2013
A99: 83 | B99: X-2 | I99: =TODAY() -> 2013-07-24 | J99: 2013
A100: 84 | B100: X-2 | I100: 2013-07-24 | J100: 2013
A101: 85 | B101: X-2 | I101: 2013-07-24 | J101: 2013
A102: 86 | B102: X-2 | I102: 2013-07-24 | J102: 2013
A103: 87 | B103: X-2 | I103: 2013-07-24 | J103: 2013 | Y103: =+INPUT!$D$7 -> Tina Martiana,S.Pd | Z103: =+INPUT!$E$7 -> Penata Muda
A104: 88 | B104: X-2 | I104: 2013-07-24 | J104: 2013 | Y104: =+INPUT!$D$7 -> Tina Martiana,S.Pd | Z104: =+INPUT!$E$7 -> Penata Muda
A105: 89 | B105: X-2 | I105: 2013-07-24 | J105: 2013 | Y105: =+INPUT!$D$7 -> Tina Martiana,S.Pd | Z105: =+INPUT!$E$7 -> Penata Muda
A106: 90 | B106: X-2 | I106: 2013-07-24 | J106: 2013 | Y106: =+INPUT!$D$7 -> Tina Martiana,S.Pd | Z106: =+INPUT!$E$7 -> Penata Muda
F107: =COUNTIF(F62:F106,"L") -> 1 | G107: Laki-laki | I107: 14 Th | J107: =+K107/$F$52*100% -> 0 | K107: =COUNTIF(K62:K106,"14") -> 0 | M107: BURUH HARIAN | N107: 0 | T107: SMP | U107: =COUNTIF(U62:U106,"SMP") -> 0 | W107: =COUNTIF(W62:W106,"Islam") -> 0
F108: =COUNTIF(F62:F106,"P") -> 0 | G108: Perempuan | I108: 15 Th | J108: =+K108/$F$52*100% -> 1 | K108: =COUNTIF(K62:K106,"15") -> 1 | M108: PEG / KARY. SWASTA | N108: 0 | T108: MTs | U108: =COUNTIF(U62:U106,"MTs") -> 0 | W108: =COUNTIF(W62:W106,"Katolik") -> 0
F109: =SUM(F107:F108) -> 1 | G109: Total Siswa | I109: 16 Th | J109: =+K109/$F$52*100% -> 0 | K109: =COUNTIF(K62:K106,"16") -> 0 | M109: PNS | N109: 0 | T109: Lainnya | U109: =+U107+U108 -> 0 | W109: =COUNTIF(W62:W106,"Protestan") -> 0
I110: 17 Th | J110: 0 | K110: =COUNTIF(K62:K106,"17") -> 0 | M110: WIRASWASTA | N110: 0 | W110: =COUNTIF(W62:W106,"Hindu") -> 0
I111: 18 Th | J111: 0 | K111: =COUNTIF(K62:K106,"18") -> 0 | M111: KARY/ PEGAWAI .BUMN | N111: 0 | W111: =COUNTIF(W62:W106,"Budha") -> 0
I112: 19 Th | J112: 0 | K112: =COUNTIF(K62:K106,"13") -> 0 | M112: KEPOLISIAN | N112: 0 | W112: =SUM(W107:W111) -> 0
I113: 20 Th | J113: 0 | K113: =COUNTIF(K62:K106,"20") -> 0 | M113: PENSIUNAN | N113: 0
I114: TOTAL | J114: 1 | K114: =SUM(K107:K113) -> 1 | M114: HONORER | N114: 0
M115: GURU | N115: 0
M116: TAK ADA DATA | N116: 0
M117: TOTAL DATA | N117: 0
B118: =MAX(A62:A106) -> 90
A119: =+$B$118+1 -> 91 | B119: =+INPUT!$C$8 -> X-3 | C119: ADE SRI JUA ASIH | D119: 13140086 | E119: 9988413542 | F119: P | G119: CILEGON | H119: 1 DESEMBER 1998 | I119: =TODAY() -> 2013-07-24 | J119: =+$J$3 -> 2013 | K119: =IF(H119="","",DATEDIF(H119,I119,"y")) -> 14 | AE119: =AVERAGE(AA119:AD119) ->  | AI119: =+B119 -> X-3
A120: =+A119+1 -> 92 | B120: =IF(A120=0," ",+B119) -> X-3 | I120: =TODAY() -> 2013-07-24 | J120: 2013 | K120: =IF(H120="","",DATEDIF(H120,I120,"y")) -> 
A121: =+A120+1 -> 93 | B121: =IF(A121=0," ",+B120) -> X-3 | I121: 2013-07-24 | J121: 2013
A122: 94 | B122: =IF(A122=0," ",+B121) -> X-3 | I122: 2013-07-24 | J122: 2013
A123: 95 | B123: X-3 | I123: 2013-07-24 | J123: 2013
A124: 96 | B124: X-3 | I124: 2013-07-24 | J124: 2013
A125: 97 | B125: X-3 | I125: 2013-07-24 | J125: 2013
A126: 98 | B126: X-3 | I126: 2013-07-24 | J126: 2013
A127: 99 | B127: X-3 | I127: 2013-07-24 | J127: 2013
A128: 100 | B128: X-3 | I128: 2013-07-24 | J128: 2013
A129: 101 | B129: X-3 | I129: 2013-07-24 | J129: 2013
A130: 102 | B130: X-3 | I130: 2013-07-24 | J130: 2013
A131: 103 | B131: X-3 | I131: 2013-07-24 | J131: 2013
A132: 104 | B132: X-3 | I132: 2013-07-24 | J132: 2013
A133: 105 | B133: X-3 | I133: 2013-07-24 | J133: 2013
A134: 106 | B134: X-3 | I134: 2013-07-24 | J134: 2013
A135: 107 | B135: X-3 | I135: 2013-07-24 | J135: 2013
A136: 108 | B136: X-3 | I136: 2013-07-24 | J136: 2013
A137: 109 | B137: X-3 | I137: 2013-07-24 | J137: 2013
A138: 110 | B138: X-3 | I138: 2013-07-24 | J138: 2013
A139: 111 | B139: X-3 | I139: 2013-07-24 | J139: 2013
A140: 112 | B140: X-3 | I140: 2013-07-24 | J140: 2013
A141: 113 | B141: X-3 | I141: 2013-07-24 | J141: 2013
A142: 114 | B142: X-3 | I142: 2013-07-24 | J142: 2013
A143: 115 | B143: X-3 | I143: 2013-07-24 | J143: 2013
A144: 116 | B144: X-3 | I144: 2013-07-24 | J144: 2013
A145: 117 | B145: X-3 | I145: 2013-07-24 | J145: 2013
A146: 118 | B146: X-3 | I146: 2013-07-24 | J146: 2013
A147: 119 | B147: X-3 | I147: 2013-07-24 | J147: 2013
A148: 120 | B148: X-3 | I148: 2013-07-24 | J148: 2013
A149: 121 | B149: X-3 | I149: 2013-07-24 | J149: 2013
A150: 122 | B150: X-3 | I150: 2013-07-24 | J150: 2013
A151: 123 | B151: X-3 | I151: 2013-07-24 | J151: 2013
A152: 124 | B152: X-3 | I152: 2013-07-24 | J152: 2013
A153: 125 | B153: X-3 | I153: 2013-07-24 | J153: 2013 | AE153: =AVERAGE(AA153:AD153) -> 
A154: 126 | B154: X-3 | I154: 2013-07-24 | J154: 2013 | AE154: =AVERAGE(AA154:AD154) -> 
A155: 127 | B155: X-3 | I155: 2013-07-24 | J155: 2013 | AE155: =AVERAGE(AA155:AD155) -> 
A156: 128 | B156: X-3 | I156: =TODAY() -> 2013-07-24 | J156: 2013 | AE156: =AVERAGE(AA156:AD156) -> 
A157: 129 | B157: X-3 | I157: 2013-07-24 | J157: 2013
A158: 130 | B158: X-3 | I158: 2013-07-24 | J158: 2013
A159: 131 | B159: X-3 | I159: 2013-07-24 | J159: 2013
A160: 132 | B160: X-3 | I160: 2013-07-24 | J160: 2013 | Y160: =+INPUT!$D$8 -> Apriyani Dewi Mayasari,M.Pd | Z160: =+INPUT!$E$8 -> Penata Muda
A161: 133 | B161: X-3 | I161: 2013-07-24 | J161: 2013 | Y161: =+INPUT!$D$8 -> Apriyani Dewi Mayasari,M.Pd | Z161: =+INPUT!$E$8 -> Penata Muda
A162: 134 | B162: X-3 | I162: 2013-07-24 | J162: 2013 | Y162: =+INPUT!$D$8 -> Apriyani Dewi Mayasari,M.Pd | Z162: =+INPUT!$E$8 -> Penata Muda
A163: 135 | B163: X-3 | I163: 2013-07-24 | J163: 2013 | Y163: =+INPUT!$D$8 -> Apriyani Dewi Mayasari,M.Pd | Z163: =+INPUT!$E$8 -> Penata Muda
F164: =COUNTIF(F119:F163,"L") -> 0 | G164: Laki-laki | I164: 14 Th | J164: =+K164/$F$52*100% -> 1 | K164: =COUNTIF(K119:K163,"14") -> 1 | M164: BURUH HARIAN | N164: 0 | T164: SMP | U164: =COUNTIF(U119:U163,"SMP") -> 0 | V164: Islam | W164: =COUNTIF(W119:W163,"Islam") -> 0 | Y164: =+INPUT!$D$8 -> Apriyani Dewi Mayasari,M.Pd
F165: =COUNTIF(F119:F163,"P") -> 1 | G165: Perempuan | I165: 15 Th | J165: =+K165/$F$52*100% -> 0 | K165: =COUNTIF(K119:K163,"15") -> 0 | M165: PEG / KARY. SWASTA | N165: 0 | T165: MTs | U165: =COUNTIF(U119:U163,"MTs") -> 0 | V165: Katolik | W165: =COUNTIF(W119:W163,"Katolik") -> 0 | Y165: =+INPUT!$D$8 -> Apriyani Dewi Mayasari,M.Pd
F166: =SUM(F164:F165) -> 1 | G166: Total Siswa | I166: 16 Th | J166: =+K166/$F$52*100% -> 0 | K166: =COUNTIF(K119:K163,"16") -> 0 | M166: PNS | N166: 0 | T166: Lainnya | U166: =+U164+U165 -> 0 | V166: Protestan | W166: =COUNTIF(W119:W163,"Protestan") -> 0 | Y166: =+INPUT!$D$8 -> Apriyani Dewi Mayasari,M.Pd
I167: 17 Th | J167: 0 | K167: =COUNTIF(K119:K163,"17") -> 0 | M167: WIRASWASTA | N167: 0 | V167: Hindu | W167: =COUNTIF(W119:W163,"Hindu") -> 0 | Y167: =+INPUT!$D$8 -> Apriyani Dewi Mayasari,M.Pd
I168: 18 Th | J168: 0 | K168: =COUNTIF(K119:K163,"18") -> 0 | M168: KARY/ PEGAWAI .BUMN | N168: 0 | V168: Budha | W168: =COUNTIF(W119:W163,"Budha") -> 0 | Y168: =+INPUT!$D$8 -> Apriyani Dewi Mayasari,M.Pd
I169: 19 Th | J169: 0 | K169: =COUNTIF(K119:K163,"13") -> 0 | M169: KEPOLISIAN | N169: 0 | W169: =SUM(W164:W168) -> 0 | Y169: =+INPUT!$D$8 -> Apriyani Dewi Mayasari,M.Pd
I170: 20 Th | J170: 0 | K170: =COUNTIF(K119:K163,"19") -> 0 | M170: PENSIUNAN | N170: 0 | Y170: =+INPUT!$D$8 -> Apriyani Dewi Mayasari,M.Pd
I171: TOTAL | J171: 1 | K171: =SUM(K164:K170) -> 1 | M171: HONORER | N171: 0 | Y171: =+INPUT!$D$8 -> Apriyani Dewi Mayasari,M.Pd
M172: GURU | N172: 0 | Y172: =+INPUT!$D$8 -> Apriyani Dewi Mayasari,M.Pd
M173: TAK ADA DATA | N173: 0 | Y173: =+INPUT!$D$8 -> Apriyani Dewi Mayasari,M.Pd
M174: TOTAL DATA | N174: 0 | Y174: =+INPUT!$D$8 -> Apriyani Dewi Mayasari,M.Pd
B175: =MAX(A119:A163) -> 135 | Y175: =+INPUT!$D$8 -> Apriyani Dewi Mayasari,M.Pd
A176: =+$B$175+1 -> 136 | B176: =+INPUT!$C$9 -> X-4 | C176: ADE ISWANDI | D176: 13140131 | E176: 9980450221 | F176: L | G176: CILEGON | H176: 1999-01-01 | I176: =TODAY() -> 2013-07-24 | J176: =+$J$3 -> 2013 | K176: =IF(H176="","",DATEDIF(H176,I176,"y")) -> 14 | AE176: =AVERAGE(AA176:AD176) ->  | AI176: =+B176 -> X-4
A177: =+A176+1 -> 137 | B177: =IF(A177=0," ",+B176) -> X-4 | I177: =TODAY() -> 2013-07-24 | J177: 2013 | K177: =IF(H177="","",DATEDIF(H177,I177,"y")) -> 
A178: =+A177+1 -> 138 | B178: =IF(A178=0," ",+B177) -> X-4 | I178: 2013-07-24 | J178: 2013
A179: 139 | B179: =IF(A179=0," ",+B178) -> X-4 | I179: 2013-07-24 | J179: 2013
A180: 140 | B180: X-4 | I180: 2013-07-24 | J180: 2013
A181: 141 | B181: X-4 | I181: 2013-07-24 | J181: 2013
A182: 142 | B182: X-4 | I182: 2013-07-24 | J182: 2013
A183: 143 | B183: X-4 | I183: 2013-07-24 | J183: 2013 | AE183: =AVERAGE(AA183:AD183) -> 
A184: 144 | B184: X-4 | I184: 2013-07-24 | J184: 2013
A185: 145 | B185: X-4 | I185: 2013-07-24 | J185: 2013
A186: 146 | B186: X-4 | I186: 2013-07-24 | J186: 2013
A187: 147 | B187: X-4 | I187: 2013-07-24 | J187: 2013
A188: 148 | B188: X-4 | I188: 2013-07-24 | J188: 2013
A189: 149 | B189: X-4 | I189: 2013-07-24 | J189: 2013
A190: 150 | B190: X-4 | I190: 2013-07-24 | J190: 2013
A191: 151 | B191: X-4 | I191: 2013-07-24 | J191: 2013
A192: 152 | B192: X-4 | I192: 2013-07-24 | J192: 2013
A193: 153 | B193: X-4 | I193: 2013-07-24 | J193: 2013
A194: 154 | B194: X-4 | I194: 2013-07-24 | J194: 2013
A195: 155 | B195: X-4 | I195: 2013-07-24 | J195: 2013
A196: 156 | B196: X-4 | I196: 2013-07-24 | J196: 2013
A197: 157 | B197: X-4 | I197: 2013-07-24 | J197: 2013
A198: 158 | B198: X-4 | I198: 2013-07-24 | J198: 2013
A199: 159 | B199: X-4 | I199: 2013-07-24 | J199: 2013
A200: 160 | B200: X-4 | I200: 2013-07-24 | J200: 2013
... 235 more rows

Sheet DataBase-XI
A1: NO | B1: KELAS | C1: NAMA | D1: NIS | E1: NISN | F1: L/P | G1: TMPT LHR | H1: TGL LAHIR | I1: Val | K1: Usia | L1: NAMA ORANG TUA | M1: PENDAPATAN ORANG TUA | N1: PEKERJAAN ORANG TUA | O1: ALAMAT | P1: NO STTB | Q1: NO SKHU | R1: NO PESERTA UJIAN SMP | S1: ASAL SEKOLAH | T1: THN LULUS | U1: SMP/ MTs | V1: NO TELP/HP | X1: NAMA IBU | Y1: WALI KELAS | Z1: JABATAN | AA1: DATA SISWA MUTASI
A2: 1 | B2: 2 | C2: 3 | D2: 4 | E2: 5 | F2: 6 | G2: 7 | H2: 8 | I2: 9 | J2: 10 | K2: 11 | L2: 12 | M2: 13 | N2: 14 | O2: 15 | P2: 16 | Q2: 17 | R2: 18 | S2: 19 | T2: 20 | U2: 21 | V2: 22 | W2: 23 | X2: 24 | Y2: 25 | Z2: 26 | AA2: Tanggal Bulan dan Tahun | AB2: Kelas dan Semester yang ditinggalkan | AC2: Alasan Keluar dan atas permintaan (Tertulis) | AD2: 27
A3: Contoh>> | B3: X-1 | C3: AAM TAMIMI | D3: 12130001 | E3: 9970454991 | F3: L | G3: CILEGON | H3: 1997-05-04 | I3: 1997 | J3: =+MENU!$D$6 -> 2013 | K3: =+J3-I3 -> 16 | L3: AHYADI | M3: Rp 500 - 700 Ribu | N3: BURUH HARIAN | O3: Jl.Sunan Drajat Link.Cirahap RT 17/02 Ciwandan Cilegon 42444 | P3: DN-30 DI 0028823 | Q3: DN-30 DI 2803800 | R3: 2-12-30-03-005-139-6 | S3: SMPN 4 CILEGON | T3: 2012 | U3: SMP | V3: 087773100391 | W3: Islam | AA3: 31/01/2012 | AB3: X-1 Semester 1 | AC3: Permintaan Orang Tua
A4: No Urut | B4: PILIH Kls | AA4: 2013-01-23 | AB4: XI-IPA 1 Semester 1 | AC4: Permintaan Orang Tua
A5: 1 | B5: =+INPUT!$H$6 -> XI IPA-1 | C5: AL HEELAL IDHANA | D5: 12130073 | E5: 9907455968 | F5: L | G5: BREBES | H5: 1997-02-19 | I5: =TODAY() -> 2013-07-24 | J5: =+$J$3 -> 2013 | K5: =IF(H5="","",DATEDIF(H5,I5,"y")) -> 16 | M5: Rp:3,500,000 Keatas | T5: 2012 | U5: MTs | W5: Islam | Y5: =+INPUT!$I$6 -> Nismawati,S.Si | Z5: =+INPUT!$J$6 -> Penata Muda | AD5: =+B5 -> XI IPA-1
A6: 2 | B6: =IF(A6=0," ",+B5) -> XI IPA-1 | I6: =TODAY() -> 2013-07-24 | J6: 2013 | K6: =IF(H6="","",DATEDIF(H6,I6,"y")) ->  | Y6: =+INPUT!$I$6 -> Nismawati,S.Si | Z6: =+INPUT!$J$6 -> Penata Muda
A7: 3 | B7: =IF(A7=0," ",+B6) -> XI IPA-1 | I7: 2013-07-24 | J7: 2013 | Y7: =+INPUT!$I$6 -> Nismawati,S.Si | Z7: =+INPUT!$J$6 -> Penata Muda
A8: 4 | B8: XI IPA-1 | I8: 2013-07-24 | J8: 2013 | Y8: =+INPUT!$I$6 -> Nismawati,S.Si | Z8: =+INPUT!$J$6 -> Penata Muda
A9: 5 | B9: XI IPA-1 | I9: 2013-07-24 | J9: 2013 | Y9: =+INPUT!$I$6 -> Nismawati,S.Si | Z9: =+INPUT!$J$6 -> Penata Muda
A10: 6 | B10: XI IPA-1 | I10: 2013-07-24 | J10: 2013 | Y10: =+INPUT!$I$6 -> Nismawati,S.Si | Z10: =+INPUT!$J$6 -> Penata Muda
A11: 7 | B11: XI IPA-1 | I11: 2013-07-24 | J11: 2013 | Y11: =+INPUT!$I$6 -> Nismawati,S.Si | Z11: =+INPUT!$J$6 -> Penata Muda
A12: 8 | B12: XI IPA-1 | I12: 2013-07-24 | J12: 2013 | Y12: =+INPUT!$I$6 -> Nismawati,S.Si | Z12: =+INPUT!$J$6 -> Penata Muda
A13: 9 | B13: XI IPA-1 | I13: 2013-07-24 | J13: 2013 | Y13: =+INPUT!$I$6 -> Nismawati,S.Si | Z13: =+INPUT!$J$6 -> Penata Muda
A14: 10 | B14: XI IPA-1 | I14: 2013-07-24 | J14: 2013 | Y14: =+INPUT!$I$6 -> Nismawati,S.Si | Z14: =+INPUT!$J$6 -> Penata Muda
A15: 11 | B15: XI IPA-1 | I15: 2013-07-24 | J15: 2013 | Y15: =+INPUT!$I$6 -> Nismawati,S.Si | Z15: =+INPUT!$J$6 -> Penata Muda
A16: 12 | B16: XI IPA-1 | I16: 2013-07-24 | J16: 2013 | Y16: =+INPUT!$I$6 -> Nismawati,S.Si | Z16: =+INPUT!$J$6 -> Penata Muda
A17: 13 | B17: XI IPA-1 | I17: 2013-07-24 | J17: 2013 | Y17: =+INPUT!$I$6 -> Nismawati,S.Si | Z17: =+INPUT!$J$6 -> Penata Muda
A18: 14 | B18: XI IPA-1 | I18: 2013-07-24 | J18: 2013 | Y18: =+INPUT!$I$6 -> Nismawati,S.Si | Z18: =+INPUT!$J$6 -> Penata Muda
A19: 15 | B19: XI IPA-1 | I19: 2013-07-24 | J19: 2013 | Y19: =+INPUT!$I$6 -> Nismawati,S.Si | Z19: =+INPUT!$J$6 -> Penata Muda
A20: 16 | B20: XI IPA-1 | I20: 2013-07-24 | J20: 2013 | Y20: =+INPUT!$I$6 -> Nismawati,S.Si | Z20: =+INPUT!$J$6 -> Penata Muda
A21: 17 | B21: XI IPA-1 | I21: 2013-07-24 | J21: 2013 | Y21: =+INPUT!$I$6 -> Nismawati,S.Si | Z21: =+INPUT!$J$6 -> Penata Muda
A22: 18 | B22: XI IPA-1 | I22: 2013-07-24 | J22: 2013 | Y22: =+INPUT!$I$6 -> Nismawati,S.Si | Z22: =+INPUT!$J$6 -> Penata Muda
A23: 19 | B23: XI IPA-1 | I23: 2013-07-24 | J23: 2013 | Y23: =+INPUT!$I$6 -> Nismawati,S.Si | Z23: =+INPUT!$J$6 -> Penata Muda
A24: 20 | B24: XI IPA-1 | I24: 2013-07-24 | J24: 2013 | Y24: =+INPUT!$I$6 -> Nismawati,S.Si | Z24: =+INPUT!$J$6 -> Penata Muda
A25: 21 | B25: XI IPA-1 | I25: 2013-07-24 | J25: 2013 | Y25: =+INPUT!$I$6 -> Nismawati,S.Si | Z25: =+INPUT!$J$6 -> Penata Muda
A26: 22 | B26: XI IPA-1 | I26: 2013-07-24 | J26: 2013 | Y26: =+INPUT!$I$6 -> Nismawati,S.Si | Z26: =+INPUT!$J$6 -> Penata Muda
A27: 23 | B27: XI IPA-1 | I27: 2013-07-24 | J27: 2013 | Y27: =+INPUT!$I$6 -> Nismawati,S.Si | Z27: =+INPUT!$J$6 -> Penata Muda
A28: 24 | B28: XI IPA-1 | I28: 2013-07-24 | J28: 2013 | Y28: =+INPUT!$I$6 -> Nismawati,S.Si | Z28: =+INPUT!$J$6 -> Penata Muda
A29: 25 | B29: XI IPA-1 | I29: 2013-07-24 | J29: 2013 | Y29: =+INPUT!$I$6 -> Nismawati,S.Si | Z29: =+INPUT!$J$6 -> Penata Muda
A30: 26 | B30: XI IPA-1 | I30: 2013-07-24 | J30: 2013 | Y30: =+INPUT!$I$6 -> Nismawati,S.Si | Z30: =+INPUT!$J$6 -> Penata Muda
A31: 27 | B31: XI IPA-1 | I31: 2013-07-24 | J31: 2013 | Y31: =+INPUT!$I$6 -> Nismawati,S.Si | Z31: =+INPUT!$J$6 -> Penata Muda
A32: 28 | B32: XI IPA-1 | I32: 2013-07-24 | J32: 2013 | Y32: =+INPUT!$I$6 -> Nismawati,S.Si | Z32: =+INPUT!$J$6 -> Penata Muda
A33: 29 | B33: XI IPA-1 | I33: 2013-07-24 | J33: 2013 | Y33: =+INPUT!$I$6 -> Nismawati,S.Si | Z33: =+INPUT!$J$6 -> Penata Muda
A34: 30 | B34: XI IPA-1 | I34: 2013-07-24 | J34: 2013 | Y34: =+INPUT!$I$6 -> Nismawati,S.Si | Z34: =+INPUT!$J$6 -> Penata Muda
A35: 31 | B35: XI IPA-1 | I35: 2013-07-24 | J35: 2013 | Y35: =+INPUT!$I$6 -> Nismawati,S.Si | Z35: =+INPUT!$J$6 -> Penata Muda
A36: 32 | B36: XI IPA-1 | I36: 2013-07-24 | J36: 2013 | Y36: =+INPUT!$I$6 -> Nismawati,S.Si | Z36: =+INPUT!$J$6 -> Penata Muda
A37: 33 | B37: XI IPA-1 | I37: 2013-07-24 | J37: 2013 | Y37: =+INPUT!$I$6 -> Nismawati,S.Si | Z37: =+INPUT!$J$6 -> Penata Muda
A38: 34 | B38: XI IPA-1 | I38: 2013-07-24 | J38: 2013 | Y38: =+INPUT!$I$6 -> Nismawati,S.Si | Z38: =+INPUT!$J$6 -> Penata Muda
A39: 35 | B39: XI IPA-1 | I39: 2013-07-24 | J39: 2013 | Y39: =+INPUT!$I$6 -> Nismawati,S.Si | Z39: =+INPUT!$J$6 -> Penata Muda
A40: 36 | B40: XI IPA-1 | I40: 2013-07-24 | J40: 2013 | Y40: =+INPUT!$I$6 -> Nismawati,S.Si | Z40: =+INPUT!$J$6 -> Penata Muda
A41: 37 | B41: XI IPA-1 | I41: 2013-07-24 | J41: 2013 | Y41: =+INPUT!$I$6 -> Nismawati,S.Si | Z41: =+INPUT!$J$6 -> Penata Muda
A42: 38 | B42: XI IPA-1 | I42: =TODAY() -> 2013-07-24 | J42: 2013 | Y42: =+INPUT!$I$6 -> Nismawati,S.Si | Z42: =+INPUT!$J$6 -> Penata Muda
A43: 39 | B43: XI IPA-1 | I43: 2013-07-24 | J43: 2013 | Y43: =+INPUT!$I$6 -> Nismawati,S.Si | Z43: =+INPUT!$J$6 -> Penata Muda
A44: 40 | B44: XI IPA-1 | I44: 2013-07-24 | J44: 2013 | Y44: =+INPUT!$I$6 -> Nismawati,S.Si | Z44: =+INPUT!$J$6 -> Penata Muda
A45: 41 | B45: XI IPA-1 | I45: 2013-07-24 | J45: 2013 | Y45: =+INPUT!$I$6 -> Nismawati,S.Si | Z45: =+INPUT!$J$6 -> Penata Muda
A46: 42 | B46: XI IPA-1 | I46: 2013-07-24 | J46: 2013 | Y46: =+INPUT!$I$6 -> Nismawati,S.Si | Z46: =+INPUT!$J$6 -> Penata Muda
A47: 43 | B47: XI IPA-1 | I47: 2013-07-24 | J47: 2013 | Y47: =+INPUT!$I$6 -> Nismawati,S.Si | Z47: =+INPUT!$J$6 -> Penata Muda
A48: 44 | B48: XI IPA-1 | I48: 2013-07-24 | J48: 2013 | Y48: =+INPUT!$I$6 -> Nismawati,S.Si | Z48: =+INPUT!$J$6 -> Penata Muda
A49: 45 | B49: XI IPA-1 | I49: 2013-07-24 | J49: 2013 | Y49: =+INPUT!$I$6 -> Nismawati,S.Si | Z49: =+INPUT!$J$6 -> Penata Muda
F50: =COUNTIF(F5:F49,"L") -> 1 | G50: Laki-laki | I50: 14 Th | J50: =+K50/$F$52*100% -> 0 | K50: =COUNTIF(K5:K49,"14") -> 0 | M50: BURUH HARIAN | N50: 0 | T50: SMP | U50: =COUNTIF(U5:U49,"SMP") -> 0 | V50: Islam | W50: =COUNTIF(W5:W49,"Islam") -> 1 | Z50: =+INPUT!$J$6 -> Penata Muda
F51: =COUNTIF(F5:F49,"P") -> 0 | G51: Perempuan | I51: 15 Th | J51: =+K51/$F$52*100% -> 0 | K51: =COUNTIF(K5:K49,"15") -> 0 | M51: PEG / KARY. SWASTA | N51: 0 | T51: MTs | U51: =COUNTIF(U5:U49,"MTs") -> 1 | V51: Katolik | W51: =COUNTIF(W5:W49,"Katolik") -> 0 | Z51: =+INPUT!$J$6 -> Penata Muda
F52: =+F50+F51 -> 1 | G52: Total Siswa | I52: 16 Th | J52: =+K52/$F$52*100% -> 1 | K52: =COUNTIF(K5:K49,"16") -> 1 | M52: PNS | N52: 0 | T52: Lainnya | U52: =+U50+U51 -> 1 | V52: Protestan | W52: =COUNTIF(W5:W49,"Protestan") -> 0 | Z52: =+INPUT!$J$6 -> Penata Muda
I53: 17 Th | J53: 0 | K53: =COUNTIF(K5:K49,"17") -> 0 | M53: WIRASWASTA | N53: 0 | V53: Hindu | W53: =COUNTIF(W5:W49,"Hindu") -> 0 | Z53: =+INPUT!$J$6 -> Penata Muda
I54: 18 Th | J54: 0 | K54: =COUNTIF(K5:K49,"18") -> 0 | M54: KARY/ PEGAWAI .BUMN | N54: 0 | V54: Budha | W54: =COUNTIF(W5:W49,"Budha") -> 0 | Z54: =+INPUT!$J$6 -> Penata Muda
I55: 19 Th | J55: 0 | K55: =COUNTIF(K5:K49,"19") -> 0 | M55: KEPOLISIAN | N55: 0 | W55: =SUM(W50:W54) -> 1 | Z55: =+INPUT!$J$6 -> Penata Muda
I56: 20 Th | J56: 0 | K56: =COUNTIF(K5:K49,"20") -> 0 | M56: PENSIUNAN | N56: 0 | Z56: =+INPUT!$J$6 -> Penata Muda
I57: TOTAL | J57: 1 | K57: =SUM(K50:K56) -> 1 | M57: HONORER | N57: 0 | Z57: =+INPUT!$J$6 -> Penata Muda
M58: GURU | N58: 0 | Z58: =+INPUT!$J$6 -> Penata Muda
M59: TAK ADA DATA | N59: 0 | Z59: =+INPUT!$J$6 -> Penata Muda
M60: TOTAL DATA | N60: 0 | Z60: =+INPUT!$J$6 -> Penata Muda
B61: =MAX(A5:A49) -> 45 | Z61: =+INPUT!$J$6 -> Penata Muda
A62: =+$B$61+1 -> 46 | B62: =+INPUT!$H$7 -> XI IPA-2 | C62: AFID HIDAYAT | D62: 12130036 | E62: 9966354541 | F62: L | G62: SERANG | H62: 1996-11-15 | I62: =TODAY() -> 2013-07-24 | J62: =+$J$3 -> 2013 | K62: =IF(H62="","",DATEDIF(H62,I62,"y")) -> 16 | Y62: =+INPUT!$I$7 -> Sati fatchani,S.Pd | Z62: =+INPUT!$J$7 -> Penata Muda | AD62: =+B62 -> XI IPA-2
A63: =+A62+1 -> 47 | B63: =IF(A63=0," ",+B62) -> XI IPA-2 | I63: =TODAY() -> 2013-07-24 | J63: 2013 | K63: =IF(H63="","",DATEDIF(H63,I63,"y")) ->  | Y63: =+INPUT!$I$7 -> Sati fatchani,S.Pd | Z63: =+INPUT!$J$7 -> Penata Muda
A64: =+A63+1 -> 48 | B64: =IF(A64=0," ",+B63) -> XI IPA-2 | I64: 2013-07-24 | J64: 2013 | Y64: =+INPUT!$I$7 -> Sati fatchani,S.Pd | Z64: =+INPUT!$J$7 -> Penata Muda
A65: 49 | B65: =IF(A65=0," ",+B64) -> XI IPA-2 | I65: 2013-07-24 | J65: 2013 | Y65: =+INPUT!$I$7 -> Sati fatchani,S.Pd | Z65: =+INPUT!$J$7 -> Penata Muda
A66: 50 | B66: XI IPA-2 | I66: 2013-07-24 | J66: 2013 | Y66: =+INPUT!$I$7 -> Sati fatchani,S.Pd | Z66: =+INPUT!$J$7 -> Penata Muda
A67: 51 | B67: XI IPA-2 | I67: 2013-07-24 | J67: 2013 | Y67: =+INPUT!$I$7 -> Sati fatchani,S.Pd | Z67: =+INPUT!$J$7 -> Penata Muda
A68: 52 | B68: XI IPA-2 | I68: 2013-07-24 | J68: 2013 | Y68: =+INPUT!$I$7 -> Sati fatchani,S.Pd | Z68: =+INPUT!$J$7 -> Penata Muda
A69: 53 | B69: XI IPA-2 | I69: 2013-07-24 | J69: 2013 | Y69: =+INPUT!$I$7 -> Sati fatchani,S.Pd | Z69: =+INPUT!$J$7 -> Penata Muda
A70: 54 | B70: XI IPA-2 | I70: 2013-07-24 | J70: 2013 | Y70: =+INPUT!$I$7 -> Sati fatchani,S.Pd | Z70: =+INPUT!$J$7 -> Penata Muda
A71: 55 | B71: XI IPA-2 | I71: 2013-07-24 | J71: 2013 | Y71: =+INPUT!$I$7 -> Sati fatchani,S.Pd | Z71: =+INPUT!$J$7 -> Penata Muda
A72: 56 | B72: XI IPA-2 | I72: 2013-07-24 | J72: 2013 | Y72: =+INPUT!$I$7 -> Sati fatchani,S.Pd | Z72: =+INPUT!$J$7 -> Penata Muda
A73: 57 | B73: XI IPA-2 | I73: 2013-07-24 | J73: 2013 | Y73: =+INPUT!$I$7 -> Sati fatchani,S.Pd | Z73: =+INPUT!$J$7 -> Penata Muda
A74: 58 | B74: XI IPA-2 | I74: 2013-07-24 | J74: 2013 | Y74: =+INPUT!$I$7 -> Sati fatchani,S.Pd | Z74: =+INPUT!$J$7 -> Penata Muda
A75: 59 | B75: XI IPA-2 | I75: 2013-07-24 | J75: 2013 | Y75: =+INPUT!$I$7 -> Sati fatchani,S.Pd | Z75: =+INPUT!$J$7 -> Penata Muda
A76: 60 | B76: XI IPA-2 | I76: 2013-07-24 | J76: 2013 | Y76: =+INPUT!$I$7 -> Sati fatchani,S.Pd | Z76: =+INPUT!$J$7 -> Penata Muda
A77: 61 | B77: XI IPA-2 | I77: 2013-07-24 | J77: 2013 | Y77: =+INPUT!$I$7 -> Sati fatchani,S.Pd | Z77: =+INPUT!$J$7 -> Penata Muda
A78: 62 | B78: XI IPA-2 | I78: 2013-07-24 | J78: 2013 | Y78: =+INPUT!$I$7 -> Sati fatchani,S.Pd | Z78: =+INPUT!$J$7 -> Penata Muda
A79: 63 | B79: XI IPA-2 | I79: 2013-07-24 | J79: 2013 | Y79: =+INPUT!$I$7 -> Sati fatchani,S.Pd | Z79: =+INPUT!$J$7 -> Penata Muda
A80: 64 | B80: XI IPA-2 | I80: 2013-07-24 | J80: 2013 | Y80: =+INPUT!$I$7 -> Sati fatchani,S.Pd | Z80: =+INPUT!$J$7 -> Penata Muda
A81: 65 | B81: XI IPA-2 | I81: 2013-07-24 | J81: 2013 | Y81: =+INPUT!$I$7 -> Sati fatchani,S.Pd | Z81: =+INPUT!$J$7 -> Penata Muda
A82: 66 | B82: XI IPA-2 | I82: 2013-07-24 | J82: 2013 | Y82: =+INPUT!$I$7 -> Sati fatchani,S.Pd | Z82: =+INPUT!$J$7 -> Penata Muda
A83: 67 | B83: XI IPA-2 | I83: 2013-07-24 | J83: 2013 | Y83: =+INPUT!$I$7 -> Sati fatchani,S.Pd | Z83: =+INPUT!$J$7 -> Penata Muda
A84: 68 | B84: XI IPA-2 | I84: 2013-07-24 | J84: 2013 | Y84: =+INPUT!$I$7 -> Sati fatchani,S.Pd | Z84: =+INPUT!$J$7 -> Penata Muda
A85: 69 | B85: XI IPA-2 | I85: 2013-07-24 | J85: 2013 | Y85: =+INPUT!$I$7 -> Sati fatchani,S.Pd | Z85: =+INPUT!$J$7 -> Penata Muda
A86: 70 | B86: XI IPA-2 | I86: 2013-07-24 | J86: 2013 | Y86: =+INPUT!$I$7 -> Sati fatchani,S.Pd | Z86: =+INPUT!$J$7 -> Penata Muda
A87: 71 | B87: XI IPA-2 | I87: 2013-07-24 | J87: 2013 | Y87: =+INPUT!$I$7 -> Sati fatchani,S.Pd | Z87: =+INPUT!$J$7 -> Penata Muda
A88: 72 | B88: XI IPA-2 | I88: 2013-07-24 | J88: 2013 | Y88: =+INPUT!$I$7 -> Sati fatchani,S.Pd | Z88: =+INPUT!$J$7 -> Penata Muda
A89: 73 | B89: XI IPA-2 | I89: 2013-07-24 | J89: 2013 | Y89: =+INPUT!$I$7 -> Sati fatchani,S.Pd | Z89: =+INPUT!$J$7 -> Penata Muda
A90: 74 | B90: XI IPA-2 | I90: 2013-07-24 | J90: 2013 | Y90: =+INPUT!$I$7 -> Sati fatchani,S.Pd | Z90: =+INPUT!$J$7 -> Penata Muda
A91: 75 | B91: XI IPA-2 | I91: 2013-07-24 | J91: 2013 | Y91: =+INPUT!$I$7 -> Sati fatchani,S.Pd | Z91: =+INPUT!$J$7 -> Penata Muda
A92: 76 | B92: XI IPA-2 | I92: 2013-07-24 | J92: 2013 | Y92: =+INPUT!$I$7 -> Sati fatchani,S.Pd | Z92: =+INPUT!$J$7 -> Penata Muda
A93: 77 | B93: XI IPA-2 | I93: 2013-07-24 | J93: 2013 | Y93: =+INPUT!$I$7 -> Sati fatchani,S.Pd | Z93: =+INPUT!$J$7 -> Penata Muda
A94: 78 | B94: XI IPA-2 | I94: 2013-07-24 | J94: 2013 | Y94: =+INPUT!$I$7 -> Sati fatchani,S.Pd | Z94: =+INPUT!$J$7 -> Penata Muda
A95: 79 | B95: XI IPA-2 | I95: 2013-07-24 | J95: 2013 | Y95: =+INPUT!$I$7 -> Sati fatchani,S.Pd | Z95: =+INPUT!$J$7 -> Penata Muda
A96: 80 | B96: XI IPA-2 | I96: 2013-07-24 | J96: 2013 | Y96: =+INPUT!$I$7 -> Sati fatchani,S.Pd | Z96: =+INPUT!$J$7 -> Penata Muda
A97: 81 | B97: XI IPA-2 | I97: 2013-07-24 | J97: 2013 | Y97: =+INPUT!$I$7 -> Sati fatchani,S.Pd | Z97: =+INPUT!$J$7 -> Penata Muda
A98: 82 | B98: XI IPA-2 | I98: 2013-07-24 | J98: 2013 | Y98: =+INPUT!$I$7 -> Sati fatchani,S.Pd | Z98: =+INPUT!$J$7 -> Penata Muda
A99: 83 | B99: XI IPA-2 | I99: =TODAY() -> 2013-07-24 | J99: 2013 | Y99: =+INPUT!$I$7 -> Sati fatchani,S.Pd | Z99: =+INPUT!$J$7 -> Penata Muda
A100: 84 | B100: XI IPA-2 | I100: 2013-07-24 | J100: 2013 | Y100: =+INPUT!$I$7 -> Sati fatchani,S.Pd | Z100: =+INPUT!$J$7 -> Penata Muda
A101: 85 | B101: XI IPA-2 | I101: 2013-07-24 | J101: 2013 | Y101: =+INPUT!$I$7 -> Sati fatchani,S.Pd | Z101: =+INPUT!$J$7 -> Penata Muda
A102: 86 | B102: XI IPA-2 | I102: 2013-07-24 | J102: 2013 | Y102: =+INPUT!$I$7 -> Sati fatchani,S.Pd | Z102: =+INPUT!$J$7 -> Penata Muda
A103: 87 | B103: XI IPA-2 | I103: 2013-07-24 | J103: 2013 | Y103: =+INPUT!$I$7 -> Sati fatchani,S.Pd | Z103: =+INPUT!$J$7 -> Penata Muda
A104: 88 | B104: XI IPA-2 | I104: 2013-07-24 | J104: 2013 | Y104: =+INPUT!$I$7 -> Sati fatchani,S.Pd | Z104: =+INPUT!$J$7 -> Penata Muda
A105: 89 | B105: XI IPA-2 | I105: 2013-07-24 | J105: 2013 | Y105: =+INPUT!$I$7 -> Sati fatchani,S.Pd | Z105: =+INPUT!$J$7 -> Penata Muda
A106: 90 | B106: XI IPA-2 | I106: 2013-07-24 | J106: 2013 | Y106: =+INPUT!$I$7 -> Sati fatchani,S.Pd | Z106: =+INPUT!$J$7 -> Penata Muda
F107: =COUNTIF(F62:F106,"L") -> 1 | G107: Laki-laki | I107: 14 Th | J107: =+K107/$F$52*100% -> 0 | K107: =COUNTIF(K62:K106,"14") -> 0 | M107: BURUH HARIAN | N107: 0 | T107: SMP | U107: =COUNTIF(U62:U106,"SMP") -> 0 | V107: Islam | W107: =COUNTIF(W62:W106,"Islam") -> 0
F108: =COUNTIF(F62:F106,"P") -> 0 | G108: Perempuan | I108: 15 Th | J108: =+K108/$F$52*100% -> 0 | K108: =COUNTIF(K62:K106,"15") -> 0 | M108: PEG / KARY. SWASTA | N108: 0 | T108: MTs | U108: =COUNTIF(U62:U106,"MTs") -> 0 | V108: Katolik | W108: =COUNTIF(W62:W106,"Katolik") -> 0
F109: =SUM(F107:F108) -> 1 | G109: Total Siswa | I109: 16 Th | J109: =+K109/$F$52*100% -> 1 | K109: =COUNTIF(K62:K106,"16") -> 1 | M109: PNS | N109: 0 | T109: Lainnya | U109: =+U107+U108 -> 0 | V109: Protestan | W109: =COUNTIF(W62:W106,"Protestan") -> 0
I110: 17 Th | J110: 0 | K110: =COUNTIF(K62:K106,"17") -> 0 | M110: WIRASWASTA | N110: 0 | V110: Hindu | W110: =COUNTIF(W62:W106,"Hindu") -> 0
I111: 18 Th | J111: 0 | K111: =COUNTIF(K62:K106,"18") -> 0 | M111: KARY/ PEGAWAI .BUMN | N111: 0 | V111: Budha | W111: =COUNTIF(W62:W106,"Budha") -> 0
I112: 19 Th | J112: 0 | K112: =COUNTIF(K62:K106,"19") -> 0 | M112: KEPOLISIAN | N112: 0 | W112: =SUM(W107:W111) -> 0
I113: 20 Th | J113: 0 | K113: =COUNTIF(K62:K106,"20") -> 0 | M113: PENSIUNAN | N113: 0
I114: TOTAL | J114: 1 | K114: =SUM(K107:K113) -> 1 | M114: HONORER | N114: 0
M115: GURU | N115: 0
M116: TAK ADA DATA | N116: 0
M117: TOTAL DATA | N117: 0
B118: =MAX(A62:A106) -> 90
A119: =+$B$118+1 -> 91 | B119: =+INPUT!$H$8 -> XI IPA-3 | C119: ADE HAIRUNISA MARDIAH | D119: 12130004 | E119: 9966517605 | F119: P | G119: CILEGON | H119: 1996-02-26 | I119: =TODAY() -> 2013-07-24 | J119: =+$J$3 -> 2013 | K119: =IF(H119="","",DATEDIF(H119,I119,"y")) -> 17 | Y119: =+INPUT!$I$8 -> Ragil Widyaningsih,S.Pd | Z119: =+INPUT!$J$8 -> Penata Muda | AD119: =+B119 -> XI IPA-3
A120: =+A119+1 -> 92 | B120: =IF(A120=0," ",+B119) -> XI IPA-3 | I120: =TODAY() -> 2013-07-24 | J120: 2013 | K120: =IF(H120="","",DATEDIF(H120,I120,"y")) ->  | Y120: =+INPUT!$I$8 -> Ragil Widyaningsih,S.Pd | Z120: =+INPUT!$J$8 -> Penata Muda
A121: =+A120+1 -> 93 | B121: =IF(A121=0," ",+B120) -> XI IPA-3 | I121: 2013-07-24 | J121: 2013 | Y121: =+INPUT!$I$8 -> Ragil Widyaningsih,S.Pd | Z121: =+INPUT!$J$8 -> Penata Muda
A122: 94 | B122: =IF(A122=0," ",+B121) -> XI IPA-3 | I122: 2013-07-24 | J122: 2013 | Y122: =+INPUT!$I$8 -> Ragil Widyaningsih,S.Pd | Z122: =+INPUT!$J$8 -> Penata Muda
A123: 95 | B123: XI IPA-3 | I123: 2013-07-24 | J123: 2013 | Y123: =+INPUT!$I$8 -> Ragil Widyaningsih,S.Pd | Z123: =+INPUT!$J$8 -> Penata Muda
A124: 96 | B124: XI IPA-3 | I124: 2013-07-24 | J124: 2013 | Y124: =+INPUT!$I$8 -> Ragil Widyaningsih,S.Pd | Z124: =+INPUT!$J$8 -> Penata Muda
A125: 97 | B125: XI IPA-3 | I125: 2013-07-24 | J125: 2013 | Y125: =+INPUT!$I$8 -> Ragil Widyaningsih,S.Pd | Z125: =+INPUT!$J$8 -> Penata Muda
A126: 98 | B126: XI IPA-3 | I126: 2013-07-24 | J126: 2013 | Y126: =+INPUT!$I$8 -> Ragil Widyaningsih,S.Pd | Z126: =+INPUT!$J$8 -> Penata Muda
A127: 99 | B127: XI IPA-3 | I127: 2013-07-24 | J127: 2013 | Y127: =+INPUT!$I$8 -> Ragil Widyaningsih,S.Pd | Z127: =+INPUT!$J$8 -> Penata Muda
A128: 100 | B128: XI IPA-3 | I128: 2013-07-24 | J128: 2013 | Y128: =+INPUT!$I$8 -> Ragil Widyaningsih,S.Pd | Z128: =+INPUT!$J$8 -> Penata Muda
A129: 101 | B129: XI IPA-3 | I129: 2013-07-24 | J129: 2013 | Y129: =+INPUT!$I$8 -> Ragil Widyaningsih,S.Pd | Z129: =+INPUT!$J$8 -> Penata Muda
A130: 102 | B130: XI IPA-3 | I130: 2013-07-24 | J130: 2013 | Y130: =+INPUT!$I$8 -> Ragil Widyaningsih,S.Pd | Z130: =+INPUT!$J$8 -> Penata Muda
A131: 103 | B131: XI IPA-3 | I131: 2013-07-24 | J131: 2013 | Y131: =+INPUT!$I$8 -> Ragil Widyaningsih,S.Pd | Z131: =+INPUT!$J$8 -> Penata Muda
A132: 104 | B132: XI IPA-3 | I132: 2013-07-24 | J132: 2013 | Y132: =+INPUT!$I$8 -> Ragil Widyaningsih,S.Pd | Z132: =+INPUT!$J$8 -> Penata Muda
A133: 105 | B133: XI IPA-3 | I133: 2013-07-24 | J133: 2013 | Y133: =+INPUT!$I$8 -> Ragil Widyaningsih,S.Pd | Z133: =+INPUT!$J$8 -> Penata Muda
A134: 106 | B134: XI IPA-3 | I134: 2013-07-24 | J134: 2013 | Y134: =+INPUT!$I$8 -> Ragil Widyaningsih,S.Pd | Z134: =+INPUT!$J$8 -> Penata Muda
A135: 107 | B135: XI IPA-3 | I135: 2013-07-24 | J135: 2013 | Y135: =+INPUT!$I$8 -> Ragil Widyaningsih,S.Pd | Z135: =+INPUT!$J$8 -> Penata Muda
A136: 108 | B136: XI IPA-3 | I136: 2013-07-24 | J136: 2013 | Y136: =+INPUT!$I$8 -> Ragil Widyaningsih,S.Pd | Z136: =+INPUT!$J$8 -> Penata Muda
A137: 109 | B137: XI IPA-3 | I137: 2013-07-24 | J137: 2013 | Y137: =+INPUT!$I$8 -> Ragil Widyaningsih,S.Pd | Z137: =+INPUT!$J$8 -> Penata Muda
A138: 110 | B138: XI IPA-3 | I138: 2013-07-24 | J138: 2013 | Y138: =+INPUT!$I$8 -> Ragil Widyaningsih,S.Pd | Z138: =+INPUT!$J$8 -> Penata Muda
A139: 111 | B139: XI IPA-3 | I139: 2013-07-24 | J139: 2013 | Y139: =+INPUT!$I$8 -> Ragil Widyaningsih,S.Pd | Z139: =+INPUT!$J$8 -> Penata Muda
A140: 112 | B140: XI IPA-3 | I140: 2013-07-24 | J140: 2013 | Y140: =+INPUT!$I$8 -> Ragil Widyaningsih,S.Pd | Z140: =+INPUT!$J$8 -> Penata Muda
A141: 113 | B141: XI IPA-3 | I141: 2013-07-24 | J141: 2013 | Y141: =+INPUT!$I$8 -> Ragil Widyaningsih,S.Pd | Z141: =+INPUT!$J$8 -> Penata Muda
A142: 114 | B142: XI IPA-3 | I142: 2013-07-24 | J142: 2013 | Y142: =+INPUT!$I$8 -> Ragil Widyaningsih,S.Pd | Z142: =+INPUT!$J$8 -> Penata Muda
A143: 115 | B143: XI IPA-3 | I143: 2013-07-24 | J143: 2013 | Y143: =+INPUT!$I$8 -> Ragil Widyaningsih,S.Pd | Z143: =+INPUT!$J$8 -> Penata Muda
A144: 116 | B144: XI IPA-3 | I144: 2013-07-24 | J144: 2013 | Y144: =+INPUT!$I$8 -> Ragil Widyaningsih,S.Pd | Z144: =+INPUT!$J$8 -> Penata Muda
A145: 117 | B145: XI IPA-3 | I145: 2013-07-24 | J145: 2013 | Y145: =+INPUT!$I$8 -> Ragil Widyaningsih,S.Pd | Z145: =+INPUT!$J$8 -> Penata Muda
A146: 118 | B146: XI IPA-3 | I146: 2013-07-24 | J146: 2013 | Y146: =+INPUT!$I$8 -> Ragil Widyaningsih,S.Pd | Z146: =+INPUT!$J$8 -> Penata Muda
A147: 119 | B147: XI IPA-3 | I147: 2013-07-24 | J147: 2013 | Y147: =+INPUT!$I$8 -> Ragil Widyaningsih,S.Pd | Z147: =+INPUT!$J$8 -> Penata Muda
A148: 120 | B148: XI IPA-3 | I148: 2013-07-24 | J148: 2013 | Y148: =+INPUT!$I$8 -> Ragil Widyaningsih,S.Pd | Z148: =+INPUT!$J$8 -> Penata Muda
A149: 121 | B149: XI IPA-3 | I149: 2013-07-24 | J149: 2013 | Y149: =+INPUT!$I$8 -> Ragil Widyaningsih,S.Pd | Z149: =+INPUT!$J$8 -> Penata Muda
A150: 122 | B150: XI IPA-3 | I150: 2013-07-24 | J150: 2013 | Y150: =+INPUT!$I$8 -> Ragil Widyaningsih,S.Pd | Z150: =+INPUT!$J$8 -> Penata Muda
A151: 123 | B151: XI IPA-3 | I151: 2013-07-24 | J151: 2013 | Y151: =+INPUT!$I$8 -> Ragil Widyaningsih,S.Pd | Z151: =+INPUT!$J$8 -> Penata Muda
A152: 124 | B152: XI IPA-3 | I152: 2013-07-24 | J152: 2013 | Y152: =+INPUT!$I$8 -> Ragil Widyaningsih,S.Pd | Z152: =+INPUT!$J$8 -> Penata Muda
A153: 125 | B153: XI IPA-3 | I153: 2013-07-24 | J153: 2013 | Y153: =+INPUT!$I$8 -> Ragil Widyaningsih,S.Pd | Z153: =+INPUT!$J$8 -> Penata Muda
A154: 126 | B154: XI IPA-3 | I154: 2013-07-24 | J154: 2013 | Y154: =+INPUT!$I$8 -> Ragil Widyaningsih,S.Pd | Z154: =+INPUT!$J$8 -> Penata Muda
A155: 127 | B155: XI IPA-3 | I155: 2013-07-24 | J155: 2013 | Y155: =+INPUT!$I$8 -> Ragil Widyaningsih,S.Pd | Z155: =+INPUT!$J$8 -> Penata Muda
A156: 128 | B156: XI IPA-3 | I156: =TODAY() -> 2013-07-24 | J156: 2013 | Y156: =+INPUT!$I$8 -> Ragil Widyaningsih,S.Pd | Z156: =+INPUT!$J$8 -> Penata Muda
A157: 129 | B157: XI IPA-3 | I157: 2013-07-24 | J157: 2013 | Y157: =+INPUT!$I$8 -> Ragil Widyaningsih,S.Pd | Z157: =+INPUT!$J$8 -> Penata Muda
A158: 130 | B158: XI IPA-3 | I158: 2013-07-24 | J158: 2013 | Y158: =+INPUT!$I$8 -> Ragil Widyaningsih,S.Pd | Z158: =+INPUT!$J$8 -> Penata Muda
A159: 131 | B159: XI IPA-3 | I159: 2013-07-24 | J159: 2013 | Y159: =+INPUT!$I$8 -> Ragil Widyaningsih,S.Pd | Z159: =+INPUT!$J$8 -> Penata Muda
A160: 132 | B160: XI IPA-3 | I160: 2013-07-24 | J160: 2013 | Y160: =+INPUT!$I$8 -> Ragil Widyaningsih,S.Pd | Z160: =+INPUT!$J$8 -> Penata Muda
A161: 133 | B161: XI IPA-3 | I161: 2013-07-24 | J161: 2013 | Y161: =+INPUT!$I$8 -> Ragil Widyaningsih,S.Pd | Z161: =+INPUT!$J$8 -> Penata Muda
A162: 134 | B162: XI IPA-3 | I162: 2013-07-24 | J162: 2013 | Y162: =+INPUT!$I$8 -> Ragil Widyaningsih,S.Pd | Z162: =+INPUT!$J$8 -> Penata Muda
A163: 135 | B163: XI IPA-3 | I163: 2013-07-24 | J163: 2013 | Y163: =+INPUT!$I$8 -> Ragil Widyaningsih,S.Pd | Z163: =+INPUT!$J$8 -> Penata Muda
F164: =COUNTIF(F119:F163,"L") -> 0 | G164: Laki-laki | I164: 14 Th | J164: =+K164/$F$52*100% -> 0 | K164: =COUNTIF(K119:K163,"14") -> 0 | M164: BURUH HARIAN | N164: 0 | T164: SMP | U164: =COUNTIF(U119:U163,"SMP") -> 0 | V164: Islam | W164: =COUNTIF(W119:W163,"Islam") -> 0 | Z164: =+INPUT!$J$8 -> Penata Muda
F165: =COUNTIF(F119:F163,"P") -> 1 | G165: Perempuan | I165: 15 Th | J165: =+K165/$F$52*100% -> 0 | K165: =COUNTIF(K119:K163,"15") -> 0 | M165: PEG / KARY. SWASTA | N165: 0 | T165: MTs | U165: =COUNTIF(U119:U163,"MTs") -> 0 | V165: Katolik | W165: =COUNTIF(W119:W163,"Katolik") -> 0 | Z165: =+INPUT!$J$8 -> Penata Muda
F166: =SUM(F164:F165) -> 1 | G166: Total Siswa | I166: 16 Th | J166: =+K166/$F$52*100% -> 0 | K166: =COUNTIF(K119:K163,"16") -> 0 | M166: PNS | N166: 0 | T166: Lainnya | U166: =+U164+U165 -> 0 | V166: Protestan | W166: =COUNTIF(W119:W163,"Protestan") -> 0 | Z166: =+INPUT!$J$8 -> Penata Muda
I167: 17 Th | J167: 1 | K167: =COUNTIF(K119:K163,"17") -> 1 | M167: WIRASWASTA | N167: 0 | V167: Hindu | W167: =COUNTIF(W119:W163,"Hindu") -> 0 | Z167: =+INPUT!$J$8 -> Penata Muda
I168: 18 Th | J168: 0 | K168: =COUNTIF(K119:K163,"18") -> 0 | M168: KARY/ PEGAWAI .BUMN | N168: 0 | V168: Budha | W168: =COUNTIF(W119:W163,"Budha") -> 0 | Z168: =+INPUT!$J$8 -> Penata Muda
I169: 19 Th | J169: 0 | K169: =COUNTIF(K119:K163,"19") -> 0 | M169: KEPOLISIAN | N169: 0 | W169: =SUM(W164:W168) -> 0 | Z169: =+INPUT!$J$8 -> Penata Muda
I170: 20 Th | J170: 0 | K170: =COUNTIF(K119:K163,"20") -> 0 | M170: PENSIUNAN | N170: 0 | Z170: =+INPUT!$J$8 -> Penata Muda
I171: TOTAL | J171: 1 | K171: =SUM(K164:K170) -> 1 | M171: HONORER | N171: 0 | Z171: =+INPUT!$J$8 -> Penata Muda
M172: GURU | N172: 0 | Z172: =+INPUT!$J$8 -> Penata Muda
M173: TAK ADA DATA | N173: 0 | Z173: =+INPUT!$J$8 -> Penata Muda
M174: TOTAL DATA | N174: 0 | Z174: =+INPUT!$J$8 -> Penata Muda
B175: =MAX(A119:A163) -> 135 | Z175: =+INPUT!$J$8 -> Penata Muda
A176: =+$B$175+1 -> 136 | B176: =+INPUT!$H$9 -> XI IPS-1 | C176: AAM TAMIMI | D176: 12130001 | E176: 9970454991 | F176: L | G176: CILEGON | H176: 1997-05-04 | I176: =TODAY() -> 2013-07-24 | J176: =+$J$3 -> 2013 | K176: =IF(H176="","",DATEDIF(H176,I176,"y")) -> 16 | Y176: =+INPUT!$I$9 -> Dian Lestari,S.PD | Z176: =+INPUT!$J$9 -> Penata Muda | AD176: =+B176 -> XI IPS-1
A177: =+A176+1 -> 137 | B177: =IF(A177=0," ",+B176) -> XI IPS-1 | I177: =TODAY() -> 2013-07-24 | J177: 2013 | K177: =IF(H177="","",DATEDIF(H177,I177,"y")) ->  | Y177: =+INPUT!$I$9 -> Dian Lestari,S.PD | Z177: =+INPUT!$J$9 -> Penata Muda
A178: =+A177+1 -> 138 | B178: =IF(A178=0," ",+B177) -> XI IPS-1 | I178: 2013-07-24 | J178: 2013 | Y178: =+INPUT!$I$9 -> Dian Lestari,S.PD | Z178: =+INPUT!$J$9 -> Penata Muda
A179: 139 | B179: =IF(A179=0," ",+B178) -> XI IPS-1 | I179: 2013-07-24 | J179: 2013 | Y179: =+INPUT!$I$9 -> Dian Lestari,S.PD | Z179: =+INPUT!$J$9 -> Penata Muda
A180: 140 | B180: XI IPS-1 | I180: 2013-07-24 | J180: 2013 | Y180: =+INPUT!$I$9 -> Dian Lestari,S.PD | Z180: =+INPUT!$J$9 -> Penata Muda
A181: 141 | B181: XI IPS-1 | I181: 2013-07-24 | J181: 2013 | Y181: =+INPUT!$I$9 -> Dian Lestari,S.PD | Z181: =+INPUT!$J$9 -> Penata Muda
A182: 142 | B182: XI IPS-1 | I182: 2013-07-24 | J182: 2013 | Y182: =+INPUT!$I$9 -> Dian Lestari,S.PD | Z182: =+INPUT!$J$9 -> Penata Muda
A183: 143 | B183: XI IPS-1 | I183: 2013-07-24 | J183: 2013 | Y183: =+INPUT!$I$9 -> Dian Lestari,S.PD | Z183: =+INPUT!$J$9 -> Penata Muda
A184: 144 | B184: XI IPS-1 | I184: 2013-07-24 | J184: 2013 | Y184: =+INPUT!$I$9 -> Dian Lestari,S.PD | Z184: =+INPUT!$J$9 -> Penata Muda
A185: 145 | B185: XI IPS-1 | I185: 2013-07-24 | J185: 2013 | Y185: =+INPUT!$I$9 -> Dian Lestari,S.PD | Z185: =+INPUT!$J$9 -> Penata Muda
A186: 146 | B186: XI IPS-1 | I186: 2013-07-24 | J186: 2013 | Y186: =+INPUT!$I$9 -> Dian Lestari,S.PD | Z186: =+INPUT!$J$9 -> Penata Muda
A187: 147 | B187: XI IPS-1 | I187: 2013-07-24 | J187: 2013 | Y187: =+INPUT!$I$9 -> Dian Lestari,S.PD | Z187: =+INPUT!$J$9 -> Penata Muda
A188: 148 | B188: XI IPS-1 | I188: 2013-07-24 | J188: 2013 | Y188: =+INPUT!$I$9 -> Dian Lestari,S.PD | Z188: =+INPUT!$J$9 -> Penata Muda
A189: 149 | B189: XI IPS-1 | I189: 2013-07-24 | J189: 2013 | Y189: =+INPUT!$I$9 -> Dian Lestari,S.PD | Z189: =+INPUT!$J$9 -> Penata Muda
A190: 150 | B190: XI IPS-1 | I190: 2013-07-24 | J190: 2013 | Y190: =+INPUT!$I$9 -> Dian Lestari,S.PD | Z190: =+INPUT!$J$9 -> Penata Muda
A191: 151 | B191: XI IPS-1 | I191: 2013-07-24 | J191: 2013 | Y191: =+INPUT!$I$9 -> Dian Lestari,S.PD | Z191: =+INPUT!$J$9 -> Penata Muda
A192: 152 | B192: XI IPS-1 | I192: 2013-07-24 | J192: 2013 | Y192: =+INPUT!$I$9 -> Dian Lestari,S.PD | Z192: =+INPUT!$J$9 -> Penata Muda
A193: 153 | B193: XI IPS-1 | I193: 2013-07-24 | J193: 2013 | Y193: =+INPUT!$I$9 -> Dian Lestari,S.PD | Z193: =+INPUT!$J$9 -> Penata Muda
A194: 154 | B194: XI IPS-1 | I194: 2013-07-24 | J194: 2013 | Y194: =+INPUT!$I$9 -> Dian Lestari,S.PD | Z194: =+INPUT!$J$9 -> Penata Muda
A195: 155 | B195: XI IPS-1 | I195: 2013-07-24 | J195: 2013 | Y195: =+INPUT!$I$9 -> Dian Lestari,S.PD | Z195: =+INPUT!$J$9 -> Penata Muda
A196: 156 | B196: XI IPS-1 | I196: 2013-07-24 | J196: 2013 | Y196: =+INPUT!$I$9 -> Dian Lestari,S.PD | Z196: =+INPUT!$J$9 -> Penata Muda
A197: 157 | B197: XI IPS-1 | I197: 2013-07-24 | J197: 2013 | Y197: =+INPUT!$I$9 -> Dian Lestari,S.PD | Z197: =+INPUT!$J$9 -> Penata Muda
A198: 158 | B198: XI IPS-1 | I198: 2013-07-24 | J198: 2013 | Y198: =+INPUT!$I$9 -> Dian Lestari,S.PD | Z198: =+INPUT!$J$9 -> Penata Muda
A199: 159 | B199: XI IPS-1 | I199: 2013-07-24 | J199: 2013 | Y199: =+INPUT!$I$9 -> Dian Lestari,S.PD | Z199: =+INPUT!$J$9 -> Penata Muda
A200: 160 | B200: XI IPS-1 | I200: 2013-07-24 | J200: 2013 | Y200: =+INPUT!$I$9 -> Dian Lestari,S.PD | Z200: =+INPUT!$J$9 -> Penata Muda
... 238 more rows

Sheet DataBase-XII
A1: NO | B1: KELAS | C1: NAMA | D1: NIS | E1: NISN | F1: L/P | G1: TMPT LHR | H1: TGL LAHIR | I1: Val | K1: Usia | L1: NAMA ORANG TUA | M1: PENDAPATAN ORANG TUA | N1: PEKERJAAN ORANG TUA | O1: ALAMAT | P1: NO STTB | Q1: NO SKHU | R1: NO PESERTA UJIAN SMP | S1: ASAL SEKOLAH | T1: THN LULUS | U1: SMP/ MTs | V1: NO TELP/HP | X1: NAMA IBU | Y1: WALI KELAS | Z1: JABATAN | AA1: DATA SISWA MUTASI
A2: 1 | B2: 2 | C2: 3 | D2: 4 | E2: 5 | F2: 6 | G2: 7 | H2: 8 | I2: 9 | J2: 10 | K2: 11 | L2: 12 | M2: 13 | N2: 14 | O2: 15 | P2: 16 | Q2: 17 | R2: 18 | S2: 19 | T2: 20 | U2: 21 | V2: 22 | W2: 23 | X2: 24 | Y2: 25 | Z2: 26 | AA2: Tanggal Bulan dan Tahun | AB2: Kelas dan Semester yang ditinggalkan | AC2: Alasan Keluar dan atas permintaan (Tertulis)
A3: Contoh>> | B3: X-1 | C3: AAM TAMIMI | D3: 12130001 | E3: 9970454991 | F3: L | G3: CILEGON | H3: 1997-05-04 | I3: 1997 | J3: =+MENU!$D$6 -> 2013 | K3: =+J3-I3 -> 16 | L3: AHYADI | M3: Rp 500 - 700 Ribu | N3: BURUH HARIAN | O3: Jl.Sunan Drajat Link.Cirahap RT 17/02 Ciwandan Cilegon 42444 | P3: DN-30 DI 0028823 | Q3: DN-30 DI 2803800 | R3: 2-12-30-03-005-139-6 | S3: SMPN 4 CILEGON | T3: 2012 | U3: SMP | V3: 087773100391 | W3: Islam | AA3: 31/01/2012 | AB3: X-1 Semester 1 | AC3: Permintaan Orang Tua
A4: No Urut | B4: PILIH Kls | AA4: 2013-01-23 | AB4: XI-IPA 1 Semester 1 | AC4: Permintaan Orang Tua
A5: 1 | B5: =+INPUT!$M$6 -> XII IPA-1 | C5: ADE ROSIHA | D5: 1112077 | E5: 9960473779 | F5: P | G5: SERANG | H5: 1995-12-14 | I5: =TODAY() -> 2013-07-24 | J5: =+$J$3 -> 2013 | K5: =IF(H5="","",DATEDIF(H5,I5,"y")) -> 17 | L5: H. RAHMAT | O5: KP CURUG KEPUH DS. BANDENGAN | P5: MTs 300044689 | Q5: DN-30 DI 0737367 | R5: 2-11-30-03-036-004-5 | T5: 2011 | U5: MTS | V5: 087818193143 | W5: Islam | Y5: =+INPUT!$N$6 -> Dian Misdiyana,S.Pd | Z5: =+INPUT!$O$6 -> Guru Madya | AD5: XII-IPA-1
A6: 2 | B6: =IF(A6=0," ",+B5) -> XII IPA-1 | I6: =TODAY() -> 2013-07-24 | J6: 2013 | K6: =IF(H6="","",DATEDIF(H6,I6,"y")) ->  | Y6: =+INPUT!$N$6 -> Dian Misdiyana,S.Pd | Z6: =+INPUT!$O$6 -> Guru Madya
A7: 3 | B7: XII IPA-1 | I7: 2013-07-24 | J7: 2013 | Y7: =+INPUT!$N$6 -> Dian Misdiyana,S.Pd | Z7: =+INPUT!$O$6 -> Guru Madya
A8: 4 | B8: XII IPA-1 | I8: 2013-07-24 | J8: 2013 | Y8: =+INPUT!$N$6 -> Dian Misdiyana,S.Pd | Z8: =+INPUT!$O$6 -> Guru Madya
A9: 5 | B9: XII IPA-1 | I9: 2013-07-24 | J9: 2013 | Y9: =+INPUT!$N$6 -> Dian Misdiyana,S.Pd | Z9: =+INPUT!$O$6 -> Guru Madya
A10: 6 | B10: XII IPA-1 | I10: 2013-07-24 | J10: 2013 | Y10: =+INPUT!$N$6 -> Dian Misdiyana,S.Pd | Z10: =+INPUT!$O$6 -> Guru Madya
A11: 7 | B11: XII IPA-1 | I11: 2013-07-24 | J11: 2013 | Y11: =+INPUT!$N$6 -> Dian Misdiyana,S.Pd | Z11: =+INPUT!$O$6 -> Guru Madya
A12: 8 | B12: XII IPA-1 | I12: 2013-07-24 | J12: 2013 | Y12: =+INPUT!$N$6 -> Dian Misdiyana,S.Pd | Z12: =+INPUT!$O$6 -> Guru Madya
A13: 9 | B13: XII IPA-1 | I13: 2013-07-24 | J13: 2013 | Y13: =+INPUT!$N$6 -> Dian Misdiyana,S.Pd | Z13: =+INPUT!$O$6 -> Guru Madya
A14: 10 | B14: XII IPA-1 | I14: 2013-07-24 | J14: 2013 | Y14: =+INPUT!$N$6 -> Dian Misdiyana,S.Pd | Z14: =+INPUT!$O$6 -> Guru Madya
A15: 11 | B15: XII IPA-1 | I15: 2013-07-24 | J15: 2013 | Y15: =+INPUT!$N$6 -> Dian Misdiyana,S.Pd | Z15: =+INPUT!$O$6 -> Guru Madya
A16: 12 | B16: XII IPA-1 | I16: 2013-07-24 | J16: 2013 | Y16: =+INPUT!$N$6 -> Dian Misdiyana,S.Pd | Z16: =+INPUT!$O$6 -> Guru Madya
A17: 13 | B17: XII IPA-1 | I17: 2013-07-24 | J17: 2013 | Y17: =+INPUT!$N$6 -> Dian Misdiyana,S.Pd | Z17: =+INPUT!$O$6 -> Guru Madya
A18: 14 | B18: XII IPA-1 | I18: 2013-07-24 | J18: 2013 | Y18: =+INPUT!$N$6 -> Dian Misdiyana,S.Pd | Z18: =+INPUT!$O$6 -> Guru Madya
A19: 15 | B19: XII IPA-1 | I19: 2013-07-24 | J19: 2013 | Y19: =+INPUT!$N$6 -> Dian Misdiyana,S.Pd | Z19: =+INPUT!$O$6 -> Guru Madya
A20: 16 | B20: XII IPA-1 | I20: 2013-07-24 | J20: 2013 | Y20: =+INPUT!$N$6 -> Dian Misdiyana,S.Pd | Z20: =+INPUT!$O$6 -> Guru Madya
A21: 17 | B21: XII IPA-1 | I21: 2013-07-24 | J21: 2013 | Y21: =+INPUT!$N$6 -> Dian Misdiyana,S.Pd | Z21: =+INPUT!$O$6 -> Guru Madya
A22: 18 | B22: XII IPA-1 | I22: 2013-07-24 | J22: 2013 | Y22: =+INPUT!$N$6 -> Dian Misdiyana,S.Pd | Z22: =+INPUT!$O$6 -> Guru Madya
A23: 19 | B23: XII IPA-1 | I23: 2013-07-24 | J23: 2013 | Y23: =+INPUT!$N$6 -> Dian Misdiyana,S.Pd | Z23: =+INPUT!$O$6 -> Guru Madya
A24: 20 | B24: XII IPA-1 | I24: 2013-07-24 | J24: 2013 | Y24: =+INPUT!$N$6 -> Dian Misdiyana,S.Pd | Z24: =+INPUT!$O$6 -> Guru Madya
A25: 21 | B25: XII IPA-1 | I25: 2013-07-24 | J25: 2013 | Y25: =+INPUT!$N$6 -> Dian Misdiyana,S.Pd | Z25: =+INPUT!$O$6 -> Guru Madya
A26: 22 | B26: XII IPA-1 | I26: 2013-07-24 | J26: 2013 | Y26: =+INPUT!$N$6 -> Dian Misdiyana,S.Pd | Z26: =+INPUT!$O$6 -> Guru Madya
A27: 23 | B27: XII IPA-1 | I27: 2013-07-24 | J27: 2013 | Y27: =+INPUT!$N$6 -> Dian Misdiyana,S.Pd | Z27: =+INPUT!$O$6 -> Guru Madya
A28: 24 | B28: XII IPA-1 | I28: 2013-07-24 | J28: 2013 | Y28: =+INPUT!$N$6 -> Dian Misdiyana,S.Pd | Z28: =+INPUT!$O$6 -> Guru Madya
A29: 25 | B29: XII IPA-1 | I29: 2013-07-24 | J29: 2013 | Y29: =+INPUT!$N$6 -> Dian Misdiyana,S.Pd | Z29: =+INPUT!$O$6 -> Guru Madya
A30: 26 | B30: XII IPA-1 | I30: 2013-07-24 | J30: 2013 | Y30: =+INPUT!$N$6 -> Dian Misdiyana,S.Pd | Z30: =+INPUT!$O$6 -> Guru Madya
A31: 27 | B31: XII IPA-1 | I31: 2013-07-24 | J31: 2013 | Y31: =+INPUT!$N$6 -> Dian Misdiyana,S.Pd | Z31: =+INPUT!$O$6 -> Guru Madya
A32: 28 | B32: XII IPA-1 | I32: 2013-07-24 | J32: 2013 | Y32: =+INPUT!$N$6 -> Dian Misdiyana,S.Pd | Z32: =+INPUT!$O$6 -> Guru Madya
A33: 29 | B33: XII IPA-1 | I33: 2013-07-24 | J33: 2013 | Y33: =+INPUT!$N$6 -> Dian Misdiyana,S.Pd | Z33: =+INPUT!$O$6 -> Guru Madya
A34: 30 | B34: XII IPA-1 | I34: 2013-07-24 | J34: 2013 | Y34: =+INPUT!$N$6 -> Dian Misdiyana,S.Pd | Z34: =+INPUT!$O$6 -> Guru Madya
A35: 31 | B35: XII IPA-1 | I35: 2013-07-24 | J35: 2013 | Y35: =+INPUT!$N$6 -> Dian Misdiyana,S.Pd | Z35: =+INPUT!$O$6 -> Guru Madya
A36: 32 | B36: XII IPA-1 | I36: 2013-07-24 | J36: 2013 | Y36: =+INPUT!$N$6 -> Dian Misdiyana,S.Pd | Z36: =+INPUT!$O$6 -> Guru Madya
A37: 33 | B37: XII IPA-1 | I37: 2013-07-24 | J37: 2013 | Y37: =+INPUT!$N$6 -> Dian Misdiyana,S.Pd | Z37: =+INPUT!$O$6 -> Guru Madya
A38: 34 | B38: XII IPA-1 | I38: 2013-07-24 | J38: 2013 | Y38: =+INPUT!$N$6 -> Dian Misdiyana,S.Pd | Z38: =+INPUT!$O$6 -> Guru Madya
A39: 35 | B39: XII IPA-1 | I39: 2013-07-24 | J39: 2013 | Y39: =+INPUT!$N$6 -> Dian Misdiyana,S.Pd | Z39: =+INPUT!$O$6 -> Guru Madya
A40: 36 | B40: XII IPA-1 | I40: 2013-07-24 | J40: 2013 | Y40: =+INPUT!$N$6 -> Dian Misdiyana,S.Pd | Z40: =+INPUT!$O$6 -> Guru Madya
A41: 37 | B41: XII IPA-1 | I41: 2013-07-24 | J41: 2013 | Y41: =+INPUT!$N$6 -> Dian Misdiyana,S.Pd | Z41: =+INPUT!$O$6 -> Guru Madya
A42: 38 | B42: XII IPA-1 | I42: =TODAY() -> 2013-07-24 | J42: 2013 | Y42: =+INPUT!$N$6 -> Dian Misdiyana,S.Pd | Z42: =+INPUT!$O$6 -> Guru Madya
A43: 39 | B43: XII IPA-1 | I43: 2013-07-24 | J43: 2013 | Y43: =+INPUT!$N$6 -> Dian Misdiyana,S.Pd | Z43: =+INPUT!$O$6 -> Guru Madya
A44: 40 | B44: XII IPA-1 | I44: 2013-07-24 | J44: 2013 | Y44: =+INPUT!$N$6 -> Dian Misdiyana,S.Pd | Z44: =+INPUT!$O$6 -> Guru Madya
A45: 41 | B45: XII IPA-1 | I45: 2013-07-24 | J45: 2013 | Y45: =+INPUT!$N$6 -> Dian Misdiyana,S.Pd | Z45: =+INPUT!$O$6 -> Guru Madya
A46: 42 | B46: XII IPA-1 | I46: 2013-07-24 | J46: 2013 | Y46: =+INPUT!$N$6 -> Dian Misdiyana,S.Pd | Z46: =+INPUT!$O$6 -> Guru Madya
A47: 43 | B47: XII IPA-1 | I47: 2013-07-24 | J47: 2013 | Y47: =+INPUT!$N$6 -> Dian Misdiyana,S.Pd | Z47: =+INPUT!$O$6 -> Guru Madya
A48: 44 | B48: XII IPA-1 | I48: 2013-07-24 | J48: 2013 | Y48: =+INPUT!$N$6 -> Dian Misdiyana,S.Pd | Z48: =+INPUT!$O$6 -> Guru Madya
A49: 45 | B49: XII IPA-1 | I49: 2013-07-24 | J49: 2013 | Y49: =+INPUT!$N$6 -> Dian Misdiyana,S.Pd | Z49: =+INPUT!$O$6 -> Guru Madya
F50: =COUNTIF(F5:F49,"L") -> 0 | G50: Laki-laki | I50: 14 Th | J50: =+K50/$F$52*100% -> 0 | K50: =COUNTIF(K5:K49,"14") -> 0 | M50: BURUH HARIAN | N50: 0 | T50: SMP | U50: =COUNTIF(U5:U49,"SMP") -> 0 | V50: Islam | W50: =COUNTIF(W5:W49,"Islam") -> 1
F51: =COUNTIF(F5:F49,"P") -> 1 | G51: Perempuan | I51: 15 Th | J51: 0 | K51: =COUNTIF(K5:K49,"15") -> 0 | M51: PEG / KARY. SWASTA | N51: 0 | T51: MTs | U51: =COUNTIF(U5:U49,"MTs") -> 1 | V51: Katolik | W51: =COUNTIF(W5:W49,"Katolik") -> 0
F52: =+F50+F51 -> 1 | G52: Total Siswa | I52: 16 Th | J52: 0 | K52: =COUNTIF(K5:K49,"16") -> 0 | M52: PNS | N52: 0 | T52: Lainnya | U52: =+U50+U51 -> 1 | V52: Protestan | W52: =COUNTIF(W5:W49,"Protestan") -> 0
I53: 17 Th | J53: 1 | K53: =COUNTIF(K5:K49,"17") -> 1 | M53: WIRASWASTA | N53: 0 | V53: Hindu | W53: =COUNTIF(W5:W49,"Hindu") -> 0
I54: 18 Th | J54: 0 | K54: =COUNTIF(K5:K49,"18") -> 0 | M54: KARY/ PEGAWAI .BUMN | N54: 0 | V54: Budha | W54: =COUNTIF(W5:W49,"Budha") -> 0
I55: 19 Th | J55: 0 | K55: =COUNTIF(K5:K49,"19") -> 0 | M55: KEPOLISIAN | N55: 0 | W55: =SUM(W50:W54) -> 1
I56: 20 Th | J56: 0 | K56: =COUNTIF(K5:K49,"20") -> 0 | M56: PENSIUNAN | N56: 0
I57: TOTAL | J57: 1 | K57: =SUM(K50:K56) -> 1 | M57: HONORER | N57: 0
M58: GURU | N58: 0
M59: TAK ADA DATA | N59: 0
M60: TOTAL DATA | N60: 0
B61: =MAX(A5:A49) -> 45
A62: =+$B$61+1 -> 46 | B62: =+INPUT!$M$7 -> XII IPA-2 | C62: ALLISYAARA NOERHUZA | D62: 1112117 | E62: 9960470745 | F62: P | G62: SERANG | H62: 1996-04-04 | I62: =TODAY() -> 2013-07-24 | J62: =+$J$3 -> 2013 | K62: =IF(H62="","",DATEDIF(H62,I62,"y")) -> 17 | L62: HUZAUDIN | O62: JL. SUNAN KUDUS LINK KALENTEMU | P62: DN-30 DI 0029756 | Q62: DN-30 DI 2837151 | R62: 2-11-30-03-072-042-7 | T62: 2011 | U62: SMP | V62: (0254) 310508 | W62: Islam | Y62: =+INPUT!$N$7 -> Ria Setiya Wardani,S.Pd | Z62: =+INPUT!$O$7 -> Guru Madya Tk I | AD62: =+B62 -> XII IPA-2
A63: =+A62+1 -> 47 | B63: =IF(A63=0," ",+B62) -> XII IPA-2 | I63: =TODAY() -> 2013-07-24 | J63: 2013 | K63: =IF(H63="","",DATEDIF(H63,I63,"y")) ->  | Y63: =+INPUT!$N$7 -> Ria Setiya Wardani,S.Pd | Z63: =+INPUT!$O$7 -> Guru Madya Tk I
A64: 48 | B64: XII IPA-2 | I64: 2013-07-24 | J64: 2013 | Y64: =+INPUT!$N$7 -> Ria Setiya Wardani,S.Pd | Z64: =+INPUT!$O$7 -> Guru Madya Tk I
A65: 49 | B65: XII IPA-2 | I65: 2013-07-24 | J65: 2013 | Y65: =+INPUT!$N$7 -> Ria Setiya Wardani,S.Pd | Z65: =+INPUT!$O$7 -> Guru Madya Tk I
A66: 50 | B66: XII IPA-2 | I66: 2013-07-24 | J66: 2013 | Y66: =+INPUT!$N$7 -> Ria Setiya Wardani,S.Pd | Z66: =+INPUT!$O$7 -> Guru Madya Tk I
A67: 51 | B67: XII IPA-2 | I67: 2013-07-24 | J67: 2013 | Y67: =+INPUT!$N$7 -> Ria Setiya Wardani,S.Pd | Z67: =+INPUT!$O$7 -> Guru Madya Tk I
A68: 52 | B68: XII IPA-2 | I68: 2013-07-24 | J68: 2013 | Y68: =+INPUT!$N$7 -> Ria Setiya Wardani,S.Pd | Z68: =+INPUT!$O$7 -> Guru Madya Tk I
A69: 53 | B69: XII IPA-2 | I69: 2013-07-24 | J69: 2013 | Y69: =+INPUT!$N$7 -> Ria Setiya Wardani,S.Pd | Z69: =+INPUT!$O$7 -> Guru Madya Tk I
A70: 54 | B70: XII IPA-2 | I70: 2013-07-24 | J70: 2013 | Y70: =+INPUT!$N$7 -> Ria Setiya Wardani,S.Pd | Z70: =+INPUT!$O$7 -> Guru Madya Tk I
A71: 55 | B71: XII IPA-2 | I71: 2013-07-24 | J71: 2013 | Y71: =+INPUT!$N$7 -> Ria Setiya Wardani,S.Pd | Z71: =+INPUT!$O$7 -> Guru Madya Tk I
A72: 56 | B72: XII IPA-2 | I72: 2013-07-24 | J72: 2013 | Y72: =+INPUT!$N$7 -> Ria Setiya Wardani,S.Pd | Z72: =+INPUT!$O$7 -> Guru Madya Tk I
A73: 57 | B73: XII IPA-2 | I73: 2013-07-24 | J73: 2013 | Y73: =+INPUT!$N$7 -> Ria Setiya Wardani,S.Pd | Z73: =+INPUT!$O$7 -> Guru Madya Tk I
A74: 58 | B74: XII IPA-2 | I74: 2013-07-24 | J74: 2013 | Y74: =+INPUT!$N$7 -> Ria Setiya Wardani,S.Pd | Z74: =+INPUT!$O$7 -> Guru Madya Tk I
A75: 59 | B75: XII IPA-2 | I75: 2013-07-24 | J75: 2013 | Y75: =+INPUT!$N$7 -> Ria Setiya Wardani,S.Pd | Z75: =+INPUT!$O$7 -> Guru Madya Tk I
A76: 60 | B76: XII IPA-2 | I76: 2013-07-24 | J76: 2013 | Y76: =+INPUT!$N$7 -> Ria Setiya Wardani,S.Pd | Z76: =+INPUT!$O$7 -> Guru Madya Tk I
A77: 61 | B77: XII IPA-2 | I77: 2013-07-24 | J77: 2013 | Y77: =+INPUT!$N$7 -> Ria Setiya Wardani,S.Pd | Z77: =+INPUT!$O$7 -> Guru Madya Tk I
A78: 62 | B78: XII IPA-2 | I78: 2013-07-24 | J78: 2013 | Y78: =+INPUT!$N$7 -> Ria Setiya Wardani,S.Pd | Z78: =+INPUT!$O$7 -> Guru Madya Tk I
A79: 63 | B79: XII IPA-2 | I79: 2013-07-24 | J79: 2013 | Y79: =+INPUT!$N$7 -> Ria Setiya Wardani,S.Pd | Z79: =+INPUT!$O$7 -> Guru Madya Tk I
A80: 64 | B80: XII IPA-2 | I80: 2013-07-24 | J80: 2013 | Y80: =+INPUT!$N$7 -> Ria Setiya Wardani,S.Pd | Z80: =+INPUT!$O$7 -> Guru Madya Tk I
A81: 65 | B81: XII IPA-2 | I81: 2013-07-24 | J81: 2013 | Y81: =+INPUT!$N$7 -> Ria Setiya Wardani,S.Pd | Z81: =+INPUT!$O$7 -> Guru Madya Tk I
A82: 66 | B82: XII IPA-2 | I82: 2013-07-24 | J82: 2013 | Y82: =+INPUT!$N$7 -> Ria Setiya Wardani,S.Pd | Z82: =+INPUT!$O$7 -> Guru Madya Tk I
A83: 67 | B83: XII IPA-2 | I83: 2013-07-24 | J83: 2013 | Y83: =+INPUT!$N$7 -> Ria Setiya Wardani,S.Pd | Z83: =+INPUT!$O$7 -> Guru Madya Tk I
A84: 68 | B84: XII IPA-2 | I84: 2013-07-24 | J84: 2013 | Y84: =+INPUT!$N$7 -> Ria Setiya Wardani,S.Pd | Z84: =+INPUT!$O$7 -> Guru Madya Tk I
A85: 69 | B85: XII IPA-2 | I85: 2013-07-24 | J85: 2013 | Y85: =+INPUT!$N$7 -> Ria Setiya Wardani,S.Pd | Z85: =+INPUT!$O$7 -> Guru Madya Tk I
A86: 70 | B86: XII IPA-2 | I86: 2013-07-24 | J86: 2013 | Y86: =+INPUT!$N$7 -> Ria Setiya Wardani,S.Pd | Z86: =+INPUT!$O$7 -> Guru Madya Tk I
A87: 71 | B87: XII IPA-2 | I87: 2013-07-24 | J87: 2013 | Y87: =+INPUT!$N$7 -> Ria Setiya Wardani,S.Pd | Z87: =+INPUT!$O$7 -> Guru Madya Tk I
A88: 72 | B88: XII IPA-2 | I88: 2013-07-24 | J88: 2013 | Y88: =+INPUT!$N$7 -> Ria Setiya Wardani,S.Pd | Z88: =+INPUT!$O$7 -> Guru Madya Tk I
A89: 73 | B89: XII IPA-2 | I89: 2013-07-24 | J89: 2013 | Y89: =+INPUT!$N$7 -> Ria Setiya Wardani,S.Pd | Z89: =+INPUT!$O$7 -> Guru Madya Tk I
A90: 74 | B90: XII IPA-2 | I90: 2013-07-24 | J90: 2013 | Y90: =+INPUT!$N$7 -> Ria Setiya Wardani,S.Pd | Z90: =+INPUT!$O$7 -> Guru Madya Tk I
A91: 75 | B91: XII IPA-2 | I91: 2013-07-24 | J91: 2013 | Y91: =+INPUT!$N$7 -> Ria Setiya Wardani,S.Pd | Z91: =+INPUT!$O$7 -> Guru Madya Tk I
A92: 76 | B92: XII IPA-2 | I92: 2013-07-24 | J92: 2013 | Y92: =+INPUT!$N$7 -> Ria Setiya Wardani,S.Pd | Z92: =+INPUT!$O$7 -> Guru Madya Tk I
A93: 77 | B93: XII IPA-2 | I93: 2013-07-24 | J93: 2013 | Y93: =+INPUT!$N$7 -> Ria Setiya Wardani,S.Pd | Z93: =+INPUT!$O$7 -> Guru Madya Tk I
A94: 78 | B94: XII IPA-2 | I94: 2013-07-24 | J94: 2013 | Y94: =+INPUT!$N$7 -> Ria Setiya Wardani,S.Pd | Z94: =+INPUT!$O$7 -> Guru Madya Tk I
A95: 79 | B95: XII IPA-2 | I95: 2013-07-24 | J95: 2013 | Y95: =+INPUT!$N$7 -> Ria Setiya Wardani,S.Pd | Z95: =+INPUT!$O$7 -> Guru Madya Tk I
A96: 80 | B96: XII IPA-2 | I96: 2013-07-24 | J96: 2013 | Y96: =+INPUT!$N$7 -> Ria Setiya Wardani,S.Pd | Z96: =+INPUT!$O$7 -> Guru Madya Tk I
A97: 81 | B97: XII IPA-2 | I97: 2013-07-24 | J97: 2013 | Y97: =+INPUT!$N$7 -> Ria Setiya Wardani,S.Pd | Z97: =+INPUT!$O$7 -> Guru Madya Tk I
A98: 82 | B98: XII IPA-2 | I98: 2013-07-24 | J98: 2013 | Y98: =+INPUT!$N$7 -> Ria Setiya Wardani,S.Pd | Z98: =+INPUT!$O$7 -> Guru Madya Tk I
A99: 83 | B99: XII IPA-2 | I99: =TODAY() -> 2013-07-24 | J99: 2013 | Y99: =+INPUT!$N$7 -> Ria Setiya Wardani,S.Pd | Z99: =+INPUT!$O$7 -> Guru Madya Tk I
A100: 84 | B100: XII IPA-2 | I100: 2013-07-24 | J100: 2013 | Y100: =+INPUT!$N$7 -> Ria Setiya Wardani,S.Pd | Z100: =+INPUT!$O$7 -> Guru Madya Tk I
A101: 85 | B101: XII IPA-2 | I101: 2013-07-24 | J101: 2013 | Y101: =+INPUT!$N$7 -> Ria Setiya Wardani,S.Pd | Z101: =+INPUT!$O$7 -> Guru Madya Tk I
A102: 86 | B102: XII IPA-2 | I102: 2013-07-24 | J102: 2013 | Y102: =+INPUT!$N$7 -> Ria Setiya Wardani,S.Pd | Z102: =+INPUT!$O$7 -> Guru Madya Tk I
A103: 87 | B103: XII IPA-2 | I103: 2013-07-24 | J103: 2013 | Y103: =+INPUT!$N$7 -> Ria Setiya Wardani,S.Pd | Z103: =+INPUT!$O$7 -> Guru Madya Tk I
A104: 88 | B104: XII IPA-2 | I104: 2013-07-24 | J104: 2013 | Y104: =+INPUT!$N$7 -> Ria Setiya Wardani,S.Pd | Z104: =+INPUT!$O$7 -> Guru Madya Tk I
A105: 89 | B105: XII IPA-2 | I105: 2013-07-24 | J105: 2013 | Y105: =+INPUT!$N$7 -> Ria Setiya Wardani,S.Pd | Z105: =+INPUT!$O$7 -> Guru Madya Tk I
A106: 90 | B106: XII IPA-2 | I106: 2013-07-24 | J106: 2013 | Y106: =+INPUT!$N$7 -> Ria Setiya Wardani,S.Pd | Z106: =+INPUT!$O$7 -> Guru Madya Tk I
F107: =COUNTIF(F62:F106,"L") -> 0 | G107: Laki-laki | I107: 14 Th | J107: =+K107/$F$52*100% -> 0 | K107: =COUNTIF(K62:K106,"14") -> 0 | M107: BURUH HARIAN | N107: 0 | T107: SMP | U107: =COUNTIF(U62:U106,"SMP") -> 1 | V107: Islam | W107: =COUNTIF(W62:W106,"Islam") -> 1
F108: =COUNTIF(F62:F106,"P") -> 1 | G108: Perempuan | I108: 15 Th | J108: 0 | K108: =COUNTIF(K62:K106,"15") -> 0 | M108: PEG / KARY. SWASTA | N108: 0 | T108: MTs | U108: =COUNTIF(U62:U106,"MTs") -> 0 | V108: Katolik | W108: =COUNTIF(W62:W106,"Katolik") -> 0
F109: =SUM(F107:F108) -> 1 | G109: Total Siswa | I109: 16 Th | J109: 0 | K109: =COUNTIF(K62:K106,"16") -> 0 | M109: PNS | N109: 0 | T109: Lainnya | U109: =+U107+U108 -> 1 | V109: Protestan | W109: =COUNTIF(W62:W106,"Protestan") -> 0
I110: 17 Th | J110: 1 | K110: =COUNTIF(K62:K106,"17") -> 1 | M110: WIRASWASTA | N110: 0 | V110: Hindu | W110: =COUNTIF(W62:W106,"Hindu") -> 0
I111: 18 Th | J111: 0 | K111: =COUNTIF(K62:K106,"18") -> 0 | M111: KARY/ PEGAWAI .BUMN | N111: 0 | V111: Budha | W111: =COUNTIF(W62:W106,"Budha") -> 0
I112: 19 Th | J112: 0 | K112: =COUNTIF(K62:K106,"19") -> 0 | M112: KEPOLISIAN | N112: 0 | W112: =SUM(W107:W111) -> 1
I113: 20 Th | J113: 0 | K113: =COUNTIF(K62:K106,"20") -> 0 | M113: PENSIUNAN | N113: 0
I114: TOTAL | J114: 1 | K114: =SUM(K107:K113) -> 1 | M114: HONORER | N114: 0
M115: GURU | N115: 0
M116: TAK ADA DATA | N116: 0
M117: TOTAL DATA | N117: 0
B118: =MAX(A62:A106) -> 90
A119: =+$B$118+1 -> 91 | B119: =+INPUT!$M$8 -> XII IPA-3 | C119: ADI FIRMANSYAH | D119: 1112078 | E119: 9965293057 | F119: L | G119: SERANG | H119: 1995-11-01 | I119: =TODAY() -> 2013-07-24 | J119: =+$J$3 -> 2013 | K119: =IF(H119="","",DATEDIF(H119,I119,"y")) -> 17 | L119: IMAM SUPARDI | O119: JL LADA BLOCK A1 NO.5 CIWEDUS | P119: DN-30-DI-0028476 | R119: 2-11-30-03-006-152-9 | T119: 2011 | U119: SMP | V119: 087871010423 | W119: Islam | Y119: =+INPUT!$N$8 -> Farida Kustyarini,S.Si | Z119: =+INPUT!$O$8 -> Guru Madya Tk I | AD119: =+B119 -> XII IPA-3
A120: =+A119+1 -> 92 | B120: =IF(A120=0," ",+B119) -> XII IPA-3 | I120: =TODAY() -> 2013-07-24 | J120: 2013 | K120: =IF(H120="","",DATEDIF(H120,I120,"y")) ->  | Y120: =+INPUT!$N$8 -> Farida Kustyarini,S.Si | Z120: =+INPUT!$O$8 -> Guru Madya Tk I
A121: 93 | B121: XII IPA-3 | I121: 2013-07-24 | J121: 2013 | Y121: =+INPUT!$N$8 -> Farida Kustyarini,S.Si | Z121: =+INPUT!$O$8 -> Guru Madya Tk I
A122: 94 | B122: XII IPA-3 | I122: 2013-07-24 | J122: 2013 | Y122: =+INPUT!$N$8 -> Farida Kustyarini,S.Si | Z122: =+INPUT!$O$8 -> Guru Madya Tk I
A123: 95 | B123: XII IPA-3 | I123: 2013-07-24 | J123: 2013 | Y123: =+INPUT!$N$8 -> Farida Kustyarini,S.Si | Z123: =+INPUT!$O$8 -> Guru Madya Tk I
A124: 96 | B124: XII IPA-3 | I124: 2013-07-24 | J124: 2013 | Y124: =+INPUT!$N$8 -> Farida Kustyarini,S.Si | Z124: =+INPUT!$O$8 -> Guru Madya Tk I
A125: 97 | B125: XII IPA-3 | I125: 2013-07-24 | J125: 2013 | Y125: =+INPUT!$N$8 -> Farida Kustyarini,S.Si | Z125: =+INPUT!$O$8 -> Guru Madya Tk I
A126: 98 | B126: XII IPA-3 | I126: 2013-07-24 | J126: 2013 | Y126: =+INPUT!$N$8 -> Farida Kustyarini,S.Si | Z126: =+INPUT!$O$8 -> Guru Madya Tk I
A127: 99 | B127: XII IPA-3 | I127: 2013-07-24 | J127: 2013 | Y127: =+INPUT!$N$8 -> Farida Kustyarini,S.Si | Z127: =+INPUT!$O$8 -> Guru Madya Tk I
A128: 100 | B128: XII IPA-3 | I128: 2013-07-24 | J128: 2013 | Y128: =+INPUT!$N$8 -> Farida Kustyarini,S.Si | Z128: =+INPUT!$O$8 -> Guru Madya Tk I
A129: 101 | B129: XII IPA-3 | I129: 2013-07-24 | J129: 2013 | Y129: =+INPUT!$N$8 -> Farida Kustyarini,S.Si | Z129: =+INPUT!$O$8 -> Guru Madya Tk I
A130: 102 | B130: XII IPA-3 | I130: 2013-07-24 | J130: 2013 | Y130: =+INPUT!$N$8 -> Farida Kustyarini,S.Si | Z130: =+INPUT!$O$8 -> Guru Madya Tk I
A131: 103 | B131: XII IPA-3 | I131: 2013-07-24 | J131: 2013 | Y131: =+INPUT!$N$8 -> Farida Kustyarini,S.Si | Z131: =+INPUT!$O$8 -> Guru Madya Tk I
A132: 104 | B132: XII IPA-3 | I132: 2013-07-24 | J132: 2013 | Y132: =+INPUT!$N$8 -> Farida Kustyarini,S.Si | Z132: =+INPUT!$O$8 -> Guru Madya Tk I
A133: 105 | B133: XII IPA-3 | I133: 2013-07-24 | J133: 2013 | Y133: =+INPUT!$N$8 -> Farida Kustyarini,S.Si | Z133: =+INPUT!$O$8 -> Guru Madya Tk I
A134: 106 | B134: XII IPA-3 | I134: 2013-07-24 | J134: 2013 | Y134: =+INPUT!$N$8 -> Farida Kustyarini,S.Si | Z134: =+INPUT!$O$8 -> Guru Madya Tk I
A135: 107 | B135: XII IPA-3 | I135: 2013-07-24 | J135: 2013 | Y135: =+INPUT!$N$8 -> Farida Kustyarini,S.Si | Z135: =+INPUT!$O$8 -> Guru Madya Tk I
A136: 108 | B136: XII IPA-3 | I136: 2013-07-24 | J136: 2013 | Y136: =+INPUT!$N$8 -> Farida Kustyarini,S.Si | Z136: =+INPUT!$O$8 -> Guru Madya Tk I
A137: 109 | B137: XII IPA-3 | I137: 2013-07-24 | J137: 2013 | Y137: =+INPUT!$N$8 -> Farida Kustyarini,S.Si | Z137: =+INPUT!$O$8 -> Guru Madya Tk I
A138: 110 | B138: XII IPA-3 | I138: 2013-07-24 | J138: 2013 | Y138: =+INPUT!$N$8 -> Farida Kustyarini,S.Si | Z138: =+INPUT!$O$8 -> Guru Madya Tk I
A139: 111 | B139: XII IPA-3 | I139: 2013-07-24 | J139: 2013 | Y139: =+INPUT!$N$8 -> Farida Kustyarini,S.Si | Z139: =+INPUT!$O$8 -> Guru Madya Tk I
A140: 112 | B140: XII IPA-3 | I140: 2013-07-24 | J140: 2013 | Y140: =+INPUT!$N$8 -> Farida Kustyarini,S.Si | Z140: =+INPUT!$O$8 -> Guru Madya Tk I
A141: 113 | B141: XII IPA-3 | I141: 2013-07-24 | J141: 2013 | Y141: =+INPUT!$N$8 -> Farida Kustyarini,S.Si | Z141: =+INPUT!$O$8 -> Guru Madya Tk I
A142: 114 | B142: XII IPA-3 | I142: 2013-07-24 | J142: 2013 | Y142: =+INPUT!$N$8 -> Farida Kustyarini,S.Si | Z142: =+INPUT!$O$8 -> Guru Madya Tk I
A143: 115 | B143: XII IPA-3 | I143: 2013-07-24 | J143: 2013 | Y143: =+INPUT!$N$8 -> Farida Kustyarini,S.Si | Z143: =+INPUT!$O$8 -> Guru Madya Tk I
A144: 116 | B144: XII IPA-3 | I144: 2013-07-24 | J144: 2013 | Y144: =+INPUT!$N$8 -> Farida Kustyarini,S.Si | Z144: =+INPUT!$O$8 -> Guru Madya Tk I
A145: 117 | B145: XII IPA-3 | I145: 2013-07-24 | J145: 2013 | Y145: =+INPUT!$N$8 -> Farida Kustyarini,S.Si | Z145: =+INPUT!$O$8 -> Guru Madya Tk I
A146: 118 | B146: XII IPA-3 | I146: 2013-07-24 | J146: 2013 | Y146: =+INPUT!$N$8 -> Farida Kustyarini,S.Si | Z146: =+INPUT!$O$8 -> Guru Madya Tk I
A147: 119 | B147: XII IPA-3 | I147: 2013-07-24 | J147: 2013 | Y147: =+INPUT!$N$8 -> Farida Kustyarini,S.Si | Z147: =+INPUT!$O$8 -> Guru Madya Tk I
A148: 120 | B148: XII IPA-3 | I148: 2013-07-24 | J148: 2013 | Y148: =+INPUT!$N$8 -> Farida Kustyarini,S.Si | Z148: =+INPUT!$O$8 -> Guru Madya Tk I
A149: 121 | B149: XII IPA-3 | I149: 2013-07-24 | J149: 2013 | Y149: =+INPUT!$N$8 -> Farida Kustyarini,S.Si | Z149: =+INPUT!$O$8 -> Guru Madya Tk I
A150: 122 | B150: XII IPA-3 | I150: 2013-07-24 | J150: 2013 | Y150: =+INPUT!$N$8 -> Farida Kustyarini,S.Si | Z150: =+INPUT!$O$8 -> Guru Madya Tk I
A151: 123 | B151: XII IPA-3 | I151: 2013-07-24 | J151: 2013 | Y151: =+INPUT!$N$8 -> Farida Kustyarini,S.Si | Z151: =+INPUT!$O$8 -> Guru Madya Tk I
A152: 124 | B152: XII IPA-3 | I152: 2013-07-24 | J152: 2013 | Y152: =+INPUT!$N$8 -> Farida Kustyarini,S.Si | Z152: =+INPUT!$O$8 -> Guru Madya Tk I
A153: 125 | B153: XII IPA-3 | I153: 2013-07-24 | J153: 2013 | Y153: =+INPUT!$N$8 -> Farida Kustyarini,S.Si | Z153: =+INPUT!$O$8 -> Guru Madya Tk I
A154: 126 | B154: XII IPA-3 | I154: 2013-07-24 | J154: 2013 | Y154: =+INPUT!$N$8 -> Farida Kustyarini,S.Si | Z154: =+INPUT!$O$8 -> Guru Madya Tk I
A155: 127 | B155: XII IPA-3 | I155: 2013-07-24 | J155: 2013 | Y155: =+INPUT!$N$8 -> Farida Kustyarini,S.Si | Z155: =+INPUT!$O$8 -> Guru Madya Tk I
A156: 128 | B156: XII IPA-3 | I156: =TODAY() -> 2013-07-24 | J156: 2013 | Y156: =+INPUT!$N$8 -> Farida Kustyarini,S.Si | Z156: =+INPUT!$O$8 -> Guru Madya Tk I
A157: 129 | B157: XII IPA-3 | I157: 2013-07-24 | J157: 2013 | Y157: =+INPUT!$N$8 -> Farida Kustyarini,S.Si | Z157: =+INPUT!$O$8 -> Guru Madya Tk I
A158: 130 | B158: XII IPA-3 | I158: 2013-07-24 | J158: 2013 | Y158: =+INPUT!$N$8 -> Farida Kustyarini,S.Si | Z158: =+INPUT!$O$8 -> Guru Madya Tk I
A159: 131 | B159: XII IPA-3 | I159: 2013-07-24 | J159: 2013 | Y159: =+INPUT!$N$8 -> Farida Kustyarini,S.Si | Z159: =+INPUT!$O$8 -> Guru Madya Tk I
A160: 132 | B160: XII IPA-3 | I160: 2013-07-24 | J160: 2013 | Y160: =+INPUT!$N$8 -> Farida Kustyarini,S.Si | Z160: =+INPUT!$O$8 -> Guru Madya Tk I
A161: 133 | B161: XII IPA-3 | I161: 2013-07-24 | J161: 2013 | Y161: =+INPUT!$N$8 -> Farida Kustyarini,S.Si | Z161: =+INPUT!$O$8 -> Guru Madya Tk I
A162: 134 | B162: XII IPA-3 | I162: 2013-07-24 | J162: 2013 | Y162: =+INPUT!$N$8 -> Farida Kustyarini,S.Si | Z162: =+INPUT!$O$8 -> Guru Madya Tk I
A163: 135 | B163: XII IPA-3 | I163: 2013-07-24 | J163: 2013 | Y163: =+INPUT!$N$8 -> Farida Kustyarini,S.Si | Z163: =+INPUT!$O$8 -> Guru Madya Tk I
F164: =COUNTIF(F119:F163,"L") -> 1 | G164: Laki-laki | I164: 14 Th | J164: =+K164/$F$52*100% -> 0 | K164: =COUNTIF(K119:K163,"14") -> 0 | M164: BURUH HARIAN | N164: 0 | T164: SMP | U164: =COUNTIF(U119:U163,"SMP") -> 1 | V164: Islam | W164: =COUNTIF(W119:W163,"Islam") -> 1
F165: =COUNTIF(F119:F163,"P") -> 0 | G165: Perempuan | I165: 15 Th | J165: 0 | K165: =COUNTIF(K119:K163,"15") -> 0 | M165: PEG / KARY. SWASTA | N165: 0 | T165: MTs | U165: =COUNTIF(U119:U163,"MTs") -> 0 | V165: Katolik | W165: =COUNTIF(W119:W163,"Katolik") -> 0
F166: =SUM(F164:F165) -> 1 | G166: Total Siswa | I166: 16 Th | J166: 0 | K166: =COUNTIF(K119:K163,"16") -> 0 | M166: PNS | N166: 0 | T166: Lainnya | U166: =+U164+U165 -> 1 | V166: Protestan | W166: =COUNTIF(W119:W163,"Protestan") -> 0
I167: 17 Th | J167: 1 | K167: =COUNTIF(K119:K163,"17") -> 1 | M167: WIRASWASTA | N167: 0 | V167: Hindu | W167: =COUNTIF(W119:W163,"Hindu") -> 0
I168: 18 Th | J168: 0 | K168: =COUNTIF(K119:K163,"18") -> 0 | M168: KARY/ PEGAWAI .BUMN | N168: 0 | V168: Budha | W168: =COUNTIF(W119:W163,"Budha") -> 0
I169: 19 Th | J169: 0 | K169: =COUNTIF(K119:K163,"19") -> 0 | M169: KEPOLISIAN | N169: 0 | W169: =SUM(W164:W168) -> 1
I170: 20 Th | J170: 0 | K170: =COUNTIF(K119:K163,"20") -> 0 | M170: PENSIUNAN | N170: 0
I171: TOTAL | J171: 1 | K171: =SUM(K164:K170) -> 1 | M171: HONORER | N171: 0
M172: GURU | N172: 0
M173: TAK ADA DATA | N173: 0
M174: TOTAL DATA | N174: 0
B175: =MAX(A119:A163) -> 135
A176: =+$B$175+1 -> 136 | B176: =+INPUT!$M$9 -> XII IPS-1 | C176: AGI PURNAMA BELRA | D176: 1112155 | E176: 9962208731 | F176: L | G176: SERANG | H176: 1996-08-03 | I176: =TODAY() -> 2013-07-24 | J176: =+$J$3 -> 2013 | K176: =IF(H176="","",DATEDIF(H176,I176,"y")) -> 16 | L176: MARKORI | O176: JL. RAYA CILEGON, KM8 RT 03/01 NO.92 KRAMAT WATU SERDANG BANTEN | P176: DN-30-DI-0028232 | R176: 2-11-30-03-005-097-8 | T176: 2011 | U176: SMP | V176: 081316620512 | W176: Islam | Y176: =+INPUT!$N$9 -> Nanik Tri Handayani,S.Pd | Z176: =+INPUT!$O$9 -> Guru Madya | AD176: =+B176 -> XII IPS-1
A177: =+A176+1 -> 137 | B177: =IF(A177=0," ",+B176) -> XII IPS-1 | I177: =TODAY() -> 2013-07-24 | J177: 2013 | K177: =IF(H177="","",DATEDIF(H177,I177,"y")) ->  | Y177: =+INPUT!$N$9 -> Nanik Tri Handayani,S.Pd | Z177: =+INPUT!$O$9 -> Guru Madya
A178: 138 | B178: XII IPS-1 | I178: 2013-07-24 | J178: 2013 | Y178: =+INPUT!$N$9 -> Nanik Tri Handayani,S.Pd | Z178: =+INPUT!$O$9 -> Guru Madya
A179: 139 | B179: XII IPS-1 | I179: 2013-07-24 | J179: 2013 | Y179: =+INPUT!$N$9 -> Nanik Tri Handayani,S.Pd | Z179: =+INPUT!$O$9 -> Guru Madya
A180: 140 | B180: XII IPS-1 | I180: 2013-07-24 | J180: 2013 | Y180: =+INPUT!$N$9 -> Nanik Tri Handayani,S.Pd | Z180: =+INPUT!$O$9 -> Guru Madya
A181: 141 | B181: XII IPS-1 | I181: 2013-07-24 | J181: 2013 | Y181: =+INPUT!$N$9 -> Nanik Tri Handayani,S.Pd | Z181: =+INPUT!$O$9 -> Guru Madya
A182: 142 | B182: XII IPS-1 | I182: 2013-07-24 | J182: 2013 | Y182: =+INPUT!$N$9 -> Nanik Tri Handayani,S.Pd | Z182: =+INPUT!$O$9 -> Guru Madya
A183: 143 | B183: XII IPS-1 | I183: 2013-07-24 | J183: 2013 | Y183: =+INPUT!$N$9 -> Nanik Tri Handayani,S.Pd | Z183: =+INPUT!$O$9 -> Guru Madya
A184: 144 | B184: XII IPS-1 | I184: 2013-07-24 | J184: 2013 | Y184: =+INPUT!$N$9 -> Nanik Tri Handayani,S.Pd | Z184: =+INPUT!$O$9 -> Guru Madya
A185: 145 | B185: XII IPS-1 | I185: 2013-07-24 | J185: 2013 | Y185: =+INPUT!$N$9 -> Nanik Tri Handayani,S.Pd | Z185: =+INPUT!$O$9 -> Guru Madya
A186: 146 | B186: XII IPS-1 | I186: 2013-07-24 | J186: 2013 | Y186: =+INPUT!$N$9 -> Nanik Tri Handayani,S.Pd | Z186: =+INPUT!$O$9 -> Guru Madya
A187: 147 | B187: XII IPS-1 | I187: 2013-07-24 | J187: 2013 | Y187: =+INPUT!$N$9 -> Nanik Tri Handayani,S.Pd | Z187: =+INPUT!$O$9 -> Guru Madya
A188: 148 | B188: XII IPS-1 | I188: 2013-07-24 | J188: 2013 | Y188: =+INPUT!$N$9 -> Nanik Tri Handayani,S.Pd | Z188: =+INPUT!$O$9 -> Guru Madya
A189: 149 | B189: XII IPS-1 | I189: 2013-07-24 | J189: 2013 | Y189: =+INPUT!$N$9 -> Nanik Tri Handayani,S.Pd | Z189: =+INPUT!$O$9 -> Guru Madya
A190: 150 | B190: XII IPS-1 | I190: 2013-07-24 | J190: 2013 | Y190: =+INPUT!$N$9 -> Nanik Tri Handayani,S.Pd | Z190: =+INPUT!$O$9 -> Guru Madya
A191: 151 | B191: XII IPS-1 | I191: 2013-07-24 | J191: 2013 | Y191: =+INPUT!$N$9 -> Nanik Tri Handayani,S.Pd | Z191: =+INPUT!$O$9 -> Guru Madya
A192: 152 | B192: XII IPS-1 | I192: 2013-07-24 | J192: 2013 | Y192: =+INPUT!$N$9 -> Nanik Tri Handayani,S.Pd | Z192: =+INPUT!$O$9 -> Guru Madya
A193: 153 | B193: XII IPS-1 | I193: 2013-07-24 | J193: 2013 | Y193: =+INPUT!$N$9 -> Nanik Tri Handayani,S.Pd | Z193: =+INPUT!$O$9 -> Guru Madya
A194: 154 | B194: XII IPS-1 | I194: 2013-07-24 | J194: 2013 | Y194: =+INPUT!$N$9 -> Nanik Tri Handayani,S.Pd | Z194: =+INPUT!$O$9 -> Guru Madya
A195: 155 | B195: XII IPS-1 | I195: 2013-07-24 | J195: 2013 | Y195: =+INPUT!$N$9 -> Nanik Tri Handayani,S.Pd | Z195: =+INPUT!$O$9 -> Guru Madya
A196: 156 | B196: XII IPS-1 | I196: 2013-07-24 | J196: 2013 | Y196: =+INPUT!$N$9 -> Nanik Tri Handayani,S.Pd | Z196: =+INPUT!$O$9 -> Guru Madya
A197: 157 | B197: XII IPS-1 | I197: 2013-07-24 | J197: 2013 | Y197: =+INPUT!$N$9 -> Nanik Tri Handayani,S.Pd | Z197: =+INPUT!$O$9 -> Guru Madya
A198: 158 | B198: XII IPS-1 | I198: 2013-07-24 | J198: 2013 | Y198: =+INPUT!$N$9 -> Nanik Tri Handayani,S.Pd | Z198: =+INPUT!$O$9 -> Guru Madya
A199: 159 | B199: XII IPS-1 | I199: 2013-07-24 | J199: 2013 | Y199: =+INPUT!$N$9 -> Nanik Tri Handayani,S.Pd | Z199: =+INPUT!$O$9 -> Guru Madya
A200: 160 | B200: XII IPS-1 | I200: 2013-07-24 | J200: 2013 | Y200: =+INPUT!$N$9 -> Nanik Tri Handayani,S.Pd | Z200: =+INPUT!$O$9 -> Guru Madya
... 238 more rows

Sheet Absen-X
A1: NO URUT DATABASE | C1: DAFTAR HADIR SISWA
C2: =+MENU!$D$8 -> SMA NEGERI 5 CILEGON
C3: =CONCATENATE(MENU!$C$7," ",MENU!$D$7) -> TAHUN AJARAN 2013-2014
C4: KELAS | E4: =IF(ISBLANK(A8),"",VLOOKUP(A8,Data1,2)) -> X-1
C5: NO | D5: NIS | E5: NAMA | F5: L/P | G5: Tanggal
A8: =+'DataBase-XI'!A5 -> 1 | B8: =IF(ISBLANK(A8),"",VLOOKUP(A8,Data1,2)) -> X-1 | C8: 1 | D8: =IF(ISBLANK(A8),"",VLOOKUP(A8,Data1,5)) -> 9970456061 | E8: =IF(ISBLANK(A8),"",VLOOKUP(A8,Data1,3)) -> ALVIRA | F8: =IF(ISBLANK(A8),"",VLOOKUP(A8,Data1,6)) -> P
A9: 2 | B9: X-1 | C9: 2 | D9: 0 | E9: 0 | F9: 0
A10: 3 | B10: X-1 | C10: 3 | D10: 0 | E10: 0 | F10: 0
A11: 4 | B11: X-1 | C11: 4 | D11: 0 | E11: 0 | F11: 0
A12: 5 | B12: X-1 | C12: 5 | D12: 0 | E12: 0 | F12: 0
A13: 6 | B13: X-1 | C13: 6 | D13: 0 | E13: 0 | F13: 0
A14: 7 | B14: X-1 | C14: 7 | D14: 0 | E14: 0 | F14: 0
A15: 8 | B15: X-1 | C15: 8 | D15: 0 | E15: 0 | F15: 0
A16: 9 | B16: X-1 | C16: 9 | D16: 0 | E16: 0 | F16: 0
A17: 10 | B17: X-1 | C17: 10 | D17: 0 | E17: 0 | F17: 0
A18: 11 | B18: X-1 | C18: 11 | D18: 0 | E18: 0 | F18: 0
A19: 12 | B19: X-1 | C19: 12 | D19: 0 | E19: 0 | F19: 0
A20: 13 | B20: X-1 | C20: 13 | D20: 0 | E20: 0 | F20: 0
A21: 14 | B21: X-1 | C21: 14 | D21: 0 | E21: 0 | F21: 0
A22: 15 | B22: X-1 | C22: 15 | D22: 0 | E22: 0 | F22: 0
A23: 16 | B23: X-1 | C23: 16 | D23: 0 | E23: 0 | F23: 0
A24: 17 | B24: X-1 | C24: 17 | D24: 0 | E24: 0 | F24: 0
A25: 18 | B25: X-1 | C25: 18 | D25: 0 | E25: 0 | F25: 0
A26: 19 | B26: X-1 | C26: 19 | D26: 0 | E26: 0 | F26: 0
A27: 20 | B27: X-1 | C27: 20 | D27: 0 | E27: 0 | F27: 0
A28: 21 | B28: X-1 | C28: 21 | D28: 0 | E28: 0 | F28: 0
A29: 22 | B29: X-1 | C29: 22 | D29: 0 | E29: 0 | F29: 0
A30: 23 | B30: X-1 | C30: 23 | D30: 0 | E30: 0 | F30: 0
A31: 24 | B31: X-1 | C31: 24 | D31: 0 | E31: 0 | F31: 0
A32: 25 | B32: X-1 | C32: 25 | D32: 0 | E32: 0 | F32: 0
A33: 26 | B33: X-1 | C33: 26 | D33: 0 | E33: 0 | F33: 0
A34: 27 | B34: X-1 | C34: 27 | D34: 0 | E34: 0 | F34: 0
A35: 28 | B35: X-1 | C35: 28 | D35: 0 | E35: 0 | F35: 0
A36: 29 | B36: X-1 | C36: 29 | D36: 0 | E36: 0 | F36: 0
A37: 30 | B37: X-1 | C37: 30 | D37: 0 | E37: 0 | F37: 0
A38: 31 | B38: X-1 | C38: 31 | D38: 0 | E38: 0 | F38: 0
A39: 32 | B39: X-1 | C39: 32 | D39: 0 | E39: 0 | F39: 0
A40: 33 | B40: X-1 | C40: 33 | D40: 0 | E40: 0 | F40: 0
A41: 34 | B41: X-1 | C41: 34 | D41: 0 | E41: 0 | F41: 0
A42: 35 | B42: X-1 | C42: 35 | D42: 0 | E42: 0 | F42: 0
A43: 36 | B43: X-1 | C43: 36 | D43: 0 | E43: 0 | F43: 0
A44: 37 | B44: X-1 | C44: 37 | D44: 0 | E44: 0 | F44: 0
A45: 38 | B45: X-1 | C45: 38 | D45: 0 | E45: 0 | F45: 0
A46: 39 | B46: X-1 | C46: 39 | D46: 0 | E46: 0 | F46: 0
A47: 40 | B47: X-1 | C47: 40
A49: =MAX(A8:A47) -> 40 | E49: Jumlah Laki-laki | F49: =COUNTIF(F8:F47,"L") -> 0 | U49: Cilegon,…………………………….20
E50: Jumlah Perempuan | F50: =COUNTIF(F8:F47,"P") -> 1 | U50: Guru Bidang Studi
E51: Jumlah Total | F51: =SUM(F49:F50) -> 1
U57: (……………………...……….)
U58: NIP:…………………………………….
C69: DAFTAR HADIR SISWA
C70: =+MENU!$D$8 -> SMA NEGERI 5 CILEGON
C71: =CONCATENATE(MENU!$C$7," ",MENU!$D$7) -> TAHUN AJARAN 2013-2014
C72: KELAS | E72: =IF(ISBLANK(A76),"",VLOOKUP(A76,Data1,2)) -> X-2
C73: NO | D73: NIS | E73: NAMA | F73: L/P | G73: Tanggal
A76: =+'DataBase-XI'!A62 -> 46 | B76: =IF(ISBLANK(A76),"",VLOOKUP(A76,Data1,2)) -> X-2 | C76: 1 | D76: =IF(ISBLANK(A76),"",VLOOKUP(A76,Data1,5)) -> 9980450357 | E76: =IF(ISBLANK(A76),"",VLOOKUP(A76,Data1,3)) -> ADITYA YUDISTIRA | F76: =IF(ISBLANK(A76),"",VLOOKUP(A76,Data1,6)) -> L
A77: =+A76+1 -> 47 | B77: X-2 | C77: 2 | D77: 0 | E77: 0 | F77: 0
A78: 48 | B78: X-2 | C78: 3 | D78: 0 | E78: 0 | F78: 0
A79: 49 | B79: X-2 | C79: 4 | D79: 0 | E79: 0 | F79: 0
A80: 50 | B80: X-2 | C80: 5 | D80: 0 | E80: 0 | F80: 0
A81: 51 | B81: X-2 | C81: 6 | D81: 0 | E81: 0 | F81: 0
A82: 52 | B82: X-2 | C82: 7 | D82: 0 | E82: 0 | F82: 0
A83: 53 | B83: X-2 | C83: 8 | D83: 0 | E83: 0 | F83: 0
A84: 54 | B84: X-2 | C84: 9 | D84: 0 | E84: 0 | F84: 0
A85: 55 | B85: X-2 | C85: 10 | D85: 0 | E85: 0 | F85: 0
A86: 56 | B86: X-2 | C86: 11 | D86: 0 | E86: 0 | F86: 0
A87: 57 | B87: X-2 | C87: 12 | D87: 0 | E87: 0 | F87: 0
A88: 58 | B88: X-2 | C88: 13 | D88: 0 | E88: 0 | F88: 0
A89: 59 | B89: X-2 | C89: 14 | D89: 0 | E89: 0 | F89: 0
A90: 60 | B90: X-2 | C90: 15 | D90: 0 | E90: 0 | F90: 0
A91: 61 | B91: X-2 | C91: 16 | D91: 0 | E91: 0 | F91: 0
A92: 62 | B92: X-2 | C92: 17 | D92: 0 | E92: 0 | F92: 0
A93: 63 | B93: X-2 | C93: 18 | D93: 0 | E93: 0 | F93: 0
A94: 64 | B94: X-2 | C94: 19 | D94: 0 | E94: 0 | F94: 0
A95: 65 | B95: X-2 | C95: 20 | D95: 0 | E95: 0 | F95: 0
A96: 66 | B96: X-2 | C96: 21 | D96: 0 | E96: 0 | F96: 0
A97: 67 | B97: X-2 | C97: 22 | D97: 0 | E97: 0 | F97: 0
A98: 68 | B98: X-2 | C98: 23 | D98: 0 | E98: 0 | F98: 0
A99: 69 | B99: X-2 | C99: 24 | D99: 0 | E99: 0 | F99: 0
A100: 70 | B100: X-2 | C100: 25 | D100: 0 | E100: 0 | F100: 0
A101: 71 | B101: X-2 | C101: 26 | D101: 0 | E101: 0 | F101: 0
A102: 72 | B102: X-2 | C102: 27 | D102: 0 | E102: 0 | F102: 0
A103: 73 | B103: X-2 | C103: 28 | D103: 0 | E103: 0 | F103: 0
A104: 74 | B104: X-2 | C104: 29 | D104: 0 | E104: 0 | F104: 0
A105: 75 | B105: X-2 | C105: 30 | D105: 0 | E105: 0 | F105: 0
A106: 76 | B106: X-2 | C106: 31 | D106: 0 | E106: 0 | F106: 0
A107: 77 | B107: X-2 | C107: 32 | D107: 0 | E107: 0 | F107: 0
A108: 78 | B108: X-2 | C108: 33 | D108: 0 | E108: 0 | F108: 0
A109: 79 | B109: X-2 | C109: 34 | D109: 0 | E109: 0 | F109: 0
A110: 80 | B110: X-2 | C110: 35 | D110: 0 | E110: 0 | F110: 0
A111: 81 | B111: X-2 | C111: 36 | D111: 0 | E111: 0 | F111: 0
A112: 82 | B112: X-2 | C112: 37 | D112: 0 | E112: 0 | F112: 0
A113: 83 | B113: X-2 | C113: 38 | D113: 0 | E113: 0 | F113: 0
A114: 84 | B114: X-2 | C114: 39 | D114: 0 | E114: 0 | F114: 0
A115: 85 | B115: X-2 | C115: 40 | D115: 0 | E115: 0 | F115: 0
A117: =MAX(A76:A113) -> 83 | E117: Jumlah Laki-laki | F117: =COUNTIF(F76:F115,"L") -> 1 | U117: Cilegon,…………………………….20
E118: Jumlah Perempuan | F118: =COUNTIF(F76:F115,"P") -> 0 | U118: Guru Bidang Studi
E119: Jumlah Total | F119: =SUM(F117:F118) -> 1
U123: (……………………...……….)
U124: NIP:…………………………………….
C132: DAFTAR HADIR SISWA
C133: =+MENU!$D$8 -> SMA NEGERI 5 CILEGON
C134: =CONCATENATE(MENU!$C$7," ",MENU!$D$7) -> TAHUN AJARAN 2013-2014
C135: KELAS | E135: =IF(ISBLANK(A139),"",VLOOKUP(A139,Data1,2)) -> X-3
C136: NO | D136: NIS | E136: NAMA | F136: L/P | G136: Tanggal
A139: =+'DataBase-XI'!A119 -> 91 | B139: =IF(ISBLANK(A139),"",VLOOKUP(A139,Data1,2)) -> X-3 | C139: 1 | D139: =IF(ISBLANK(A139),"",VLOOKUP(A139,Data1,5)) -> 9988413542 | E139: =IF(ISBLANK(A139),"",VLOOKUP(A139,Data1,3)) -> ADE SRI JUA ASIH | F139: =IF(ISBLANK(A139),"",VLOOKUP(A139,Data1,6)) -> P
A140: =+A139+1 -> 92 | B140: X-3 | C140: 2 | D140: 0 | E140: 0 | F140: 0
A141: 93 | B141: X-3 | C141: 3 | D141: 0 | E141: 0 | F141: 0
A142: 94 | B142: X-3 | C142: 4 | D142: 0 | E142: 0 | F142: 0
A143: 95 | B143: X-3 | C143: 5 | D143: 0 | E143: 0 | F143: 0
A144: 96 | B144: X-3 | C144: 6 | D144: 0 | E144: 0 | F144: 0
A145: 97 | B145: X-3 | C145: 7 | D145: 0 | E145: 0 | F145: 0
A146: 98 | B146: X-3 | C146: 8 | D146: 0 | E146: 0 | F146: 0
A147: 99 | B147: X-3 | C147: 9 | D147: 0 | E147: 0 | F147: 0
A148: 100 | B148: X-3 | C148: 10 | D148: 0 | E148: 0 | F148: 0
A149: 101 | B149: X-3 | C149: 11 | D149: 0 | E149: 0 | F149: 0
A150: 102 | B150: X-3 | C150: 12 | D150: 0 | E150: 0 | F150: 0
A151: 103 | B151: X-3 | C151: 13 | D151: 0 | E151: 0 | F151: 0
A152: 104 | B152: X-3 | C152: 14 | D152: 0 | E152: 0 | F152: 0
A153: 105 | B153: X-3 | C153: 15 | D153: 0 | E153: 0 | F153: 0
A154: 106 | B154: X-3 | C154: 16 | D154: 0 | E154: 0 | F154: 0
A155: 107 | B155: X-3 | C155: 17 | D155: 0 | E155: 0 | F155: 0
A156: 108 | B156: X-3 | C156: 18 | D156: 0 | E156: 0 | F156: 0
A157: 109 | B157: X-3 | C157: 19 | D157: 0 | E157: 0 | F157: 0
A158: 110 | B158: X-3 | C158: 20 | D158: 0 | E158: 0 | F158: 0
A159: 111 | B159: X-3 | C159: 21 | D159: 0 | E159: 0 | F159: 0
A160: 112 | B160: X-3 | C160: 22 | D160: 0 | E160: 0 | F160: 0
A161: 113 | B161: X-3 | C161: 23 | D161: 0 | E161: 0 | F161: 0
A162: 114 | B162: X-3 | C162: 24 | D162: 0 | E162: 0 | F162: 0
A163: 115 | B163: X-3 | C163: 25 | D163: 0 | E163: 0 | F163: 0
A164: 116 | B164: X-3 | C164: 26 | D164: 0 | E164: 0 | F164: 0
A165: 117 | B165: X-3 | C165: 27 | D165: 0 | E165: 0 | F165: 0
A166: 118 | B166: X-3 | C166: 28 | D166: 0 | E166: 0 | F166: 0
A167: 119 | B167: X-3 | C167: 29 | D167: 0 | E167: 0 | F167: 0
A168: 120 | B168: X-3 | C168: 30 | D168: 0 | E168: 0 | F168: 0
A169: 121 | B169: X-3 | C169: 31 | D169: 0 | E169: 0 | F169: 0
A170: 122 | B170: X-3 | C170: 32 | D170: 0 | E170: 0 | F170: 0
A171: 123 | B171: X-3 | C171: 33 | D171: 0 | E171: 0 | F171: 0
A172: 124 | B172: X-3 | C172: 34 | D172: 0 | E172: 0 | F172: 0
A173: 125 | B173: X-3 | C173: 35 | D173: 0 | E173: 0 | F173: 0
A174: 126 | B174: X-3 | C174: 36 | D174: 0 | E174: 0 | F174: 0
A175: 127 | B175: X-3 | C175: 37 | D175: 0 | E175: 0 | F175: 0
A176: 128 | B176: X-3 | C176: 38 | D176: 0 | E176: 0 | F176: 0
A177: 129 | B177: X-3 | C177: 39 | D177: 0 | E177: 0 | F177: 0
A178: 130 | B178: X-3 | C178: 40 | D178: 0 | E178: 0 | F178: 0
A180: =MAX(A139:A177) -> 129 | E180: Jumlah Laki-laki | F180: =COUNTIF(F139:F178,"L") -> 0 | U180: Cilegon,…………………………….20
E181: Jumlah Perempuan | F181: =COUNTIF(F139:F178,"P") -> 1 | U181: Guru Bidang Studi
E182: Jumlah Total | F182: =SUM(F180:F181) -> 1
U187: (……………………...……….)
U188: NIP:…………………………………….
C199: DAFTAR HADIR SISWA
C200: =+MENU!$D$8 -> SMA NEGERI 5 CILEGON
C201: =CONCATENATE(MENU!$C$7," ",MENU!$D$7) -> TAHUN AJARAN 2013-2014
C202: KELAS | E202: =IF(ISBLANK(A206),"",VLOOKUP(A206,Data1,2)) -> X-4
C203: NO | D203: NIS | E203: NAMA | F203: L/P | G203: Tanggal
A206: =+'DataBase-XI'!A176 -> 136 | B206: =IF(ISBLANK(A206),"",VLOOKUP(A206,Data1,2)) -> X-4 | C206: 1 | D206: =IF(ISBLANK(A206),"",VLOOKUP(A206,Data1,5)) -> 9980450221 | E206: =IF(ISBLANK(A206),"",VLOOKUP(A206,Data1,3)) -> ADE ISWANDI | F206: =IF(ISBLANK(A206),"",VLOOKUP(A206,Data1,6)) -> L
A207: =+A206+1 -> 137 | B207: X-4 | C207: 2 | D207: 0 | E207: 0 | F207: 0
A208: 138 | B208: X-4 | C208: 3 | D208: 0 | E208: 0 | F208: 0
A209: 139 | B209: X-4 | C209: 4 | D209: 0 | E209: 0 | F209: 0
A210: 140 | B210: X-4 | C210: 5 | D210: 0 | E210: 0 | F210: 0
A211: 141 | B211: X-4 | C211: 6 | D211: 0 | E211: 0 | F211: 0
A212: 142 | B212: X-4 | C212: 7 | D212: 0 | E212: 0 | F212: 0
A213: 143 | B213: X-4 | C213: 8 | D213: 0 | E213: 0 | F213: 0
A214: 144 | B214: X-4 | C214: 9 | D214: 0 | E214: 0 | F214: 0
A215: 145 | B215: X-4 | C215: 10 | D215: 0 | E215: 0 | F215: 0
A216: 146 | B216: X-4 | C216: 11 | D216: 0 | E216: 0 | F216: 0
A217: 147 | B217: X-4 | C217: 12 | D217: 0 | E217: 0 | F217: 0
A218: 148 | B218: X-4 | C218: 13 | D218: 0 | E218: 0 | F218: 0
A219: 149 | B219: X-4 | C219: 14 | D219: 0 | E219: 0 | F219: 0
A220: 150 | B220: X-4 | C220: 15 | D220: 0 | E220: 0 | F220: 0
A221: 151 | B221: X-4 | C221: 16 | D221: 0 | E221: 0 | F221: 0
A222: 152 | B222: X-4 | C222: 17 | D222: 0 | E222: 0 | F222: 0
A223: 153 | B223: X-4 | C223: 18 | D223: 0 | E223: 0 | F223: 0
A224: 154 | B224: X-4 | C224: 19 | D224: 0 | E224: 0 | F224: 0
A225: 155 | B225: X-4 | C225: 20 | D225: 0 | E225: 0 | F225: 0
A226: 156 | B226: X-4 | C226: 21 | D226: 0 | E226: 0 | F226: 0
A227: 157 | B227: X-4 | C227: 22 | D227: 0 | E227: 0 | F227: 0
A228: 158 | B228: X-4 | C228: 23 | D228: 0 | E228: 0 | F228: 0
A229: 159 | B229: X-4 | C229: 24 | D229: 0 | E229: 0 | F229: 0
A230: 160 | B230: X-4 | C230: 25 | D230: 0 | E230: 0 | F230: 0
A231: 161 | B231: X-4 | C231: 26 | D231: 0 | E231: 0 | F231: 0
A232: 162 | B232: X-4 | C232: 27 | D232: 0 | E232: 0 | F232: 0
A233: 163 | B233: X-4 | C233: 28 | D233: 0 | E233: 0 | F233: 0
A234: 164 | B234: X-4 | C234: 29 | D234: 0 | E234: 0 | F234: 0
A235: 165 | B235: X-4 | C235: 30 | D235: 0 | E235: 0 | F235: 0
A236: 166 | B236: X-4 | C236: 31 | D236: 0 | E236: 0 | F236: 0
A237: 167 | B237: X-4 | C237: 32 | D237: 0 | E237: 0 | F237: 0
A238: 168 | B238: X-4 | C238: 33 | D238: 0 | E238: 0 | F238: 0
A239: 169 | B239: X-4 | C239: 34 | D239: 0 | E239: 0 | F239: 0
A240: 170 | B240: X-4 | C240: 35 | D240: 0 | E240: 0 | F240: 0
A241: 171 | B241: X-4 | C241: 36 | D241: 0 | E241: 0 | F241: 0
A242: 172 | B242: X-4 | C242: 37 | D242: 0 | E242: 0 | F242: 0
A243: 173 | B243: X-4 | C243: 38 | D243: 0 | E243: 0 | F243: 0
A244: 174 | B244: X-4 | C244: 39 | D244: 0 | E244: 0 | F244: 0
A245: 175 | B245: X-4 | C245: 40 | D245: 0 | E245: 0 | F245: 0
A247: =MAX(A206:A244) -> 174 | E247: Jumlah Laki-laki | F247: =COUNTIF(F206:F245,"L") -> 1 | V247: Cilegon,…………………………….20
E248: Jumlah Perempuan | F248: =COUNTIF(F206:F245,"P") -> 0 | V248: Guru Bidang Studi
E249: Jumlah Total | F249: =SUM(F247:F248) -> 1
V253: (……………………...……….)
V254: NIP:…………………………………….
... 100 more rows

Sheet Raport-X
A1: NO URUT DATABASE | C1: DAFTAR NILAI SISWA
C2: =+MENU!$D$8 -> SMA NEGERI 5 CILEGON
C3: =CONCATENATE(MENU!$C$7," ",MENU!$D$7) -> TAHUN AJARAN 2013-2014
C4: KELAS | E4: =IF(ISBLANK(A8),"",VLOOKUP(A8,Data1,2)) -> X-1
C5: NO | D5: NIS | E5: NAMA | F5: L/P | G5: NILAI RAPORT | J5: KET
G6: Kognitif | H6: Afektif | I6: Psikomotor
A8: =+'DataBase-XI'!A5 -> 1 | B8: =IF(ISBLANK(A8),"",VLOOKUP(A8,Data1,2)) -> X-1 | C8: 1 | D8: =IF(ISBLANK(A8),"",VLOOKUP(A8,Data1,5)) -> 9970456061 | E8: =IF(ISBLANK(A8),"",VLOOKUP(A8,Data1,3)) -> ALVIRA | F8: =IF(ISBLANK(A8),"",VLOOKUP(A8,Data1,6)) -> P
A9: 2 | B9: X-1 | C9: 2 | D9: 0 | E9: 0 | F9: 0
A10: 3 | B10: X-1 | C10: 3 | D10: 0 | E10: 0 | F10: 0
A11: 4 | B11: X-1 | C11: 4 | D11: 0 | E11: 0 | F11: 0
A12: 5 | B12: X-1 | C12: 5 | D12: 0 | E12: 0 | F12: 0
A13: 6 | B13: X-1 | C13: 6 | D13: 0 | E13: 0 | F13: 0
A14: 7 | B14: X-1 | C14: 7 | D14: 0 | E14: 0 | F14: 0
A15: 8 | B15: X-1 | C15: 8 | D15: 0 | E15: 0 | F15: 0
A16: 9 | B16: X-1 | C16: 9 | D16: 0 | E16: 0 | F16: 0
A17: 10 | B17: X-1 | C17: 10 | D17: 0 | E17: 0 | F17: 0
A18: 11 | B18: X-1 | C18: 11 | D18: 0 | E18: 0 | F18: 0
A19: 12 | B19: X-1 | C19: 12 | D19: 0 | E19: 0 | F19: 0
A20: 13 | B20: X-1 | C20: 13 | D20: 0 | E20: 0 | F20: 0
A21: 14 | B21: X-1 | C21: 14 | D21: 0 | E21: 0 | F21: 0
A22: 15 | B22: X-1 | C22: 15 | D22: 0 | E22: 0 | F22: 0
A23: 16 | B23: X-1 | C23: 16 | D23: 0 | E23: 0 | F23: 0
A24: 17 | B24: X-1 | C24: 17 | D24: 0 | E24: 0 | F24: 0
A25: 18 | B25: X-1 | C25: 18 | D25: 0 | E25: 0 | F25: 0
A26: 19 | B26: X-1 | C26: 19 | D26: 0 | E26: 0 | F26: 0
A27: 20 | B27: X-1 | C27: 20 | D27: 0 | E27: 0 | F27: 0
A28: 21 | B28: X-1 | C28: 21 | D28: 0 | E28: 0 | F28: 0
A29: 22 | B29: X-1 | C29: 22 | D29: 0 | E29: 0 | F29: 0
A30: 23 | B30: X-1 | C30: 23 | D30: 0 | E30: 0 | F30: 0
A31: 24 | B31: X-1 | C31: 24 | D31: 0 | E31: 0 | F31: 0
A32: 25 | B32: X-1 | C32: 25 | D32: 0 | E32: 0 | F32: 0
A33: 26 | B33: X-1 | C33: 26 | D33: 0 | E33: 0 | F33: 0
A34: 27 | B34: X-1 | C34: 27 | D34: 0 | E34: 0 | F34: 0
A35: 28 | B35: X-1 | C35: 28 | D35: 0 | E35: 0 | F35: 0
A36: 29 | B36: X-1 | C36: 29 | D36: 0 | E36: 0 | F36: 0
A37: 30 | B37: X-1 | C37: 30 | D37: 0 | E37: 0 | F37: 0
A38: 31 | B38: X-1 | C38: 31 | D38: 0 | E38: 0 | F38: 0
A39: 32 | B39: X-1 | C39: 32 | D39: 0 | E39: 0 | F39: 0
A40: 33 | B40: X-1 | C40: 33 | D40: 0 | E40: 0 | F40: 0
A41: 34 | B41: X-1 | C41: 34 | D41: 0 | E41: 0 | F41: 0
A42: 35 | B42: X-1 | C42: 35 | D42: 0 | E42: 0 | F42: 0
A43: 36 | B43: X-1 | C43: 36 | D43: 0 | E43: 0 | F43: 0
A44: 37 | B44: X-1 | C44: 37 | D44: 0 | E44: 0 | F44: 0
A45: 38 | B45: X-1 | C45: 38 | D45: 0 | E45: 0 | F45: 0
A46: 39 | B46: X-1 | C46: 39 | D46: 0 | E46: 0 | F46: 0
A47: 40 | B47: X-1 | C47: 40
A49: =MAX(A8:A47) -> 40 | E49: Jumlah Laki-laki | F49: =COUNTIF(F8:F47,"L") -> 0
E50: Jumlah Perempuan | F50: =COUNTIF(F8:F47,"P") -> 1
E51: Jumlah Total | F51: =SUM(F49:F50) -> 1
C61: DAFTAR NILAI SISWA
C62: =+MENU!$D$8 -> SMA NEGERI 5 CILEGON
C63: =CONCATENATE(MENU!$C$7," ",MENU!$D$7) -> TAHUN AJARAN 2013-2014
C64: KELAS | E64: =IF(ISBLANK(A68),"",VLOOKUP(A68,Data1,2)) -> X-2
C65: NO | D65: NIS | E65: NAMA | F65: L/P | G65: NILAI RAPORT | J65: KET
G66: Kognitif | H66: Afektif | I66: Psikomotor
A68: =+'DataBase-XI'!A62 -> 46 | B68: =IF(ISBLANK(A68),"",VLOOKUP(A68,Data1,2)) -> X-2 | C68: 1 | D68: =IF(ISBLANK(A68),"",VLOOKUP(A68,Data1,5)) -> 9980450357 | E68: =IF(ISBLANK(A68),"",VLOOKUP(A68,Data1,3)) -> ADITYA YUDISTIRA | F68: =IF(ISBLANK(A68),"",VLOOKUP(A68,Data1,6)) -> L
A69: =+A68+1 -> 47 | B69: X-2 | C69: 2 | D69: 0 | E69: 0 | F69: 0
A70: 48 | B70: X-2 | C70: 3 | D70: 0 | E70: 0 | F70: 0
A71: 49 | B71: X-2 | C71: 4 | D71: 0 | E71: 0 | F71: 0
A72: 50 | B72: X-2 | C72: 5 | D72: 0 | E72: 0 | F72: 0
A73: 51 | B73: X-2 | C73: 6 | D73: 0 | E73: 0 | F73: 0
A74: 52 | B74: X-2 | C74: 7 | D74: 0 | E74: 0 | F74: 0
A75: 53 | B75: X-2 | C75: 8 | D75: 0 | E75: 0 | F75: 0
A76: 54 | B76: X-2 | C76: 9 | D76: 0 | E76: 0 | F76: 0
A77: 55 | B77: X-2 | C77: 10 | D77: 0 | E77: 0 | F77: 0
A78: 56 | B78: X-2 | C78: 11 | D78: 0 | E78: 0 | F78: 0
A79: 57 | B79: X-2 | C79: 12 | D79: 0 | E79: 0 | F79: 0
A80: 58 | B80: X-2 | C80: 13 | D80: 0 | E80: 0 | F80: 0
A81: 59 | B81: X-2 | C81: 14 | D81: 0 | E81: 0 | F81: 0
A82: 60 | B82: X-2 | C82: 15 | D82: 0 | E82: 0 | F82: 0
A83: 61 | B83: X-2 | C83: 16 | D83: 0 | E83: 0 | F83: 0
A84: 62 | B84: X-2 | C84: 17 | D84: 0 | E84: 0 | F84: 0
A85: 63 | B85: X-2 | C85: 18 | D85: 0 | E85: 0 | F85: 0
A86: 64 | B86: X-2 | C86: 19 | D86: 0 | E86: 0 | F86: 0
A87: 65 | B87: X-2 | C87: 20 | D87: 0 | E87: 0 | F87: 0
A88: 66 | B88: X-2 | C88: 21 | D88: 0 | E88: 0 | F88: 0
A89: 67 | B89: X-2 | C89: 22 | D89: 0 | E89: 0 | F89: 0
A90: 68 | B90: X-2 | C90: 23 | D90: 0 | E90: 0 | F90: 0
A91: 69 | B91: X-2 | C91: 24 | D91: 0 | E91: 0 | F91: 0
A92: 70 | B92: X-2 | C92: 25 | D92: 0 | E92: 0 | F92: 0
A93: 71 | B93: X-2 | C93: 26 | D93: 0 | E93: 0 | F93: 0
A94: 72 | B94: X-2 | C94: 27 | D94: 0 | E94: 0 | F94: 0
A95: 73 | B95: X-2 | C95: 28 | D95: 0 | E95: 0 | F95: 0
A96: 74 | B96: X-2 | C96: 29 | D96: 0 | E96: 0 | F96: 0
A97: 75 | B97: X-2 | C97: 30 | D97: 0 | E97: 0 | F97: 0
A98: 76 | B98: X-2 | C98: 31 | D98: 0 | E98: 0 | F98: 0
A99: 77 | B99: X-2 | C99: 32 | D99: 0 | E99: 0 | F99: 0
A100: 78 | B100: X-2 | C100: 33 | D100: 0 | E100: 0 | F100: 0
A101: 79 | B101: X-2 | C101: 34 | D101: 0 | E101: 0 | F101: 0
A102: 80 | B102: X-2 | C102: 35 | D102: 0 | E102: 0 | F102: 0
A103: 81 | B103: X-2 | C103: 36 | D103: 0 | E103: 0 | F103: 0
A104: 82 | B104: X-2 | C104: 37 | D104: 0 | E104: 0 | F104: 0
A105: 83 | B105: X-2 | C105: 38 | D105: 0 | E105: 0 | F105: 0
A106: 84 | B106: X-2 | C106: 39 | D106: 0 | E106: 0 | F106: 0
A107: 85 | B107: X-2 | C107: 40 | D107: 0 | E107: 0 | F107: 0
A109: =MAX(A68:A105) -> 83 | E109: Jumlah Laki-laki | F109: =COUNTIF(F68:F107,"L") -> 1
E110: Jumlah Perempuan | F110: =COUNTIF(F68:F107,"P") -> 0
E111: Jumlah Total | F111: =SUM(F109:F110) -> 1
C119: DAFTAR NILAI SISWA
C120: =+MENU!$D$8 -> SMA NEGERI 5 CILEGON
C121: =CONCATENATE(MENU!$C$7," ",MENU!$D$7) -> TAHUN AJARAN 2013-2014
C122: KELAS | E122: =IF(ISBLANK(A126),"",VLOOKUP(A126,Data1,2)) -> X-3
C123: NO | D123: NIS | E123: NAMA | F123: L/P | G123: NILAI RAPORT | J123: KET
G124: Kognitif | H124: Afektif | I124: Psikomotor
A126: =+'DataBase-XI'!A119 -> 91 | B126: =IF(ISBLANK(A126),"",VLOOKUP(A126,Data1,2)) -> X-3 | C126: 1 | D126: =IF(ISBLANK(A126),"",VLOOKUP(A126,Data1,5)) -> 9988413542 | E126: =IF(ISBLANK(A126),"",VLOOKUP(A126,Data1,3)) -> ADE SRI JUA ASIH | F126: =IF(ISBLANK(A126),"",VLOOKUP(A126,Data1,6)) -> P
A127: =+A126+1 -> 92 | B127: X-3 | C127: 2 | D127: 0 | E127: 0 | F127: 0
A128: 93 | B128: X-3 | C128: 3 | D128: 0 | E128: 0 | F128: 0
A129: 94 | B129: X-3 | C129: 4 | D129: 0 | E129: 0 | F129: 0
A130: 95 | B130: X-3 | C130: 5 | D130: 0 | E130: 0 | F130: 0
A131: 96 | B131: X-3 | C131: 6 | D131: 0 | E131: 0 | F131: 0
A132: 97 | B132: X-3 | C132: 7 | D132: 0 | E132: 0 | F132: 0
A133: 98 | B133: X-3 | C133: 8 | D133: 0 | E133: 0 | F133: 0
A134: 99 | B134: X-3 | C134: 9 | D134: 0 | E134: 0 | F134: 0
A135: 100 | B135: X-3 | C135: 10 | D135: 0 | E135: 0 | F135: 0
A136: 101 | B136: X-3 | C136: 11 | D136: 0 | E136: 0 | F136: 0
A137: 102 | B137: X-3 | C137: 12 | D137: 0 | E137: 0 | F137: 0
A138: 103 | B138: X-3 | C138: 13 | D138: 0 | E138: 0 | F138: 0
A139: 104 | B139: X-3 | C139: 14 | D139: 0 | E139: 0 | F139: 0
A140: 105 | B140: X-3 | C140: 15 | D140: 0 | E140: 0 | F140: 0
A141: 106 | B141: X-3 | C141: 16 | D141: 0 | E141: 0 | F141: 0
A142: 107 | B142: X-3 | C142: 17 | D142: 0 | E142: 0 | F142: 0
A143: 108 | B143: X-3 | C143: 18 | D143: 0 | E143: 0 | F143: 0
A144: 109 | B144: X-3 | C144: 19 | D144: 0 | E144: 0 | F144: 0
A145: 110 | B145: X-3 | C145: 20 | D145: 0 | E145: 0 | F145: 0
A146: 111 | B146: X-3 | C146: 21 | D146: 0 | E146: 0 | F146: 0
A147: 112 | B147: X-3 | C147: 22 | D147: 0 | E147: 0 | F147: 0
A148: 113 | B148: X-3 | C148: 23 | D148: 0 | E148: 0 | F148: 0
A149: 114 | B149: X-3 | C149: 24 | D149: 0 | E149: 0 | F149: 0
A150: 115 | B150: X-3 | C150: 25 | D150: 0 | E150: 0 | F150: 0
A151: 116 | B151: X-3 | C151: 26 | D151: 0 | E151: 0 | F151: 0
A152: 117 | B152: X-3 | C152: 27 | D152: 0 | E152: 0 | F152: 0
A153: 118 | B153: X-3 | C153: 28 | D153: 0 | E153: 0 | F153: 0
A154: 119 | B154: X-3 | C154: 29 | D154: 0 | E154: 0 | F154: 0
A155: 120 | B155: X-3 | C155: 30 | D155: 0 | E155: 0 | F155: 0
A156: 121 | B156: X-3 | C156: 31 | D156: 0 | E156: 0 | F156: 0
A157: 122 | B157: X-3 | C157: 32 | D157: 0 | E157: 0 | F157: 0
A158: 123 | B158: X-3 | C158: 33 | D158: 0 | E158: 0 | F158: 0
A159: 124 | B159: X-3 | C159: 34 | D159: 0 | E159: 0 | F159: 0
A160: 125 | B160: X-3 | C160: 35 | D160: 0 | E160: 0 | F160: 0
A161: 126 | B161: X-3 | C161: 36 | D161: 0 | E161: 0 | F161: 0
A162: 127 | B162: X-3 | C162: 37 | D162: 0 | E162: 0 | F162: 0
A163: 128 | B163: X-3 | C163: 38 | D163: 0 | E163: 0 | F163: 0
A164: 129 | B164: X-3 | C164: 39 | D164: 0 | E164: 0 | F164: 0
A165: 130 | B165: X-3 | C165: 40 | D165: 0 | E165: 0 | F165: 0
A167: =MAX(A126:A164) -> 129 | E167: Jumlah Laki-laki | F167: =COUNTIF(F126:F165,"L") -> 0
E168: Jumlah Perempuan | F168: =COUNTIF(F126:F165,"P") -> 1
E169: Jumlah Total | F169: =SUM(F167:F168) -> 1
C179: DAFTAR NILAI SISWA
C180: =+MENU!$D$8 -> SMA NEGERI 5 CILEGON
C181: =CONCATENATE(MENU!$C$7," ",MENU!$D$7) -> TAHUN AJARAN 2013-2014
C182: KELAS | E182: =IF(ISBLANK(A186),"",VLOOKUP(A186,Data1,2)) -> X-4
C183: NO | D183: NIS | E183: NAMA | F183: L/P | G183: NILAI RAPORT | J183: KET
G184: Kognitif | H184: Afektif | I184: Psikomotor
A186: =+'DataBase-XI'!A176 -> 136 | B186: =IF(ISBLANK(A186),"",VLOOKUP(A186,Data1,2)) -> X-4 | C186: 1 | D186: =IF(ISBLANK(A186),"",VLOOKUP(A186,Data1,5)) -> 9980450221 | E186: =IF(ISBLANK(A186),"",VLOOKUP(A186,Data1,3)) -> ADE ISWANDI | F186: =IF(ISBLANK(A186),"",VLOOKUP(A186,Data1,6)) -> L
A187: =+A186+1 -> 137 | B187: X-4 | C187: 2 | D187: 0 | E187: 0 | F187: 0
A188: 138 | B188: X-4 | C188: 3 | D188: 0 | E188: 0 | F188: 0
A189: 139 | B189: X-4 | C189: 4 | D189: 0 | E189: 0 | F189: 0
A190: 140 | B190: X-4 | C190: 5 | D190: 0 | E190: 0 | F190: 0
A191: 141 | B191: X-4 | C191: 6 | D191: 0 | E191: 0 | F191: 0
A192: 142 | B192: X-4 | C192: 7 | D192: 0 | E192: 0 | F192: 0
A193: 143 | B193: X-4 | C193: 8 | D193: 0 | E193: 0 | F193: 0
A194: 144 | B194: X-4 | C194: 9 | D194: 0 | E194: 0 | F194: 0
A195: 145 | B195: X-4 | C195: 10 | D195: 0 | E195: 0 | F195: 0
A196: 146 | B196: X-4 | C196: 11 | D196: 0 | E196: 0 | F196: 0
A197: 147 | B197: X-4 | C197: 12 | D197: 0 | E197: 0 | F197: 0
A198: 148 | B198: X-4 | C198: 13 | D198: 0 | E198: 0 | F198: 0
A199: 149 | B199: X-4 | C199: 14 | D199: 0 | E199: 0 | F199: 0
A200: 150 | B200: X-4 | C200: 15 | D200: 0 | E200: 0 | F200: 0
A201: 151 | B201: X-4 | C201: 16 | D201: 0 | E201: 0 | F201: 0
A202: 152 | B202: X-4 | C202: 17 | D202: 0 | E202: 0 | F202: 0
A203: 153 | B203: X-4 | C203: 18 | D203: 0 | E203: 0 | F203: 0
A204: 154 | B204: X-4 | C204: 19 | D204: 0 | E204: 0 | F204: 0
A205: 155 | B205: X-4 | C205: 20 | D205: 0 | E205: 0 | F205: 0
A206: 156 | B206: X-4 | C206: 21 | D206: 0 | E206: 0 | F206: 0
A207: 157 | B207: X-4 | C207: 22 | D207: 0 | E207: 0 | F207: 0
A208: 158 | B208: X-4 | C208: 23 | D208: 0 | E208: 0 | F208: 0
A209: 159 | B209: X-4 | C209: 24 | D209: 0 | E209: 0 | F209: 0
A210: 160 | B210: X-4 | C210: 25 | D210: 0 | E210: 0 | F210: 0
A211: 161 | B211: X-4 | C211: 26 | D211: 0 | E211: 0 | F211: 0
A212: 162 | B212: X-4 | C212: 27 | D212: 0 | E212: 0 | F212: 0
A213: 163 | B213: X-4 | C213: 28 | D213: 0 | E213: 0 | F213: 0
A214: 164 | B214: X-4 | C214: 29 | D214: 0 | E214: 0 | F214: 0
A215: 165 | B215: X-4 | C215: 30 | D215: 0 | E215: 0 | F215: 0
A216: 166 | B216: X-4 | C216: 31 | D216: 0 | E216: 0 | F216: 0
A217: 167 | B217: X-4 | C217: 32 | D217: 0 | E217: 0 | F217: 0
A218: 168 | B218: X-4 | C218: 33 | D218: 0 | E218: 0 | F218: 0
A219: 169 | B219: X-4 | C219: 34 | D219: 0 | E219: 0 | F219: 0
A220: 170 | B220: X-4 | C220: 35 | D220: 0 | E220: 0 | F220: 0
A221: 171 | B221: X-4 | C221: 36 | D221: 0 | E221: 0 | F221: 0
A222: 172 | B222: X-4 | C222: 37 | D222: 0 | E222: 0 | F222: 0
A223: 173 | B223: X-4 | C223: 38 | D223: 0 | E223: 0 | F223: 0
A224: 174 | B224: X-4 | C224: 39 | D224: 0 | E224: 0 | F224: 0
A225: 175 | B225: X-4 | C225: 40 | D225: 0 | E225: 0 | F225: 0
A227: =MAX(A186:A224) -> 174 | E227: Jumlah Laki-laki | F227: =COUNTIF(F186:F225,"L") -> 1
E228: Jumlah Perempuan | F228: =COUNTIF(F186:F225,"P") -> 0
E229: Jumlah Total | F229: =SUM(F227:F228) -> 1
C239: DAFTAR NILAI SISWA
C240: =+MENU!$D$8 -> SMA NEGERI 5 CILEGON
C241: =CONCATENATE(MENU!$C$7," ",MENU!$D$7) -> TAHUN AJARAN 2013-2014
C242: KELAS | E242: =IF(ISBLANK(A246),"",VLOOKUP(A246,Data1,2)) -> X-5
... 94 more rows

Sheet Blanko-Daf Nilai X
A1: NO URUT DATABASE | C1: DAFTAR NILAI MURNI
C2: =+MENU!$D$8 -> SMA NEGERI 5 CILEGON
C3: =CONCATENATE(MENU!$C$7," ",MENU!$D$7) -> TAHUN AJARAN 2013-2014
C5: MATA PELAJARAN | E5: ; | M5: Kelas/Semester: | P5: =+B10 -> X-1
C6: NAMA SEKOLAH | E6: =+$C$2 -> SMA NEGERI 5 CILEGON
C7: NO | D7: NAMA SISWA | E7: NISN | F7: L/P | G7: NILAI HARIAN / TUGAS | M7: RATA-RATA | N7: KETUNTASAN | P7: KET
G9: 1 | H9: 2 | I9: 3 | J9: 4 | K9: 5 | L9: 6 | N9: YA | O9: TIDAK
A10: =+'DataBase-XI'!A5 -> 1 | B10: =IF(ISBLANK(A10),"",VLOOKUP(A10,Data1,2)) -> X-1 | C10: 1 | D10: =IF(ISBLANK(A10),"",VLOOKUP(A10,Data1,3)) -> ALVIRA | E10: =IF(ISBLANK(A10),"",VLOOKUP(A10,Data1,5)) -> 9970456061 | F10: =IF(ISBLANK(A10),"",VLOOKUP(A10,Data1,6)) -> P
A11: 2 | B11: X-1 | C11: 2 | D11: 0 | E11: 0 | F11: 0
A12: 3 | B12: X-1 | C12: 3 | D12: 0 | E12: 0 | F12: 0
A13: 4 | B13: X-1 | C13: 4 | D13: 0 | E13: 0 | F13: 0
A14: 5 | B14: X-1 | C14: 5 | D14: 0 | E14: 0 | F14: 0
A15: 6 | B15: X-1 | C15: 6 | D15: 0 | E15: 0 | F15: 0
A16: 7 | B16: X-1 | C16: 7 | D16: 0 | E16: 0 | F16: 0
A17: 8 | B17: X-1 | C17: 8 | D17: 0 | E17: 0 | F17: 0
A18: 9 | B18: X-1 | C18: 9 | D18: 0 | E18: 0 | F18: 0
A19: 10 | B19: X-1 | C19: 10 | D19: 0 | E19: 0 | F19: 0
A20: 11 | B20: X-1 | C20: 11 | D20: 0 | E20: 0 | F20: 0
A21: 12 | B21: X-1 | C21: 12 | D21: 0 | E21: 0 | F21: 0
A22: 13 | B22: X-1 | C22: 13 | D22: 0 | E22: 0 | F22: 0
A23: 14 | B23: X-1 | C23: 14 | D23: 0 | E23: 0 | F23: 0
A24: 15 | B24: X-1 | C24: 15 | D24: 0 | E24: 0 | F24: 0
A25: 16 | B25: X-1 | C25: 16 | D25: 0 | E25: 0 | F25: 0
A26: 17 | B26: X-1 | C26: 17 | D26: 0 | E26: 0 | F26: 0
A27: 18 | B27: X-1 | C27: 18 | D27: 0 | E27: 0 | F27: 0
A28: 19 | B28: X-1 | C28: 19 | D28: 0 | E28: 0 | F28: 0
A29: 20 | B29: X-1 | C29: 20 | D29: 0 | E29: 0 | F29: 0
A30: 21 | B30: X-1 | C30: 21 | D30: 0 | E30: 0 | F30: 0
A31: 22 | B31: X-1 | C31: 22 | D31: 0 | E31: 0 | F31: 0
A32: 23 | B32: X-1 | C32: 23 | D32: 0 | E32: 0 | F32: 0
A33: 24 | B33: X-1 | C33: 24 | D33: 0 | E33: 0 | F33: 0
A34: 25 | B34: X-1 | C34: 25 | D34: 0 | E34: 0 | F34: 0
A35: 26 | B35: X-1 | C35: 26 | D35: 0 | E35: 0 | F35: 0
A36: 27 | B36: X-1 | C36: 27 | D36: 0 | E36: 0 | F36: 0
A37: 28 | B37: X-1 | C37: 28 | D37: 0 | E37: 0 | F37: 0
A38: 29 | B38: X-1 | C38: 29 | D38: 0 | E38: 0 | F38: 0
A39: 30 | B39: X-1 | C39: 30 | D39: 0 | E39: 0 | F39: 0
A40: 31 | B40: X-1 | C40: 31 | D40: 0 | E40: 0 | F40: 0
A41: 32 | B41: X-1 | C41: 32 | D41: 0 | E41: 0 | F41: 0
A42: 33 | B42: X-1 | C42: 33 | D42: 0 | E42: 0 | F42: 0
A43: 34 | B43: X-1 | C43: 34 | D43: 0 | E43: 0 | F43: 0
A44: 35 | B44: X-1 | C44: 35 | D44: 0 | E44: 0 | F44: 0
A45: 36 | B45: X-1 | C45: 36 | D45: 0 | E45: 0 | F45: 0
A46: 37 | B46: X-1 | C46: 37 | D46: 0 | E46: 0 | F46: 0
A47: 38 | B47: X-1 | C47: 38 | D47: 0 | E47: 0 | F47: 0
A48: 39 | B48: X-1 | C48: 39 | D48: 0 | E48: 0 | F48: 0
A49: 40 | B49: X-1 | C49: 40 | D49: 0 | E49: 0 | F49: 0
D50: Mengetahui | M50: =CONCATENATE(MENU!$D$13," , ",R50) -> Cilegon , 24 Juli 2013 | R50: =TEXT(NOW(),"dd mmmm yyyy") -> 24 Juli 2013
A51: =MAX(A10:A47) -> 38 | D51: Waka Kurikulum | M51: Guru Bidang Study
D54: ................................ | M54: ................................
D55: NIP: | G55: Mengetahui | M55: NIP:
G56: Kepala Sekolah
G59: =+[1]MENU!$C$16 -> Asep Mansur,S.Pd
G60: =+[1]MENU!$C$17 -> NIP: 19620101 198512 1 004
C65: DAFTAR NILAI MURNI
C66: =+$C$2 -> SMA NEGERI 5 CILEGON
C67: =+$C$3 -> TAHUN AJARAN 2013-2014
C69: MATA PELAJARAN | E69: ; | M69: Kelas/Semester: | P69: =+B74 -> X-2
C70: NAMA SEKOLAH | E70: =+$C$2 -> SMA NEGERI 5 CILEGON
C71: NO | D71: NAMA SISWA | E71: NISN | F71: L/P | G71: NILAI HARIAN / TUGAS | M71: RATA-RATA | N71: KETUNTASAN | P71: KET
G73: 1 | H73: 2 | I73: 3 | J73: 4 | K73: 5 | L73: 6 | N73: YA | O73: TIDAK
A74: =+'DataBase-XI'!A62 -> 46 | B74: =IF(ISBLANK(A74),"",VLOOKUP(A74,Data1,2)) -> X-2 | C74: 1 | D74: =IF(ISBLANK(A74),"",VLOOKUP(A74,Data1,3)) -> ADITYA YUDISTIRA | E74: =IF(ISBLANK(A74),"",VLOOKUP(A74,Data1,5)) -> 9980450357 | F74: =IF(ISBLANK(A74),"",VLOOKUP(A74,Data1,6)) -> L
A75: =+A74+1 -> 47 | B75: X-2 | C75: 2 | D75: 0 | E75: 0 | F75: 0
A76: 48 | B76: X-2 | C76: 3 | D76: 0 | E76: 0 | F76: 0
A77: 49 | B77: X-2 | C77: 4 | D77: 0 | E77: 0 | F77: 0
A78: 50 | B78: X-2 | C78: 5 | D78: 0 | E78: 0 | F78: 0
A79: 51 | B79: X-2 | C79: 6 | D79: 0 | E79: 0 | F79: 0
A80: 52 | B80: X-2 | C80: 7 | D80: 0 | E80: 0 | F80: 0
A81: 53 | B81: X-2 | C81: 8 | D81: 0 | E81: 0 | F81: 0
A82: 54 | B82: X-2 | C82: 9 | D82: 0 | E82: 0 | F82: 0
A83: 55 | B83: X-2 | C83: 10 | D83: 0 | E83: 0 | F83: 0
A84: 56 | B84: X-2 | C84: 11 | D84: 0 | E84: 0 | F84: 0
A85: 57 | B85: X-2 | C85: 12 | D85: 0 | E85: 0 | F85: 0
A86: 58 | B86: X-2 | C86: 13 | D86: 0 | E86: 0 | F86: 0
A87: 59 | B87: X-2 | C87: 14 | D87: 0 | E87: 0 | F87: 0
A88: 60 | B88: X-2 | C88: 15 | D88: 0 | E88: 0 | F88: 0
A89: 61 | B89: X-2 | C89: 16 | D89: 0 | E89: 0 | F89: 0
A90: 62 | B90: X-2 | C90: 17 | D90: 0 | E90: 0 | F90: 0
A91: 63 | B91: X-2 | C91: 18 | D91: 0 | E91: 0 | F91: 0
A92: 64 | B92: X-2 | C92: 19 | D92: 0 | E92: 0 | F92: 0
A93: 65 | B93: X-2 | C93: 20 | D93: 0 | E93: 0 | F93: 0
A94: 66 | B94: X-2 | C94: 21 | D94: 0 | E94: 0 | F94: 0
A95: 67 | B95: X-2 | C95: 22 | D95: 0 | E95: 0 | F95: 0
A96: 68 | B96: X-2 | C96: 23 | D96: 0 | E96: 0 | F96: 0
A97: 69 | B97: X-2 | C97: 24 | D97: 0 | E97: 0 | F97: 0
A98: 70 | B98: X-2 | C98: 25 | D98: 0 | E98: 0 | F98: 0
A99: 71 | B99: X-2 | C99: 26 | D99: 0 | E99: 0 | F99: 0
A100: 72 | B100: X-2 | C100: 27 | D100: 0 | E100: 0 | F100: 0
A101: 73 | B101: X-2 | C101: 28 | D101: 0 | E101: 0 | F101: 0
A102: 74 | B102: X-2 | C102: 29 | D102: 0 | E102: 0 | F102: 0
A103: 75 | B103: X-2 | C103: 30 | D103: 0 | E103: 0 | F103: 0
A104: 76 | B104: X-2 | C104: 31 | D104: 0 | E104: 0 | F104: 0
A105: 77 | B105: X-2 | C105: 32 | D105: 0 | E105: 0 | F105: 0
A106: 78 | B106: X-2 | C106: 33 | D106: 0 | E106: 0 | F106: 0
A107: 79 | B107: X-2 | C107: 34 | D107: 0 | E107: 0 | F107: 0
A108: 80 | B108: X-2 | C108: 35 | D108: 0 | E108: 0 | F108: 0
A109: 81 | B109: X-2 | C109: 36 | D109: 0 | E109: 0 | F109: 0
A110: 82 | B110: X-2 | C110: 37 | D110: 0 | E110: 0 | F110: 0
A111: 83 | B111: X-2 | C111: 38 | D111: 0 | E111: 0 | F111: 0
A112: 84 | B112: X-2 | C112: 39 | D112: 0 | E112: 0 | F112: 0
A113: 85 | B113: X-2 | C113: 40 | D113: 0 | E113: 0 | F113: 0
D114: Mengetahui | M114: =CONCATENATE(MENU!$D$13," , ",R114) -> Cilegon , 24 Juli 2013 | R114: =TEXT(NOW(),"dd mmmm yyyy") -> 24 Juli 2013
A115: =MAX(A74:A112) -> 84 | D115: Waka Kurikulum | M115: Guru Bidang Study
D118: ................................ | M118: ................................
D119: NIP: | G119: Mengetahui | M119: NIP:
G120: Kepala Sekolah
G123: =+[1]MENU!$C$16 -> Asep Mansur,S.Pd
G124: =+[1]MENU!$C$17 -> NIP: 19620101 198512 1 004
C129: DAFTAR NILAI MURNI
C130: =+$C$2 -> SMA NEGERI 5 CILEGON
C131: =+$C$3 -> TAHUN AJARAN 2013-2014
C133: MATA PELAJARAN | E133: ; | M133: Kelas/Semester: | P133: =+B138 -> X-3
C134: NAMA SEKOLAH | E134: =+$C$2 -> SMA NEGERI 5 CILEGON
C135: NO | D135: NAMA SISWA | E135: NISN | F135: L/P | G135: NILAI HARIAN / TUGAS | M135: RATA-RATA | N135: KETUNTASAN | P135: KET
G137: 1 | H137: 2 | I137: 3 | J137: 4 | K137: 5 | L137: 6 | N137: YA | O137: TIDAK
A138: =+'DataBase-XI'!A119 -> 91 | B138: =IF(ISBLANK(A138),"",VLOOKUP(A138,Data1,2)) -> X-3 | C138: 1 | D138: =IF(ISBLANK(A138),"",VLOOKUP(A138,Data1,3)) -> ADE SRI JUA ASIH | E138: =IF(ISBLANK(A138),"",VLOOKUP(A138,Data1,5)) -> 9988413542 | F138: =IF(ISBLANK(A138),"",VLOOKUP(A138,Data1,6)) -> P
A139: =+A138+1 -> 92 | B139: X-3 | C139: 2 | D139: 0 | E139: 0 | F139: 0
A140: 93 | B140: X-3 | C140: 3 | D140: 0 | E140: 0 | F140: 0
A141: 94 | B141: X-3 | C141: 4 | D141: 0 | E141: 0 | F141: 0
A142: 95 | B142: X-3 | C142: 5 | D142: 0 | E142: 0 | F142: 0
A143: 96 | B143: X-3 | C143: 6 | D143: 0 | E143: 0 | F143: 0
A144: 97 | B144: X-3 | C144: 7 | D144: 0 | E144: 0 | F144: 0
A145: 98 | B145: X-3 | C145: 8 | D145: 0 | E145: 0 | F145: 0
A146: 99 | B146: X-3 | C146: 9 | D146: 0 | E146: 0 | F146: 0
A147: 100 | B147: X-3 | C147: 10 | D147: 0 | E147: 0 | F147: 0
A148: 101 | B148: X-3 | C148: 11 | D148: 0 | E148: 0 | F148: 0
A149: 102 | B149: X-3 | C149: 12 | D149: 0 | E149: 0 | F149: 0
A150: 103 | B150: X-3 | C150: 13 | D150: 0 | E150: 0 | F150: 0
A151: 104 | B151: X-3 | C151: 14 | D151: 0 | E151: 0 | F151: 0
A152: 105 | B152: X-3 | C152: 15 | D152: 0 | E152: 0 | F152: 0
A153: 106 | B153: X-3 | C153: 16 | D153: 0 | E153: 0 | F153: 0
A154: 107 | B154: X-3 | C154: 17 | D154: 0 | E154: 0 | F154: 0
A155: 108 | B155: X-3 | C155: 18 | D155: 0 | E155: 0 | F155: 0
A156: 109 | B156: X-3 | C156: 19 | D156: 0 | E156: 0 | F156: 0
A157: 110 | B157: X-3 | C157: 20 | D157: 0 | E157: 0 | F157: 0
A158: 111 | B158: X-3 | C158: 21 | D158: 0 | E158: 0 | F158: 0
A159: 112 | B159: X-3 | C159: 22 | D159: 0 | E159: 0 | F159: 0
A160: 113 | B160: X-3 | C160: 23 | D160: 0 | E160: 0 | F160: 0
A161: 114 | B161: X-3 | C161: 24 | D161: 0 | E161: 0 | F161: 0
A162: 115 | B162: X-3 | C162: 25 | D162: 0 | E162: 0 | F162: 0
A163: 116 | B163: X-3 | C163: 26 | D163: 0 | E163: 0 | F163: 0
A164: 117 | B164: X-3 | C164: 27 | D164: 0 | E164: 0 | F164: 0
A165: 118 | B165: X-3 | C165: 28 | D165: 0 | E165: 0 | F165: 0
A166: 119 | B166: X-3 | C166: 29 | D166: 0 | E166: 0 | F166: 0
A167: 120 | B167: X-3 | C167: 30 | D167: 0 | E167: 0 | F167: 0
A168: 121 | B168: X-3 | C168: 31 | D168: 0 | E168: 0 | F168: 0
A169: 122 | B169: X-3 | C169: 32 | D169: 0 | E169: 0 | F169: 0
A170: 123 | B170: X-3 | C170: 33 | D170: 0 | E170: 0 | F170: 0
A171: 124 | B171: X-3 | C171: 34 | D171: 0 | E171: 0 | F171: 0
A172: 125 | B172: X-3 | C172: 35 | D172: 0 | E172: 0 | F172: 0
A173: 126 | B173: X-3 | C173: 36 | D173: 0 | E173: 0 | F173: 0
A174: 127 | B174: X-3 | C174: 37 | D174: 0 | E174: 0 | F174: 0
A175: 128 | B175: X-3 | C175: 38 | D175: 0 | E175: 0 | F175: 0
A176: 129 | B176: X-3 | C176: 39 | D176: 0 | E176: 0 | F176: 0
A177: 130 | B177: X-3 | C177: 40 | D177: 0 | E177: 0 | F177: 0
D178: Mengetahui | M178: =CONCATENATE(MENU!$D$13," , ",R178) -> Cilegon , 24 Juli 2013 | R178: =TEXT(NOW(),"dd mmmm yyyy") -> 24 Juli 2013
A179: =MAX(A138:A176) -> 129 | D179: Waka Kurikulum | M179: Guru Bidang Study
D182: ................................ | M182: ................................
D183: NIP: | G183: Mengetahui | M183: NIP:
G184: Kepala Sekolah
G187: =+[1]MENU!$C$16 -> Asep Mansur,S.Pd
G188: =+[1]MENU!$C$17 -> NIP: 19620101 198512 1 004
C193: DAFTAR NILAI MURNI
C194: =+$C$2 -> SMA NEGERI 5 CILEGON
C195: =+$C$3 -> TAHUN AJARAN 2013-2014
C197: MATA PELAJARAN | E197: ; | M197: Kelas/Semester: | P197: =+B202 -> X-4
C198: NAMA SEKOLAH | E198: =+$C$2 -> SMA NEGERI 5 CILEGON
C199: NO | D199: NAMA SISWA | E199: NISN | F199: L/P | G199: NILAI HARIAN / TUGAS | M199: RATA-RATA | N199: KETUNTASAN | P199: KET
G201: 1 | H201: 2 | I201: 3 | J201: 4 | K201: 5 | L201: 6 | N201: YA | O201: TIDAK
A202: =+'DataBase-XI'!A176 -> 136 | B202: =IF(ISBLANK(A202),"",VLOOKUP(A202,Data1,2)) -> X-4 | C202: 1 | D202: =IF(ISBLANK(A202),"",VLOOKUP(A202,Data1,3)) -> ADE ISWANDI | E202: =IF(ISBLANK(A202),"",VLOOKUP(A202,Data1,5)) -> 9980450221 | F202: =IF(ISBLANK(A202),"",VLOOKUP(A202,Data1,6)) -> L
A203: =+A202+1 -> 137 | B203: X-4 | C203: 2 | D203: 0 | E203: 0 | F203: 0
A204: 138 | B204: X-4 | C204: 3 | D204: 0 | E204: 0 | F204: 0
A205: 139 | B205: X-4 | C205: 4 | D205: 0 | E205: 0 | F205: 0
A206: 140 | B206: X-4 | C206: 5 | D206: 0 | E206: 0 | F206: 0
A207: 141 | B207: X-4 | C207: 6 | D207: 0 | E207: 0 | F207: 0
A208: 142 | B208: X-4 | C208: 7 | D208: 0 | E208: 0 | F208: 0
A209: 143 | B209: X-4 | C209: 8 | D209: 0 | E209: 0 | F209: 0
A210: 144 | B210: X-4 | C210: 9 | D210: 0 | E210: 0 | F210: 0
A211: 145 | B211: X-4 | C211: 10 | D211: 0 | E211: 0 | F211: 0
A212: 146 | B212: X-4 | C212: 11 | D212: 0 | E212: 0 | F212: 0
A213: 147 | B213: X-4 | C213: 12 | D213: 0 | E213: 0 | F213: 0
A214: 148 | B214: X-4 | C214: 13 | D214: 0 | E214: 0 | F214: 0
A215: 149 | B215: X-4 | C215: 14 | D215: 0 | E215: 0 | F215: 0
A216: 150 | B216: X-4 | C216: 15 | D216: 0 | E216: 0 | F216: 0
A217: 151 | B217: X-4 | C217: 16 | D217: 0 | E217: 0 | F217: 0
A218: 152 | B218: X-4 | C218: 17 | D218: 0 | E218: 0 | F218: 0
A219: 153 | B219: X-4 | C219: 18 | D219: 0 | E219: 0 | F219: 0
A220: 154 | B220: X-4 | C220: 19 | D220: 0 | E220: 0 | F220: 0
A221: 155 | B221: X-4 | C221: 20 | D221: 0 | E221: 0 | F221: 0
A222: 156 | B222: X-4 | C222: 21 | D222: 0 | E222: 0 | F222: 0
A223: 157 | B223: X-4 | C223: 22 | D223: 0 | E223: 0 | F223: 0
A224: 158 | B224: X-4 | C224: 23 | D224: 0 | E224: 0 | F224: 0
A225: 159 | B225: X-4 | C225: 24 | D225: 0 | E225: 0 | F225: 0
A226: 160 | B226: X-4 | C226: 25 | D226: 0 | E226: 0 | F226: 0
A227: 161 | B227: X-4 | C227: 26 | D227: 0 | E227: 0 | F227: 0
A228: 162 | B228: X-4 | C228: 27 | D228: 0 | E228: 0 | F228: 0
A229: 163 | B229: X-4 | C229: 28 | D229: 0 | E229: 0 | F229: 0
A230: 164 | B230: X-4 | C230: 29 | D230: 0 | E230: 0 | F230: 0
A231: 165 | B231: X-4 | C231: 30 | D231: 0 | E231: 0 | F231: 0
A232: 166 | B232: X-4 | C232: 31 | D232: 0 | E232: 0 | F232: 0
... 124 more rows

Sheet Absen-XI
A1: NO URUT DATABASE | C1: DAFTAR HADIR SISWA
C2: =+MENU!$D$8 -> SMA NEGERI 5 CILEGON
C3: =CONCATENATE(MENU!$C$7," ",MENU!$D$7) -> TAHUN AJARAN 2013-2014
C4: KELAS | E4: =IF(ISBLANK(A8),"",VLOOKUP(A8,Data2,2)) -> XI IPA-1
C5: NO | D5: NIS | E5: NAMA | F5: L/P | G5: Tanggal
A8: =+'DataBase-XI'!A5 -> 1 | B8: =IF(ISBLANK(A8),"",VLOOKUP(A8,Data2,2)) -> XI IPA-1 | C8: 1 | D8: =IF(ISBLANK(A8),"",VLOOKUP(A8,Data2,5)) -> 9907455968 | E8: =IF(ISBLANK(A8),"",VLOOKUP(A8,Data2,3)) -> AL HEELAL IDHANA | F8: =IF(ISBLANK(A8),"",VLOOKUP(A8,Data2,6)) -> L
A9: 2 | B9: XI IPA-1 | C9: 2 | D9: 0 | E9: 0 | F9: 0
A10: 3 | B10: XI IPA-1 | C10: 3 | D10: 0 | E10: 0 | F10: 0
A11: 4 | B11: XI IPA-1 | C11: 4 | D11: 0 | E11: 0 | F11: 0
A12: 5 | B12: XI IPA-1 | C12: 5 | D12: 0 | E12: 0 | F12: 0
A13: 6 | B13: XI IPA-1 | C13: 6 | D13: 0 | E13: 0 | F13: 0
A14: 7 | B14: XI IPA-1 | C14: 7 | D14: 0 | E14: 0 | F14: 0
A15: 8 | B15: XI IPA-1 | C15: 8 | D15: 0 | E15: 0 | F15: 0
A16: 9 | B16: XI IPA-1 | C16: 9 | D16: 0 | E16: 0 | F16: 0
A17: 10 | B17: XI IPA-1 | C17: 10 | D17: 0 | E17: 0 | F17: 0
A18: 11 | B18: XI IPA-1 | C18: 11 | D18: 0 | E18: 0 | F18: 0
A19: 12 | B19: XI IPA-1 | C19: 12 | D19: 0 | E19: 0 | F19: 0
A20: 13 | B20: XI IPA-1 | C20: 13 | D20: 0 | E20: 0 | F20: 0
A21: 14 | B21: XI IPA-1 | C21: 14 | D21: 0 | E21: 0 | F21: 0
A22: 15 | B22: XI IPA-1 | C22: 15 | D22: 0 | E22: 0 | F22: 0
A23: 16 | B23: XI IPA-1 | C23: 16 | D23: 0 | E23: 0 | F23: 0
A24: 17 | B24: XI IPA-1 | C24: 17 | D24: 0 | E24: 0 | F24: 0
A25: 18 | B25: XI IPA-1 | C25: 18 | D25: 0 | E25: 0 | F25: 0
A26: 19 | B26: XI IPA-1 | C26: 19 | D26: 0 | E26: 0 | F26: 0
A27: 20 | B27: XI IPA-1 | C27: 20 | D27: 0 | E27: 0 | F27: 0
A28: 21 | B28: XI IPA-1 | C28: 21 | D28: 0 | E28: 0 | F28: 0
A29: 22 | B29: XI IPA-1 | C29: 22 | D29: 0 | E29: 0 | F29: 0
A30: 23 | B30: XI IPA-1 | C30: 23 | D30: 0 | E30: 0 | F30: 0
A31: 24 | B31: XI IPA-1 | C31: 24 | D31: 0 | E31: 0 | F31: 0
A32: 25 | B32: XI IPA-1 | C32: 25 | D32: 0 | E32: 0 | F32: 0
A33: 26 | B33: XI IPA-1 | C33: 26 | D33: 0 | E33: 0 | F33: 0
A34: 27 | B34: XI IPA-1 | C34: 27 | D34: 0 | E34: 0 | F34: 0
A35: 28 | B35: XI IPA-1 | C35: 28 | D35: 0 | E35: 0 | F35: 0
A36: 29 | B36: XI IPA-1 | C36: 29 | D36: 0 | E36: 0 | F36: 0
A37: 30 | B37: XI IPA-1 | C37: 30 | D37: 0 | E37: 0 | F37: 0
A38: 31 | B38: XI IPA-1 | C38: 31 | D38: 0 | E38: 0 | F38: 0
A39: 32 | B39: XI IPA-1 | C39: 32 | D39: 0 | E39: 0 | F39: 0
A40: 33 | B40: XI IPA-1 | C40: 33 | D40: 0 | E40: 0 | F40: 0
A41: 34 | B41: XI IPA-1 | C41: 34 | D41: 0 | E41: 0 | F41: 0
A42: 35 | B42: XI IPA-1 | C42: 35 | D42: 0 | E42: 0 | F42: 0
A43: 36 | B43: XI IPA-1 | C43: 36 | D43: 0 | E43: 0 | F43: 0
A44: 37 | B44: XI IPA-1 | C44: 37 | D44: 0 | E44: 0 | F44: 0
A45: 38 | B45: XI IPA-1 | C45: 38 | D45: 0 | E45: 0 | F45: 0
A46: 39 | B46: XI IPA-1 | C46: 39 | D46: 0 | E46: 0 | F46: 0
A47: 40 | B47: XI IPA-1 | C47: 40
A49: =MAX(A8:A47) -> 40 | E49: Jumlah Laki-laki | F49: =COUNTIF(F8:F47,"L") -> 1 | U49: Cilegon,…………………………….20
E50: Jumlah Perempuan | F50: =COUNTIF(F8:F47,"P") -> 0 | U50: Guru Bidang Studi
E51: Jumlah Total | F51: =SUM(F49:F50) -> 1
U57: (……………………...……….)
U58: NIP:…………………………………….
C69: DAFTAR HADIR SISWA
C70: =+MENU!$D$8 -> SMA NEGERI 5 CILEGON
C71: =CONCATENATE(MENU!$C$7," ",MENU!$D$7) -> TAHUN AJARAN 2013-2014
C72: KELAS | E72: =IF(ISBLANK(A76),"",VLOOKUP(A76,Data2,2)) -> XI IPA-2
C73: NO | D73: NIS | E73: NAMA | F73: L/P | G73: Tanggal
A76: =+'DataBase-XI'!A62 -> 46 | B76: =IF(ISBLANK(A76),"",VLOOKUP(A76,Data2,2)) -> XI IPA-2 | C76: 1 | D76: =IF(ISBLANK(A76),"",VLOOKUP(A76,Data2,5)) -> 9966354541 | E76: =IF(ISBLANK(A76),"",VLOOKUP(A76,Data2,3)) -> AFID HIDAYAT | F76: =IF(ISBLANK(A76),"",VLOOKUP(A76,Data2,6)) -> L
A77: =+A76+1 -> 47 | B77: XI IPA-2 | C77: 2 | D77: 0 | E77: 0 | F77: 0
A78: 48 | B78: XI IPA-2 | C78: 3 | D78: 0 | E78: 0 | F78: 0
A79: 49 | B79: XI IPA-2 | C79: 4 | D79: 0 | E79: 0 | F79: 0
A80: 50 | B80: XI IPA-2 | C80: 5 | D80: 0 | E80: 0 | F80: 0
A81: 51 | B81: XI IPA-2 | C81: 6 | D81: 0 | E81: 0 | F81: 0
A82: 52 | B82: XI IPA-2 | C82: 7 | D82: 0 | E82: 0 | F82: 0
A83: 53 | B83: XI IPA-2 | C83: 8 | D83: 0 | E83: 0 | F83: 0
A84: 54 | B84: XI IPA-2 | C84: 9 | D84: 0 | E84: 0 | F84: 0
A85: 55 | B85: XI IPA-2 | C85: 10 | D85: 0 | E85: 0 | F85: 0
A86: 56 | B86: XI IPA-2 | C86: 11 | D86: 0 | E86: 0 | F86: 0
A87: 57 | B87: XI IPA-2 | C87: 12 | D87: 0 | E87: 0 | F87: 0
A88: 58 | B88: XI IPA-2 | C88: 13 | D88: 0 | E88: 0 | F88: 0
A89: 59 | B89: XI IPA-2 | C89: 14 | D89: 0 | E89: 0 | F89: 0
A90: 60 | B90: XI IPA-2 | C90: 15 | D90: 0 | E90: 0 | F90: 0
A91: 61 | B91: XI IPA-2 | C91: 16 | D91: 0 | E91: 0 | F91: 0
A92: 62 | B92: XI IPA-2 | C92: 17 | D92: 0 | E92: 0 | F92: 0
A93: 63 | B93: XI IPA-2 | C93: 18 | D93: 0 | E93: 0 | F93: 0
A94: 64 | B94: XI IPA-2 | C94: 19 | D94: 0 | E94: 0 | F94: 0
A95: 65 | B95: XI IPA-2 | C95: 20 | D95: 0 | E95: 0 | F95: 0
A96: 66 | B96: XI IPA-2 | C96: 21 | D96: 0 | E96: 0 | F96: 0
A97: 67 | B97: XI IPA-2 | C97: 22 | D97: 0 | E97: 0 | F97: 0
A98: 68 | B98: XI IPA-2 | C98: 23 | D98: 0 | E98: 0 | F98: 0
A99: 69 | B99: XI IPA-2 | C99: 24 | D99: 0 | E99: 0 | F99: 0
A100: 70 | B100: XI IPA-2 | C100: 25 | D100: 0 | E100: 0 | F100: 0
A101: 71 | B101: XI IPA-2 | C101: 26 | D101: 0 | E101: 0 | F101: 0
A102: 72 | B102: XI IPA-2 | C102: 27 | D102: 0 | E102: 0 | F102: 0
A103: 73 | B103: XI IPA-2 | C103: 28 | D103: 0 | E103: 0 | F103: 0
A104: 74 | B104: XI IPA-2 | C104: 29 | D104: 0 | E104: 0 | F104: 0
A105: 75 | B105: XI IPA-2 | C105: 30 | D105: 0 | E105: 0 | F105: 0
A106: 76 | B106: XI IPA-2 | C106: 31 | D106: 0 | E106: 0 | F106: 0
A107: 77 | B107: XI IPA-2 | C107: 32 | D107: 0 | E107: 0 | F107: 0
A108: 78 | B108: XI IPA-2 | C108: 33 | D108: 0 | E108: 0 | F108: 0
A109: 79 | B109: XI IPA-2 | C109: 34 | D109: 0 | E109: 0 | F109: 0
A110: 80 | B110: XI IPA-2 | C110: 35 | D110: 0 | E110: 0 | F110: 0
A111: 81 | B111: XI IPA-2 | C111: 36 | D111: 0 | E111: 0 | F111: 0
A112: 82 | B112: XI IPA-2 | C112: 37 | D112: 0 | E112: 0 | F112: 0
A113: 83 | B113: XI IPA-2 | C113: 38 | D113: 0 | E113: 0 | F113: 0
A114: 84 | B114: XI IPA-2 | C114: 39 | D114: 0 | E114: 0 | F114: 0
A115: 85 | B115: XI IPA-2 | C115: 40 | D115: 0 | E115: 0 | F115: 0
A117: =MAX(A76:A113) -> 83 | E117: Jumlah Laki-laki | F117: =COUNTIF(F76:F115,"L") -> 1 | U117: Cilegon,…………………………….20
E118: Jumlah Perempuan | F118: =COUNTIF(F76:F115,"P") -> 0 | U118: Guru Bidang Studi
E119: Jumlah Total | F119: =SUM(F117:F118) -> 1
U123: (……………………...……….)
U124: NIP:…………………………………….
C132: DAFTAR HADIR SISWA
C133: =+MENU!$D$8 -> SMA NEGERI 5 CILEGON
C134: =CONCATENATE(MENU!$C$7," ",MENU!$D$7) -> TAHUN AJARAN 2013-2014
C135: KELAS | E135: =IF(ISBLANK(A139),"",VLOOKUP(A139,Data2,2)) -> XI IPA-3
C136: NO | D136: NIS | E136: NAMA | F136: L/P | G136: Tanggal
A139: =+'DataBase-XI'!A119 -> 91 | B139: =IF(ISBLANK(A139),"",VLOOKUP(A139,Data2,2)) -> XI IPA-3 | C139: 1 | D139: =IF(ISBLANK(A139),"",VLOOKUP(A139,Data2,5)) -> 9966517605 | E139: =IF(ISBLANK(A139),"",VLOOKUP(A139,Data2,3)) -> ADE HAIRUNISA MARDIAH | F139: =IF(ISBLANK(A139),"",VLOOKUP(A139,Data2,6)) -> P
A140: =+A139+1 -> 92 | B140: XI IPA-3 | C140: 2 | D140: 0 | E140: 0 | F140: 0
A141: 93 | B141: XI IPA-3 | C141: 3 | D141: 0 | E141: 0 | F141: 0
A142: 94 | B142: XI IPA-3 | C142: 4 | D142: 0 | E142: 0 | F142: 0
A143: 95 | B143: XI IPA-3 | C143: 5 | D143: 0 | E143: 0 | F143: 0
A144: 96 | B144: XI IPA-3 | C144: 6 | D144: 0 | E144: 0 | F144: 0
A145: 97 | B145: XI IPA-3 | C145: 7 | D145: 0 | E145: 0 | F145: 0
A146: 98 | B146: XI IPA-3 | C146: 8 | D146: 0 | E146: 0 | F146: 0
A147: 99 | B147: XI IPA-3 | C147: 9 | D147: 0 | E147: 0 | F147: 0
A148: 100 | B148: XI IPA-3 | C148: 10 | D148: 0 | E148: 0 | F148: 0
A149: 101 | B149: XI IPA-3 | C149: 11 | D149: 0 | E149: 0 | F149: 0
A150: 102 | B150: XI IPA-3 | C150: 12 | D150: 0 | E150: 0 | F150: 0
A151: 103 | B151: XI IPA-3 | C151: 13 | D151: 0 | E151: 0 | F151: 0
A152: 104 | B152: XI IPA-3 | C152: 14 | D152: 0 | E152: 0 | F152: 0
A153: 105 | B153: XI IPA-3 | C153: 15 | D153: 0 | E153: 0 | F153: 0
A154: 106 | B154: XI IPA-3 | C154: 16 | D154: 0 | E154: 0 | F154: 0
A155: 107 | B155: XI IPA-3 | C155: 17 | D155: 0 | E155: 0 | F155: 0
A156: 108 | B156: XI IPA-3 | C156: 18 | D156: 0 | E156: 0 | F156: 0
A157: 109 | B157: XI IPA-3 | C157: 19 | D157: 0 | E157: 0 | F157: 0
A158: 110 | B158: XI IPA-3 | C158: 20 | D158: 0 | E158: 0 | F158: 0
A159: 111 | B159: XI IPA-3 | C159: 21 | D159: 0 | E159: 0 | F159: 0
A160: 112 | B160: XI IPA-3 | C160: 22 | D160: 0 | E160: 0 | F160: 0
A161: 113 | B161: XI IPA-3 | C161: 23 | D161: 0 | E161: 0 | F161: 0
A162: 114 | B162: XI IPA-3 | C162: 24 | D162: 0 | E162: 0 | F162: 0
A163: 115 | B163: XI IPA-3 | C163: 25 | D163: 0 | E163: 0 | F163: 0
A164: 116 | B164: XI IPA-3 | C164: 26 | D164: 0 | E164: 0 | F164: 0
A165: 117 | B165: XI IPA-3 | C165: 27 | D165: 0 | E165: 0 | F165: 0
A166: 118 | B166: XI IPA-3 | C166: 28 | D166: 0 | E166: 0 | F166: 0
A167: 119 | B167: XI IPA-3 | C167: 29 | D167: 0 | E167: 0 | F167: 0
A168: 120 | B168: XI IPA-3 | C168: 30 | D168: 0 | E168: 0 | F168: 0
A169: 121 | B169: XI IPA-3 | C169: 31 | D169: 0 | E169: 0 | F169: 0
A170: 122 | B170: XI IPA-3 | C170: 32 | D170: 0 | E170: 0 | F170: 0
A171: 123 | B171: XI IPA-3 | C171: 33 | D171: 0 | E171: 0 | F171: 0
A172: 124 | B172: XI IPA-3 | C172: 34 | D172: 0 | E172: 0 | F172: 0
A173: 125 | B173: XI IPA-3 | C173: 35 | D173: 0 | E173: 0 | F173: 0
A174: =+A173+1 -> 126 | B174: XI IPA-3 | C174: 36 | D174: 0 | E174: 0 | F174: 0
A175: =+A174+1 -> 127 | B175: XI IPA-3 | C175: 37 | D175: 0 | E175: 0 | F175: 0
A176: =+A175+1 -> 128 | B176: XI IPA-3 | C176: 38 | D176: 0 | E176: 0 | F176: 0
A177: =+A176+1 -> 129 | B177: XI IPA-3 | C177: 39 | D177: 0 | E177: 0 | F177: 0
A178: =+A177+1 -> 130 | B178: XI IPA-3 | C178: 40 | D178: 0 | E178: 0 | F178: 0
A180: =MAX(A139:A177) -> 129 | E180: Jumlah Laki-laki | F180: =COUNTIF(F139:F178,"L") -> 0 | U180: Cilegon,…………………………….20
E181: Jumlah Perempuan | F181: =COUNTIF(F139:F178,"P") -> 1 | U181: Guru Bidang Studi
E182: Jumlah Total | F182: =SUM(F180:F181) -> 1
U187: (……………………...……….)
U188: NIP:…………………………………….
C199: DAFTAR HADIR SISWA
C200: =+MENU!$D$8 -> SMA NEGERI 5 CILEGON
C201: =CONCATENATE(MENU!$C$7," ",MENU!$D$7) -> TAHUN AJARAN 2013-2014
C202: KELAS | E202: =IF(ISBLANK(A206),"",VLOOKUP(A206,Data2,2)) -> XI IPS-1
C203: NO | D203: NIS | E203: NAMA | F203: L/P | G203: Tanggal
A206: =+'DataBase-XI'!A176 -> 136 | B206: =IF(ISBLANK(A206),"",VLOOKUP(A206,Data2,2)) -> XI IPS-1 | C206: 1 | D206: =IF(ISBLANK(A206),"",VLOOKUP(A206,Data2,5)) -> 9970454991 | E206: =IF(ISBLANK(A206),"",VLOOKUP(A206,Data2,3)) -> AAM TAMIMI | F206: =IF(ISBLANK(A206),"",VLOOKUP(A206,Data2,6)) -> L
A207: =+A206+1 -> 137 | B207: XI IPS-1 | C207: 2 | D207: 0 | E207: 0 | F207: 0
A208: 138 | B208: XI IPS-1 | C208: 3 | D208: 0 | E208: 0 | F208: 0
A209: 139 | B209: XI IPS-1 | C209: 4 | D209: 0 | E209: 0 | F209: 0
A210: 140 | B210: XI IPS-1 | C210: 5 | D210: 0 | E210: 0 | F210: 0
A211: 141 | B211: XI IPS-1 | C211: 6 | D211: 0 | E211: 0 | F211: 0
A212: 142 | B212: XI IPS-1 | C212: 7 | D212: 0 | E212: 0 | F212: 0
A213: 143 | B213: XI IPS-1 | C213: 8 | D213: 0 | E213: 0 | F213: 0
A214: 144 | B214: XI IPS-1 | C214: 9 | D214: 0 | E214: 0 | F214: 0
A215: 145 | B215: XI IPS-1 | C215: 10 | D215: 0 | E215: 0 | F215: 0
A216: 146 | B216: XI IPS-1 | C216: 11 | D216: 0 | E216: 0 | F216: 0
A217: 147 | B217: XI IPS-1 | C217: 12 | D217: 0 | E217: 0 | F217: 0
A218: 148 | B218: XI IPS-1 | C218: 13 | D218: 0 | E218: 0 | F218: 0
A219: 149 | B219: XI IPS-1 | C219: 14 | D219: 0 | E219: 0 | F219: 0
A220: 150 | B220: XI IPS-1 | C220: 15 | D220: 0 | E220: 0 | F220: 0
A221: 151 | B221: XI IPS-1 | C221: 16 | D221: 0 | E221: 0 | F221: 0
A222: 152 | B222: XI IPS-1 | C222: 17 | D222: 0 | E222: 0 | F222: 0
A223: 153 | B223: XI IPS-1 | C223: 18 | D223: 0 | E223: 0 | F223: 0
A224: 154 | B224: XI IPS-1 | C224: 19 | D224: 0 | E224: 0 | F224: 0
A225: 155 | B225: XI IPS-1 | C225: 20 | D225: 0 | E225: 0 | F225: 0
A226: 156 | B226: XI IPS-1 | C226: 21 | D226: 0 | E226: 0 | F226: 0
A227: 157 | B227: XI IPS-1 | C227: 22 | D227: 0 | E227: 0 | F227: 0
A228: 158 | B228: XI IPS-1 | C228: 23 | D228: 0 | E228: 0 | F228: 0
A229: 159 | B229: XI IPS-1 | C229: 24 | D229: 0 | E229: 0 | F229: 0
A230: 160 | B230: XI IPS-1 | C230: 25 | D230: 0 | E230: 0 | F230: 0
A231: 161 | B231: XI IPS-1 | C231: 26 | D231: 0 | E231: 0 | F231: 0
A232: 162 | B232: XI IPS-1 | C232: 27 | D232: 0 | E232: 0 | F232: 0
A233: 163 | B233: XI IPS-1 | C233: 28 | D233: 0 | E233: 0 | F233: 0
A234: 164 | B234: XI IPS-1 | C234: 29 | D234: 0 | E234: 0 | F234: 0
A235: 165 | B235: XI IPS-1 | C235: 30 | D235: 0 | E235: 0 | F235: 0
A236: 166 | B236: XI IPS-1 | C236: 31 | D236: 0 | E236: 0 | F236: 0
A237: 167 | B237: XI IPS-1 | C237: 32 | D237: 0 | E237: 0 | F237: 0
A238: 168 | B238: XI IPS-1 | C238: 33 | D238: 0 | E238: 0 | F238: 0
A239: 169 | B239: XI IPS-1 | C239: 34 | D239: 0 | E239: 0 | F239: 0
A240: 170 | B240: XI IPS-1 | C240: 35 | D240: 0 | E240: 0 | F240: 0
A241: =+A240+1 -> 171 | B241: XI IPS-1 | C241: 36 | D241: 0 | E241: 0 | F241: 0
A242: =+A241+1 -> 172 | B242: XI IPS-1 | C242: 37 | D242: 0 | E242: 0 | F242: 0
A243: =+A242+1 -> 173 | B243: XI IPS-1 | C243: 38 | D243: 0 | E243: 0 | F243: 0
A244: =+A243+1 -> 174 | B244: XI IPS-1 | C244: 39 | D244: 0 | E244: 0 | F244: 0
A245: =+A244+1 -> 175 | B245: XI IPS-1 | C245: 40 | D245: 0 | E245: 0 | F245: 0
A247: =MAX(A206:A244) -> 174 | E247: Jumlah Laki-laki | F247: =COUNTIF(F206:F245,"L") -> 1 | V247: Cilegon,…………………………….20
E248: Jumlah Perempuan | F248: =COUNTIF(F206:F245,"P") -> 0 | V248: Guru Bidang Studi
E249: Jumlah Total | F249: =SUM(F247:F248) -> 1
V253: (……………………...……….)
V254: NIP:…………………………………….
... 100 more rows

Sheet Raport-XI
A1: NO URUT DATABASE | C1: DAFTAR NILAI SISWA
C2: =+MENU!$D$8 -> SMA NEGERI 5 CILEGON
C3: =CONCATENATE(MENU!$C$7," ",MENU!$D$7) -> TAHUN AJARAN 2013-2014
C4: KELAS | E4: =IF(ISBLANK(A8),"",VLOOKUP(A8,Data2,2)) -> XI IPA-1
C5: NO | D5: NIS | E5: NAMA | F5: L/P | G5: NILAI RAPORT | J5: KET
G6: Kognitif | H6: Afektif | I6: Psikomotor
A8: =+'DataBase-XI'!A5 -> 1 | B8: =IF(ISBLANK(A8),"",VLOOKUP(A8,Data2,2)) -> XI IPA-1 | C8: 1 | D8: =IF(ISBLANK(A8),"",VLOOKUP(A8,Data2,5)) -> 9907455968 | E8: =IF(ISBLANK(A8),"",VLOOKUP(A8,Data2,3)) -> AL HEELAL IDHANA | F8: =IF(ISBLANK(A8),"",VLOOKUP(A8,Data2,6)) -> L
A9: 2 | B9: XI IPA-1 | C9: 2 | D9: 0 | E9: 0 | F9: 0
A10: 3 | B10: XI IPA-1 | C10: 3 | D10: 0 | E10: 0 | F10: 0
A11: 4 | B11: XI IPA-1 | C11: 4 | D11: 0 | E11: 0 | F11: 0
A12: 5 | B12: XI IPA-1 | C12: 5 | D12: 0 | E12: 0 | F12: 0
A13: 6 | B13: XI IPA-1 | C13: 6 | D13: 0 | E13: 0 | F13: 0
A14: 7 | B14: XI IPA-1 | C14: 7 | D14: 0 | E14: 0 | F14: 0
A15: 8 | B15: XI IPA-1 | C15: 8 | D15: 0 | E15: 0 | F15: 0
A16: 9 | B16: XI IPA-1 | C16: 9 | D16: 0 | E16: 0 | F16: 0
A17: 10 | B17: XI IPA-1 | C17: 10 | D17: 0 | E17: 0 | F17: 0
A18: 11 | B18: XI IPA-1 | C18: 11 | D18: 0 | E18: 0 | F18: 0
A19: 12 | B19: XI IPA-1 | C19: 12 | D19: 0 | E19: 0 | F19: 0
A20: 13 | B20: XI IPA-1 | C20: 13 | D20: 0 | E20: 0 | F20: 0
A21: 14 | B21: XI IPA-1 | C21: 14 | D21: 0 | E21: 0 | F21: 0
A22: 15 | B22: XI IPA-1 | C22: 15 | D22: 0 | E22: 0 | F22: 0
A23: 16 | B23: XI IPA-1 | C23: 16 | D23: 0 | E23: 0 | F23: 0
A24: 17 | B24: XI IPA-1 | C24: 17 | D24: 0 | E24: 0 | F24: 0
A25: 18 | B25: XI IPA-1 | C25: 18 | D25: 0 | E25: 0 | F25: 0
A26: 19 | B26: XI IPA-1 | C26: 19 | D26: 0 | E26: 0 | F26: 0
A27: 20 | B27: XI IPA-1 | C27: 20 | D27: 0 | E27: 0 | F27: 0
A28: 21 | B28: XI IPA-1 | C28: 21 | D28: 0 | E28: 0 | F28: 0
A29: 22 | B29: XI IPA-1 | C29: 22 | D29: 0 | E29: 0 | F29: 0
A30: 23 | B30: XI IPA-1 | C30: 23 | D30: 0 | E30: 0 | F30: 0
A31: 24 | B31: XI IPA-1 | C31: 24 | D31: 0 | E31: 0 | F31: 0
A32: 25 | B32: XI IPA-1 | C32: 25 | D32: 0 | E32: 0 | F32: 0
A33: 26 | B33: XI IPA-1 | C33: 26 | D33: 0 | E33: 0 | F33: 0
A34: 27 | B34: XI IPA-1 | C34: 27 | D34: 0 | E34: 0 | F34: 0
A35: 28 | B35: XI IPA-1 | C35: 28 | D35: 0 | E35: 0 | F35: 0
A36: 29 | B36: XI IPA-1 | C36: 29 | D36: 0 | E36: 0 | F36: 0
A37: 30 | B37: XI IPA-1 | C37: 30 | D37: 0 | E37: 0 | F37: 0
A38: 31 | B38: XI IPA-1 | C38: 31 | D38: 0 | E38: 0 | F38: 0
A39: 32 | B39: XI IPA-1 | C39: 32 | D39: 0 | E39: 0 | F39: 0
A40: 33 | B40: XI IPA-1 | C40: 33 | D40: 0 | E40: 0 | F40: 0
A41: 34 | B41: XI IPA-1 | C41: 34 | D41: 0 | E41: 0 | F41: 0
A42: 35 | B42: XI IPA-1 | C42: 35 | D42: 0 | E42: 0 | F42: 0
A43: 36 | B43: XI IPA-1 | C43: 36 | D43: 0 | E43: 0 | F43: 0
A44: 37 | B44: XI IPA-1 | C44: 37 | D44: 0 | E44: 0 | F44: 0
A45: 38 | B45: XI IPA-1 | C45: 38 | D45: 0 | E45: 0 | F45: 0
A46: 39 | B46: XI IPA-1 | C46: 39 | D46: 0 | E46: 0 | F46: 0
A47: 40 | B47: XI IPA-1 | C47: 40
A49: =MAX(A8:A47) -> 40 | E49: Jumlah Laki-laki | F49: =COUNTIF(F8:F47,"L") -> 1
E50: Jumlah Perempuan | F50: =COUNTIF(F8:F47,"P") -> 0
E51: Jumlah Total | F51: =SUM(F49:F50) -> 1
C61: DAFTAR NILAI SISWA
C62: =+MENU!$D$8 -> SMA NEGERI 5 CILEGON
C63: =CONCATENATE(MENU!$C$7," ",MENU!$D$7) -> TAHUN AJARAN 2013-2014
C64: KELAS | E64: =IF(ISBLANK(A68),"",VLOOKUP(A68,Data2,2)) -> XI IPA-2
C65: NO | D65: NIS | E65: NAMA | F65: L/P | G65: NILAI RAPORT | J65: KET
G66: Kognitif | H66: Afektif | I66: Psikomotor
A68: =+'DataBase-XI'!A62 -> 46 | B68: =IF(ISBLANK(A68),"",VLOOKUP(A68,Data2,2)) -> XI IPA-2 | C68: 1 | D68: =IF(ISBLANK(A68),"",VLOOKUP(A68,Data2,5)) -> 9966354541 | E68: =IF(ISBLANK(A68),"",VLOOKUP(A68,Data2,3)) -> AFID HIDAYAT | F68: =IF(ISBLANK(A68),"",VLOOKUP(A68,Data2,6)) -> L
A69: =+A68+1 -> 47 | B69: XI IPA-2 | C69: 2 | D69: 0 | E69: 0 | F69: 0
A70: 48 | B70: XI IPA-2 | C70: 3 | D70: 0 | E70: 0 | F70: 0
A71: 49 | B71: XI IPA-2 | C71: 4 | D71: 0 | E71: 0 | F71: 0
A72: 50 | B72: XI IPA-2 | C72: 5 | D72: 0 | E72: 0 | F72: 0
A73: 51 | B73: XI IPA-2 | C73: 6 | D73: 0 | E73: 0 | F73: 0
A74: 52 | B74: XI IPA-2 | C74: 7 | D74: 0 | E74: 0 | F74: 0
A75: 53 | B75: XI IPA-2 | C75: 8 | D75: 0 | E75: 0 | F75: 0
A76: 54 | B76: XI IPA-2 | C76: 9 | D76: 0 | E76: 0 | F76: 0
A77: 55 | B77: XI IPA-2 | C77: 10 | D77: 0 | E77: 0 | F77: 0
A78: 56 | B78: XI IPA-2 | C78: 11 | D78: 0 | E78: 0 | F78: 0
A79: 57 | B79: XI IPA-2 | C79: 12 | D79: 0 | E79: 0 | F79: 0
A80: 58 | B80: XI IPA-2 | C80: 13 | D80: 0 | E80: 0 | F80: 0
A81: 59 | B81: XI IPA-2 | C81: 14 | D81: 0 | E81: 0 | F81: 0
A82: 60 | B82: XI IPA-2 | C82: 15 | D82: 0 | E82: 0 | F82: 0
A83: 61 | B83: XI IPA-2 | C83: 16 | D83: 0 | E83: 0 | F83: 0
A84: 62 | B84: XI IPA-2 | C84: 17 | D84: 0 | E84: 0 | F84: 0
A85: 63 | B85: XI IPA-2 | C85: 18 | D85: 0 | E85: 0 | F85: 0
A86: 64 | B86: XI IPA-2 | C86: 19 | D86: 0 | E86: 0 | F86: 0
A87: 65 | B87: XI IPA-2 | C87: 20 | D87: 0 | E87: 0 | F87: 0
A88: 66 | B88: XI IPA-2 | C88: 21 | D88: 0 | E88: 0 | F88: 0
A89: 67 | B89: XI IPA-2 | C89: 22 | D89: 0 | E89: 0 | F89: 0
A90: 68 | B90: XI IPA-2 | C90: 23 | D90: 0 | E90: 0 | F90: 0
A91: 69 | B91: XI IPA-2 | C91: 24 | D91: 0 | E91: 0 | F91: 0
A92: 70 | B92: XI IPA-2 | C92: 25 | D92: 0 | E92: 0 | F92: 0
A93: 71 | B93: XI IPA-2 | C93: 26 | D93: 0 | E93: 0 | F93: 0
A94: 72 | B94: XI IPA-2 | C94: 27 | D94: 0 | E94: 0 | F94: 0
A95: 73 | B95: XI IPA-2 | C95: 28 | D95: 0 | E95: 0 | F95: 0
A96: 74 | B96: XI IPA-2 | C96: 29 | D96: 0 | E96: 0 | F96: 0
A97: 75 | B97: XI IPA-2 | C97: 30 | D97: 0 | E97: 0 | F97: 0
A98: 76 | B98: XI IPA-2 | C98: 31 | D98: 0 | E98: 0 | F98: 0
A99: 77 | B99: XI IPA-2 | C99: 32 | D99: 0 | E99: 0 | F99: 0
A100: 78 | B100: XI IPA-2 | C100: 33 | D100: 0 | E100: 0 | F100: 0
A101: 79 | B101: XI IPA-2 | C101: 34 | D101: 0 | E101: 0 | F101: 0
A102: 80 | B102: XI IPA-2 | C102: 35 | D102: 0 | E102: 0 | F102: 0
A103: 81 | B103: XI IPA-2 | C103: 36 | D103: 0 | E103: 0 | F103: 0
A104: 82 | B104: XI IPA-2 | C104: 37 | D104: 0 | E104: 0 | F104: 0
A105: 83 | B105: XI IPA-2 | C105: 38 | D105: 0 | E105: 0 | F105: 0
A106: 84 | B106: XI IPA-2 | C106: 39 | D106: 0 | E106: 0 | F106: 0
A107: 85 | B107: XI IPA-2 | C107: 40 | D107: 0 | E107: 0 | F107: 0
A109: =MAX(A68:A105) -> 83 | E109: Jumlah Laki-laki | F109: =COUNTIF(F68:F107,"L") -> 1
E110: Jumlah Perempuan | F110: =COUNTIF(F68:F107,"P") -> 0
E111: Jumlah Total | F111: =SUM(F109:F110) -> 1
C119: DAFTAR NILAI SISWA
C120: =+MENU!$D$8 -> SMA NEGERI 5 CILEGON
C121: =CONCATENATE(MENU!$C$7," ",MENU!$D$7) -> TAHUN AJARAN 2013-2014
C122: KELAS | E122: =IF(ISBLANK(A126),"",VLOOKUP(A126,Data2,2)) -> XI IPA-3
C123: NO | D123: NIS | E123: NAMA | F123: L/P | G123: NILAI RAPORT | J123: KET
G124: Kognitif | H124: Afektif | I124: Psikomotor
A126: =+'DataBase-XI'!A119 -> 91 | B126: =IF(ISBLANK(A126),"",VLOOKUP(A126,Data2,2)) -> XI IPA-3 | C126: 1 | D126: =IF(ISBLANK(A126),"",VLOOKUP(A126,Data2,5)) -> 9966517605 | E126: =IF(ISBLANK(A126),"",VLOOKUP(A126,Data2,3)) -> ADE HAIRUNISA MARDIAH | F126: =IF(ISBLANK(A126),"",VLOOKUP(A126,Data2,6)) -> P
A127: =+A126+1 -> 92 | B127: XI IPA-3 | C127: 2 | D127: 0 | E127: 0 | F127: 0
A128: 93 | B128: XI IPA-3 | C128: 3 | D128: 0 | E128: 0 | F128: 0
A129: 94 | B129: XI IPA-3 | C129: 4 | D129: 0 | E129: 0 | F129: 0
A130: 95 | B130: XI IPA-3 | C130: 5 | D130: 0 | E130: 0 | F130: 0
A131: 96 | B131: XI IPA-3 | C131: 6 | D131: 0 | E131: 0 | F131: 0
A132: 97 | B132: XI IPA-3 | C132: 7 | D132: 0 | E132: 0 | F132: 0
A133: 98 | B133: XI IPA-3 | C133: 8 | D133: 0 | E133: 0 | F133: 0
A134: 99 | B134: XI IPA-3 | C134: 9 | D134: 0 | E134: 0 | F134: 0
A135: 100 | B135: XI IPA-3 | C135: 10 | D135: 0 | E135: 0 | F135: 0
A136: 101 | B136: XI IPA-3 | C136: 11 | D136: 0 | E136: 0 | F136: 0
A137: 102 | B137: XI IPA-3 | C137: 12 | D137: 0 | E137: 0 | F137: 0
A138: 103 | B138: XI IPA-3 | C138: 13 | D138: 0 | E138: 0 | F138: 0
A139: 104 | B139: XI IPA-3 | C139: 14 | D139: 0 | E139: 0 | F139: 0
A140: 105 | B140: XI IPA-3 | C140: 15 | D140: 0 | E140: 0 | F140: 0
A141: 106 | B141: XI IPA-3 | C141: 16 | D141: 0 | E141: 0 | F141: 0
A142: 107 | B142: XI IPA-3 | C142: 17 | D142: 0 | E142: 0 | F142: 0
A143: 108 | B143: XI IPA-3 | C143: 18 | D143: 0 | E143: 0 | F143: 0
A144: 109 | B144: XI IPA-3 | C144: 19 | D144: 0 | E144: 0 | F144: 0
A145: 110 | B145: XI IPA-3 | C145: 20 | D145: 0 | E145: 0 | F145: 0
A146: 111 | B146: XI IPA-3 | C146: 21 | D146: 0 | E146: 0 | F146: 0
A147: 112 | B147: XI IPA-3 | C147: 22 | D147: 0 | E147: 0 | F147: 0
A148: 113 | B148: XI IPA-3 | C148: 23 | D148: 0 | E148: 0 | F148: 0
A149: 114 | B149: XI IPA-3 | C149: 24 | D149: 0 | E149: 0 | F149: 0
A150: 115 | B150: XI IPA-3 | C150: 25 | D150: 0 | E150: 0 | F150: 0
A151: 116 | B151: XI IPA-3 | C151: 26 | D151: 0 | E151: 0 | F151: 0
A152: 117 | B152: XI IPA-3 | C152: 27 | D152: 0 | E152: 0 | F152: 0
A153: 118 | B153: XI IPA-3 | C153: 28 | D153: 0 | E153: 0 | F153: 0
A154: 119 | B154: XI IPA-3 | C154: 29 | D154: 0 | E154: 0 | F154: 0
A155: 120 | B155: XI IPA-3 | C155: 30 | D155: 0 | E155: 0 | F155: 0
A156: 121 | B156: XI IPA-3 | C156: 31 | D156: 0 | E156: 0 | F156: 0
A157: 122 | B157: XI IPA-3 | C157: 32 | D157: 0 | E157: 0 | F157: 0
A158: 123 | B158: XI IPA-3 | C158: 33 | D158: 0 | E158: 0 | F158: 0
A159: 124 | B159: XI IPA-3 | C159: 34 | D159: 0 | E159: 0 | F159: 0
A160: 125 | B160: XI IPA-3 | C160: 35 | D160: 0 | E160: 0 | F160: 0
A161: =+A160+1 -> 126 | B161: XI IPA-3 | C161: 36 | D161: 0 | E161: 0 | F161: 0
A162: =+A161+1 -> 127 | B162: XI IPA-3 | C162: 37 | D162: 0 | E162: 0 | F162: 0
A163: =+A162+1 -> 128 | B163: XI IPA-3 | C163: 38 | D163: 0 | E163: 0 | F163: 0
A164: =+A163+1 -> 129 | B164: XI IPA-3 | C164: 39 | D164: 0 | E164: 0 | F164: 0
A165: =+A164+1 -> 130 | B165: XI IPA-3 | C165: 40 | D165: 0 | E165: 0 | F165: 0
A167: =MAX(A126:A164) -> 129 | E167: Jumlah Laki-laki | F167: =COUNTIF(F126:F165,"L") -> 0
E168: Jumlah Perempuan | F168: =COUNTIF(F126:F165,"P") -> 1
E169: Jumlah Total | F169: =SUM(F167:F168) -> 1
C179: DAFTAR NILAI SISWA
C180: =+MENU!$D$8 -> SMA NEGERI 5 CILEGON
C181: =CONCATENATE(MENU!$C$7," ",MENU!$D$7) -> TAHUN AJARAN 2013-2014
C182: KELAS | E182: =IF(ISBLANK(A186),"",VLOOKUP(A186,Data2,2)) -> XI IPS-1
C183: NO | D183: NIS | E183: NAMA | F183: L/P | G183: NILAI RAPORT | J183: KET
G184: Kognitif | H184: Afektif | I184: Psikomotor
A186: =+'DataBase-XI'!A176 -> 136 | B186: =IF(ISBLANK(A186),"",VLOOKUP(A186,Data2,2)) -> XI IPS-1 | C186: 1 | D186: =IF(ISBLANK(A186),"",VLOOKUP(A186,Data2,5)) -> 9970454991 | E186: =IF(ISBLANK(A186),"",VLOOKUP(A186,Data2,3)) -> AAM TAMIMI | F186: =IF(ISBLANK(A186),"",VLOOKUP(A186,Data2,6)) -> L
A187: =+A186+1 -> 137 | B187: XI IPS-1 | C187: 2 | D187: 0 | E187: 0 | F187: 0
A188: 138 | B188: XI IPS-1 | C188: 3 | D188: 0 | E188: 0 | F188: 0
A189: 139 | B189: XI IPS-1 | C189: 4 | D189: 0 | E189: 0 | F189: 0
A190: 140 | B190: XI IPS-1 | C190: 5 | D190: 0 | E190: 0 | F190: 0
A191: 141 | B191: XI IPS-1 | C191: 6 | D191: 0 | E191: 0 | F191: 0
A192: 142 | B192: XI IPS-1 | C192: 7 | D192: 0 | E192: 0 | F192: 0
A193: 143 | B193: XI IPS-1 | C193: 8 | D193: 0 | E193: 0 | F193: 0
A194: 144 | B194: XI IPS-1 | C194: 9 | D194: 0 | E194: 0 | F194: 0
A195: 145 | B195: XI IPS-1 | C195: 10 | D195: 0 | E195: 0 | F195: 0
A196: 146 | B196: XI IPS-1 | C196: 11 | D196: 0 | E196: 0 | F196: 0
A197: 147 | B197: XI IPS-1 | C197: 12 | D197: 0 | E197: 0 | F197: 0
A198: 148 | B198: XI IPS-1 | C198: 13 | D198: 0 | E198: 0 | F198: 0
A199: 149 | B199: XI IPS-1 | C199: 14 | D199: 0 | E199: 0 | F199: 0
A200: 150 | B200: XI IPS-1 | C200: 15 | D200: 0 | E200: 0 | F200: 0
A201: 151 | B201: XI IPS-1 | C201: 16 | D201: 0 | E201: 0 | F201: 0
A202: 152 | B202: XI IPS-1 | C202: 17 | D202: 0 | E202: 0 | F202: 0
A203: 153 | B203: XI IPS-1 | C203: 18 | D203: 0 | E203: 0 | F203: 0
A204: 154 | B204: XI IPS-1 | C204: 19 | D204: 0 | E204: 0 | F204: 0
A205: 155 | B205: XI IPS-1 | C205: 20 | D205: 0 | E205: 0 | F205: 0
A206: 156 | B206: XI IPS-1 | C206: 21 | D206: 0 | E206: 0 | F206: 0
A207: 157 | B207: XI IPS-1 | C207: 22 | D207: 0 | E207: 0 | F207: 0
A208: 158 | B208: XI IPS-1 | C208: 23 | D208: 0 | E208: 0 | F208: 0
A209: 159 | B209: XI IPS-1 | C209: 24 | D209: 0 | E209: 0 | F209: 0
A210: 160 | B210: XI IPS-1 | C210: 25 | D210: 0 | E210: 0 | F210: 0
A211: 161 | B211: XI IPS-1 | C211: 26 | D211: 0 | E211: 0 | F211: 0
A212: 162 | B212: XI IPS-1 | C212: 27 | D212: 0 | E212: 0 | F212: 0
A213: 163 | B213: XI IPS-1 | C213: 28 | D213: 0 | E213: 0 | F213: 0
A214: 164 | B214: XI IPS-1 | C214: 29 | D214: 0 | E214: 0 | F214: 0
A215: 165 | B215: XI IPS-1 | C215: 30 | D215: 0 | E215: 0 | F215: 0
A216: 166 | B216: XI IPS-1 | C216: 31 | D216: 0 | E216: 0 | F216: 0
A217: 167 | B217: XI IPS-1 | C217: 32 | D217: 0 | E217: 0 | F217: 0
A218: 168 | B218: XI IPS-1 | C218: 33 | D218: 0 | E218: 0 | F218: 0
A219: 169 | B219: XI IPS-1 | C219: 34 | D219: 0 | E219: 0 | F219: 0
A220: 170 | B220: XI IPS-1 | C220: 35 | D220: 0 | E220: 0 | F220: 0
A221: =+A220+1 -> 171 | B221: XI IPS-1 | C221: 36 | D221: 0 | E221: 0 | F221: 0
A222: =+A221+1 -> 172 | B222: XI IPS-1 | C222: 37 | D222: 0 | E222: 0 | F222: 0
A223: =+A222+1 -> 173 | B223: XI IPS-1 | C223: 38 | D223: 0 | E223: 0 | F223: 0
A224: =+A223+1 -> 174 | B224: XI IPS-1 | C224: 39 | D224: 0 | E224: 0 | F224: 0
A225: =+A224+1 -> 175 | B225: XI IPS-1 | C225: 40 | D225: 0 | E225: 0 | F225: 0
A227: =MAX(A186:A224) -> 174 | E227: Jumlah Laki-laki | F227: =COUNTIF(F186:F225,"L") -> 1
E228: Jumlah Perempuan | F228: =COUNTIF(F186:F225,"P") -> 0
E229: Jumlah Total | F229: =SUM(F227:F228) -> 1
C239: DAFTAR NILAI SISWA
C240: =+MENU!$D$8 -> SMA NEGERI 5 CILEGON
C241: =CONCATENATE(MENU!$C$7," ",MENU!$D$7) -> TAHUN AJARAN 2013-2014
C242: KELAS | E242: =IF(ISBLANK(A246),"",VLOOKUP(A246,Data2,2)) -> XI IPS-2
... 94 more rows

Sheet Blanko-Daf Nilai XI
A1: NO URUT DATABASE | C1: DAFTAR NILAI MURNI
C2: =+MENU!$D$8 -> SMA NEGERI 5 CILEGON
C3: =CONCATENATE(MENU!$C$7," ",MENU!$D$7) -> TAHUN AJARAN 2013-2014
C5: MATA PELAJARAN | E5: ; | M5: Kelas/Semester: | P5: =+B10 -> XI IPA-1
C6: NAMA SEKOLAH | E6: =+$C$2 -> SMA NEGERI 5 CILEGON
C7: NO | D7: NAMA SISWA | E7: NISN | F7: L/P | G7: NILAI HARIAN / TUGAS | M7: RATA-RATA | N7: KETUNTASAN | P7: KET
G9: 1 | H9: 2 | I9: 3 | J9: 4 | K9: 5 | L9: 6 | N9: YA | O9: TIDAK
A10: =+'DataBase-XI'!A5 -> 1 | B10: =IF(ISBLANK(A10),"",VLOOKUP(A10,Data2,2)) -> XI IPA-1 | C10: 1 | D10: =IF(ISBLANK(A10),"",VLOOKUP(A10,Data2,3)) -> AL HEELAL IDHANA | E10: =IF(ISBLANK(A10),"",VLOOKUP(A10,Data2,5)) -> 9907455968 | F10: =IF(ISBLANK(A10),"",VLOOKUP(A10,Data2,6)) -> L
A11: 2 | B11: XI IPA-1 | C11: 2 | D11: 0 | E11: 0 | F11: 0
A12: 3 | B12: XI IPA-1 | C12: 3 | D12: 0 | E12: 0 | F12: 0
A13: 4 | B13: XI IPA-1 | C13: 4 | D13: 0 | E13: 0 | F13: 0
A14: 5 | B14: XI IPA-1 | C14: 5 | D14: 0 | E14: 0 | F14: 0
A15: 6 | B15: XI IPA-1 | C15: 6 | D15: 0 | E15: 0 | F15: 0
A16: 7 | B16: XI IPA-1 | C16: 7 | D16: 0 | E16: 0 | F16: 0
A17: 8 | B17: XI IPA-1 | C17: 8 | D17: 0 | E17: 0 | F17: 0
A18: 9 | B18: XI IPA-1 | C18: 9 | D18: 0 | E18: 0 | F18: 0
A19: 10 | B19: XI IPA-1 | C19: 10 | D19: 0 | E19: 0 | F19: 0
A20: 11 | B20: XI IPA-1 | C20: 11 | D20: 0 | E20: 0 | F20: 0
A21: 12 | B21: XI IPA-1 | C21: 12 | D21: 0 | E21: 0 | F21: 0
A22: 13 | B22: XI IPA-1 | C22: 13 | D22: 0 | E22: 0 | F22: 0
A23: 14 | B23: XI IPA-1 | C23: 14 | D23: 0 | E23: 0 | F23: 0
A24: 15 | B24: XI IPA-1 | C24: 15 | D24: 0 | E24: 0 | F24: 0
A25: 16 | B25: XI IPA-1 | C25: 16 | D25: 0 | E25: 0 | F25: 0
A26: 17 | B26: XI IPA-1 | C26: 17 | D26: 0 | E26: 0 | F26: 0
A27: 18 | B27: XI IPA-1 | C27: 18 | D27: 0 | E27: 0 | F27: 0
A28: 19 | B28: XI IPA-1 | C28: 19 | D28: 0 | E28: 0 | F28: 0
A29: 20 | B29: XI IPA-1 | C29: 20 | D29: 0 | E29: 0 | F29: 0
A30: 21 | B30: XI IPA-1 | C30: 21 | D30: 0 | E30: 0 | F30: 0
A31: 22 | B31: XI IPA-1 | C31: 22 | D31: 0 | E31: 0 | F31: 0
A32: 23 | B32: XI IPA-1 | C32: 23 | D32: 0 | E32: 0 | F32: 0
A33: 24 | B33: XI IPA-1 | C33: 24 | D33: 0 | E33: 0 | F33: 0
A34: 25 | B34: XI IPA-1 | C34: 25 | D34: 0 | E34: 0 | F34: 0
A35: 26 | B35: XI IPA-1 | C35: 26 | D35: 0 | E35: 0 | F35: 0
A36: 27 | B36: XI IPA-1 | C36: 27 | D36: 0 | E36: 0 | F36: 0
A37: 28 | B37: XI IPA-1 | C37: 28 | D37: 0 | E37: 0 | F37: 0
A38: 29 | B38: XI IPA-1 | C38: 29 | D38: 0 | E38: 0 | F38: 0
A39: 30 | B39: XI IPA-1 | C39: 30 | D39: 0 | E39: 0 | F39: 0
A40: 31 | B40: XI IPA-1 | C40: 31 | D40: 0 | E40: 0 | F40: 0
A41: 32 | B41: XI IPA-1 | C41: 32 | D41: 0 | E41: 0 | F41: 0
A42: 33 | B42: XI IPA-1 | C42: 33 | D42: 0 | E42: 0 | F42: 0
A43: 34 | B43: XI IPA-1 | C43: 34 | D43: 0 | E43: 0 | F43: 0
A44: 35 | B44: XI IPA-1 | C44: 35 | D44: 0 | E44: 0 | F44: 0
A45: 36 | B45: XI IPA-1 | C45: 36 | D45: 0 | E45: 0 | F45: 0
A46: 37 | B46: XI IPA-1 | C46: 37 | D46: 0 | E46: 0 | F46: 0
A47: 38 | B47: XI IPA-1 | C47: 38 | D47: 0 | E47: 0 | F47: 0
A48: 39 | B48: XI IPA-1 | C48: 39 | D48: 0 | E48: 0 | F48: 0
A49: 40 | B49: XI IPA-1 | C49: 40 | D49: 0 | E49: 0 | F49: 0
D50: Mengetahui | M50: =CONCATENATE(MENU!$D$13," , ",R50) -> Cilegon , 24 Juli 2013 | R50: =TEXT(NOW(),"dd mmmm yyyy") -> 24 Juli 2013
A51: =MAX(A10:A47) -> 38 | D51: Waka Kurikulum | M51: Guru Bidang Study
D54: ................................ | M54: ................................
D55: NIP: | G55: Mengetahui | M55: NIP:
G56: Kepala Sekolah
G59: =+[1]MENU!$C$16 -> Asep Mansur,S.Pd
G60: =+[1]MENU!$C$17 -> NIP: 19620101 198512 1 004
C65: DAFTAR NILAI MURNI
C66: =+$C$2 -> SMA NEGERI 5 CILEGON
C67: =+$C$3 -> TAHUN AJARAN 2013-2014
C69: MATA PELAJARAN | E69: ; | M69: Kelas/Semester: | P69: =+B74 -> XI IPA-2
C70: NAMA SEKOLAH | E70: =+$C$2 -> SMA NEGERI 5 CILEGON
C71: NO | D71: NAMA SISWA | E71: NISN | F71: L/P | G71: NILAI HARIAN / TUGAS | M71: RATA-RATA | N71: KETUNTASAN | P71: KET
G73: 1 | H73: 2 | I73: 3 | J73: 4 | K73: 5 | L73: 6 | N73: YA | O73: TIDAK
A74: =+'DataBase-XI'!A62 -> 46 | B74: =IF(ISBLANK(A74),"",VLOOKUP(A74,Data2,2)) -> XI IPA-2 | C74: 1 | D74: =IF(ISBLANK(A74),"",VLOOKUP(A74,Data2,3)) -> AFID HIDAYAT | E74: =IF(ISBLANK(A74),"",VLOOKUP(A74,Data2,5)) -> 9966354541 | F74: =IF(ISBLANK(A74),"",VLOOKUP(A74,Data2,6)) -> L
A75: =+A74+1 -> 47 | B75: XI IPA-2 | C75: 2 | D75: 0 | E75: 0 | F75: 0
A76: 48 | B76: XI IPA-2 | C76: 3 | D76: 0 | E76: 0 | F76: 0
A77: 49 | B77: XI IPA-2 | C77: 4 | D77: 0 | E77: 0 | F77: 0
A78: 50 | B78: XI IPA-2 | C78: 5 | D78: 0 | E78: 0 | F78: 0
A79: 51 | B79: XI IPA-2 | C79: 6 | D79: 0 | E79: 0 | F79: 0
A80: 52 | B80: XI IPA-2 | C80: 7 | D80: 0 | E80: 0 | F80: 0
A81: 53 | B81: XI IPA-2 | C81: 8 | D81: 0 | E81: 0 | F81: 0
A82: 54 | B82: XI IPA-2 | C82: 9 | D82: 0 | E82: 0 | F82: 0
A83: 55 | B83: XI IPA-2 | C83: 10 | D83: 0 | E83: 0 | F83: 0
A84: 56 | B84: XI IPA-2 | C84: 11 | D84: 0 | E84: 0 | F84: 0
A85: 57 | B85: XI IPA-2 | C85: 12 | D85: 0 | E85: 0 | F85: 0
A86: 58 | B86: XI IPA-2 | C86: 13 | D86: 0 | E86: 0 | F86: 0
A87: 59 | B87: XI IPA-2 | C87: 14 | D87: 0 | E87: 0 | F87: 0
A88: 60 | B88: XI IPA-2 | C88: 15 | D88: 0 | E88: 0 | F88: 0
A89: 61 | B89: XI IPA-2 | C89: 16 | D89: 0 | E89: 0 | F89: 0
A90: 62 | B90: XI IPA-2 | C90: 17 | D90: 0 | E90: 0 | F90: 0
A91: 63 | B91: XI IPA-2 | C91: 18 | D91: 0 | E91: 0 | F91: 0
A92: 64 | B92: XI IPA-2 | C92: 19 | D92: 0 | E92: 0 | F92: 0
A93: 65 | B93: XI IPA-2 | C93: 20 | D93: 0 | E93: 0 | F93: 0
A94: 66 | B94: XI IPA-2 | C94: 21 | D94: 0 | E94: 0 | F94: 0
A95: 67 | B95: XI IPA-2 | C95: 22 | D95: 0 | E95: 0 | F95: 0
A96: 68 | B96: XI IPA-2 | C96: 23 | D96: 0 | E96: 0 | F96: 0
A97: 69 | B97: XI IPA-2 | C97: 24 | D97: 0 | E97: 0 | F97: 0
A98: 70 | B98: XI IPA-2 | C98: 25 | D98: 0 | E98: 0 | F98: 0
A99: 71 | B99: XI IPA-2 | C99: 26 | D99: 0 | E99: 0 | F99: 0
A100: 72 | B100: XI IPA-2 | C100: 27 | D100: 0 | E100: 0 | F100: 0
A101: 73 | B101: XI IPA-2 | C101: 28 | D101: 0 | E101: 0 | F101: 0
A102: 74 | B102: XI IPA-2 | C102: 29 | D102: 0 | E102: 0 | F102: 0
A103: 75 | B103: XI IPA-2 | C103: 30 | D103: 0 | E103: 0 | F103: 0
A104: 76 | B104: XI IPA-2 | C104: 31 | D104: 0 | E104: 0 | F104: 0
A105: 77 | B105: XI IPA-2 | C105: 32 | D105: 0 | E105: 0 | F105: 0
A106: 78 | B106: XI IPA-2 | C106: 33 | D106: 0 | E106: 0 | F106: 0
A107: 79 | B107: XI IPA-2 | C107: 34 | D107: 0 | E107: 0 | F107: 0
A108: 80 | B108: XI IPA-2 | C108: 35 | D108: 0 | E108: 0 | F108: 0
A109: 81 | B109: XI IPA-2 | C109: 36 | D109: 0 | E109: 0 | F109: 0
A110: 82 | B110: XI IPA-2 | C110: 37 | D110: 0 | E110: 0 | F110: 0
A111: =+A110+1 -> 83 | B111: XI IPA-2 | C111: 38 | D111: 0 | E111: 0 | F111: 0
A112: =+A111+1 -> 84 | B112: XI IPA-2 | C112: 39 | D112: 0 | E112: 0 | F112: 0
A113: =+A112+1 -> 85 | B113: XI IPA-2 | C113: 40 | D113: 0 | E113: 0 | F113: 0
D114: Mengetahui | M114: =CONCATENATE(MENU!$D$13," , ",R114) -> Cilegon , 24 Juli 2013 | R114: =TEXT(NOW(),"dd mmmm yyyy") -> 24 Juli 2013
A115: =MAX(A74:A112) -> 84 | D115: Waka Kurikulum | M115: Guru Bidang Study
D118: ................................ | M118: ................................
D119: NIP: | G119: Mengetahui | M119: NIP:
G120: Kepala Sekolah
G123: =+[1]MENU!$C$16 -> Asep Mansur,S.Pd
G124: =+[1]MENU!$C$17 -> NIP: 19620101 198512 1 004
C129: DAFTAR NILAI MURNI
C130: =+$C$2 -> SMA NEGERI 5 CILEGON
C131: =+$C$3 -> TAHUN AJARAN 2013-2014
C133: MATA PELAJARAN | E133: ; | M133: Kelas/Semester: | P133: =+B138 -> XI IPA-3
C134: NAMA SEKOLAH | E134: =+$C$2 -> SMA NEGERI 5 CILEGON
C135: NO | D135: NAMA SISWA | E135: NISN | F135: L/P | G135: NILAI HARIAN / TUGAS | M135: RATA-RATA | N135: KETUNTASAN | P135: KET
G137: 1 | H137: 2 | I137: 3 | J137: 4 | K137: 5 | L137: 6 | N137: YA | O137: TIDAK
A138: =+'DataBase-XI'!A119 -> 91 | B138: =IF(ISBLANK(A138),"",VLOOKUP(A138,Data2,2)) -> XI IPA-3 | C138: 1 | D138: =IF(ISBLANK(A138),"",VLOOKUP(A138,Data2,3)) -> ADE HAIRUNISA MARDIAH | E138: =IF(ISBLANK(A138),"",VLOOKUP(A138,Data2,5)) -> 9966517605 | F138: =IF(ISBLANK(A138),"",VLOOKUP(A138,Data2,6)) -> P
A139: =+A138+1 -> 92 | B139: XI IPA-3 | C139: 2 | D139: 0 | E139: 0 | F139: 0
A140: 93 | B140: XI IPA-3 | C140: 3 | D140: 0 | E140: 0 | F140: 0
A141: 94 | B141: XI IPA-3 | C141: 4 | D141: 0 | E141: 0 | F141: 0
A142: 95 | B142: XI IPA-3 | C142: 5 | D142: 0 | E142: 0 | F142: 0
A143: 96 | B143: XI IPA-3 | C143: 6 | D143: 0 | E143: 0 | F143: 0
A144: 97 | B144: XI IPA-3 | C144: 7 | D144: 0 | E144: 0 | F144: 0
A145: 98 | B145: XI IPA-3 | C145: 8 | D145: 0 | E145: 0 | F145: 0
A146: 99 | B146: XI IPA-3 | C146: 9 | D146: 0 | E146: 0 | F146: 0
A147: 100 | B147: XI IPA-3 | C147: 10 | D147: 0 | E147: 0 | F147: 0
A148: 101 | B148: XI IPA-3 | C148: 11 | D148: 0 | E148: 0 | F148: 0
A149: 102 | B149: XI IPA-3 | C149: 12 | D149: 0 | E149: 0 | F149: 0
A150: 103 | B150: XI IPA-3 | C150: 13 | D150: 0 | E150: 0 | F150: 0
A151: 104 | B151: XI IPA-3 | C151: 14 | D151: 0 | E151: 0 | F151: 0
A152: 105 | B152: XI IPA-3 | C152: 15 | D152: 0 | E152: 0 | F152: 0
A153: 106 | B153: XI IPA-3 | C153: 16 | D153: 0 | E153: 0 | F153: 0
A154: 107 | B154: XI IPA-3 | C154: 17 | D154: 0 | E154: 0 | F154: 0
A155: 108 | B155: XI IPA-3 | C155: 18 | D155: 0 | E155: 0 | F155: 0
A156: 109 | B156: XI IPA-3 | C156: 19 | D156: 0 | E156: 0 | F156: 0
A157: 110 | B157: XI IPA-3 | C157: 20 | D157: 0 | E157: 0 | F157: 0
A158: 111 | B158: XI IPA-3 | C158: 21 | D158: 0 | E158: 0 | F158: 0
A159: 112 | B159: XI IPA-3 | C159: 22 | D159: 0 | E159: 0 | F159: 0
A160: 113 | B160: XI IPA-3 | C160: 23 | D160: 0 | E160: 0 | F160: 0
A161: 114 | B161: XI IPA-3 | C161: 24 | D161: 0 | E161: 0 | F161: 0
A162: 115 | B162: XI IPA-3 | C162: 25 | D162: 0 | E162: 0 | F162: 0
A163: 116 | B163: XI IPA-3 | C163: 26 | D163: 0 | E163: 0 | F163: 0
A164: 117 | B164: XI IPA-3 | C164: 27 | D164: 0 | E164: 0 | F164: 0
A165: 118 | B165: XI IPA-3 | C165: 28 | D165: 0 | E165: 0 | F165: 0
A166: 119 | B166: XI IPA-3 | C166: 29 | D166: 0 | E166: 0 | F166: 0
A167: 120 | B167: XI IPA-3 | C167: 30 | D167: 0 | E167: 0 | F167: 0
A168: 121 | B168: XI IPA-3 | C168: 31 | D168: 0 | E168: 0 | F168: 0
A169: 122 | B169: XI IPA-3 | C169: 32 | D169: 0 | E169: 0 | F169: 0
A170: 123 | B170: XI IPA-3 | C170: 33 | D170: 0 | E170: 0 | F170: 0
A171: 124 | B171: XI IPA-3 | C171: 34 | D171: 0 | E171: 0 | F171: 0
A172: 125 | B172: XI IPA-3 | C172: 35 | D172: 0 | E172: 0 | F172: 0
A173: =+A172+1 -> 126 | B173: XI IPA-3 | C173: 36 | D173: 0 | E173: 0 | F173: 0
A174: =+A173+1 -> 127 | B174: XI IPA-3 | C174: 37 | D174: 0 | E174: 0 | F174: 0
A175: =+A174+1 -> 128 | B175: XI IPA-3 | C175: 38 | D175: 0 | E175: 0 | F175: 0
A176: =+A175+1 -> 129 | B176: XI IPA-3 | C176: 39 | D176: 0 | E176: 0 | F176: 0
A177: =+A176+1 -> 130 | B177: XI IPA-3 | C177: 40 | D177: 0 | E177: 0 | F177: 0
D178: Mengetahui | M178: =CONCATENATE(MENU!$D$13," , ",R178) -> Cilegon , 24 Juli 2013 | R178: =TEXT(NOW(),"dd mmmm yyyy") -> 24 Juli 2013
A179: =MAX(A138:A176) -> 129 | D179: Waka Kurikulum | M179: Guru Bidang Study
D182: ................................ | M182: ................................
D183: NIP: | G183: Mengetahui | M183: NIP:
G184: Kepala Sekolah
G187: =+[1]MENU!$C$16 -> Asep Mansur,S.Pd
G188: =+[1]MENU!$C$17 -> NIP: 19620101 198512 1 004
C193: DAFTAR NILAI MURNI
C194: =+$C$2 -> SMA NEGERI 5 CILEGON
C195: =+$C$3 -> TAHUN AJARAN 2013-2014
C197: MATA PELAJARAN | E197: ; | M197: Kelas/Semester: | P197: =+B202 -> XI IPS-1
C198: NAMA SEKOLAH | E198: =+$C$2 -> SMA NEGERI 5 CILEGON
C199: NO | D199: NAMA SISWA | E199: NISN | F199: L/P | G199: NILAI HARIAN / TUGAS | M199: RATA-RATA | N199: KETUNTASAN | P199: KET
G201: 1 | H201: 2 | I201: 3 | J201: 4 | K201: 5 | L201: 6 | N201: YA | O201: TIDAK
A202: =+'DataBase-XI'!A176 -> 136 | B202: =IF(ISBLANK(A202),"",VLOOKUP(A202,Data2,2)) -> XI IPS-1 | C202: 1 | D202: =IF(ISBLANK(A202),"",VLOOKUP(A202,Data2,3)) -> AAM TAMIMI | E202: =IF(ISBLANK(A202),"",VLOOKUP(A202,Data2,5)) -> 9970454991 | F202: =IF(ISBLANK(A202),"",VLOOKUP(A202,Data2,6)) -> L
A203: =+A202+1 -> 137 | B203: XI IPS-1 | C203: 2 | D203: 0 | E203: 0 | F203: 0
A204: 138 | B204: XI IPS-1 | C204: 3 | D204: 0 | E204: 0 | F204: 0
A205: 139 | B205: XI IPS-1 | C205: 4 | D205: 0 | E205: 0 | F205: 0
A206: 140 | B206: XI IPS-1 | C206: 5 | D206: 0 | E206: 0 | F206: 0
A207: 141 | B207: XI IPS-1 | C207: 6 | D207: 0 | E207: 0 | F207: 0
A208: 142 | B208: XI IPS-1 | C208: 7 | D208: 0 | E208: 0 | F208: 0
A209: 143 | B209: XI IPS-1 | C209: 8 | D209: 0 | E209: 0 | F209: 0
A210: 144 | B210: XI IPS-1 | C210: 9 | D210: 0 | E210: 0 | F210: 0
A211: 145 | B211: XI IPS-1 | C211: 10 | D211: 0 | E211: 0 | F211: 0
A212: 146 | B212: XI IPS-1 | C212: 11 | D212: 0 | E212: 0 | F212: 0
A213: 147 | B213: XI IPS-1 | C213: 12 | D213: 0 | E213: 0 | F213: 0
A214: 148 | B214: XI IPS-1 | C214: 13 | D214: 0 | E214: 0 | F214: 0
A215: 149 | B215: XI IPS-1 | C215: 14 | D215: 0 | E215: 0 | F215: 0
A216: 150 | B216: XI IPS-1 | C216: 15 | D216: 0 | E216: 0 | F216: 0
A217: 151 | B217: XI IPS-1 | C217: 16 | D217: 0 | E217: 0 | F217: 0
A218: 152 | B218: XI IPS-1 | C218: 17 | D218: 0 | E218: 0 | F218: 0
A219: 153 | B219: XI IPS-1 | C219: 18 | D219: 0 | E219: 0 | F219: 0
A220: 154 | B220: XI IPS-1 | C220: 19 | D220: 0 | E220: 0 | F220: 0
A221: 155 | B221: XI IPS-1 | C221: 20 | D221: 0 | E221: 0 | F221: 0
A222: 156 | B222: XI IPS-1 | C222: 21 | D222: 0 | E222: 0 | F222: 0
A223: 157 | B223: XI IPS-1 | C223: 22 | D223: 0 | E223: 0 | F223: 0
A224: 158 | B224: XI IPS-1 | C224: 23 | D224: 0 | E224: 0 | F224: 0
A225: 159 | B225: XI IPS-1 | C225: 24 | D225: 0 | E225: 0 | F225: 0
A226: 160 | B226: XI IPS-1 | C226: 25 | D226: 0 | E226: 0 | F226: 0
A227: 161 | B227: XI IPS-1 | C227: 26 | D227: 0 | E227: 0 | F227: 0
A228: 162 | B228: XI IPS-1 | C228: 27 | D228: 0 | E228: 0 | F228: 0
A229: 163 | B229: XI IPS-1 | C229: 28 | D229: 0 | E229: 0 | F229: 0
A230: 164 | B230: XI IPS-1 | C230: 29 | D230: 0 | E230: 0 | F230: 0
A231: 165 | B231: XI IPS-1 | C231: 30 | D231: 0 | E231: 0 | F231: 0
A232: 166 | B232: XI IPS-1 | C232: 31 | D232: 0 | E232: 0 | F232: 0
... 124 more rows

Sheet Absen-XII
A1: NO URUT DATABASE | C1: DAFTAR HADIR SISWA
C2: =+MENU!$D$8 -> SMA NEGERI 5 CILEGON
C3: =CONCATENATE(MENU!$C$7," ",MENU!$D$7) -> TAHUN AJARAN 2013-2014
C4: KELAS | E4: =IF(ISBLANK(A8),"",VLOOKUP(A8,Data3,2)) -> XII IPA-1
C5: NO | D5: NIS | E5: NAMA | F5: L/P | G5: Tanggal
A8: =+'DataBase-XI'!A5 -> 1 | B8: =IF(ISBLANK(A8),"",VLOOKUP(A8,Data3,2)) -> XII IPA-1 | C8: 1 | D8: =IF(ISBLANK(A8),"",VLOOKUP(A8,Data3,5)) -> 9960473779 | E8: =IF(ISBLANK(A8),"",VLOOKUP(A8,Data3,3)) -> ADE ROSIHA | F8: =IF(ISBLANK(A8),"",VLOOKUP(A8,Data3,6)) -> P
A9: 2 | B9: XII IPA-1 | C9: 2 | D9: 0 | E9: 0 | F9: 0
A10: 3 | B10: XII IPA-1 | C10: 3 | D10: 0 | E10: 0 | F10: 0
A11: 4 | B11: XII IPA-1 | C11: 4 | D11: 0 | E11: 0 | F11: 0
A12: 5 | B12: XII IPA-1 | C12: 5 | D12: 0 | E12: 0 | F12: 0
A13: 6 | B13: XII IPA-1 | C13: 6 | D13: 0 | E13: 0 | F13: 0
A14: 7 | B14: XII IPA-1 | C14: 7 | D14: 0 | E14: 0 | F14: 0
A15: 8 | B15: XII IPA-1 | C15: 8 | D15: 0 | E15: 0 | F15: 0
A16: 9 | B16: XII IPA-1 | C16: 9 | D16: 0 | E16: 0 | F16: 0
A17: 10 | B17: XII IPA-1 | C17: 10 | D17: 0 | E17: 0 | F17: 0
A18: 11 | B18: XII IPA-1 | C18: 11 | D18: 0 | E18: 0 | F18: 0
A19: 12 | B19: XII IPA-1 | C19: 12 | D19: 0 | E19: 0 | F19: 0
A20: 13 | B20: XII IPA-1 | C20: 13 | D20: 0 | E20: 0 | F20: 0
A21: 14 | B21: XII IPA-1 | C21: 14 | D21: 0 | E21: 0 | F21: 0
A22: 15 | B22: XII IPA-1 | C22: 15 | D22: 0 | E22: 0 | F22: 0
A23: 16 | B23: XII IPA-1 | C23: 16 | D23: 0 | E23: 0 | F23: 0
A24: 17 | B24: XII IPA-1 | C24: 17 | D24: 0 | E24: 0 | F24: 0
A25: 18 | B25: XII IPA-1 | C25: 18 | D25: 0 | E25: 0 | F25: 0
A26: 19 | B26: XII IPA-1 | C26: 19 | D26: 0 | E26: 0 | F26: 0
A27: 20 | B27: XII IPA-1 | C27: 20 | D27: 0 | E27: 0 | F27: 0
A28: 21 | B28: XII IPA-1 | C28: 21 | D28: 0 | E28: 0 | F28: 0
A29: 22 | B29: XII IPA-1 | C29: 22 | D29: 0 | E29: 0 | F29: 0
A30: 23 | B30: XII IPA-1 | C30: 23 | D30: 0 | E30: 0 | F30: 0
A31: 24 | B31: XII IPA-1 | C31: 24 | D31: 0 | E31: 0 | F31: 0
A32: 25 | B32: XII IPA-1 | C32: 25 | D32: 0 | E32: 0 | F32: 0
A33: 26 | B33: XII IPA-1 | C33: 26 | D33: 0 | E33: 0 | F33: 0
A34: 27 | B34: XII IPA-1 | C34: 27 | D34: 0 | E34: 0 | F34: 0
A35: 28 | B35: XII IPA-1 | C35: 28 | D35: 0 | E35: 0 | F35: 0
A36: 29 | B36: XII IPA-1 | C36: 29 | D36: 0 | E36: 0 | F36: 0
A37: 30 | B37: XII IPA-1 | C37: 30 | D37: 0 | E37: 0 | F37: 0
A38: 31 | B38: XII IPA-1 | C38: 31 | D38: 0 | E38: 0 | F38: 0
A39: 32 | B39: XII IPA-1 | C39: 32 | D39: 0 | E39: 0 | F39: 0
A40: 33 | B40: XII IPA-1 | C40: 33 | D40: 0 | E40: 0 | F40: 0
A41: 34 | B41: XII IPA-1 | C41: 34 | D41: 0 | E41: 0 | F41: 0
A42: 35 | B42: XII IPA-1 | C42: 35 | D42: 0 | E42: 0 | F42: 0
A43: 36 | B43: XII IPA-1 | C43: 36 | D43: 0 | E43: 0 | F43: 0
A44: 37 | B44: XII IPA-1 | C44: 37 | D44: 0 | E44: 0 | F44: 0
A45: 38 | B45: XII IPA-1 | C45: 38 | D45: 0 | E45: 0 | F45: 0
A46: 39 | B46: XII IPA-1 | C46: 39 | D46: 0 | E46: 0 | F46: 0
A47: 40 | B47: XII IPA-1 | C47: 40
A49: =MAX(A8:A47) -> 40 | E49: Jumlah Laki-laki | F49: =COUNTIF(F8:F47,"L") -> 0 | U49: Cilegon,…………………………….20
E50: Jumlah Perempuan | F50: =COUNTIF(F8:F47,"P") -> 1 | U50: Guru Bidang Studi
E51: Jumlah Total | F51: =SUM(F49:F50) -> 1
U57: (……………………...……….)
U58: NIP:…………………………………….
C69: DAFTAR HADIR SISWA
C70: =+MENU!$D$8 -> SMA NEGERI 5 CILEGON
C71: =CONCATENATE(MENU!$C$7," ",MENU!$D$7) -> TAHUN AJARAN 2013-2014
C72: KELAS | E72: =IF(ISBLANK(A76),"",VLOOKUP(A76,Data3,2)) -> XII IPA-2
C73: NO | D73: NIS | E73: NAMA | F73: L/P | G73: Tanggal
A76: =+'DataBase-XI'!A62 -> 46 | B76: =IF(ISBLANK(A76),"",VLOOKUP(A76,Data3,2)) -> XII IPA-2 | C76: 1 | D76: =IF(ISBLANK(A76),"",VLOOKUP(A76,Data3,5)) -> 9960470745 | E76: =IF(ISBLANK(A76),"",VLOOKUP(A76,Data3,3)) -> ALLISYAARA NOERHUZA | F76: =IF(ISBLANK(A76),"",VLOOKUP(A76,Data3,6)) -> P
A77: =+A76+1 -> 47 | B77: XII IPA-2 | C77: 2 | D77: 0 | E77: 0 | F77: 0
A78: 48 | B78: XII IPA-2 | C78: 3 | D78: 0 | E78: 0 | F78: 0
A79: 49 | B79: XII IPA-2 | C79: 4 | D79: 0 | E79: 0 | F79: 0
A80: 50 | B80: XII IPA-2 | C80: 5 | D80: 0 | E80: 0 | F80: 0
A81: 51 | B81: XII IPA-2 | C81: 6 | D81: 0 | E81: 0 | F81: 0
A82: 52 | B82: XII IPA-2 | C82: 7 | D82: 0 | E82: 0 | F82: 0
A83: 53 | B83: XII IPA-2 | C83: 8 | D83: 0 | E83: 0 | F83: 0
A84: 54 | B84: XII IPA-2 | C84: 9 | D84: 0 | E84: 0 | F84: 0
A85: 55 | B85: XII IPA-2 | C85: 10 | D85: 0 | E85: 0 | F85: 0
A86: 56 | B86: XII IPA-2 | C86: 11 | D86: 0 | E86: 0 | F86: 0
A87: 57 | B87: XII IPA-2 | C87: 12 | D87: 0 | E87: 0 | F87: 0
A88: 58 | B88: XII IPA-2 | C88: 13 | D88: 0 | E88: 0 | F88: 0
A89: 59 | B89: XII IPA-2 | C89: 14 | D89: 0 | E89: 0 | F89: 0
A90: 60 | B90: XII IPA-2 | C90: 15 | D90: 0 | E90: 0 | F90: 0
A91: 61 | B91: XII IPA-2 | C91: 16 | D91: 0 | E91: 0 | F91: 0
A92: 62 | B92: XII IPA-2 | C92: 17 | D92: 0 | E92: 0 | F92: 0
A93: 63 | B93: XII IPA-2 | C93: 18 | D93: 0 | E93: 0 | F93: 0
A94: 64 | B94: XII IPA-2 | C94: 19 | D94: 0 | E94: 0 | F94: 0
A95: 65 | B95: XII IPA-2 | C95: 20 | D95: 0 | E95: 0 | F95: 0
A96: 66 | B96: XII IPA-2 | C96: 21 | D96: 0 | E96: 0 | F96: 0
A97: 67 | B97: XII IPA-2 | C97: 22 | D97: 0 | E97: 0 | F97: 0
A98: 68 | B98: XII IPA-2 | C98: 23 | D98: 0 | E98: 0 | F98: 0
A99: 69 | B99: XII IPA-2 | C99: 24 | D99: 0 | E99: 0 | F99: 0
A100: 70 | B100: XII IPA-2 | C100: 25 | D100: 0 | E100: 0 | F100: 0
A101: 71 | B101: XII IPA-2 | C101: 26 | D101: 0 | E101: 0 | F101: 0
A102: 72 | B102: XII IPA-2 | C102: 27 | D102: 0 | E102: 0 | F102: 0
A103: 73 | B103: XII IPA-2 | C103: 28 | D103: 0 | E103: 0 | F103: 0
A104: 74 | B104: XII IPA-2 | C104: 29 | D104: 0 | E104: 0 | F104: 0
A105: 75 | B105: XII IPA-2 | C105: 30 | D105: 0 | E105: 0 | F105: 0
A106: 76 | B106: XII IPA-2 | C106: 31 | D106: 0 | E106: 0 | F106: 0
A107: 77 | B107: XII IPA-2 | C107: 32 | D107: 0 | E107: 0 | F107: 0
A108: 78 | B108: XII IPA-2 | C108: 33 | D108: 0 | E108: 0 | F108: 0
A109: 79 | B109: XII IPA-2 | C109: 34 | D109: 0 | E109: 0 | F109: 0
A110: 80 | B110: XII IPA-2 | C110: 35 | D110: 0 | E110: 0 | F110: 0
A111: 81 | B111: XII IPA-2 | C111: 36 | D111: 0 | E111: 0 | F111: 0
A112: 82 | B112: XII IPA-2 | C112: 37 | D112: 0 | E112: 0 | F112: 0
A113: 83 | B113: XII IPA-2 | C113: 38 | D113: 0 | E113: 0 | F113: 0
A114: 84 | B114: XII IPA-2 | C114: 39 | D114: 0 | E114: 0 | F114: 0
A115: 85 | B115: XII IPA-2 | C115: 40 | D115: 0 | E115: 0 | F115: 0
A117: =MAX(A76:A113) -> 83 | E117: Jumlah Laki-laki | F117: =COUNTIF(F76:F115,"L") -> 0 | U117: Cilegon,…………………………….20
E118: Jumlah Perempuan | F118: =COUNTIF(F76:F115,"P") -> 1 | U118: Guru Bidang Studi
E119: Jumlah Total | F119: =SUM(F117:F118) -> 1
U123: (……………………...……….)
U124: NIP:…………………………………….
C132: DAFTAR HADIR SISWA
C133: =+MENU!$D$8 -> SMA NEGERI 5 CILEGON
C134: =CONCATENATE(MENU!$C$7," ",MENU!$D$7) -> TAHUN AJARAN 2013-2014
C135: KELAS | E135: =IF(ISBLANK(A139),"",VLOOKUP(A139,Data3,2)) -> XII IPA-3
C136: NO | D136: NIS | E136: NAMA | F136: L/P | G136: Tanggal
A139: =+'DataBase-XI'!A119 -> 91 | B139: =IF(ISBLANK(A139),"",VLOOKUP(A139,Data3,2)) -> XII IPA-3 | C139: 1 | D139: =IF(ISBLANK(A139),"",VLOOKUP(A139,Data3,5)) -> 9965293057 | E139: =IF(ISBLANK(A139),"",VLOOKUP(A139,Data3,3)) -> ADI FIRMANSYAH | F139: =IF(ISBLANK(A139),"",VLOOKUP(A139,Data3,6)) -> L
A140: =+A139+1 -> 92 | B140: XII IPA-3 | C140: 2 | D140: 0 | E140: 0 | F140: 0
A141: 93 | B141: XII IPA-3 | C141: 3 | D141: 0 | E141: 0 | F141: 0
A142: 94 | B142: XII IPA-3 | C142: 4 | D142: 0 | E142: 0 | F142: 0
A143: 95 | B143: XII IPA-3 | C143: 5 | D143: 0 | E143: 0 | F143: 0
A144: 96 | B144: XII IPA-3 | C144: 6 | D144: 0 | E144: 0 | F144: 0
A145: 97 | B145: XII IPA-3 | C145: 7 | D145: 0 | E145: 0 | F145: 0
A146: 98 | B146: XII IPA-3 | C146: 8 | D146: 0 | E146: 0 | F146: 0
A147: 99 | B147: XII IPA-3 | C147: 9 | D147: 0 | E147: 0 | F147: 0
A148: 100 | B148: XII IPA-3 | C148: 10 | D148: 0 | E148: 0 | F148: 0
A149: 101 | B149: XII IPA-3 | C149: 11 | D149: 0 | E149: 0 | F149: 0
A150: 102 | B150: XII IPA-3 | C150: 12 | D150: 0 | E150: 0 | F150: 0
A151: 103 | B151: XII IPA-3 | C151: 13 | D151: 0 | E151: 0 | F151: 0
A152: 104 | B152: XII IPA-3 | C152: 14 | D152: 0 | E152: 0 | F152: 0
A153: 105 | B153: XII IPA-3 | C153: 15 | D153: 0 | E153: 0 | F153: 0
A154: 106 | B154: XII IPA-3 | C154: 16 | D154: 0 | E154: 0 | F154: 0
A155: 107 | B155: XII IPA-3 | C155: 17 | D155: 0 | E155: 0 | F155: 0
A156: 108 | B156: XII IPA-3 | C156: 18 | D156: 0 | E156: 0 | F156: 0
A157: 109 | B157: XII IPA-3 | C157: 19 | D157: 0 | E157: 0 | F157: 0
A158: 110 | B158: XII IPA-3 | C158: 20 | D158: 0 | E158: 0 | F158: 0
A159: 111 | B159: XII IPA-3 | C159: 21 | D159: 0 | E159: 0 | F159: 0
A160: 112 | B160: XII IPA-3 | C160: 22 | D160: 0 | E160: 0 | F160: 0
A161: 113 | B161: XII IPA-3 | C161: 23 | D161: 0 | E161: 0 | F161: 0
A162: 114 | B162: XII IPA-3 | C162: 24 | D162: 0 | E162: 0 | F162: 0
A163: 115 | B163: XII IPA-3 | C163: 25 | D163: 0 | E163: 0 | F163: 0
A164: 116 | B164: XII IPA-3 | C164: 26 | D164: 0 | E164: 0 | F164: 0
A165: 117 | B165: XII IPA-3 | C165: 27 | D165: 0 | E165: 0 | F165: 0
A166: 118 | B166: XII IPA-3 | C166: 28 | D166: 0 | E166: 0 | F166: 0
A167: 119 | B167: XII IPA-3 | C167: 29 | D167: 0 | E167: 0 | F167: 0
A168: 120 | B168: XII IPA-3 | C168: 30 | D168: 0 | E168: 0 | F168: 0
A169: 121 | B169: XII IPA-3 | C169: 31 | D169: 0 | E169: 0 | F169: 0
A170: 122 | B170: XII IPA-3 | C170: 32 | D170: 0 | E170: 0 | F170: 0
A171: 123 | B171: XII IPA-3 | C171: 33 | D171: 0 | E171: 0 | F171: 0
A172: 124 | B172: XII IPA-3 | C172: 34 | D172: 0 | E172: 0 | F172: 0
A173: 125 | B173: XII IPA-3 | C173: 35 | D173: 0 | E173: 0 | F173: 0
A174: =+A173+1 -> 126 | B174: XII IPA-3 | C174: 36 | D174: 0 | E174: 0 | F174: 0
A175: =+A174+1 -> 127 | B175: XII IPA-3 | C175: 37 | D175: 0 | E175: 0 | F175: 0
A176: =+A175+1 -> 128 | B176: XII IPA-3 | C176: 38 | D176: 0 | E176: 0 | F176: 0
A177: =+A176+1 -> 129 | B177: XII IPA-3 | C177: 39 | D177: 0 | E177: 0 | F177: 0
A178: =+A177+1 -> 130 | B178: XII IPA-3 | C178: 40 | D178: 0 | E178: 0 | F178: 0
A180: =MAX(A139:A177) -> 129 | E180: Jumlah Laki-laki | F180: =COUNTIF(F139:F178,"L") -> 1 | U180: Cilegon,…………………………….20
E181: Jumlah Perempuan | F181: =COUNTIF(F139:F178,"P") -> 0 | U181: Guru Bidang Studi
E182: Jumlah Total | F182: =SUM(F180:F181) -> 1
U187: (……………………...……….)
U188: NIP:…………………………………….
C199: DAFTAR HADIR SISWA
C200: =+MENU!$D$8 -> SMA NEGERI 5 CILEGON
C201: =CONCATENATE(MENU!$C$7," ",MENU!$D$7) -> TAHUN AJARAN 2013-2014
C202: KELAS | E202: =IF(ISBLANK(A206),"",VLOOKUP(A206,Data3,2)) -> XII IPS-1
C203: NO | D203: NIS | E203: NAMA | F203: L/P | G203: Tanggal
A206: =+'DataBase-XI'!A176 -> 136 | B206: =IF(ISBLANK(A206),"",VLOOKUP(A206,Data3,2)) -> XII IPS-1 | C206: 1 | D206: =IF(ISBLANK(A206),"",VLOOKUP(A206,Data3,5)) -> 9962208731 | E206: =IF(ISBLANK(A206),"",VLOOKUP(A206,Data3,3)) -> AGI PURNAMA BELRA | F206: =IF(ISBLANK(A206),"",VLOOKUP(A206,Data3,6)) -> L
A207: =+A206+1 -> 137 | B207: XII IPS-1 | C207: 2 | D207: 0 | E207: 0 | F207: 0
A208: 138 | B208: XII IPS-1 | C208: 3 | D208: 0 | E208: 0 | F208: 0
A209: 139 | B209: XII IPS-1 | C209: 4 | D209: 0 | E209: 0 | F209: 0
A210: 140 | B210: XII IPS-1 | C210: 5 | D210: 0 | E210: 0 | F210: 0
A211: 141 | B211: XII IPS-1 | C211: 6 | D211: 0 | E211: 0 | F211: 0
A212: 142 | B212: XII IPS-1 | C212: 7 | D212: 0 | E212: 0 | F212: 0
A213: 143 | B213: XII IPS-1 | C213: 8 | D213: 0 | E213: 0 | F213: 0
A214: 144 | B214: XII IPS-1 | C214: 9 | D214: 0 | E214: 0 | F214: 0
A215: 145 | B215: XII IPS-1 | C215: 10 | D215: 0 | E215: 0 | F215: 0
A216: 146 | B216: XII IPS-1 | C216: 11 | D216: 0 | E216: 0 | F216: 0
A217: 147 | B217: XII IPS-1 | C217: 12 | D217: 0 | E217: 0 | F217: 0
A218: 148 | B218: XII IPS-1 | C218: 13 | D218: 0 | E218: 0 | F218: 0
A219: 149 | B219: XII IPS-1 | C219: 14 | D219: 0 | E219: 0 | F219: 0
A220: 150 | B220: XII IPS-1 | C220: 15 | D220: 0 | E220: 0 | F220: 0
A221: 151 | B221: XII IPS-1 | C221: 16 | D221: 0 | E221: 0 | F221: 0
A222: 152 | B222: XII IPS-1 | C222: 17 | D222: 0 | E222: 0 | F222: 0
A223: 153 | B223: XII IPS-1 | C223: 18 | D223: 0 | E223: 0 | F223: 0
A224: 154 | B224: XII IPS-1 | C224: 19 | D224: 0 | E224: 0 | F224: 0
A225: 155 | B225: XII IPS-1 | C225: 20 | D225: 0 | E225: 0 | F225: 0
A226: 156 | B226: XII IPS-1 | C226: 21 | D226: 0 | E226: 0 | F226: 0
A227: 157 | B227: XII IPS-1 | C227: 22 | D227: 0 | E227: 0 | F227: 0
A228: 158 | B228: XII IPS-1 | C228: 23 | D228: 0 | E228: 0 | F228: 0
A229: 159 | B229: XII IPS-1 | C229: 24 | D229: 0 | E229: 0 | F229: 0
A230: 160 | B230: XII IPS-1 | C230: 25 | D230: 0 | E230: 0 | F230: 0
A231: 161 | B231: XII IPS-1 | C231: 26 | D231: 0 | E231: 0 | F231: 0
A232: 162 | B232: XII IPS-1 | C232: 27 | D232: 0 | E232: 0 | F232: 0
A233: 163 | B233: XII IPS-1 | C233: 28 | D233: 0 | E233: 0 | F233: 0
A234: 164 | B234: XII IPS-1 | C234: 29 | D234: 0 | E234: 0 | F234: 0
A235: 165 | B235: XII IPS-1 | C235: 30 | D235: 0 | E235: 0 | F235: 0
A236: 166 | B236: XII IPS-1 | C236: 31 | D236: 0 | E236: 0 | F236: 0
A237: 167 | B237: XII IPS-1 | C237: 32 | D237: 0 | E237: 0 | F237: 0
A238: 168 | B238: XII IPS-1 | C238: 33 | D238: 0 | E238: 0 | F238: 0
A239: 169 | B239: XII IPS-1 | C239: 34 | D239: 0 | E239: 0 | F239: 0
A240: 170 | B240: XII IPS-1 | C240: 35 | D240: 0 | E240: 0 | F240: 0
A241: =+A240+1 -> 171 | B241: XII IPS-1 | C241: 36 | D241: 0 | E241: 0 | F241: 0
A242: =+A241+1 -> 172 | B242: XII IPS-1 | C242: 37 | D242: 0 | E242: 0 | F242: 0
A243: =+A242+1 -> 173 | B243: XII IPS-1 | C243: 38 | D243: 0 | E243: 0 | F243: 0
A244: =+A243+1 -> 174 | B244: XII IPS-1 | C244: 39 | D244: 0 | E244: 0 | F244: 0
A245: =+A244+1 -> 175 | B245: XII IPS-1 | C245: 40 | D245: 0 | E245: 0 | F245: 0
A247: =MAX(A206:A244) -> 174 | E247: Jumlah Laki-laki | F247: =COUNTIF(F206:F245,"L") -> 1 | V247: Cilegon,…………………………….20
E248: Jumlah Perempuan | F248: =COUNTIF(F206:F245,"P") -> 0 | V248: Guru Bidang Studi
E249: Jumlah Total | F249: =SUM(F247:F248) -> 1
V253: (……………………...……….)
V254: NIP:…………………………………….
... 100 more rows

Sheet Raport-XII
A1: NO URUT DATABASE | C1: DAFTAR NILAI SISWA
C2: =+MENU!$D$8 -> SMA NEGERI 5 CILEGON
C3: =CONCATENATE(MENU!$C$7," ",MENU!$D$7) -> TAHUN AJARAN 2013-2014
C4: KELAS | E4: =IF(ISBLANK(A8),"",VLOOKUP(A8,Data3,2)) -> XII IPA-1
C5: NO | D5: NIS | E5: NAMA | F5: L/P | G5: NILAI RAPORT | J5: KET
G6: Kognitif | H6: Afektif | I6: Psikomotor
A8: =+'DataBase-XI'!A5 -> 1 | B8: =IF(ISBLANK(A8),"",VLOOKUP(A8,Data3,2)) -> XII IPA-1 | C8: 1 | D8: =IF(ISBLANK(A8),"",VLOOKUP(A8,Data3,5)) -> 9960473779 | E8: =IF(ISBLANK(A8),"",VLOOKUP(A8,Data3,3)) -> ADE ROSIHA | F8: =IF(ISBLANK(A8),"",VLOOKUP(A8,Data3,6)) -> P
A9: 2 | B9: XII IPA-1 | C9: 2 | D9: 0 | E9: 0 | F9: 0
A10: 3 | B10: XII IPA-1 | C10: 3 | D10: 0 | E10: 0 | F10: 0
A11: 4 | B11: XII IPA-1 | C11: 4 | D11: 0 | E11: 0 | F11: 0
A12: 5 | B12: XII IPA-1 | C12: 5 | D12: 0 | E12: 0 | F12: 0
A13: 6 | B13: XII IPA-1 | C13: 6 | D13: 0 | E13: 0 | F13: 0
A14: 7 | B14: XII IPA-1 | C14: 7 | D14: 0 | E14: 0 | F14: 0
A15: 8 | B15: XII IPA-1 | C15: 8 | D15: 0 | E15: 0 | F15: 0
A16: 9 | B16: XII IPA-1 | C16: 9 | D16: 0 | E16: 0 | F16: 0
A17: 10 | B17: XII IPA-1 | C17: 10 | D17: 0 | E17: 0 | F17: 0
A18: 11 | B18: XII IPA-1 | C18: 11 | D18: 0 | E18: 0 | F18: 0
A19: 12 | B19: XII IPA-1 | C19: 12 | D19: 0 | E19: 0 | F19: 0
A20: 13 | B20: XII IPA-1 | C20: 13 | D20: 0 | E20: 0 | F20: 0
A21: 14 | B21: XII IPA-1 | C21: 14 | D21: 0 | E21: 0 | F21: 0
A22: 15 | B22: XII IPA-1 | C22: 15 | D22: 0 | E22: 0 | F22: 0
A23: 16 | B23: XII IPA-1 | C23: 16 | D23: 0 | E23: 0 | F23: 0
A24: 17 | B24: XII IPA-1 | C24: 17 | D24: 0 | E24: 0 | F24: 0
A25: 18 | B25: XII IPA-1 | C25: 18 | D25: 0 | E25: 0 | F25: 0
A26: 19 | B26: XII IPA-1 | C26: 19 | D26: 0 | E26: 0 | F26: 0
A27: 20 | B27: XII IPA-1 | C27: 20 | D27: 0 | E27: 0 | F27: 0
A28: 21 | B28: XII IPA-1 | C28: 21 | D28: 0 | E28: 0 | F28: 0
A29: 22 | B29: XII IPA-1 | C29: 22 | D29: 0 | E29: 0 | F29: 0
A30: 23 | B30: XII IPA-1 | C30: 23 | D30: 0 | E30: 0 | F30: 0
A31: 24 | B31: XII IPA-1 | C31: 24 | D31: 0 | E31: 0 | F31: 0
A32: 25 | B32: XII IPA-1 | C32: 25 | D32: 0 | E32: 0 | F32: 0
A33: 26 | B33: XII IPA-1 | C33: 26 | D33: 0 | E33: 0 | F33: 0
A34: 27 | B34: XII IPA-1 | C34: 27 | D34: 0 | E34: 0 | F34: 0
A35: 28 | B35: XII IPA-1 | C35: 28 | D35: 0 | E35: 0 | F35: 0
A36: 29 | B36: XII IPA-1 | C36: 29 | D36: 0 | E36: 0 | F36: 0
A37: 30 | B37: XII IPA-1 | C37: 30 | D37: 0 | E37: 0 | F37: 0
A38: 31 | B38: XII IPA-1 | C38: 31 | D38: 0 | E38: 0 | F38: 0
A39: 32 | B39: XII IPA-1 | C39: 32 | D39: 0 | E39: 0 | F39: 0
A40: 33 | B40: XII IPA-1 | C40: 33 | D40: 0 | E40: 0 | F40: 0
A41: 34 | B41: XII IPA-1 | C41: 34 | D41: 0 | E41: 0 | F41: 0
A42: 35 | B42: XII IPA-1 | C42: 35 | D42: 0 | E42: 0 | F42: 0
A43: 36 | B43: XII IPA-1 | C43: 36 | D43: 0 | E43: 0 | F43: 0
A44: 37 | B44: XII IPA-1 | C44: 37 | D44: 0 | E44: 0 | F44: 0
A45: 38 | B45: XII IPA-1 | C45: 38 | D45: 0 | E45: 0 | F45: 0
A46: 39 | B46: XII IPA-1 | C46: 39 | D46: 0 | E46: 0 | F46: 0
A47: 40 | B47: XII IPA-1 | C47: 40
A49: =MAX(A8:A47) -> 40 | E49: Jumlah Laki-laki | F49: =COUNTIF(F8:F47,"L") -> 0
E50: Jumlah Perempuan | F50: =COUNTIF(F8:F47,"P") -> 1
E51: Jumlah Total | F51: =SUM(F49:F50) -> 1
C61: DAFTAR NILAI SISWA
C62: =+MENU!$D$8 -> SMA NEGERI 5 CILEGON
C63: =CONCATENATE(MENU!$C$7," ",MENU!$D$7) -> TAHUN AJARAN 2013-2014
C64: KELAS | E64: =IF(ISBLANK(A68),"",VLOOKUP(A68,Data3,2)) -> XII IPA-2
C65: NO | D65: NIS | E65: NAMA | F65: L/P | G65: NILAI RAPORT | J65: KET
G66: Kognitif | H66: Afektif | I66: Psikomotor
A68: =+'DataBase-XI'!A62 -> 46 | B68: =IF(ISBLANK(A68),"",VLOOKUP(A68,Data3,2)) -> XII IPA-2 | C68: 1 | D68: =IF(ISBLANK(A68),"",VLOOKUP(A68,Data3,5)) -> 9960470745 | E68: =IF(ISBLANK(A68),"",VLOOKUP(A68,Data3,3)) -> ALLISYAARA NOERHUZA | F68: =IF(ISBLANK(A68),"",VLOOKUP(A68,Data3,6)) -> P
A69: =+A68+1 -> 47 | B69: XII IPA-2 | C69: 2 | D69: 0 | E69: 0 | F69: 0
A70: 48 | B70: XII IPA-2 | C70: 3 | D70: 0 | E70: 0 | F70: 0
A71: 49 | B71: XII IPA-2 | C71: 4 | D71: 0 | E71: 0 | F71: 0
A72: 50 | B72: XII IPA-2 | C72: 5 | D72: 0 | E72: 0 | F72: 0
A73: 51 | B73: XII IPA-2 | C73: 6 | D73: 0 | E73: 0 | F73: 0
A74: 52 | B74: XII IPA-2 | C74: 7 | D74: 0 | E74: 0 | F74: 0
A75: 53 | B75: XII IPA-2 | C75: 8 | D75: 0 | E75: 0 | F75: 0
A76: 54 | B76: XII IPA-2 | C76: 9 | D76: 0 | E76: 0 | F76: 0
A77: 55 | B77: XII IPA-2 | C77: 10 | D77: 0 | E77: 0 | F77: 0
A78: 56 | B78: XII IPA-2 | C78: 11 | D78: 0 | E78: 0 | F78: 0
A79: 57 | B79: XII IPA-2 | C79: 12 | D79: 0 | E79: 0 | F79: 0
A80: 58 | B80: XII IPA-2 | C80: 13 | D80: 0 | E80: 0 | F80: 0
A81: 59 | B81: XII IPA-2 | C81: 14 | D81: 0 | E81: 0 | F81: 0
A82: 60 | B82: XII IPA-2 | C82: 15 | D82: 0 | E82: 0 | F82: 0
A83: 61 | B83: XII IPA-2 | C83: 16 | D83: 0 | E83: 0 | F83: 0
A84: 62 | B84: XII IPA-2 | C84: 17 | D84: 0 | E84: 0 | F84: 0
A85: 63 | B85: XII IPA-2 | C85: 18 | D85: 0 | E85: 0 | F85: 0
A86: 64 | B86: XII IPA-2 | C86: 19 | D86: 0 | E86: 0 | F86: 0
A87: 65 | B87: XII IPA-2 | C87: 20 | D87: 0 | E87: 0 | F87: 0
A88: 66 | B88: XII IPA-2 | C88: 21 | D88: 0 | E88: 0 | F88: 0
A89: 67 | B89: XII IPA-2 | C89: 22 | D89: 0 | E89: 0 | F89: 0
A90: 68 | B90: XII IPA-2 | C90: 23 | D90: 0 | E90: 0 | F90: 0
A91: 69 | B91: XII IPA-2 | C91: 24 | D91: 0 | E91: 0 | F91: 0
A92: 70 | B92: XII IPA-2 | C92: 25 | D92: 0 | E92: 0 | F92: 0
A93: 71 | B93: XII IPA-2 | C93: 26 | D93: 0 | E93: 0 | F93: 0
A94: 72 | B94: XII IPA-2 | C94: 27 | D94: 0 | E94: 0 | F94: 0
A95: 73 | B95: XII IPA-2 | C95: 28 | D95: 0 | E95: 0 | F95: 0
A96: 74 | B96: XII IPA-2 | C96: 29 | D96: 0 | E96: 0 | F96: 0
A97: 75 | B97: XII IPA-2 | C97: 30 | D97: 0 | E97: 0 | F97: 0
A98: 76 | B98: XII IPA-2 | C98: 31 | D98: 0 | E98: 0 | F98: 0
A99: 77 | B99: XII IPA-2 | C99: 32 | D99: 0 | E99: 0 | F99: 0
A100: 78 | B100: XII IPA-2 | C100: 33 | D100: 0 | E100: 0 | F100: 0
A101: 79 | B101: XII IPA-2 | C101: 34 | D101: 0 | E101: 0 | F101: 0
A102: 80 | B102: XII IPA-2 | C102: 35 | D102: 0 | E102: 0 | F102: 0
A103: 81 | B103: XII IPA-2 | C103: 36 | D103: 0 | E103: 0 | F103: 0
A104: 82 | B104: XII IPA-2 | C104: 37 | D104: 0 | E104: 0 | F104: 0
A105: 83 | B105: XII IPA-2 | C105: 38 | D105: 0 | E105: 0 | F105: 0
A106: 84 | B106: XII IPA-2 | C106: 39 | D106: 0 | E106: 0 | F106: 0
A107: 85 | B107: XII IPA-2 | C107: 40 | D107: 0 | E107: 0 | F107: 0
A109: =MAX(A68:A105) -> 83 | E109: Jumlah Laki-laki | F109: =COUNTIF(F68:F107,"L") -> 0
E110: Jumlah Perempuan | F110: =COUNTIF(F68:F107,"P") -> 1
E111: Jumlah Total | F111: =SUM(F109:F110) -> 1
C119: DAFTAR NILAI SISWA
C120: =+MENU!$D$8 -> SMA NEGERI 5 CILEGON
C121: =CONCATENATE(MENU!$C$7," ",MENU!$D$7) -> TAHUN AJARAN 2013-2014
C122: KELAS | E122: =IF(ISBLANK(A126),"",VLOOKUP(A126,Data3,2)) -> XII IPA-3
C123: NO | D123: NIS | E123: NAMA | F123: L/P | G123: NILAI RAPORT | J123: KET
G124: Kognitif | H124: Afektif | I124: Psikomotor
A126: =+'DataBase-XI'!A119 -> 91 | B126: =IF(ISBLANK(A126),"",VLOOKUP(A126,Data3,2)) -> XII IPA-3 | C126: 1 | D126: =IF(ISBLANK(A126),"",VLOOKUP(A126,Data3,5)) -> 9965293057 | E126: =IF(ISBLANK(A126),"",VLOOKUP(A126,Data3,3)) -> ADI FIRMANSYAH | F126: =IF(ISBLANK(A126),"",VLOOKUP(A126,Data3,6)) -> L
A127: =+A126+1 -> 92 | B127: XII IPA-3 | C127: 2 | D127: 0 | E127: 0 | F127: 0
A128: 93 | B128: XII IPA-3 | C128: 3 | D128: 0 | E128: 0 | F128: 0
A129: 94 | B129: XII IPA-3 | C129: 4 | D129: 0 | E129: 0 | F129: 0
A130: 95 | B130: XII IPA-3 | C130: 5 | D130: 0 | E130: 0 | F130: 0
A131: 96 | B131: XII IPA-3 | C131: 6 | D131: 0 | E131: 0 | F131: 0
A132: 97 | B132: XII IPA-3 | C132: 7 | D132: 0 | E132: 0 | F132: 0
A133: 98 | B133: XII IPA-3 | C133: 8 | D133: 0 | E133: 0 | F133: 0
A134: 99 | B134: XII IPA-3 | C134: 9 | D134: 0 | E134: 0 | F134: 0
A135: 100 | B135: XII IPA-3 | C135: 10 | D135: 0 | E135: 0 | F135: 0
A136: 101 | B136: XII IPA-3 | C136: 11 | D136: 0 | E136: 0 | F136: 0
A137: 102 | B137: XII IPA-3 | C137: 12 | D137: 0 | E137: 0 | F137: 0
A138: 103 | B138: XII IPA-3 | C138: 13 | D138: 0 | E138: 0 | F138: 0
A139: 104 | B139: XII IPA-3 | C139: 14 | D139: 0 | E139: 0 | F139: 0
A140: 105 | B140: XII IPA-3 | C140: 15 | D140: 0 | E140: 0 | F140: 0
A141: 106 | B141: XII IPA-3 | C141: 16 | D141: 0 | E141: 0 | F141: 0
A142: 107 | B142: XII IPA-3 | C142: 17 | D142: 0 | E142: 0 | F142: 0
A143: 108 | B143: XII IPA-3 | C143: 18 | D143: 0 | E143: 0 | F143: 0
A144: 109 | B144: XII IPA-3 | C144: 19 | D144: 0 | E144: 0 | F144: 0
A145: 110 | B145: XII IPA-3 | C145: 20 | D145: 0 | E145: 0 | F145: 0
A146: 111 | B146: XII IPA-3 | C146: 21 | D146: 0 | E146: 0 | F146: 0
A147: 112 | B147: XII IPA-3 | C147: 22 | D147: 0 | E147: 0 | F147: 0
A148: 113 | B148: XII IPA-3 | C148: 23 | D148: 0 | E148: 0 | F148: 0
A149: 114 | B149: XII IPA-3 | C149: 24 | D149: 0 | E149: 0 | F149: 0
A150: 115 | B150: XII IPA-3 | C150: 25 | D150: 0 | E150: 0 | F150: 0
A151: 116 | B151: XII IPA-3 | C151: 26 | D151: 0 | E151: 0 | F151: 0
A152: 117 | B152: XII IPA-3 | C152: 27 | D152: 0 | E152: 0 | F152: 0
A153: 118 | B153: XII IPA-3 | C153: 28 | D153: 0 | E153: 0 | F153: 0
A154: 119 | B154: XII IPA-3 | C154: 29 | D154: 0 | E154: 0 | F154: 0
A155: 120 | B155: XII IPA-3 | C155: 30 | D155: 0 | E155: 0 | F155: 0
A156: 121 | B156: XII IPA-3 | C156: 31 | D156: 0 | E156: 0 | F156: 0
A157: 122 | B157: XII IPA-3 | C157: 32 | D157: 0 | E157: 0 | F157: 0
A158: 123 | B158: XII IPA-3 | C158: 33 | D158: 0 | E158: 0 | F158: 0
A159: 124 | B159: XII IPA-3 | C159: 34 | D159: 0 | E159: 0 | F159: 0
A160: 125 | B160: XII IPA-3 | C160: 35 | D160: 0 | E160: 0 | F160: 0
A161: =+A160+1 -> 126 | B161: XII IPA-3 | C161: 36 | D161: 0 | E161: 0 | F161: 0
A162: =+A161+1 -> 127 | B162: XII IPA-3 | C162: 37 | D162: 0 | E162: 0 | F162: 0
A163: =+A162+1 -> 128 | B163: XII IPA-3 | C163: 38 | D163: 0 | E163: 0 | F163: 0
A164: =+A163+1 -> 129 | B164: XII IPA-3 | C164: 39 | D164: 0 | E164: 0 | F164: 0
A165: =+A164+1 -> 130 | B165: XII IPA-3 | C165: 40 | D165: 0 | E165: 0 | F165: 0
A167: =MAX(A126:A164) -> 129 | E167: Jumlah Laki-laki | F167: =COUNTIF(F126:F165,"L") -> 1
E168: Jumlah Perempuan | F168: =COUNTIF(F126:F165,"P") -> 0
E169: Jumlah Total | F169: =SUM(F167:F168) -> 1
C179: DAFTAR NILAI SISWA
C180: =+MENU!$D$8 -> SMA NEGERI 5 CILEGON
C181: =CONCATENATE(MENU!$C$7," ",MENU!$D$7) -> TAHUN AJARAN 2013-2014
C182: KELAS | E182: =IF(ISBLANK(A186),"",VLOOKUP(A186,Data3,2)) -> XII IPS-1
C183: NO | D183: NIS | E183: NAMA | F183: L/P | G183: NILAI RAPORT | J183: KET
G184: Kognitif | H184: Afektif | I184: Psikomotor
A186: =+'DataBase-XI'!A176 -> 136 | B186: =IF(ISBLANK(A186),"",VLOOKUP(A186,Data3,2)) -> XII IPS-1 | C186: 1 | D186: =IF(ISBLANK(A186),"",VLOOKUP(A186,Data3,5)) -> 9962208731 | E186: =IF(ISBLANK(A186),"",VLOOKUP(A186,Data3,3)) -> AGI PURNAMA BELRA | F186: =IF(ISBLANK(A186),"",VLOOKUP(A186,Data3,6)) -> L
A187: =+A186+1 -> 137 | B187: XII IPS-1 | C187: 2 | D187: 0 | E187: 0 | F187: 0
A188: 138 | B188: XII IPS-1 | C188: 3 | D188: 0 | E188: 0 | F188: 0
A189: 139 | B189: XII IPS-1 | C189: 4 | D189: 0 | E189: 0 | F189: 0
A190: 140 | B190: XII IPS-1 | C190: 5 | D190: 0 | E190: 0 | F190: 0
A191: 141 | B191: XII IPS-1 | C191: 6 | D191: 0 | E191: 0 | F191: 0
A192: 142 | B192: XII IPS-1 | C192: 7 | D192: 0 | E192: 0 | F192: 0
A193: 143 | B193: XII IPS-1 | C193: 8 | D193: 0 | E193: 0 | F193: 0
A194: 144 | B194: XII IPS-1 | C194: 9 | D194: 0 | E194: 0 | F194: 0
A195: 145 | B195: XII IPS-1 | C195: 10 | D195: 0 | E195: 0 | F195: 0
A196: 146 | B196: XII IPS-1 | C196: 11 | D196: 0 | E196: 0 | F196: 0
A197: 147 | B197: XII IPS-1 | C197: 12 | D197: 0 | E197: 0 | F197: 0
A198: 148 | B198: XII IPS-1 | C198: 13 | D198: 0 | E198: 0 | F198: 0
A199: 149 | B199: XII IPS-1 | C199: 14 | D199: 0 | E199: 0 | F199: 0
A200: 150 | B200: XII IPS-1 | C200: 15 | D200: 0 | E200: 0 | F200: 0
A201: 151 | B201: XII IPS-1 | C201: 16 | D201: 0 | E201: 0 | F201: 0
A202: 152 | B202: XII IPS-1 | C202: 17 | D202: 0 | E202: 0 | F202: 0
A203: 153 | B203: XII IPS-1 | C203: 18 | D203: 0 | E203: 0 | F203: 0
A204: 154 | B204: XII IPS-1 | C204: 19 | D204: 0 | E204: 0 | F204: 0
A205: 155 | B205: XII IPS-1 | C205: 20 | D205: 0 | E205: 0 | F205: 0
A206: 156 | B206: XII IPS-1 | C206: 21 | D206: 0 | E206: 0 | F206: 0
A207: 157 | B207: XII IPS-1 | C207: 22 | D207: 0 | E207: 0 | F207: 0
A208: 158 | B208: XII IPS-1 | C208: 23 | D208: 0 | E208: 0 | F208: 0
A209: 159 | B209: XII IPS-1 | C209: 24 | D209: 0 | E209: 0 | F209: 0
A210: 160 | B210: XII IPS-1 | C210: 25 | D210: 0 | E210: 0 | F210: 0
A211: 161 | B211: XII IPS-1 | C211: 26 | D211: 0 | E211: 0 | F211: 0
A212: 162 | B212: XII IPS-1 | C212: 27 | D212: 0 | E212: 0 | F212: 0
A213: 163 | B213: XII IPS-1 | C213: 28 | D213: 0 | E213: 0 | F213: 0
A214: 164 | B214: XII IPS-1 | C214: 29 | D214: 0 | E214: 0 | F214: 0
A215: 165 | B215: XII IPS-1 | C215: 30 | D215: 0 | E215: 0 | F215: 0
A216: 166 | B216: XII IPS-1 | C216: 31 | D216: 0 | E216: 0 | F216: 0
A217: 167 | B217: XII IPS-1 | C217: 32 | D217: 0 | E217: 0 | F217: 0
A218: 168 | B218: XII IPS-1 | C218: 33 | D218: 0 | E218: 0 | F218: 0
A219: 169 | B219: XII IPS-1 | C219: 34 | D219: 0 | E219: 0 | F219: 0
A220: 170 | B220: XII IPS-1 | C220: 35 | D220: 0 | E220: 0 | F220: 0
A221: =+A220+1 -> 171 | B221: XII IPS-1 | C221: 36 | D221: 0 | E221: 0 | F221: 0
A222: =+A221+1 -> 172 | B222: XII IPS-1 | C222: 37 | D222: 0 | E222: 0 | F222: 0
A223: =+A222+1 -> 173 | B223: XII IPS-1 | C223: 38 | D223: 0 | E223: 0 | F223: 0
A224: =+A223+1 -> 174 | B224: XII IPS-1 | C224: 39 | D224: 0 | E224: 0 | F224: 0
A225: =+A224+1 -> 175 | B225: XII IPS-1 | C225: 40 | D225: 0 | E225: 0 | F225: 0
A227: =MAX(A186:A224) -> 174 | E227: Jumlah Laki-laki | F227: =COUNTIF(F186:F225,"L") -> 1
E228: Jumlah Perempuan | F228: =COUNTIF(F186:F225,"P") -> 0
E229: Jumlah Total | F229: =SUM(F227:F228) -> 1
C239: DAFTAR NILAI SISWA
C240: =+MENU!$D$8 -> SMA NEGERI 5 CILEGON
C241: =CONCATENATE(MENU!$C$7," ",MENU!$D$7) -> TAHUN AJARAN 2013-2014
C242: KELAS | E242: =IF(ISBLANK(A246),"",VLOOKUP(A246,Data3,2)) -> XII IPS-2
... 94 more rows

Sheet Blanko-Daf Nilai XII
A1: NO URUT DATABASE | C1: DAFTAR NILAI MURNI
C2: =+MENU!$D$8 -> SMA NEGERI 5 CILEGON
C3: =CONCATENATE(MENU!$C$7," ",MENU!$D$7) -> TAHUN AJARAN 2013-2014
C5: MATA PELAJARAN | E5: ; | M5: Kelas/Semester: | P5: =+B10 -> XII IPA-1
C6: NAMA SEKOLAH | E6: =+$C$2 -> SMA NEGERI 5 CILEGON
C7: NO | D7: NAMA SISWA | E7: NISN | F7: L/P | G7: NILAI HARIAN / TUGAS | M7: RATA-RATA | N7: KETUNTASAN | P7: KET
G9: 1 | H9: 2 | I9: 3 | J9: 4 | K9: 5 | L9: 6 | N9: YA | O9: TIDAK
A10: =+'DataBase-XI'!A5 -> 1 | B10: =IF(ISBLANK(A10),"",VLOOKUP(A10,Data3,2)) -> XII IPA-1 | C10: 1 | D10: =IF(ISBLANK(A10),"",VLOOKUP(A10,Data3,3)) -> ADE ROSIHA | E10: =IF(ISBLANK(A10),"",VLOOKUP(A10,Data3,5)) -> 9960473779 | F10: =IF(ISBLANK(A10),"",VLOOKUP(A10,Data3,6)) -> P
A11: 2 | B11: XII IPA-1 | C11: 2 | D11: 0 | E11: 0 | F11: 0
A12: 3 | B12: XII IPA-1 | C12: 3 | D12: 0 | E12: 0 | F12: 0
A13: 4 | B13: XII IPA-1 | C13: 4 | D13: 0 | E13: 0 | F13: 0
A14: 5 | B14: XII IPA-1 | C14: 5 | D14: 0 | E14: 0 | F14: 0
A15: 6 | B15: XII IPA-1 | C15: 6 | D15: 0 | E15: 0 | F15: 0
A16: 7 | B16: XII IPA-1 | C16: 7 | D16: 0 | E16: 0 | F16: 0
A17: 8 | B17: XII IPA-1 | C17: 8 | D17: 0 | E17: 0 | F17: 0
A18: 9 | B18: XII IPA-1 | C18: 9 | D18: 0 | E18: 0 | F18: 0
A19: 10 | B19: XII IPA-1 | C19: 10 | D19: 0 | E19: 0 | F19: 0
A20: 11 | B20: XII IPA-1 | C20: 11 | D20: 0 | E20: 0 | F20: 0
A21: 12 | B21: XII IPA-1 | C21: 12 | D21: 0 | E21: 0 | F21: 0
A22: 13 | B22: XII IPA-1 | C22: 13 | D22: 0 | E22: 0 | F22: 0
A23: 14 | B23: XII IPA-1 | C23: 14 | D23: 0 | E23: 0 | F23: 0
A24: 15 | B24: XII IPA-1 | C24: 15 | D24: 0 | E24: 0 | F24: 0
A25: 16 | B25: XII IPA-1 | C25: 16 | D25: 0 | E25: 0 | F25: 0
A26: 17 | B26: XII IPA-1 | C26: 17 | D26: 0 | E26: 0 | F26: 0
A27: 18 | B27: XII IPA-1 | C27: 18 | D27: 0 | E27: 0 | F27: 0
A28: 19 | B28: XII IPA-1 | C28: 19 | D28: 0 | E28: 0 | F28: 0
A29: 20 | B29: XII IPA-1 | C29: 20 | D29: 0 | E29: 0 | F29: 0
A30: 21 | B30: XII IPA-1 | C30: 21 | D30: 0 | E30: 0 | F30: 0
A31: 22 | B31: XII IPA-1 | C31: 22 | D31: 0 | E31: 0 | F31: 0
A32: 23 | B32: XII IPA-1 | C32: 23 | D32: 0 | E32: 0 | F32: 0
A33: 24 | B33: XII IPA-1 | C33: 24 | D33: 0 | E33: 0 | F33: 0
A34: 25 | B34: XII IPA-1 | C34: 25 | D34: 0 | E34: 0 | F34: 0
A35: 26 | B35: XII IPA-1 | C35: 26 | D35: 0 | E35: 0 | F35: 0
A36: 27 | B36: XII IPA-1 | C36: 27 | D36: 0 | E36: 0 | F36: 0
A37: 28 | B37: XII IPA-1 | C37: 28 | D37: 0 | E37: 0 | F37: 0
A38: 29 | B38: XII IPA-1 | C38: 29 | D38: 0 | E38: 0 | F38: 0
A39: 30 | B39: XII IPA-1 | C39: 30 | D39: 0 | E39: 0 | F39: 0
A40: 31 | B40: XII IPA-1 | C40: 31 | D40: 0 | E40: 0 | F40: 0
A41: 32 | B41: XII IPA-1 | C41: 32 | D41: 0 | E41: 0 | F41: 0
A42: 33 | B42: XII IPA-1 | C42: 33 | D42: 0 | E42: 0 | F42: 0
A43: 34 | B43: XII IPA-1 | C43: 34 | D43: 0 | E43: 0 | F43: 0
A44: 35 | B44: XII IPA-1 | C44: 35 | D44: 0 | E44: 0 | F44: 0
A45: 36 | B45: XII IPA-1 | C45: 36 | D45: 0 | E45: 0 | F45: 0
A46: 37 | B46: XII IPA-1 | C46: 37 | D46: 0 | E46: 0 | F46: 0
A47: 38 | B47: XII IPA-1 | C47: 38 | D47: 0 | E47: 0 | F47: 0
A48: 39 | B48: XII IPA-1 | C48: 39 | D48: 0 | E48: 0 | F48: 0
A49: 40 | B49: XII IPA-1 | C49: 40 | D49: 0 | E49: 0 | F49: 0
D50: Mengetahui | M50: =CONCATENATE(MENU!$D$13," , ",R50) -> Cilegon , 24 Juli 2013 | R50: =TEXT(NOW(),"dd mmmm yyyy") -> 24 Juli 2013
A51: =MAX(A10:A47) -> 38 | D51: Waka Kurikulum | M51: Guru Bidang Study
D54: ................................ | M54: ................................
D55: NIP: | G55: Mengetahui | M55: NIP:
G56: Kepala Sekolah
G59: =+[1]MENU!$C$16 -> Asep Mansur,S.Pd
G60: =+[1]MENU!$C$17 -> NIP: 19620101 198512 1 004
C65: DAFTAR NILAI MURNI
C66: =+$C$2 -> SMA NEGERI 5 CILEGON
C67: =+$C$3 -> TAHUN AJARAN 2013-2014
C69: MATA PELAJARAN | E69: ; | M69: Kelas/Semester: | P69: =+B74 -> XII IPA-2
C70: NAMA SEKOLAH | E70: =+$C$2 -> SMA NEGERI 5 CILEGON
C71: NO | D71: NAMA SISWA | E71: NISN | F71: L/P | G71: NILAI HARIAN / TUGAS | M71: RATA-RATA | N71: KETUNTASAN | P71: KET
G73: 1 | H73: 2 | I73: 3 | J73: 4 | K73: 5 | L73: 6 | N73: YA | O73: TIDAK
A74: =+'DataBase-XI'!A62 -> 46 | B74: =IF(ISBLANK(A74),"",VLOOKUP(A74,Data3,2)) -> XII IPA-2 | C74: 1 | D74: =IF(ISBLANK(A74),"",VLOOKUP(A74,Data3,3)) -> ALLISYAARA NOERHUZA | E74: =IF(ISBLANK(A74),"",VLOOKUP(A74,Data3,5)) -> 9960470745 | F74: =IF(ISBLANK(A74),"",VLOOKUP(A74,Data3,6)) -> P
A75: =+A74+1 -> 47 | B75: XII IPA-2 | C75: 2 | D75: 0 | E75: 0 | F75: 0
A76: 48 | B76: XII IPA-2 | C76: 3 | D76: 0 | E76: 0 | F76: 0
A77: 49 | B77: XII IPA-2 | C77: 4 | D77: 0 | E77: 0 | F77: 0
A78: 50 | B78: XII IPA-2 | C78: 5 | D78: 0 | E78: 0 | F78: 0
A79: 51 | B79: XII IPA-2 | C79: 6 | D79: 0 | E79: 0 | F79: 0
A80: 52 | B80: XII IPA-2 | C80: 7 | D80: 0 | E80: 0 | F80: 0
A81: 53 | B81: XII IPA-2 | C81: 8 | D81: 0 | E81: 0 | F81: 0
A82: 54 | B82: XII IPA-2 | C82: 9 | D82: 0 | E82: 0 | F82: 0
A83: 55 | B83: XII IPA-2 | C83: 10 | D83: 0 | E83: 0 | F83: 0
A84: 56 | B84: XII IPA-2 | C84: 11 | D84: 0 | E84: 0 | F84: 0
A85: 57 | B85: XII IPA-2 | C85: 12 | D85: 0 | E85: 0 | F85: 0
A86: 58 | B86: XII IPA-2 | C86: 13 | D86: 0 | E86: 0 | F86: 0
A87: 59 | B87: XII IPA-2 | C87: 14 | D87: 0 | E87: 0 | F87: 0
A88: 60 | B88: XII IPA-2 | C88: 15 | D88: 0 | E88: 0 | F88: 0
A89: 61 | B89: XII IPA-2 | C89: 16 | D89: 0 | E89: 0 | F89: 0
A90: 62 | B90: XII IPA-2 | C90: 17 | D90: 0 | E90: 0 | F90: 0
A91: 63 | B91: XII IPA-2 | C91: 18 | D91: 0 | E91: 0 | F91: 0
A92: 64 | B92: XII IPA-2 | C92: 19 | D92: 0 | E92: 0 | F92: 0
A93: 65 | B93: XII IPA-2 | C93: 20 | D93: 0 | E93: 0 | F93: 0
A94: 66 | B94: XII IPA-2 | C94: 21 | D94: 0 | E94: 0 | F94: 0
A95: 67 | B95: XII IPA-2 | C95: 22 | D95: 0 | E95: 0 | F95: 0
A96: 68 | B96: XII IPA-2 | C96: 23 | D96: 0 | E96: 0 | F96: 0
A97: 69 | B97: XII IPA-2 | C97: 24 | D97: 0 | E97: 0 | F97: 0
A98: 70 | B98: XII IPA-2 | C98: 25 | D98: 0 | E98: 0 | F98: 0
A99: 71 | B99: XII IPA-2 | C99: 26 | D99: 0 | E99: 0 | F99: 0
A100: 72 | B100: XII IPA-2 | C100: 27 | D100: 0 | E100: 0 | F100: 0
A101: 73 | B101: XII IPA-2 | C101: 28 | D101: 0 | E101: 0 | F101: 0
A102: 74 | B102: XII IPA-2 | C102: 29 | D102: 0 | E102: 0 | F102: 0
A103: 75 | B103: XII IPA-2 | C103: 30 | D103: 0 | E103: 0 | F103: 0
A104: 76 | B104: XII IPA-2 | C104: 31 | D104: 0 | E104: 0 | F104: 0
A105: 77 | B105: XII IPA-2 | C105: 32 | D105: 0 | E105: 0 | F105: 0
A106: 78 | B106: XII IPA-2 | C106: 33 | D106: 0 | E106: 0 | F106: 0
A107: 79 | B107: XII IPA-2 | C107: 34 | D107: 0 | E107: 0 | F107: 0
A108: 80 | B108: XII IPA-2 | C108: 35 | D108: 0 | E108: 0 | F108: 0
A109: 81 | B109: XII IPA-2 | C109: 36 | D109: 0 | E109: 0 | F109: 0
A110: 82 | B110: XII IPA-2 | C110: 37 | D110: 0 | E110: 0 | F110: 0
A111: =+A110+1 -> 83 | B111: XII IPA-2 | C111: 38 | D111: 0 | E111: 0 | F111: 0
A112: =+A111+1 -> 84 | B112: XII IPA-2 | C112: 39 | D112: 0 | E112: 0 | F112: 0
A113: =+A112+1 -> 85 | B113: XII IPA-2 | C113: 40 | D113: 0 | E113: 0 | F113: 0
D114: Mengetahui | M114: =CONCATENATE(MENU!$D$13," , ",R114) -> Cilegon , 24 Juli 2013 | R114: =TEXT(NOW(),"dd mmmm yyyy") -> 24 Juli 2013
A115: =MAX(A74:A112) -> 84 | D115: Waka Kurikulum | M115: Guru Bidang Study
D118: ................................ | M118: ................................
D119: NIP: | G119: Mengetahui | M119: NIP:
G120: Kepala Sekolah
G123: =+[1]MENU!$C$16 -> Asep Mansur,S.Pd
G124: =+[1]MENU!$C$17 -> NIP: 19620101 198512 1 004
C129: DAFTAR NILAI MURNI
C130: =+$C$2 -> SMA NEGERI 5 CILEGON
C131: =+$C$3 -> TAHUN AJARAN 2013-2014
C133: MATA PELAJARAN | E133: ; | M133: Kelas/Semester: | P133: =+B138 -> XII IPA-3
C134: NAMA SEKOLAH | E134: =+$C$2 -> SMA NEGERI 5 CILEGON
C135: NO | D135: NAMA SISWA | E135: NISN | F135: L/P | G135: NILAI HARIAN / TUGAS | M135: RATA-RATA | N135: KETUNTASAN | P135: KET
G137: 1 | H137: 2 | I137: 3 | J137: 4 | K137: 5 | L137: 6 | N137: YA | O137: TIDAK
A138: =+'DataBase-XI'!A119 -> 91 | B138: =IF(ISBLANK(A138),"",VLOOKUP(A138,Data3,2)) -> XII IPA-3 | C138: 1 | D138: =IF(ISBLANK(A138),"",VLOOKUP(A138,Data3,3)) -> ADI FIRMANSYAH | E138: =IF(ISBLANK(A138),"",VLOOKUP(A138,Data3,5)) -> 9965293057 | F138: =IF(ISBLANK(A138),"",VLOOKUP(A138,Data3,6)) -> L
A139: =+A138+1 -> 92 | B139: XII IPA-3 | C139: 2 | D139: 0 | E139: 0 | F139: 0
A140: 93 | B140: XII IPA-3 | C140: 3 | D140: 0 | E140: 0 | F140: 0
A141: 94 | B141: XII IPA-3 | C141: 4 | D141: 0 | E141: 0 | F141: 0
A142: 95 | B142: XII IPA-3 | C142: 5 | D142: 0 | E142: 0 | F142: 0
A143: 96 | B143: XII IPA-3 | C143: 6 | D143: 0 | E143: 0 | F143: 0
A144: 97 | B144: XII IPA-3 | C144: 7 | D144: 0 | E144: 0 | F144: 0
A145: 98 | B145: XII IPA-3 | C145: 8 | D145: 0 | E145: 0 | F145: 0
A146: 99 | B146: XII IPA-3 | C146: 9 | D146: 0 | E146: 0 | F146: 0
A147: 100 | B147: XII IPA-3 | C147: 10 | D147: 0 | E147: 0 | F147: 0
A148: 101 | B148: XII IPA-3 | C148: 11 | D148: 0 | E148: 0 | F148: 0
A149: 102 | B149: XII IPA-3 | C149: 12 | D149: 0 | E149: 0 | F149: 0
A150: 103 | B150: XII IPA-3 | C150: 13 | D150: 0 | E150: 0 | F150: 0
A151: 104 | B151: XII IPA-3 | C151: 14 | D151: 0 | E151: 0 | F151: 0
A152: 105 | B152: XII IPA-3 | C152: 15 | D152: 0 | E152: 0 | F152: 0
A153: 106 | B153: XII IPA-3 | C153: 16 | D153: 0 | E153: 0 | F153: 0
A154: 107 | B154: XII IPA-3 | C154: 17 | D154: 0 | E154: 0 | F154: 0
A155: 108 | B155: XII IPA-3 | C155: 18 | D155: 0 | E155: 0 | F155: 0
A156: 109 | B156: XII IPA-3 | C156: 19 | D156: 0 | E156: 0 | F156: 0
A157: 110 | B157: XII IPA-3 | C157: 20 | D157: 0 | E157: 0 | F157: 0
A158: 111 | B158: XII IPA-3 | C158: 21 | D158: 0 | E158: 0 | F158: 0
A159: 112 | B159: XII IPA-3 | C159: 22 | D159: 0 | E159: 0 | F159: 0
A160: 113 | B160: XII IPA-3 | C160: 23 | D160: 0 | E160: 0 | F160: 0
A161: 114 | B161: XII IPA-3 | C161: 24 | D161: 0 | E161: 0 | F161: 0
A162: 115 | B162: XII IPA-3 | C162: 25 | D162: 0 | E162: 0 | F162: 0
A163: 116 | B163: XII IPA-3 | C163: 26 | D163: 0 | E163: 0 | F163: 0
A164: 117 | B164: XII IPA-3 | C164: 27 | D164: 0 | E164: 0 | F164: 0
A165: 118 | B165: XII IPA-3 | C165: 28 | D165: 0 | E165: 0 | F165: 0
A166: 119 | B166: XII IPA-3 | C166: 29 | D166: 0 | E166: 0 | F166: 0
A167: 120 | B167: XII IPA-3 | C167: 30 | D167: 0 | E167: 0 | F167: 0
A168: 121 | B168: XII IPA-3 | C168: 31 | D168: 0 | E168: 0 | F168: 0
A169: 122 | B169: XII IPA-3 | C169: 32 | D169: 0 | E169: 0 | F169: 0
A170: 123 | B170: XII IPA-3 | C170: 33 | D170: 0 | E170: 0 | F170: 0
A171: 124 | B171: XII IPA-3 | C171: 34 | D171: 0 | E171: 0 | F171: 0
A172: 125 | B172: XII IPA-3 | C172: 35 | D172: 0 | E172: 0 | F172: 0
A173: =+A172+1 -> 126 | B173: XII IPA-3 | C173: 36 | D173: 0 | E173: 0 | F173: 0
A174: =+A173+1 -> 127 | B174: XII IPA-3 | C174: 37 | D174: 0 | E174: 0 | F174: 0
A175: =+A174+1 -> 128 | B175: XII IPA-3 | C175: 38 | D175: 0 | E175: 0 | F175: 0
A176: =+A175+1 -> 129 | B176: XII IPA-3 | C176: 39 | D176: 0 | E176: 0 | F176: 0
A177: =+A176+1 -> 130 | B177: XII IPA-3 | C177: 40 | D177: 0 | E177: 0 | F177: 0
D178: Mengetahui | M178: =CONCATENATE(MENU!$D$13," , ",R178) -> Cilegon , 24 Juli 2013 | R178: =TEXT(NOW(),"dd mmmm yyyy") -> 24 Juli 2013
A179: =MAX(A138:A176) -> 129 | D179: Waka Kurikulum | M179: Guru Bidang Study
D182: ................................ | M182: ................................
D183: NIP: | G183: Mengetahui | M183: NIP:
G184: Kepala Sekolah
G187: =+[1]MENU!$C$16 -> Asep Mansur,S.Pd
G188: =+[1]MENU!$C$17 -> NIP: 19620101 198512 1 004
C193: DAFTAR NILAI MURNI
C194: =+$C$2 -> SMA NEGERI 5 CILEGON
C195: =+$C$3 -> TAHUN AJARAN 2013-2014
C197: MATA PELAJARAN | E197: ; | M197: Kelas/Semester: | P197: =+B202 -> XII IPS-1
C198: NAMA SEKOLAH | E198: =+$C$2 -> SMA NEGERI 5 CILEGON
C199: NO | D199: NAMA SISWA | E199: NISN | F199: L/P | G199: NILAI HARIAN / TUGAS | M199: RATA-RATA | N199: KETUNTASAN | P199: KET
G201: 1 | H201: 2 | I201: 3 | J201: 4 | K201: 5 | L201: 6 | N201: YA | O201: TIDAK
A202: =+'DataBase-XI'!A176 -> 136 | B202: =IF(ISBLANK(A202),"",VLOOKUP(A202,Data3,2)) -> XII IPS-1 | C202: 1 | D202: =IF(ISBLANK(A202),"",VLOOKUP(A202,Data3,3)) -> AGI PURNAMA BELRA | E202: =IF(ISBLANK(A202),"",VLOOKUP(A202,Data3,5)) -> 9962208731 | F202: =IF(ISBLANK(A202),"",VLOOKUP(A202,Data3,6)) -> L
A203: =+A202+1 -> 137 | B203: XII IPS-1 | C203: 2 | D203: 0 | E203: 0 | F203: 0
A204: 138 | B204: XII IPS-1 | C204: 3 | D204: 0 | E204: 0 | F204: 0
A205: 139 | B205: XII IPS-1 | C205: 4 | D205: 0 | E205: 0 | F205: 0
A206: 140 | B206: XII IPS-1 | C206: 5 | D206: 0 | E206: 0 | F206: 0
A207: 141 | B207: XII IPS-1 | C207: 6 | D207: 0 | E207: 0 | F207: 0
A208: 142 | B208: XII IPS-1 | C208: 7 | D208: 0 | E208: 0 | F208: 0
A209: 143 | B209: XII IPS-1 | C209: 8 | D209: 0 | E209: 0 | F209: 0
A210: 144 | B210: XII IPS-1 | C210: 9 | D210: 0 | E210: 0 | F210: 0
A211: 145 | B211: XII IPS-1 | C211: 10 | D211: 0 | E211: 0 | F211: 0
A212: 146 | B212: XII IPS-1 | C212: 11 | D212: 0 | E212: 0 | F212: 0
A213: 147 | B213: XII IPS-1 | C213: 12 | D213: 0 | E213: 0 | F213: 0
A214: 148 | B214: XII IPS-1 | C214: 13 | D214: 0 | E214: 0 | F214: 0
A215: 149 | B215: XII IPS-1 | C215: 14 | D215: 0 | E215: 0 | F215: 0
A216: 150 | B216: XII IPS-1 | C216: 15 | D216: 0 | E216: 0 | F216: 0
A217: 151 | B217: XII IPS-1 | C217: 16 | D217: 0 | E217: 0 | F217: 0
A218: 152 | B218: XII IPS-1 | C218: 17 | D218: 0 | E218: 0 | F218: 0
A219: 153 | B219: XII IPS-1 | C219: 18 | D219: 0 | E219: 0 | F219: 0
A220: 154 | B220: XII IPS-1 | C220: 19 | D220: 0 | E220: 0 | F220: 0
A221: 155 | B221: XII IPS-1 | C221: 20 | D221: 0 | E221: 0 | F221: 0
A222: 156 | B222: XII IPS-1 | C222: 21 | D222: 0 | E222: 0 | F222: 0
A223: 157 | B223: XII IPS-1 | C223: 22 | D223: 0 | E223: 0 | F223: 0
A224: 158 | B224: XII IPS-1 | C224: 23 | D224: 0 | E224: 0 | F224: 0
A225: 159 | B225: XII IPS-1 | C225: 24 | D225: 0 | E225: 0 | F225: 0
A226: 160 | B226: XII IPS-1 | C226: 25 | D226: 0 | E226: 0 | F226: 0
A227: 161 | B227: XII IPS-1 | C227: 26 | D227: 0 | E227: 0 | F227: 0
A228: 162 | B228: XII IPS-1 | C228: 27 | D228: 0 | E228: 0 | F228: 0
A229: 163 | B229: XII IPS-1 | C229: 28 | D229: 0 | E229: 0 | F229: 0
A230: 164 | B230: XII IPS-1 | C230: 29 | D230: 0 | E230: 0 | F230: 0
A231: 165 | B231: XII IPS-1 | C231: 30 | D231: 0 | E231: 0 | F231: 0
A232: 166 | B232: XII IPS-1 | C232: 31 | D232: 0 | E232: 0 | F232: 0
... 124 more rows

Sheet Jml_X
A1: LAPORAN REKAPITULASI SISWA
A2: =+MENU!$D$8 -> SMA NEGERI 5 CILEGON
A3: =+MENU!$C$7 -> TAHUN AJARAN | F3: =+MENU!$D$7 -> 2013-2014
A5: ROMBEL | B5: KELAS | C5: Laki-laki | D5: Perempuan | E5: Jmlh Total / Rombel | F5: Jml Total/ Jurusan | G5: Berdasar asal sekolah Siswa / Kelas
G6: SMP | H6: MTS | I6: Total
A7: 1 | B7: =+'DataBase-X'!$B$5 -> X-1 | C7: =+'DataBase-X'!$F$50 -> 0 | D7: =+'DataBase-X'!$F$51 -> 1 | E7: =SUM(C7:D7) -> 1 | F7: =SUM(E7:E8) -> 2 | G7: =+'DataBase-X'!$U$50 -> 0 | H7: =+'DataBase-X'!$U$51 -> 0 | I7: =+'DataBase-X'!$U$52 -> 0
A8: 2 | B8: =+'DataBase-X'!$B$62 -> X-2 | C8: =+'DataBase-X'!$F$107 -> 1 | D8: =+'DataBase-X'!$F$108 -> 0 | E8: 1 | G8: =+'DataBase-X'!$U$107 -> 0 | H8: =+'DataBase-X'!$U$108 -> 0 | I8: =+'DataBase-X'!$U$109 -> 0
A9: 3 | B9: =+'DataBase-X'!$B$119 -> X-3 | C9: =+'DataBase-X'!$F$164 -> 0 | D9: =+'DataBase-X'!$F$165 -> 1 | E9: 1 | F9: =SUM(E9:E10) -> 2 | G9: =+'DataBase-X'!$U$164 -> 0 | H9: =+'DataBase-X'!$U$165 -> 0 | I9: =+'DataBase-X'!$U$166 -> 0
A10: 4 | B10: =+'DataBase-X'!$B$176 -> X-4 | C10: =+'DataBase-X'!$F$221 -> 1 | D10: =+'DataBase-X'!$F$222 -> 0 | E10: 1 | G10: =+'DataBase-X'!$U$221 -> 0 | H10: =+'DataBase-X'!$U$222 -> 0 | I10: =+'DataBase-X'!$U$223 -> 0
A11: 5 | B11: =+'DataBase-X'!$B$233 -> X-5 | C11: =+'DataBase-X'!$F$278 -> 1 | D11: =+'DataBase-X'!$F$279 -> 0 | E11: 1 | F11: =SUM(E11:E12) -> 2 | G11: =+'DataBase-X'!$U$278 -> 0 | H11: =+'DataBase-X'!$U$279 -> 0 | I11: =+'DataBase-X'!$U$280 -> 0
A12: 6 | B12: =+'DataBase-X'!$B$290 -> X-6 | C12: =+'DataBase-X'!$F$335 -> 1 | D12: =+'DataBase-X'!$F$336 -> 0 | E12: 1 | G12: =+'DataBase-X'!$U$335 -> 0 | H12: =+'DataBase-X'!$U$336 -> 0 | I12: =+'DataBase-X'!$U$337 -> 0
A13: JUMLAH | C13: =SUM(C7:C12) -> 4 | D13: 2 | E13: 6 | F13: 6 | G13: 0 | H13: 0 | I13: 0 | K13: Siswa Menurut Jenis Kelamin dan kelompok Umur
A15: Siswa Menurut Jenis Kelamin dan kelompok Umur | H15: Total
A16: Umur | B16: =+$B$7 -> X-1 | C16: =+$B$8 -> X-2 | D16: =+$B$9 -> X-3 | E16: =+$B$10 -> X-4 | F16: =+$B$11 -> X-5 | G16: =+$B$12 -> X-6 | K16: Umur | L16: L | M16: P | N16: JML
A18: 13 tahun | B18: =+'DataBase-X'!K55 -> 0 | C18: =+'DataBase-X'!K112 -> 0 | D18: =+'DataBase-X'!K169 -> 0 | E18: =+'DataBase-X'!K226 -> 0 | F18: =+'DataBase-X'!K283 -> 0 | G18: =+'DataBase-X'!K340 -> 0 | H18: =SUM(B18:G18) -> 0 | K18: 13 tahun | L18: =+'DataBase-X'!M414 -> 0 | M18: =+'DataBase-X'!M415 -> 0 | N18: =SUM(L18:M18) -> 0
A19: 14 tahun | B19: =+'DataBase-X'!K50 -> 1 | C19: =+'DataBase-X'!K107 -> 0 | D19: =+'DataBase-X'!K164 -> 1 | E19: =+'DataBase-X'!K221 -> 1 | F19: =+'DataBase-X'!K278 -> 0 | G19: =+'DataBase-X'!K335 -> 0 | H19: 3 | K19: 14 tahun | L19: =+'DataBase-X'!M416 -> 2 | M19: =+'DataBase-X'!M417 -> 1 | N19: =SUM(L19:M19) -> 3
A20: 15 tahun | B20: =+'DataBase-X'!K51 -> 0 | C20: =+'DataBase-X'!K108 -> 1 | D20: =+'DataBase-X'!K165 -> 0 | E20: =+'DataBase-X'!K222 -> 0 | F20: =+'DataBase-X'!K279 -> 1 | G20: =+'DataBase-X'!K336 -> 1 | H20: 3 | K20: 15 tahun | L20: =+'DataBase-X'!M418 -> 0 | M20: =+'DataBase-X'!M419 -> 3 | N20: 3
A21: 16 tahun | B21: =+'DataBase-X'!K52 -> 0 | C21: =+'DataBase-X'!K109 -> 0 | D21: =+'DataBase-X'!K166 -> 0 | E21: =+'DataBase-X'!K223 -> 0 | F21: =+'DataBase-X'!K280 -> 0 | G21: =+'DataBase-X'!K337 -> 0 | H21: 0 | K21: 16 tahun | L21: =+'DataBase-X'!M420 -> 0 | M21: =+'DataBase-X'!M421 -> 0 | N21: 0
A22: 17 tahun | B22: =+'DataBase-X'!K53 -> 0 | C22: =+'DataBase-X'!K110 -> 0 | D22: =+'DataBase-X'!K167 -> 0 | E22: =+'DataBase-X'!K224 -> 0 | F22: =+'DataBase-X'!K281 -> 0 | G22: =+'DataBase-X'!K338 -> 0 | H22: 0 | K22: 17 tahun | L22: =+'DataBase-X'!M422 -> 0 | M22: =+'DataBase-X'!M423 -> 0 | N22: 0
A23: 18 tahun | B23: =+'DataBase-X'!K54 -> 0 | C23: =+'DataBase-X'!K111 -> 0 | D23: =+'DataBase-X'!K168 -> 0 | E23: =+'DataBase-X'!K225 -> 0 | F23: =+'DataBase-X'!K282 -> 0 | G23: =+'DataBase-X'!K339 -> 0 | H23: 0 | K23: 18 tahun | L23: =+'DataBase-X'!M424 -> 0 | M23: =+'DataBase-X'!M425 -> 0 | N23: 0
A24: 19 tahun | B24: =+'DataBase-X'!K56 -> 0 | C24: =+'DataBase-X'!K113 -> 0 | D24: =+'DataBase-X'!K170 -> 0 | E24: =+'DataBase-X'!K227 -> 0 | F24: =+'DataBase-X'!K284 -> 0 | G24: =+'DataBase-X'!K341 -> 0 | H24: =SUM(B24:G24) -> 0 | K24: 19 tahun | L24: =+'DataBase-X'!M426 -> 0 | M24: =+'DataBase-X'!M427 -> 0 | N24: 0
K25: 20 tahun | L25: =+'DataBase-X'!M428 -> 0 | M25: =+'DataBase-X'!M429 -> 0 | N25: 0
K26: 21 tahun | L26: =+'DataBase-X'!M430 -> 0 | M26: =+'DataBase-X'!M431 -> 0 | N26: 0
A27: Jumlah 2) | B27: =SUM(B18:B26) -> 1 | C27: =SUM(C18:C26) -> 1 | D27: 1 | E27: 1 | F27: 1 | G27: 1 | H27: =SUM(H18:H26) -> 6 | K27: 22 tahun | L27: =+'DataBase-X'!M432 -> 0 | M27: =+'DataBase-X'!M433 -> 0 | N27: 0
A29: Siswa berdasarkan Agama | H29: Total | K29: TOTAL | L29: =SUM(L18:L28) -> 2 | M29: =SUM(M18:M28) -> 4 | N29: =SUM(L29:M29) -> 6
A30: Agama | B30: =+$B$7 -> X-1 | C30: =+$B$8 -> X-2 | D30: =+$B$9 -> X-3 | E30: =+$B$10 -> X-4 | F30: =+$B$11 -> X-5 | G30: =+$B$12 -> X-6
A32: Islam | B32: =+'DataBase-X'!W50 -> 0 | C32: =+'DataBase-X'!W107 -> 0 | D32: =+'DataBase-X'!W164 -> 0 | E32: =+'DataBase-X'!W221 -> 0 | F32: =+'DataBase-X'!W278 -> 0 | G32: =+'DataBase-X'!W335 -> 0 | H32: =SUM(B32:G32) -> 0
A33: Katolik | B33: =+'DataBase-X'!W51 -> 0 | C33: =+'DataBase-X'!W108 -> 0 | D33: =+'DataBase-X'!W165 -> 0 | E33: =+'DataBase-X'!W222 -> 0 | F33: =+'DataBase-X'!W279 -> 0 | G33: =+'DataBase-X'!W336 -> 0 | H33: =SUM(B33:G33) -> 0
A34: Protestan | B34: =+'DataBase-X'!W52 -> 0 | C34: =+'DataBase-X'!W109 -> 0 | D34: =+'DataBase-X'!W166 -> 0 | E34: =+'DataBase-X'!W223 -> 0 | F34: =+'DataBase-X'!W280 -> 0 | G34: =+'DataBase-X'!W337 -> 0 | H34: =SUM(B34:G34) -> 0
A35: Hindu | B35: =+'DataBase-X'!W53 -> 0 | C35: =+'DataBase-X'!W110 -> 0 | D35: =+'DataBase-X'!W167 -> 0 | E35: =+'DataBase-X'!W224 -> 0 | F35: =+'DataBase-X'!W281 -> 0 | G35: =+'DataBase-X'!W338 -> 0 | H35: =SUM(B35:G35) -> 0
A36: Budha | B36: =+'DataBase-X'!W54 -> 0 | C36: =+'DataBase-X'!W111 -> 0 | D36: =+'DataBase-X'!W168 -> 0 | E36: =+'DataBase-X'!W225 -> 0 | F36: =+'DataBase-X'!W282 -> 0 | G36: =+'DataBase-X'!W339 -> 0 | H36: =SUM(B36:G36) -> 0
B38: =SUM(B32:B36) -> 0 | C38: 0 | D38: 0 | E38: 0 | F38: 0 | G38: 0 | H38: 0
F40: =CONCATENATE(MENU!$D$13," , ",K40) -> Cilegon , 24 Juli 2013 | K40: =TEXT(NOW(),"dd mmmm yyyy") -> 24 Juli 2013
F41: Kepala Sekolah
F47: =+MENU!$D$9 -> Asep Mansur, M.Pd
F48: Pembina
F49: =+MENU!$D$10 -> NIP. 19620101 198512 1 004

Sheet Jml_XI
A1: LAPORAN REKAPITULASI SISWA
A2: =+MENU!$D$8 -> SMA NEGERI 5 CILEGON
A3: =+MENU!$C$7 -> TAHUN AJARAN | F3: =+MENU!$D$7 -> 2013-2014
A5: ROMBEL | B5: KELAS | C5: Laki-laki | D5: Perempuan | E5: Jmlh Total / Rombel | F5: Jml Total/ Jurusan | G5: Berdasar asal sekolah Siswa / Kelas
G6: SMP | H6: MTS | I6: Total
A7: 1 | B7: =+'DataBase-XI'!$B$5 -> XI IPA-1 | C7: =+'DataBase-XI'!$F$50 -> 1 | D7: =+'DataBase-XI'!$F$51 -> 0 | E7: =SUM(C7:D7) -> 1 | F7: =SUM(E7:E8) -> 2 | G7: =+'DataBase-XI'!$U$50 -> 0 | H7: =+'DataBase-XI'!$U$51 -> 1 | I7: =+'DataBase-XI'!$U$52 -> 1
A8: 2 | B8: =+'DataBase-XI'!$B$62 -> XI IPA-2 | C8: =+'DataBase-XI'!$F$107 -> 1 | D8: =+'DataBase-XI'!$F$108 -> 0 | E8: 1 | G8: =+'DataBase-XI'!$U$107 -> 0 | H8: =+'DataBase-XI'!$U$108 -> 0 | I8: =+'DataBase-XI'!$U$109 -> 0
A9: 3 | B9: =+'DataBase-XI'!$B$119 -> XI IPA-3 | C9: =+'DataBase-XI'!$F$164 -> 0 | D9: =+'DataBase-XI'!$F$165 -> 1 | E9: 1 | F9: =SUM(E9:E10) -> 2 | G9: =+'DataBase-XI'!$U$164 -> 0 | H9: =+'DataBase-XI'!$U$165 -> 0 | I9: =+'DataBase-XI'!$U$166 -> 0
A10: 4 | B10: =+'DataBase-XI'!$B$176 -> XI IPS-1 | C10: =+'DataBase-XI'!$F$221 -> 1 | D10: =+'DataBase-XI'!$F$222 -> 0 | E10: 1 | G10: =+'DataBase-XI'!$U$221 -> 20 | H10: =+'DataBase-XI'!$U$222 -> 13 | I10: =+'DataBase-XI'!$U$223 -> 33
A11: 5 | B11: =+'DataBase-XI'!$B$233 -> XI IPS-2 | C11: =+'DataBase-XI'!$F$278 -> 0 | D11: =+'DataBase-XI'!$F$279 -> 1 | E11: 1 | F11: =SUM(E11:E12) -> 2 | G11: =+'DataBase-XI'!$U$278 -> 0 | H11: =+'DataBase-XI'!$U$279 -> 0 | I11: =+'DataBase-XI'!$U$280 -> 0
A12: 6 | B12: =+'DataBase-XI'!$B$290 -> XI IPS-3 | C12: =+'DataBase-XI'!$F$335 -> 1 | D12: =+'DataBase-XI'!$F$336 -> 0 | E12: 1 | G12: =+'DataBase-XI'!$U$335 -> 0 | H12: =+'DataBase-XI'!$U$336 -> 0 | I12: =+'DataBase-XI'!$U$337 -> 0
A13: JUMLAH | C13: =SUM(C7:C12) -> 4 | D13: 2 | E13: 6 | F13: 6 | G13: 20 | H13: 14 | I13: 34 | K13: Siswa Menurut Jenis Kelamin dan kelompok Umur
A15: Siswa Menurut Jenis Kelamin dan kelompok Umur | H15: Total
A16: Umur | B16: =+$B$7 -> XI IPA-1 | C16: =+$B$8 -> XI IPA-2 | D16: =+$B$9 -> XI IPA-3 | E16: =+$B$10 -> XI IPS-1 | F16: =+$B$11 -> XI IPS-2 | G16: =+$B$12 -> XI IPS-3 | K16: Umur | L16: L | M16: P | N16: JML
A18: 14 tahun | B18: =+'DataBase-XI'!K50 -> 0 | C18: =+'DataBase-XI'!K107 -> 0 | D18: =+'DataBase-XI'!K164 -> 0 | E18: =+'DataBase-XI'!K221 -> 0 | F18: =+'DataBase-XI'!K278 -> 0 | G18: =+'DataBase-XI'!K335 -> 0 | H18: =SUM(B18:G18) -> 0 | K18: 13 tahun | L18: =+'DataBase-XI'!M414 -> 0 | M18: =+'DataBase-XI'!M415 -> 0 | N18: =SUM(L18:M18) -> 0
A19: 15 tahun | B19: =+'DataBase-XI'!K51 -> 0 | C19: =+'DataBase-XI'!K108 -> 0 | D19: =+'DataBase-XI'!K165 -> 0 | E19: =+'DataBase-XI'!K222 -> 0 | F19: =+'DataBase-XI'!K279 -> 1 | G19: =+'DataBase-XI'!K336 -> 0 | H19: 1 | K19: 14 tahun | L19: =+'DataBase-XI'!M416 -> 0 | M19: =+'DataBase-XI'!M417 -> 0 | N19: =SUM(L19:M19) -> 0
A20: 16 tahun | B20: =+'DataBase-XI'!K52 -> 1 | C20: =+'DataBase-XI'!K109 -> 1 | D20: =+'DataBase-XI'!K166 -> 0 | E20: =+'DataBase-XI'!K223 -> 1 | F20: =+'DataBase-XI'!K280 -> 0 | G20: =+'DataBase-XI'!K337 -> 1 | H20: 4 | K20: 15 tahun | L20: =+'DataBase-XI'!M418 -> 1 | M20: =+'DataBase-XI'!M419 -> 0 | N20: 1
A21: 17 tahun | B21: =+'DataBase-XI'!K53 -> 0 | C21: =+'DataBase-XI'!K110 -> 0 | D21: =+'DataBase-XI'!K167 -> 1 | E21: =+'DataBase-XI'!K224 -> 0 | F21: =+'DataBase-XI'!K281 -> 0 | G21: =+'DataBase-XI'!K338 -> 0 | H21: 1 | K21: 16 tahun | L21: =+'DataBase-XI'!M420 -> 0 | M21: =+'DataBase-XI'!M421 -> 4 | N21: 4
A22: 18 tahun | B22: =+'DataBase-XI'!K54 -> 0 | C22: =+'DataBase-XI'!K111 -> 0 | D22: =+'DataBase-XI'!K168 -> 0 | E22: =+'DataBase-XI'!K225 -> 0 | F22: =+'DataBase-XI'!K282 -> 0 | G22: =+'DataBase-XI'!K339 -> 0 | H22: 0 | K22: 17 tahun | L22: =+'DataBase-XI'!M422 -> 1 | M22: =+'DataBase-XI'!M423 -> 0 | N22: 1
A23: 19 tahun | B23: =+'DataBase-XI'!K55 -> 0 | C23: =+'DataBase-XI'!K112 -> 0 | D23: =+'DataBase-XI'!K169 -> 0 | E23: =+'DataBase-XI'!K226 -> 0 | F23: =+'DataBase-XI'!K283 -> 0 | G23: =+'DataBase-XI'!K340 -> 0 | H23: 0 | K23: 18 tahun | L23: =+'DataBase-XI'!M424 -> 0 | M23: =+'DataBase-XI'!M425 -> 0 | N23: 0
A24: 20 tahun | B24: =+'DataBase-XI'!K56 -> 0 | C24: =+'DataBase-XI'!K113 -> 0 | D24: =+'DataBase-XI'!K170 -> 0 | E24: =+'DataBase-XI'!K227 -> 0 | F24: =+'DataBase-XI'!K284 -> 0 | G24: =+'DataBase-XI'!K341 -> 0 | H24: 0 | K24: 19 tahun | L24: =+'DataBase-XI'!M426 -> 0 | M24: =+'DataBase-XI'!M427 -> 0 | N24: 0
A25: 21 tahun | K25: 20 tahun | L25: =+'DataBase-XI'!M428 -> 0 | M25: =+'DataBase-XI'!M429 -> 0 | N25: 0
A26: >= 22 tahun | K26: 21 tahun | L26: =+'DataBase-XI'!M430 -> 0 | M26: =+'DataBase-XI'!M431 -> 0 | N26: 0
A27: Jumlah 2) | B27: =SUM(B18:B26) -> 1 | C27: 1 | D27: 1 | E27: 1 | F27: 1 | G27: 1 | H27: 6 | K27: 22 tahun | L27: =+'DataBase-XI'!M432 -> 0 | M27: =+'DataBase-XI'!M433 -> 0 | N27: 0
A29: Siswa berdasarkan Agama | H29: Total | K29: TOTAL | L29: =SUM(L18:L28) -> 2 | M29: =SUM(M18:M28) -> 4 | N29: =SUM(L29:M29) -> 6
A30: Agama | B30: =+$B$7 -> XI IPA-1 | C30: =+$B$8 -> XI IPA-2 | D30: =+$B$9 -> XI IPA-3 | E30: =+$B$10 -> XI IPS-1 | F30: =+$B$11 -> XI IPS-2 | G30: =+$B$12 -> XI IPS-3
A32: Islam | B32: =+'DataBase-XI'!W50 -> 1 | C32: =+'DataBase-XI'!W107 -> 0 | D32: =+'DataBase-XI'!W164 -> 0 | E32: =+'DataBase-XI'!W221 -> 33 | F32: =+'DataBase-XI'!W278 -> 0 | G32: =+'DataBase-XI'!W335 -> 0 | H32: =SUM(B32:G32) -> 34
A33: Katolik | B33: =+'DataBase-XI'!W51 -> 0 | C33: =+'DataBase-XI'!W108 -> 0 | D33: =+'DataBase-XI'!W165 -> 0 | E33: =+'DataBase-XI'!W222 -> 0 | F33: =+'DataBase-XI'!W279 -> 0 | G33: =+'DataBase-XI'!W336 -> 0 | H33: =SUM(B33:G33) -> 0
A34: Protestan | B34: =+'DataBase-XI'!W52 -> 0 | C34: =+'DataBase-XI'!W109 -> 0 | D34: =+'DataBase-XI'!W166 -> 0 | E34: =+'DataBase-XI'!W223 -> 0 | F34: =+'DataBase-XI'!W280 -> 0 | G34: =+'DataBase-XI'!W337 -> 0 | H34: =SUM(B34:G34) -> 0
A35: Hindu | B35: =+'DataBase-XI'!W53 -> 0 | C35: =+'DataBase-XI'!W110 -> 0 | D35: =+'DataBase-XI'!W167 -> 0 | E35: =+'DataBase-XI'!W224 -> 0 | F35: =+'DataBase-XI'!W281 -> 0 | G35: =+'DataBase-XI'!W338 -> 0 | H35: =SUM(B35:G35) -> 0
A36: Budha | B36: =+'DataBase-XI'!W54 -> 0 | C36: =+'DataBase-XI'!W111 -> 0 | D36: =+'DataBase-XI'!W168 -> 0 | E36: =+'DataBase-XI'!W225 -> 0 | F36: =+'DataBase-XI'!W282 -> 0 | G36: =+'DataBase-XI'!W339 -> 0 | H36: =SUM(B36:G36) -> 0
B38: =SUM(B32:B36) -> 1 | C38: 0 | D38: 0 | E38: 33 | F38: 0 | G38: 0 | H38: 34
F40: =CONCATENATE(MENU!$D$13," , ",K40) -> Cilegon , 24 Juli 2013 | K40: =TEXT(NOW(),"dd mmmm yyyy") -> 24 Juli 2013
F41: Kepala Sekolah
F47: =+MENU!$D$9 -> Asep Mansur, M.Pd
F48: Pembina
F49: =+MENU!$D$10 -> NIP. 19620101 198512 1 004

Sheet Jml_XII
A1: LAPORAN REKAPITULASI SISWA
A2: =+MENU!$D$8 -> SMA NEGERI 5 CILEGON
A3: =+MENU!$C$7 -> TAHUN AJARAN | F3: =+MENU!$D$7 -> 2013-2014
A5: ROMBEL | B5: KELAS | C5: Laki-laki | D5: Perempuan | E5: Jmlh Total / Rombel | F5: Jml Total/ Jurusan | G5: Berdasar asal sekolah Siswa / Kelas
G6: SMP | H6: MTS | I6: Total
A7: 1 | B7: =+'DataBase-XII'!$B$5 -> XII IPA-1 | C7: =+'DataBase-XII'!$F$50 -> 0 | D7: =+'DataBase-XII'!$F$51 -> 1 | E7: =SUM(C7:D7) -> 1 | F7: =SUM(E7:E8) -> 2 | G7: =+'DataBase-XII'!$U$50 -> 0 | H7: =+'DataBase-XII'!$U$51 -> 1 | I7: =SUM(G7:H7) -> 1
A8: 2 | B8: =+'DataBase-XII'!$B$62 -> XII IPA-2 | C8: =+'DataBase-XII'!$F$107 -> 0 | D8: =+'DataBase-XII'!$F$108 -> 1 | E8: 1 | G8: =+'DataBase-XII'!$U$107 -> 1 | H8: =+'DataBase-XII'!$U$108 -> 0 | I8: 1
A9: 3 | B9: =+'DataBase-XII'!$B$119 -> XII IPA-3 | C9: =+'DataBase-XII'!$F$164 -> 1 | D9: =+'DataBase-XII'!$F$165 -> 0 | E9: 1 | F9: =SUM(E9:E10) -> 2 | G9: =+'DataBase-XII'!$U$164 -> 1 | H9: =+'DataBase-XII'!$U$165 -> 0 | I9: 1
A10: 4 | B10: =+'DataBase-XII'!$B$176 -> XII IPS-1 | C10: =+'DataBase-XII'!$F$221 -> 1 | D10: =+'DataBase-XII'!$F$222 -> 0 | E10: 1 | G10: =+'DataBase-XII'!$U$221 -> 1 | H10: =+'DataBase-XII'!$U$222 -> 0 | I10: 1
A11: 5 | B11: =+'DataBase-XII'!$B$233 -> XII IPS-2 | C11: =+'DataBase-XII'!$F$278 -> 1 | D11: =+'DataBase-XII'!$F$279 -> 0 | E11: 1 | F11: =SUM(E11:E12) -> 2 | G11: =+'DataBase-XII'!$U$278 -> 1 | H11: =+'DataBase-XII'!$U$279 -> 0 | I11: 1
A12: 6 | B12: =+'DataBase-XII'!$B$290 -> XII IPS-3 | C12: =+'DataBase-XII'!$F$335 -> 1 | D12: =+'DataBase-XII'!$F$336 -> 0 | E12: 1 | G12: =+'DataBase-XII'!$U$335 -> 1 | H12: =+'DataBase-XII'!$U$336 -> 0 | I12: 1
A13: JUMLAH | C13: =SUM(C7:C12) -> 4 | D13: 2 | E13: 6 | F13: 6 | G13: 5 | H13: 1 | I13: 6 | K13: Siswa Menurut Jenis Kelamin dan kelompok Umur
A15: Siswa Menurut Jenis Kelamin dan kelompok Umur | H15: Total
A16: Umur | B16: =+$B$7 -> XII IPA-1 | C16: =+$B$8 -> XII IPA-2 | D16: =+$B$9 -> XII IPA-3 | E16: =+$B$10 -> XII IPS-1 | F16: =+$B$11 -> XII IPS-2 | G16: =+$B$12 -> XII IPS-3 | K16: Umur | L16: L | M16: P | N16: JML
A18: 14 tahun | B18: =+'DataBase-XII'!K50 -> 0 | C18: =+'DataBase-XII'!K107 -> 0 | D18: =+'DataBase-XII'!K164 -> 0 | E18: =+'DataBase-XII'!K221 -> 0 | F18: =+'DataBase-XII'!K278 -> 0 | G18: =+'DataBase-XII'!K335 -> 0 | H18: =SUM(B18:G18) -> 0 | K18: 13 tahun | L18: =+'DataBase-XII'!M414 -> 0 | M18: =+'DataBase-XII'!M415 -> 0 | N18: =SUM(L18:M18) -> 0
A19: 15 tahun | B19: =+'DataBase-XII'!K51 -> 0 | C19: =+'DataBase-XII'!K108 -> 0 | D19: =+'DataBase-XII'!K165 -> 0 | E19: =+'DataBase-XII'!K222 -> 0 | F19: =+'DataBase-XII'!K279 -> 0 | G19: =+'DataBase-XII'!K336 -> 0 | H19: 0 | K19: 14 tahun | L19: =+'DataBase-XII'!M416 -> 0 | M19: =+'DataBase-XII'!M417 -> 0 | N19: =SUM(L19:M19) -> 0
A20: 16 tahun | B20: =+'DataBase-XII'!K52 -> 0 | C20: =+'DataBase-XII'!K109 -> 0 | D20: =+'DataBase-XII'!K166 -> 0 | E20: =+'DataBase-XII'!K223 -> 1 | F20: =+'DataBase-XII'!K280 -> 0 | G20: =+'DataBase-XII'!K337 -> 0 | H20: 1 | K20: 15 tahun | L20: =+'DataBase-XII'!M418 -> 0 | M20: =+'DataBase-XII'!M419 -> 0 | N20: 0
A21: 17 tahun | B21: =+'DataBase-XII'!K53 -> 1 | C21: =+'DataBase-XII'!K110 -> 1 | D21: =+'DataBase-XII'!K167 -> 1 | E21: =+'DataBase-XII'!K224 -> 0 | F21: =+'DataBase-XII'!K281 -> 0 | G21: =+'DataBase-XII'!K338 -> 1 | H21: 4 | K21: 16 tahun | L21: =+'DataBase-XII'!M420 -> 0 | M21: =+'DataBase-XII'!M421 -> 1 | N21: 1
A22: 18 tahun | B22: =+'DataBase-XII'!K54 -> 0 | C22: =+'DataBase-XII'!K111 -> 0 | D22: =+'DataBase-XII'!K168 -> 0 | E22: =+'DataBase-XII'!K225 -> 0 | F22: =+'DataBase-XII'!K282 -> 1 | G22: =+'DataBase-XII'!K339 -> 0 | H22: 1 | K22: 17 tahun | L22: =+'DataBase-XII'!M422 -> 2 | M22: =+'DataBase-XII'!M423 -> 2 | N22: 4
A23: 19 tahun | B23: =+'DataBase-XII'!K55 -> 0 | C23: =+'DataBase-XII'!K112 -> 0 | D23: =+'DataBase-XII'!K169 -> 0 | E23: =+'DataBase-XII'!K226 -> 0 | F23: =+'DataBase-XII'!K283 -> 0 | G23: =+'DataBase-XII'!K340 -> 0 | H23: 0 | K23: 18 tahun | L23: =+'DataBase-XII'!M424 -> 0 | M23: =+'DataBase-XII'!M425 -> 1 | N23: 1
A24: 20 tahun | B24: =+'DataBase-XII'!K56 -> 0 | C24: =+'DataBase-XII'!K113 -> 0 | D24: =+'DataBase-XII'!K170 -> 0 | E24: =+'DataBase-XII'!K227 -> 0 | F24: =+'DataBase-XII'!K284 -> 0 | G24: =+'DataBase-XII'!K341 -> 0 | H24: 0 | K24: 19 tahun | L24: =+'DataBase-XII'!M426 -> 0 | M24: =+'DataBase-XII'!M427 -> 0 | N24: 0
A25: 21 tahun | K25: 20 tahun | L25: =+'DataBase-XII'!M428 -> 0 | M25: =+'DataBase-XII'!M429 -> 0 | N25: 0
A26: >= 22 tahun | K26: 21 tahun | L26: =+'DataBase-XII'!M430 -> 0 | M26: =+'DataBase-XII'!M431 -> 0 | N26: 0
A27: Jumlah 2) | B27: =SUM(B18:B26) -> 1 | C27: 1 | D27: 1 | E27: 1 | F27: 1 | G27: 1 | H27: 6 | K27: 22 tahun | L27: =+'DataBase-XII'!M432 -> 0 | M27: =+'DataBase-XII'!M433 -> 0 | N27: 0
A29: Siswa berdasarkan Agama | H29: Total | K29: TOTAL | L29: =SUM(L18:L28) -> 2 | M29: =SUM(M18:M28) -> 4 | N29: =SUM(L29:M29) -> 6
A30: Agama | B30: =+$B$7 -> XII IPA-1 | C30: =+$B$8 -> XII IPA-2 | D30: =+$B$9 -> XII IPA-3 | E30: =+$B$10 -> XII IPS-1 | F30: =+$B$11 -> XII IPS-2 | G30: =+$B$12 -> XII IPS-3
A32: Islam | B32: =+'DataBase-XII'!W50 -> 1 | C32: =+'DataBase-XII'!W107 -> 1 | D32: =+'DataBase-XII'!W164 -> 1 | E32: =+'DataBase-XII'!W221 -> 1 | F32: =+'DataBase-XII'!W278 -> 1 | G32: =+'DataBase-XII'!W335 -> 1 | H32: =SUM(B32:G32) -> 6
A33: Katolik | B33: =+'DataBase-XII'!W51 -> 0 | C33: =+'DataBase-XII'!W108 -> 0 | D33: =+'DataBase-XII'!W165 -> 0 | E33: =+'DataBase-XII'!W222 -> 0 | F33: =+'DataBase-XII'!W279 -> 0 | G33: =+'DataBase-XII'!W336 -> 0 | H33: =SUM(B33:G33) -> 0
A34: Protestan | B34: =+'DataBase-XII'!W52 -> 0 | C34: =+'DataBase-XII'!W109 -> 0 | D34: =+'DataBase-XII'!W166 -> 0 | E34: =+'DataBase-XII'!W223 -> 0 | F34: =+'DataBase-XII'!W280 -> 0 | G34: =+'DataBase-XII'!W337 -> 0 | H34: =SUM(B34:G34) -> 0
A35: Hindu | B35: =+'DataBase-XII'!W53 -> 0 | C35: =+'DataBase-XII'!W110 -> 0 | D35: =+'DataBase-XII'!W167 -> 0 | E35: =+'DataBase-XII'!W224 -> 0 | F35: =+'DataBase-XII'!W281 -> 0 | G35: =+'DataBase-XII'!W338 -> 0 | H35: =SUM(B35:G35) -> 0
A36: Budha | B36: =+'DataBase-XII'!W54 -> 0 | C36: =+'DataBase-XII'!W111 -> 0 | D36: =+'DataBase-XII'!W168 -> 0 | E36: =+'DataBase-XII'!W225 -> 0 | F36: =+'DataBase-XII'!W282 -> 0 | G36: =+'DataBase-XII'!W339 -> 0 | H36: =SUM(B36:G36) -> 0
B38: =SUM(B32:B36) -> 1 | C38: 1 | D38: 1 | E38: 1 | F38: 1 | G38: 1 | H38: 6
F40: =CONCATENATE(MENU!$D$13," , ",K40) -> Cilegon , 24 Juli 2013 | K40: =TEXT(NOW(),"dd mmmm yyyy") -> 24 Juli 2013
F41: Kepala Sekolah
F47: =+MENU!$D$9 -> Asep Mansur, M.Pd
F48: Pembina
F49: =+MENU!$D$10 -> NIP. 19620101 198512 1 004

Sheet Data Jml Siswa
A1: LAPORAN REKAPITULASI SISWA
A2: =+MENU!$D$8 -> SMA NEGERI 5 CILEGON
C3: =+MENU!$C$7 -> TAHUN AJARAN | E3: =+MENU!$D$7 -> 2013-2014
A5: JUMLAH ROMBEL | B5: KELAS | C5: Laki-laki | D5: Perempuan | E5: Jml/ Rombel | F5: Jml Total/ kls | G5: Jml/ Kls
A6: 1 | B6: =+'DataBase-X'!$B$5 -> X-1 | C6: =+Jml_X!C7 -> 0 | D6: =+Jml_X!D7 -> 1 | E6: =SUM(C6:D6) -> 1 | F6: =SUM(E6:E11) -> 6 | G6: =+F6 -> 6
A7: 2 | B7: =+'DataBase-X'!$B$62 -> X-2 | C7: =+Jml_X!C8 -> 1 | D7: =+Jml_X!D8 -> 0 | E7: 1
A8: 3 | B8: =+'DataBase-X'!$B$119 -> X-3 | C8: =+Jml_X!C9 -> 0 | D8: =+Jml_X!D9 -> 1 | E8: 1 | I8: X
A9: 4 | B9: =+'DataBase-X'!$B$176 -> X-4 | C9: =+Jml_X!C10 -> 1 | D9: =+Jml_X!D10 -> 0 | E9: 1 | I9: L | J9: P | K9: Jml: L + P | N9: TOTAL BERDASAR KELAMIN
A10: 5 | B10: =+'DataBase-X'!$B$233 -> X-5 | C10: =+Jml_X!C11 -> 1 | D10: =+Jml_X!D11 -> 0 | E10: 1
A11: 6 | B11: =+'DataBase-X'!$B$290 -> X-6 | C11: =+Jml_X!C12 -> 1 | D11: =+Jml_X!D12 -> 0 | E11: 1 | I11: =+C6+C7+C8+C9+C11+C10 -> 4 | J11: =+D6+D7+D8+D9+D11+D10 -> 2 | K11: =SUM(I11:J11) -> 6 | N11: L | O11: P
A12: 7 | B12: =+'DataBase-XI'!$B$5 -> XI IPA-1 | C12: =+Jml_XI!C7 -> 1 | D12: =+Jml_XI!D7 -> 0 | E12: 1 | F12: =SUM(E12:E14) -> 3 | G12: =+F12+F15 -> 6 | I12: L | J12: P | N12: =+I11+I13+I14+I18+I19 -> 12 | O12: =+J11+J13+J14+J18+J19 -> 6 | P12: =+N12+O12 -> 18
A13: 8 | B13: =+'DataBase-XI'!$B$62 -> XI IPA-2 | C13: =+Jml_XI!C8 -> 1 | D13: =+Jml_XI!D8 -> 0 | E13: 1 | H13: XI A | I13: =+C12+C13+C14 -> 2 | J13: =+D12+D13+D14 -> 1 | K13: =SUM(I13:J13) -> 3 | L13: =+K13+K14 -> 6
A14: 9 | B14: =+'DataBase-XI'!$B$119 -> XI IPA-3 | C14: =+Jml_XI!C9 -> 0 | D14: =+Jml_XI!D9 -> 1 | E14: 1 | H14: XI S | I14: =+C17+C15+C16 -> 2 | J14: =+D15+D17+D16 -> 1 | K14: =SUM(I14:J14) -> 3
A15: 10 | B15: =+'DataBase-XI'!$B$176 -> XI IPS-1 | C15: =+Jml_XI!C10 -> 1 | D15: =+Jml_XI!D10 -> 0 | E15: 1 | F15: =SUM(E15:E17) -> 3 | I15: =SUM(I13:I14) -> 4 | J15: =SUM(J13:J14) -> 2
A16: 11 | B16: =+'DataBase-XI'!$B$233 -> XI IPS-2 | C16: =+Jml_XI!C11 -> 0 | D16: =+Jml_XI!D11 -> 1 | E16: 1
A17: 12 | B17: =+'DataBase-XI'!$B$290 -> XI IPS-3 | C17: =+Jml_XI!C12 -> 1 | D17: =+Jml_XI!D12 -> 0 | E17: 1 | I17: L | J17: P
A18: 13 | B18: =+'DataBase-XII'!$B$5 -> XII IPA-1 | C18: =+Jml_XII!C7 -> 0 | D18: =+Jml_XII!D7 -> 1 | E18: 1 | F18: =SUM(E18:E20) -> 3 | G18: =+F18+F21 -> 6 | H18: XII A | I18: =SUM(C18:C20) -> 1 | J18: =SUM(D18:D20) -> 2 | K18: =+I18+J18 -> 3 | L18: =+K18+K19 -> 6
A19: 14 | B19: =+'DataBase-XII'!$B$62 -> XII IPA-2 | C19: =+Jml_XII!C8 -> 0 | D19: =+Jml_XII!D8 -> 1 | E19: 1 | H19: XII S | I19: =SUM(C21:C23) -> 3 | J19: =SUM(D21:D23) -> 0 | K19: =+I19+J19 -> 3
A20: 15 | B20: =+'DataBase-XII'!$B$119 -> XII IPA-3 | C20: =+Jml_XII!C9 -> 1 | D20: =+Jml_XII!D9 -> 0 | E20: 1 | I20: =SUM(I18:I19) -> 4 | J20: =SUM(J18:J19) -> 2
A21: 16 | B21: =+'DataBase-XII'!$B$176 -> XII IPS-1 | C21: =+Jml_XII!C10 -> 1 | D21: =+Jml_XII!D10 -> 0 | E21: 1 | F21: =SUM(E21:E23) -> 3 | I21: L | J21: P
A22: 17 | B22: =+'DataBase-XII'!$B$233 -> XII IPS-2 | C22: =+Jml_XII!C11 -> 1 | D22: =+Jml_XII!D11 -> 0 | E22: 1 | I22: =+I11+I15+I20 -> 12 | J22: =+J11+J15+J20 -> 6 | K22: =+J22+I22 -> 18
A23: 18 | B23: =+'DataBase-XII'!$B$290 -> XII IPS-3 | C23: =+Jml_XII!C12 -> 1 | D23: =+Jml_XII!D12 -> 0 | E23: 1
A24: JUMLAH | C24: =SUM(C6:C22) -> 11 | D24: =SUM(D6:D22) -> 6 | E24: =SUM(E6:E22) -> 17 | F24: =SUM(F6:F23) -> 18 | G24: =SUM(G6:G23) -> 18 | L24: =+K11+L13+L18 -> 18
A26: PSB- Kelas X | B26: Target Penerimaan Pendaftar
B27: L | C27: P | D27: L+P
A28: =+G6 -> 6 | B28: =+I11 -> 4 | C28: =+J11 -> 2 | D28: =+B28+C28 -> 6
A30: Siswa Baru berdasarkan Jenis Kelamin
A31: SMP | C31: MTs | E31: SMP + MTs
A33: =+Jml_X!G13 -> 0 | C33: =+Jml_X!H13 -> 0 | E33: =+A33+B33+C33+D33 -> 0 | F33: =+A33+C33 -> 0 | G33: =+D33+B33 -> 0 | H33: =+G33+F33 -> 0
A35: Siswa Baru berdasarkan Usia
A36: L/P | B36: 14 Th | C36: 15 Th | D36: 16 Th | E36: >=17 Th | F36: SMP + MTs | G36: L+P
A37: L | F37: =SUM(B37:E37) -> 0 | G37: =+F37+F38 -> 0
A38: P | F38: =SUM(B38:E38) -> 0
A40: Siswa Menurut Jenis Kelamin dan kelompok Umur
A41: Umur | B41: Kelas X | C41: Kelas XI | D41: Kelas XII
A43: 14 tahun | B43: =+Jml_X!B19+Jml_X!C19+Jml_X!D19+Jml_X!E19+Jml_X!F19+Jml_X!G19 -> 3 | C43: =+Jml_XI!B18+Jml_XI!C18+Jml_XI!D18+Jml_XI!E18+Jml_XI!F18+Jml_XI!G18 -> 0 | D43: =+Jml_XII!B18+Jml_XII!C18+Jml_XII!D18+Jml_XII!E18+Jml_XII!F18+Jml_XII!G18 -> 0
A44: 15 tahun | B44: =+Jml_X!B20+Jml_X!C20+Jml_X!D20+Jml_X!E20+Jml_X!F20+Jml_X!G20 -> 3 | C44: =+Jml_XI!B19+Jml_XI!C19+Jml_XI!D19+Jml_XI!E19+Jml_XI!F19+Jml_XI!G19 -> 1 | D44: =+Jml_XII!B19+Jml_XII!C19+Jml_XII!D19+Jml_XII!E19+Jml_XII!F19+Jml_XII!G19 -> 0
A45: 16 tahun | B45: =+Jml_X!B21+Jml_X!C21+Jml_X!D21+Jml_X!E21+Jml_X!F21+Jml_X!G21 -> 0 | C45: =+Jml_XI!B20+Jml_XI!C20+Jml_XI!D20+Jml_XI!E20+Jml_XI!F20+Jml_XI!G20 -> 4 | D45: =+Jml_XII!B20+Jml_XII!C20+Jml_XII!D20+Jml_XII!E20+Jml_XII!F20+Jml_XII!G20 -> 1
A46: 17 tahun | B46: =+Jml_X!B22+Jml_X!C22+Jml_X!D22+Jml_X!E22+Jml_X!F22+Jml_X!G22 -> 0 | C46: =+Jml_XI!B21+Jml_XI!C21+Jml_XI!D21+Jml_XI!E21+Jml_XI!F21+Jml_XI!G21 -> 1 | D46: =+Jml_XII!B21+Jml_XII!C21+Jml_XII!D21+Jml_XII!E21+Jml_XII!F21+Jml_XII!G21 -> 4
A47: 18 tahun | B47: =+Jml_X!B23+Jml_X!C23+Jml_X!D23+Jml_X!E23+Jml_X!F23+Jml_X!G23 -> 0 | C47: =+Jml_XI!B22+Jml_XI!C22+Jml_XI!D22+Jml_XI!E22+Jml_XI!F22+Jml_XI!G22 -> 0 | D47: =+Jml_XII!B22+Jml_XII!C22+Jml_XII!D22+Jml_XII!E22+Jml_XII!F22+Jml_XII!G22 -> 1
A48: 19 tahun | B48: =+Jml_X!B18+Jml_X!C18+Jml_X!D18+Jml_X!E18+Jml_X!F18+Jml_X!G18 -> 0 | C48: =+Jml_XI!B23+Jml_XI!C23+Jml_XI!D23+Jml_XI!E23+Jml_XI!F23+Jml_XI!G23 -> 0 | D48: =+Jml_XII!B23+Jml_XII!C23+Jml_XII!D23+Jml_XII!E23+Jml_XII!F23+Jml_XII!G23 -> 0
A49: 20 tahun | B49: =+Jml_X!B25+Jml_X!C25+Jml_X!D25+Jml_X!E25+Jml_X!F25+Jml_X!G25 -> 0 | C49: =+Jml_XI!B24+Jml_XI!C24+Jml_XI!D24+Jml_XI!E24+Jml_XI!F24+Jml_XI!G24 -> 0 | D49: =+Jml_XII!B24+Jml_XII!C24+Jml_XII!D24+Jml_XII!E24+Jml_XII!F24+Jml_XII!G24 -> 0
A50: 21 tahun
A51: >= 22 tahun
A52: Jumlah 2) | B52: =SUM(B43:B51) -> 6 | C52: =SUM(C43:C51) -> 6 | D52: =SUM(D43:D51) -> 6
I53: =+B52+C52+D52&" Siswa" -> 18 Siswa
A56: Kelas | B56: Siswa berdasarkan Agama | G56: Total
B57: Islam | C57: Katholik | D57: Protestan | E57: Hindu | F57: Budha
A58: X | B58: =+Jml_X!H32 -> 0 | C58: =+Jml_X!H33 -> 0 | D58: =+Jml_X!H34 -> 0 | E58: =+Jml_X!H35 -> 0 | F58: =+Jml_X!H36 -> 0 | G58: =SUM(B58:F58) -> 0
A59: XI | B59: =+Jml_XI!H32 -> 34 | C59: =+Jml_XI!H33 -> 0 | D59: =+Jml_XI!H34 -> 0 | E59: =+Jml_XI!H35 -> 0 | F59: =+Jml_XI!H36 -> 0 | G59: =SUM(B59:F59) -> 34
A60: XII | B60: =+Jml_XII!H32 -> 6 | C60: =+Jml_XII!H33 -> 0 | D60: =+Jml_XII!H34 -> 0 | E60: =+Jml_XII!H35 -> 0 | F60: =+Jml_XII!H36 -> 0 | G60: =SUM(B60:F60) -> 6
B61: =SUM(B58:B60) -> 40 | C61: 0 | D61: 0 | E61: 0 | F61: 0 | G61: 40
A63: Mengetahui | F63: =CONCATENATE(MENU!$D$13," , ",K63) -> Cilegon , 24 Juli 2013 | K63: =TEXT(NOW(),"dd mmmm yyyy") -> 24 Juli 2013
A64: Kepala Sekolah | F64: Waka Kurikulum
A70: =+MENU!$D$9 -> Asep Mansur, M.Pd | F70: =+MENU!$D$11 -> Nur Badriyah,S.Pd
A71: Pembina
A72: =+MENU!$D$10 -> NIP. 19620101 198512 1 004 | F72: =+MENU!$D$12 -> NIP: 19740217 200604 2 002

Sheet MASUK
A1: DATA MUTASI SISWA PINDAHAN MASUK ( M-1 )
A3: NO | B3: KELAS | C3: NAMA | D3: NIS | E3: NISN | F3: L/P | G3: TMPT LHR | H3: TGL LAHIR | I3: Val | K3: Usia | L3: NAMA ORANG TUA | M3: PENDAPATAN ORANG TUA | N3: PEKERJAAN ORANG TUA | O3: ALAMAT | P3: NO STTB | Q3: NO SKHU | R3: NO PESERTA UJIAN SMP | S3: ASAL SEKOLAH | T3: THN LULUS | U3: SMP/ MTs | V3: NO TELP/HP | W3: AGAMA | X3: ASAL SEKOLAH
X4: ASAL SEKOLAH | Y4: TGL MASUK | Z4: MASUK KE KELAS
A5: 1 | B5: XII-IPA-1 | C5: FAJAR PAMBUDI | D5: 13140602 | E5: 9961743685 | F5: L | G5: SERANG | H5: 1996-05-12 | I5: 1995 | J5: 2013 | K5: =+J5-I5 -> 18 | L5: AGUS WINARTO | M5: Rp 1.000.000 - 1.500.000 Ribu | N5: WIRASWASTA | O5: PERUM CIBEBER BLOK E2 No:1 | P5: DN-30 DI 0027972 | Q5: DN-30 DI 28833591 | R5: 2-11-30-03-003-148-5 | S5: SMPN 3 CILEGON | T5: 2011 | U5: SMP | V5: 087880260251 | W5: Islam | X5: SMAN 1 SERANG | Y5: 2013-07-16 | Z5: =+B5 -> XII-IPA-1
A6: 2 | B6: XII-IPS-2 | C6: DEA ALIF UTAMA | D6: 1314604 | E6: 9960473474 | F6: L | G6: SERANG | H6: 1996-01-31 | I6: 1996 | J6: =+$J$5 -> 2013 | K6: 17 | L6: DENNY INSAN MUTAQIN | M6: Rp 1.000.000 - 1.500.000 Ribu | N6: KARY/ PEGAWAI .BUMN | O6: JL.ANGGREK NO ;5 BBS II CIWEDUS | P6: DN-30 DI 0028412 | Q6: DN-30 DI 2834033 | R6: 2-11-30-03-006-087-2 | S6: SMPN 5 CILEGON | T6: 2011 | U6: SMP | V6: 081311459194 | W6: Islam | X6: SMAN 3 CILEGON | Y6: 2013-07-16 | Z6: XII-IPS-2
A7: 3 | B7: XII-IPS-3 | C7: ULYA FIRDAUS | D7: 1314603 | E7: 9962202459 | F7: L | G7: SERANG | H7: 1996-02-20 | I7: 1996 | J7: =+$J$5 -> 2013 | K7: 17 | L7: MADURIT | M7: Rp 2.000.000 -2500.000 Ribu | N7: KARY/ PEGAWAI .BUMN | O7: LINK.KLELET RT 01/03 KEL.WARNASARI | P7: MTS 280018384 | Q7: MTS 300018385 | S7: MTS DAREEL QOLAM | T7: 2011 | U7: MTS | V7: 081213175656 | W7: Islam | X7: SMAN 1 CILEGON | Y7: 2013-07-16 | Z7: XII-IPS-3
A8: 4 | B8: XI-IPA 3 | C8: SRI SUGIARTI | D8: 13140605 | E8: 9970456130 | F8: P | G8: MAGETAN | H8: 1997-05-12 | I8: 1997 | J8: =+$J$5 -> 2013 | K8: 16 | L8: SUMINGAN | M8: Rp 1.000.000 - 1.500.000 Ribu | N8: WIRASWASTA | O8: KP.WARUNG JUET RT 01/02 SAMANGRAYA CITANGKIL 42413 | P8: MTS 280042745 | Q8: DN-30 DI 0739446 | R8: 2-12-30-03-057-060-5 | S8: MTS AL-KHAIRIYAH KUBANGSARI | T8: 2012 | U8: MTs | V8: 087871767924 | W8: Islam | X8: MAN CILEGON | Y8: 2013-07-16 | Z8: XI-IPA 3
A9: 5 | B9: XI-IPS 2 | C9: TIAS SEFTIANI MUTIAB | D9: 13140606 | E9: 9970454682 | F9: P | G9: SERANG | H9: 1997-09-19 | I9: 1997 | J9: =+$J$5 -> 2013 | K9: 16 | L9: AGUS DERAJAT | M9: Rp 500 - 700 Ribu | N9: BURUH HARIAN | P9: MTS 100118663 | Q9: DN-30 DI 0134441 | R9: 2-12-02-023-560-053-4 | S9: LAINNYA | T9: 2012 | U9: MTs | V9: 087726985751 | W9: Islam | X9: SMAN 1 JALANCAGAK SUBANG | Y9: 2013-07-16 | Z9: XI-IPS 2
A10: 6 | B10: XII-IPS-3 | C10: INTAN | D10: 13140607 | F10: P | I10: 1996 | J10: =+$J$5 -> 2013 | K10: 17 | Y10: 2013-07-16 | Z10: XII-IPS-3

Sheet KELUAR
A1: DATA MUTASI SISWA KELUAR
A3: NO | B3: KELAS | C3: NAMA | D3: NIS | E3: NISN | F3: L/P | G3: TMPT LHR | H3: TGL LAHIR | I3: Val | K3: Usia | L3: NAMA ORANG TUA | M3: PENDAPATAN ORANG TUA | N3: PEKERJAAN ORANG TUA | O3: ALAMAT | P3: NO STTB | Q3: NO SKHU | R3: NO PESERTA UJIAN SMP | S3: ASAL SEKOLAH | T3: THN LULUS | U3: SMP/ MTs | V3: NO TELP/HP | W3: AGAMA | X3: ASAL SEKOLAH
X4: SEKOLAH DITUJU | Y4: TGL KELUAR | Z4: MASUK KE KELAS
A5: 1 | B5: X-1 | C5: MUHAMMAD AZIZ AMRULLAH | D5: 12130021 | E5: 9965357738 | F5: L | G5: CILEGON | H5: 1996-11-21 | I5: 1996 | J5: 2013 | K5: =+J5-I5 -> 17 | L5: Samsudin hamid | M5: Rp:1,500,000 | N5: WIRASWASTA | O5: Jl.Hiu No:5 Kavling Blok C No 5 RT 002/006 Kec.Jombang | P5: DN-30 DI 0029635 | Q5: DN-30 DI 2804612 | R5: 2-12-30-03-011-083-6 | S5: SMPN 7 CILEGON | T5: 2012 | Y5: 2013-07-16 | Z5: =+B5 -> X-1
A6: 2 | B6: X-1 | C6: Edi Sukarya | D6: 12130009 | E6: 9970452091 | F6: L | G6: CILEGON | H6: 1997-03-11 | I6: 1996 | J6: =+$J$5 -> 2013 | K6: =+J6-I6 -> 17 | L6: Saliman | M6: Rp:1,500,000 | N6: TANPA DATA | O6: Kp.Pangabuan Ciwandan | S6: SMPN 9 CILEGON | T6: 2012 | Y6: 2013-07-16 | Z6: X-1
A7: 3 | B7: X-3 | C7: Aditia Pravasta | D7: 12130071 | F7: L | I7: 1995 | J7: 2013 | K7: =+J7-I7 -> 18 | S7: SMP Daar El Falaah | Y7: 2013-07-16 | Z7: X-3
A8: 4 | B8: X-3 | C8: AHMAD MUSROFI | D8: 12130072 | E8: 9950476742 | F8: L | G8: CILEGON | H8: 1995-10-26 | I8: 1995 | J8: 2013 | K8: 18 | L8: FAHRUDIN | M8: Rp:2,500,000 | N8: WIRASWASTA | O8: JlSunan Derajat Link.temugiring RT 14/01 Ciwandan Cilegon-42444 | P8: MTs 280042759 | Q8: DN-30 DI 0739460 | R8: 2-12-30-03-057-074-7 | S8: MTS AL-KHAIRIYAH KUBANGSARI | T8: 2012 | Y8: 2013-07-16 | Z8: X-3
A9: 5 | B9: X-3 | C9: ALIYANTO | D9: 12130075 | E9: 9970452395 | F9: L | G9: SERANG | H9: 1997-11-18 | I9: 1997 | J9: 2013 | K9: 16 | L9: HUJAENI | M9: Rp:1,500,000 | N9: WIRASWASTA | O9: Jl.Sunan Bonang Link.Kebanjiran No;1 RT 1/2 Ciwandan Cilegon 42445 | P9: DN-30 DI 0028859 | Q9: DN-30 DI 2803836 | R9: 2-12-30-03-005-175-2 | S9: SMPN 4 CILEGON | T9: 2012 | Y9: 2013-07-16 | Z9: X-3
A10: 6 | B10: X-3 | C10: SUPENDI | D10: 12130102 | E10: 9955292393 | F10: L | G10: CILEGON | H10: 1996-04-03 | I10: 1996 | J10: 2013 | K10: 17 | M10: Rp:1,500,000 | N10: TANPA DATA | S10: MTS ALKH-KRACAK | T10: 2012 | Y10: 2013-07-16 | Z10: X-3
A11: 7 | B11: X-3 | C11: NOVIA NINGSIH | D11: 12130093 | E11: 9965257461 | F11: P | G11: CILEGON | H11: 1996-11-24 | I11: 1996 | J11: 2013 | K11: 17 | L11: SUPENDI | M11: Rp:500-700 rb | N11: WIRASWASTA | O11: Jl.Sunan Bonang Kp.Ciasem RT 10/04 Ds.Banjarnegara Ciwandan | P11: MTs 280042554 | Q11: DN-30 DI 0739024 | R11: 2-12-30-03-049-048-9 | S11: MTS ALKH-KRACAK | T11: 2012
A12: 8 | B12: X-5 | C12: ARDEN ARDIANTO | D12: 12130141 | E12: 9970454612 | F12: L | G12: SERANG | H12: 1997-07-07 | I12: 1997 | J12: 2013 | K12: 16 | L12: DEDI PURWANTO | M12: Rp:3,500,000 Keatas | N12: PEG.BUMN | O12: Perum Warnasari FWA 38 C N0: 9 | P12: DN-30 DI 0028725 | Q12: DN-30 DI 2803702 | R12: 2-12-30-03-005-041-8 | S12: SMPN 4 CILEGON | T12: 2012
A13: 9 | B13: X-5 | C13: MILKI MARISAH | D13: 12130158 | E13: 9960474065 | F13: P | G13: SERANG | H13: 1996-12-15 | I13: 1996 | J13: 2013 | K13: 17 | L13: MOHAMMAD TOHA | M13: Rp:1,500,000 | N13: PEDAGANG | O13: Jl.H.Umar No 98 Temuputih CILEGON 42415 | P13: DN-30 DI 0029911 | Q13: DN-30 DI 2804888 | R13: 2-12-30-03-012-141-4 | S13: SMPN 8 CILEGON | T13: 2012
A14: 10 | B14: X-5 | C14: MUCHAMAD FERDY | D14: 12130159 | E14: 9975213174 | F14: L | G14: SERANG | H14: 1997-03-03 | I14: 1997 | J14: 2013 | K14: 16 | L14: MAD AFIF | M14: Rp:3,500,000 Keatas | N14: KARYAWAN | O14: Jl.sunan Kalijaga No 106 Link.Gambiran | S14: SMP YPWKS | T14: 2012
A15: 11 | B15: X-5 | C15: Osyen Aprilio | D15: 12130164 | F15: L | I15: 1996 | J15: 2013 | K15: 17 | M15: Rp:3,500,000 Keatas | N15: TANPA DATA | S15: SMP AL-ISHLAH | T15: 2012
A16: 12 | B16: XI-IPS 1 | C16: FAHRULLOH | D16: 1112125 | E16: 9940513352 | F16: L | G16: CILEGON | H16: 1994-01-23 | I16: 1994 | J16: 2013 | K16: 19 | L16: REBUDIN | M16: Rp:500-700 rb | N16: BURUH | O16: JL. SUNAN BONANG LINK KEBANJIRAN | P16: MTS-280046568 | Q16: DN-30 DI 0739211 | R16: 2-11-30-03-057-076-5 | S16: MTS AL-KH KB SARI | T16: 2011 | U16: MTS
A17: 13 | B17: XI-IPS 2 | C17: MUHAMMAD ICHWANUDDIN PRADANA | D17: 1112037 | F17: L | G17: Serang | H17: 1996-04-02 | I17: 1996 | J17: 2013 | K17: 17 | L17: HABIBI AK | N17: TANPA DATA | P17: MTs 280044246 | Q17: DN-30 DI 0737806 | R17: 2-11-30-03-041-071-2 | S17: MTS AL INAYAH JERANG | T17: 2011 | U17: MTS

Sheet Pembinaan
A1: CATATAN PEMBINAAN SISWA
A3: No | B3: Hari/Tanggal | C3: Nama | D3: L/P | E3: Kelas | F3: Kejadian /Masalah | G3: penyelesaian dan Tindak Lanjut | H3: Keterangan | I3: Paraf
A37: @
A38: <
A39: >

Sheet Struktur Organigram
A1: STRUKTUR ORGANIGRAM
A2: KELAS :.................
A3: =+MENU!$D$8 -> SMA NEGERI 5 CILEGON
C5: KEPALA SEKOLAH
C6: =+[1]MENU!$C$16 -> Asep Mansur,S.Pd
C9: WALI KELAS
C13: KETUA KELAS & WAKIL
A19: SEKRETARIS | G19: BENDAHARA
D23: SEKSI-SEKSI
A28: KEBERSIHAN | G28: KEAMANAN
B33: UPACARA | F33: KEROHANIAN
A49: @
A50: <
A51: >

Sheet Grafik-PSB
A1: DATA PENCAPAIAN DAN JUMLAH SISWA SMA NEGERI 5 CILEGON
A3: NO | B3: TAHUN | C3: KELAS X | E3: KELAS XI | G3: KELAS XII | I3: JUMLAH TOTAL
C4: PUTRA | D4: PUTRI | E4: PUTRA | F4: PUTRI | G4: PUTRA | H4: PUTRI
A5: 1 | B5: 2 | C5: 3 | D5: 4 | E5: 5 | F5: 6 | G5: 7 | H5: 8 | I5: 9
A6: 1 | B6: 2005-2006 | C6: 23 | D6: 23 | I6: =+H6+G6+F6+E6+D6+C6 -> 46
A7: 2 | B7: 2006-2007 | C7: 84 | D7: 91 | E7: 23 | F7: 23 | I7: 221
A8: 3 | B8: 2007-2008 | C8: 69 | D8: 109 | E8: 84 | F8: 91 | G8: 23 | H8: 23 | I8: 399
A9: 4 | B9: 2008-2009 | C9: 63 | D9: 110 | E9: 69 | F9: 109 | G9: 84 | H9: 91 | I9: 526
A10: 5 | B10: 2009-2010 | C10: 85 | D10: 122 | E10: 58 | F10: 105 | G10: 62 | H10: 110 | I10: 542
A11: 6 | B11: 2010-2011 | C11: 81 | D11: 126 | E11: 81 | F11: 117 | G11: 55 | H11: 101 | I11: 561
A12: 7 | B12: 2011-2012 | C12: 66 | D12: 124 | E12: 78 | F12: 124 | G12: 74 | H12: 113 | I12: 579
A13: 8 | B13: 2012-2013 | C13: 61 | D13: 146 | E13: 57 | F13: 125 | G13: 69 | H13: 122 | I13: 580
A14: Jml thn terakhir | C14: =+C13+D13 -> 207 | E14: =+E13+F13 -> 182 | G14: =+G13+H13 -> 191
A15: PENCAPAIAN TERTINGGI | I15: =MAX(I6:I13) -> 580
B17: TAHUN | C17: JMLH SISWA
B19: 2005-2006 | C19: =+C6+D6 -> 46
B20: 2006-2007 | C20: 175
B21: 2007-2008 | C21: 178
B22: 2008-2009 | C22: 173
B23: 2009-2010 | C23: 207
B24: 2010-2011 | C24: 207
B25: 2011-2012 | C25: 190
B26: 2012-2013 | C26: 207

Sheet Denah Sekolah
B1: Jl. Sunan Bonang Link.Dukuh Kel.Banjarnegara
O3: UTARA
C4: R.BP | E4: Ruang Kep.Sek | F4: Ruang Piket | H4: PANITIA | I4: GUDANG
M5: KELAS XII-IPA 1 | O5: KELAS XII-IPA 2 | Q5: KLS XII-IPA 3 | R5: KLS XI-IPS 3
C7: WC | D7: Ruang TU | G7: Ruang Keuangan
R11: Ruang Lab IPA
A12: P=5 1/2 | C12: Ruang Koperasi sekolah
A13: L=3,30 | F13: LAPANGAN UPACARA DAN LAPANGAN OLAH RAGA
A14: T=3 m
B16: KLS XII-IPS 3
M17: KELAS XI-IPA 1 | O17: MASJID
B18: KLS XII-IPS 2 | R18: KLS XI-IPS 1
B22: KLS XII-IPS 1
R23: KLS XI-IPS 2
B27: Toilet Siswa | M27: KLS XI-IPA 2 | O27: KLS XI-IPA 3 | R27: KLS X-1
F30: PARKIR
R31: KLS X-2
R35: KLS X-3
F36: WARUNG | M36: KLS X-6 | O36: X-5 | P36: X-4

Sheet COVER
D40: KELAS | E40: :
D42: NAMA | E42: :………………………………………….
D43: NIP | E43: :………………………………………….
B49: PEMERINTAH KOTA CILEGON
B50: DINAS PENDIDIKAN
B51: SEKOLAH MENENGAH ATAS (SMA) NEGERI 5 CILEGON
B52: JL. SUNAN BONANG KEL. BANJARNEGARA - CIWANDAN TELP. (0254) 7038786 CILEGON

Sheet MOS
A1: DAFTAR HADIR SISWA/I PESERTA MOS
A2: SMA NEGERI 5 CILEGON
A3: TAHUN AJARAN 2013-2014
A4: RUANGAN | C4: X-1
A5: NO | B5: NIS | C5: NAMA | D5: L/P | E5: PARAF
A8: 1 | B8: 9980453708 | C8: M. REYMOND AL-HADAD | D8: L | E8: 1
A9: 2 | B9: 9980450362 | C9: ANISA ROSALIA | D9: P | F9: 2
A10: 3 | B10: 9985058272 | C10: ERDA EVRINA | D10: P | E10: 3
A11: 4 | B11: 9975313682 | C11: SRI MARYATI | D11: P | F11: 4
A12: 5 | B12: 9970456077 | C12: FITRIYANAH | D12: P | E12: 5
A13: 6 | B13: 9985058212 | C13: MAGFIROH | D13: P | F13: 6
A14: 7 | B14: 9980452315 | C14: EKA AFRIYANA | D14: P | E14: 7
A15: 8 | B15: 9980452108 | C15: HERLINA | D15: P | F15: 8
A16: 9 | B16: 9980453710 | C16: M YUNUS | D16: L | E16: 9
A17: 10 | B17: 9980451561 | C17: IFAN AGUS EFENDI | D17: L | F17: 10
A18: 11 | B18: 9985057867 | C18: INDAH SYFA NABILA | D18: P | E18: 11
A19: 12 | B19: 99805403084 | C19: INDAH KARTIKA SARI | D19: P | F19: 12
A20: 13 | B20: 9975157158 | C20: INGGRID ARDHIANI | D20: P | E20: 13
A21: 14 | B21: 9980450815 | C21: SRI ROMLAH | D21: P | F21: 14
A22: 15 | B22: 9980451885 | C22: NOVIANTI NUR KHOLIFAH | D22: P | E22: 15
A23: 16 | B23: 9970456061 | C23: ALVIRA | D23: P | F23: 16
A24: 17 | B24: 9985058170 | C24: HUSNAYATI | D24: P | E24: 17
A25: 18 | B25: 9970452103 | C25: MARYATI | D25: P | F25: 18
A26: 19 | B26: 9960459857 | C26: LENI LARASWATI | D26: P | E26: 19
A27: 20 | B27: 9980451577 | C27: RIFAL FISTOLANI | D27: L | F27: 20
A28: 21 | B28: 996579205 | C28: NOVINDA EKA AJIYANI | D28: P | E28: 21
A29: 22 | B29: 9980451815 | C29: NINA RAMADHANI | D29: P | F29: 22
A30: 23 | B30: 9980450316 | C30: IMAS MASRUROH | D30: P | E30: 23
A31: 24 | B31: 9975156619 | C31: NAFILAH | D31: P | F31: 24
A32: 25 | B32: 9980439880 | C32: RIKA HASTRIA | D32: P | E32: 25
A33: 26 | B33: 9980453150 | C33: KIKI NURMALASARI | D33: P | F33: 26
A34: 27 | B34: 9980439813 | C34: RISMA DWIYANTI | D34: P | E34: 27
A35: 28 | B35: 9975214145 | C35: LISKA NOVITA SARI | D35: P | F35: 28
A36: 29 | B36: 9985057585 | C36: SANDRA PUTRI SYAFRIDA | D36: P | E36: 29
A37: 30 | B37: 9985114383 | C37: ERAWATI | D37: P | F37: 30
A38: 31 | B38: 9985114364 | C38: NIA NIMATUL MAULA | D38: P | E38: 31
A39: 32 | B39: 9975213684 | C39: NOVIANDI | D39: L | F39: 32
A40: 33 | B40: 9980451586 | C40: SETIAWAN RAMADHAN | D40: L | E40: 33
A41: 34 | B41: 9985058166 | C41: RUSMAWATI | D41: P | F41: 34
A42: 35 | B42: 9980451588 | C42: SISKA MUNAFA | D42: P | E42: 35
A43: 36 | B43: 9975213659 | C43: MAFRUDOH | D43: P | F43: 36
A44: 37 | B44: 9980452294 | C44: RIKA FIRNANDA | D44: P | E44: 37
C46: Jumlah Laki-laki | D46: 6 | F46: Cilegon,…………………………….20
C47: Jumlah Perempuan | D47: 31 | F47: Guru Bidang Studi
C48: Jumlah Total | D48: 37
F54: (……………………...……….)
F55: NIP:…………………………………….
A66: DAFTAR HADIR SISWA/I PESERTA MOS
A67: SMA NEGERI 5 CILEGON
A68: TAHUN AJARAN 2013-2014
A69: RUANGAN | C69: X-2
A70: NO | B70: NIS | C70: NAMA | D70: L/P | E70: PARAF
A73: 1 | B73: 9985113826 | C73: MORINGKA BAGUS C | D73: L | E73: 1
A74: 2 | B74: 9974819028 | C74: ESTER INTAN | D74: P | F74: 2
A75: 3 | B75: 9990399704 | C75: FIRDA SAFAYANTI | D75: P | E75: 3
A76: 4 | B76: 9980450325 | C76: LIA SUCI RAMADHANTI | D76: P | F76: 4
A77: 5 | B77: 9950474213 | C77: SITI FATIMAH | D77: P | E77: 5
A78: 6 | B78: 9980450818 | C78: TIARA ARDHIYANTI | D78: P | F78: 6
A79: 7 | B79: 0 | C79: DEA AYUNING TYAS | D79: P | E79: 7
A80: 8 | B80: 9980450402 | C80: RIKA TRI RAHMADANI | D80: P | F80: 8
A81: 9 | B81: 9980450753 | C81: ENDAH SOLIHATUN NIKMAH | D81: P | E81: 9
A82: 10 | B82: 9980451486 | C82: MAISATUL ABDIYAH | D82: P | F82: 10
A83: 11 | B83: 9980453704 | C83: KRIS WIDIYANTI | D83: P | E83: 11
A84: 12 | B84: 9980450204 | C84: SHIFA SALSABILA UNANDI | D84: P | F84: 12
A85: 13 | B85: 9980453239 | C85: FIRDA MAULANI | D85: P | E85: 13
A86: 14 | B86: 9985114087 | C86: FARAH FERNAWATI | D86: P | F86: 14
A87: 15 | B87: 9980450193 | C87: RAJA ANUGRAH E.D.M.P | D87: L | E87: 15
A88: 16 | B88: 9980450730 | C88: ANNISA KURNIASIH | D88: P | F88: 16
A89: 17 | B89: 9980452321 | C89: HALIMATUSSA'DIAH | D89: P | E89: 17
A90: 18 | B90: 9980451582 | C90: RIZQY MUHAMMAD | D90: L | F90: 18
A91: 19 | B91: 9980437782 | C91: AHMAD FAHYUMI | D91: L | E91: 19
A92: 20 | B92: 9986233334 | C92: HERAWATI | D92: P | F92: 20
A93: 21 | B93: 9980455130 | C93: DEVIANA ROSMADEWI | D93: P | E93: 21
A94: 22 | B94: 9965357437 | C94: AMIATUN HASANAH | D94: P | F94: 22
A95: 23 | B95: 9970452459 | C95: SITI ROHMAH | D95: P | E95: 23
A96: 24 | B96: 9985114349 | C96: RINA NURHASANAH | D96: P | F96: 24
A97: 25 | B97: 9985058222 | C97: ELI NURMAYANTI | D97: P | E97: 25
A98: 26 | B98: 9970452418 | C98: IKROMAH | D98: P | F98: 26
A99: 27 | B99: 9975213683 | C99: NURALIM | D99: L | E99: 27
A100: 28 | B100: 9975156585 | C100: NURDIYANI | D100: P | F100: 28
A101: 29 | B101: 9970456068 | C101: DIAH AYU PERMATASARI | D101: P | E101: 29
A102: 30 | B102: 9980439819 | C102: SITI MUZDALIFAH | D102: P | F102: 30
A103: 31 | B103: 9980451573 | C103: NISA USOLIHAH | D103: P | E103: 31
A104: 32 | B104: 9970454218 | C104: FAUJAN ADIM | D104: L | F104: 32
A105: 33 | B105: 9975156584 | C105: SUHEBI | D105: L | E105: 33
A106: 34 | B106: 9980450357 | C106: ADITYA YUDISTIRA | D106: L | F106: 34
A107: 35 | B107: 9985058168 | C107: ULFATUL JAHRO | D107: P | E107: 35
A108: 36 | B108: 9980439811 | C108: ROZCHA TRISNA A | D108: P | F108: 36
A109: 37 | B109: 9985057732 | C109: DAROJATUL GINA | D109: L | E109: 37
C111: Jumlah Laki-laki | D111: 9 | F111: Cilegon,…………………………….20
C112: Jumlah Perempuan | D112: 28 | F112: Guru Bidang Studi
C113: Jumlah Total | D113: 37
F117: (……………………...……….)
F118: NIP:…………………………………….
A127: DAFTAR HADIR SISWA/I PESERTA MOS
A128: SMA NEGERI 5 CILEGON
A129: TAHUN AJARAN 2013-2014
A130: RUANGAN | C130: X-3
A131: NO | B131: NIS | C131: NAMA | D131: L/P | E131: PARAF
A134: 1 | B134: 9985114956 | C134: TIO PAMUKTI | D134: L | E134: 1
A135: 2 | B135: 9980450295 | C135: CHELSI BAYANG PRAHESTI | D135: P | F135: 2
A136: 3 | B136: 9980450354 | C136: YUSPITA KHAERUNISA | D136: P | E136: 3
A137: 4 | B137: 9980451978 | C137: ZSAHARA MELIANDINA | D137: P | F137: 4
A138: 5 | B138: 9990413553 | C138: BELA AMELIA LESTARI | D138: P | E138: 5
A139: 6 | B139: 997045521 | C139: HENDRIK BAYU ALVIAN | D139: L | F139: 6
A140: 7 | B140: 9985114366 | C140: FAHIDIN | D140: L | E140: 7
A141: 8 | B141: 9985114351 | C141: HUMROTUL HASANAH | D141: P | F141: 8
A142: 9 | B142: 9975154980 | C142: SOFIAH | D142: P | E142: 9
A143: 10 | B143: 9980453275 | C143: TIA SYAFIRA | D143: P | F143: 10
A144: 11 | B144: 9980523438 | C144: PUTRI AGNESIA | D144: P | E144: 11
A145: 12 | B145: 9988413542 | C145: ADE SRI JUA ASIH | D145: P | F145: 12
A146: 13 | B146: 9995213207 | C146: FEBRI ARI PRATAMA | D146: L | E146: 13
A147: 14 | B147: 9990410838 | C147: ZULFA NURUL KH | D147: P | F147: 14
A148: 15 | B148: 9980451635 | C148: SIFA NUR FAJRIYAH | D148: P | E148: 15
A149: 16 | B149: 9975155995 | C149: RATNA INDAH SARI | D149: P | F149: 16
A150: 17 | B150: 9985058152 | C150: LAIHATUL JANNAH | D150: P | E150: 17
A151: 18 | B151: 9980452316 | C151: EKA ROSDIANA | D151: P | F151: 18
A152: 19 | B152: 9975155987 | C152: NAILA NIHAYATI | D152: P | E152: 19
A153: 20 | B153: 9985058206 | C153: ALMA YUNITA | D153: P | F153: 20
A154: 21 | B154: 9970453414 | C154: EVA OKTOVIANI | D154: P | E154: 21
A155: 22 | B155: 9970453415 | C155: EVI OKTOVIANI | D155: P | F155: 22
A156: 23 | B156: 9980452171 | C156: KIKI ROSMIYATI | D156: P | E156: 23
A157: 24 | B157: 9980439854 | C157: ULFAH | D157: p | F157: 24
A158: 25 | B158: 9985113816 | C158: MUHAMMAD RICHO ANDRYANSYAH | D158: L | E158: 25
A159: 26 | B159: 9985058159 | C159: FITRI FITRIA | D159: P | F159: 26
A160: 27 | B160: 9985057588 | C160: JUNENGSIH | D160: P | E160: 27
A161: 28 | B161: 9980452149 | C161: INA AYATILLAH | D161: P | F161: 28
A162: 29 | B162: 9980439794 | C162: DARSIH | D162: P | E162: 29
A163: 30 | B163: 9980451595 | C163: ZA'FAR SHODIK | D163: L | F163: 30
A164: 31 | B164: 9970455136 | C164: HUNAFA UNISA | D164: P | E164: 31
A165: 32 | B165: 9970439985 | C165: DEWI RISTAULINA | D165: P | F165: 32
A166: 33 | B166: 9985115302 | C166: RAHMA DWI ANDINI | D166: P | E166: 33
A167: 34 | B167: 9980450743 | C167: CITRA KUSUMA ASHARI | D167: P | F167: 34
A168: 35 | B168: 9980439911 | C168: VIVI APRILIANI | D168: P | E168: 35
A169: 36 | B169: 9980451583 | C169: ROHAYANAH | D169: P | F169: 36
A170: 37 | B170: 9982165505 | C170: NIKI SANJAYA | D170: P | E170: 37
C172: Jumlah Laki-laki | D172: 6 | F172: Cilegon,…………………………….20
C173: Jumlah Perempuan | D173: 31 | F173: Guru Bidang Studi
C174: Jumlah Total | D174: 37
F179: (……………………...……….)
F180: NIP:…………………………………….
A192: DAFTAR HADIR SISWA/I PESERTA MOS
A193: SMA NEGERI 5 CILEGON
A194: TAHUN AJARAN 2013-2014
A195: RUANGAN | C195: X-4
A196: NO | B196: NIS | C196: NAMA | D196: L/P | E196: PARAF
A199: 1 | B199: 9970454323 | C199: NIRA SETIYAWATI | D199: P | E199: 1
A200: 2 | B200: 9980450541 | C200: KHOIRUNISA | D200: P | F200: 2
A201: 3 | B201: 9980451906 | C201: VINDA ELISA DEWI | D201: P | E201: 3
A202: 4 | B202: 9975156700 | C202: AMRULLAH | D202: L | F202: 4
A203: 5 | B203: 99756079 | C203: HANI SANTIKA YULIA C | D203: P | E203: 5
A204: 6 | B204: 9980452342 | C204: RIHARTI FEBRU. A | D204: P | F204: 6
A205: 7 | B205: 9985114347 | C205: MAIYAH | D205: P | E205: 7
A206: 8 | B206: 9970455939 | C206: FAHMI ROBIYANTO | D206: L | F206: 8
A207: 9 | B207: 9975213655 | C207: ISMATULLAH | D207: L | E207: 9
A208: 10 | B208: 9985058655 | C208: PINKEN BAYU OCSEA | D208: P | F208: 10
A209: 11 | B209: 0 | C209: ANGGI NURMALA SARI | D209: P | E209: 11
A210: 12 | B210: 9980453476 | C210: NURUL RAHMAH | D210: P | F210: 12
A211: 13 | B211: 9980453048 | C211: HANI DWI AGUSTIN | D211: P | E211: 13
A212: 14 | B212: 9980450386 | C212: KRIS MONIKA DIAN SAPUTRA | D212: P | F212: 14
A213: 15 | B213: 9980451575 | C213: RANI PUSPA YULIANI | D213: P | E213: 15
A214: 16 | B214: 9980439644 | C214: AFRIN NURASIAH | D214: P | F214: 16
A215: 17 | B215: 0 | C215: HUZATUL ISLAMIAH | D215: P | E215: 17
A216: 18 | B216: 9970455180 | C216: NENI EFIYANAH | D216: P | F216: 18
A217: 19 | B217: 9990411546 | C217: AGHNIYA MAKARIMARRIZQI SIROD | D217: P | E217: 19
A218: 20 | B218: 9980450221 | C218: ADE ISWANDI | D218: L | F218: 20
A219: 21 | B219: 9980451850 | C219: DIAH RIZKI PUTRIYUNI | D219: P | E219: 21
A220: 22 | B220: 9980451910 | C220: WINDI AZHARI | D220: P | F220: 22
A221: 23 | B221: 9985058227 | C221: MUNIATUL HASANAH | D221: P | E221: 23
A222: 24 | B222: 9980452144 | C222: EKA RIYANI | D222: P | F222: 24
A223: 25 | B223: 9980451611 | C223: FENTI AYUNINGSIH | D223: P | E223: 25
A224: 26 | B224: 9982547227 | C224: USMAN LESMANA | D224: L | F224: 26
A225: 27 | B225: 9985058269 | C225: IIM AMELIA | D225: P | E225: 27
A226: 28 | B226: 9975156687 | C226: MA'FIROH | D226: P | F226: 28
A227: 29 | B227: 9986372319 | C227: SUKMAPANJI WULUNG | D227: L | E227: 29
A228: 30 | B228: 9980451043 | C228: SITI ISTIQOMAH | D228: P | F228: 30
A229: 31 | B229: 9985114341 | C229: MUHAMAD UMAR | D229: L | E229: 31
A230: 32 | B230: 9980450419 | C230: YOLLA FEBRI ARUM SARI | D230: P | F230: 32
A231: 33 | B231: 9980451834 | C231: ANGGUN NOVITASARI | D231: P | E231: 33
A232: 34 | B232: 9980453699 | C232: ICHA ULLY MARYARTHA | D232: P | F232: 34
A233: 35 | B233: 9980439903 | C233: EEN NAJIYAH | D233: P | E233: 35
A234: 36 | B234: 9980450416 | C234: TRI SETIO ASTUTI | D234: P | F234: 36
A235: 37 | B235: 9980450332 | C235: PUTRI RAMADHANI | D235: L | E235: 37
C237: Jumlah Laki-laki | D237: 8
C238: Jumlah Perempuan | D238: 29
C239: Jumlah Total | D239: 37
A257: DAFTAR HADIR SISWA/I PESERTA MOS
A258: SMA NEGERI 5 CILEGON
A259: TAHUN AJARAN 2013-2014
A260: RUANGAN | C260: X-5
A261: NO | B261: NIS | C261: NAMA | D261: L/P | E261: PARAF
A264: 1 | B264: 0 | C264: IDA FARIDA | D264: P | E264: 1
A265: 2 | B265: 9970453424 | C265: ILHAM NURULLAH | D265: L | F265: 2
A266: 3 | B266: 9985059068 | C266: DHENTIE PRAHASTYA WARDANIE | D266: P | E266: 3
A267: 4 | B267: 9980450405 | C267: RIZKI MAULIYANDI | D267: L | F267: 4
A268: 5 | B268: 9975214091 | C268: YULIA AFRIANTI | D268: P | E268: 5
A269: 6 | B269: 9985058174 | C269: SITI HABIBAH | D269: P | F269: 6
A270: 7 | B270: 998045173 | C270: RESI RAYU TAMA | D270: P | E270: 7
A271: 8 | B271: 9980451797 | C271: ALDIN DESTRIAN | D271: L | F271: 8
A272: 9 | B272: 9980451004 | C272: MAYANG DEVI YAUMIL FATIH | D272: P | E272: 9
... 82 more rows
